Workbook

Sheet INTRO
C1: Cette version sera utilisée par les pays endémiques à la Loase
B2: Formulaire de demande commune de médicaments pour CP v.3.1 (L)
B4: Dans le cadre des efforts mondiaux entrepris pour accélérer l'expansion de la chimioprévention (CP) pour l'élimination de la filariose lymphatique et la lutte contre la schistosomiase et les géohelminthiases, l'Organisation mondiale de la Santé (OMS) facilite l'approvisionnement en albendazole, comprimés de 400 mg (GSK), pour les programmes nationaux d'élimination de la filariose lymphatique et programmes nationaux de lutte contre les géohelminthiases; en diethylcarbamazine, comprimés de 100 mg (Eisai), pour les programmes nationaux d'élimination de la filariose lymphatique; en mebendazole, comprimés de 500 mg (J&J) pour les programmes nationaux de lutte contre les géohelminthiases et en praziquantel, comprimés de 600 mg (Merck KGaA), destinés aux enfants d'âge scolaire, pour les programmes nationaux de lutte contre la schistosomiase. L'OMS contribue également à l'approvisionnement en ivermectine, comprimés de 3 mg (Merck), pour les programmes de donation pour l'onchocercose et la filariose lymphatique. Cet outil Excel est concu pour aider les pays à quantifier le nombre de comprimés nécessaires, selon le traitement de chimioprévention requis, pour atteindre les objectifs de couverture de traitement de populations et districts pour l'année de la demande de médicaments. Le résultat de cet outil est une demande commune de médicaments pour la chimioprévention des maladies tropicales négligées, qui peut être imprimée, signée et soumise à l'OMS pour la demande de ces médicaments.
B6: Structure de l'application (feuilles de travail) :
B8: INTRO | C8: Cette feuille contient des instructions pour compléter le formulaire de demande de médicaments pour la chimioprévention et des informations sur le statut de la chimioprévention pour les maladies d'endémie du pays.
B9: COUNTRY_INFO | C9: Cette feuille contient des informations sur la structure administrative du pays, la population par groupe d'âge, le statut d'endémicité pour chaque maladie, la population devant être traitée par chimioprévention et les interventions prévues.
B10: DEC, ALB_MBD, PZQ et IVM | C10: Ces feuilles contiennent des informations sur l'endémicité des districts ciblés pour le traitement aux médicaments spécifiques à la chimioprévention, les plans de traitement, et le nombre de comprimés requis et demandés.
B11: SUMMARY | C11: Cette feuille inclut un résumé du nombre de comprimés demandés, des informations concernant le stock et les dates de soumission de la demande de médicaments. Avant de générer le rapport (run macros), veuillez sélectionner le médicament pour lequel le rapport est nécessaire. Veuillez suivre la même règle pour voir le nombre de personnes à traiter pour les maladies spécifiques. Cette feuille doit être imprimée et soumise en tant que "Formulaire de demande commune de médicaments pour chimioprévention" (voir les instructions pour la soumission du formulaire sous la feuille SUMMARY).
B13: Instructions pour la saisie des données
B15: La plupart des cellules des feuilles de travail mentionnées ci-dessus contiennent des formules calculées automatiquement en fonction du protocole de traitement recommandé par l'OMS pour chaque maladie. Voir : http://www.who.int/neglected_diseases/preventive_chemotherapy/pct_manual/en/index.html
B17: Veuillez entrer vos données dans les cellules en fonction de leur code de couleur :
C19: Blanc - la cellule n'est pas protégée. Veuillez entrer la valeur de l'indicateur demandé.
C21: Jaune - la cellule est protégée et inclut le nom de l'indicateur. Aucune entrée de données requise.
C23: Orange - la cellule n'est pas protégée et contient un menu déroulant. Veuillez sélectionner la valeur dans le menu déroulant.
C26: Vert - la cellule n'est pas protégée et contient des formules. Veuillez changer la valeur indiquée uniquement si vos données sont différentes de celles calculées automatiquement.
C29: Bleu - la cellule est protégée et contient des formules. Aucune entrée de données requise.
B31: Données pays
B33: PAYS | E33: Congo
B35: Année de la demande de médicaments | E35: 2023
B37: Le pays est-il endémique à la filariose lymphatique (FL) ? | E37: Endémique
B39: Le pays est-il endémique à l'onchocercose (ONCHO) ? | E39: Endémique
B41: Le pays est-il endémique aux géohelminthiases (STH) ? | E41: Endémique
B43: Le pays est-il endémique à la schistosomiase (SCH) ? | E43: Endémique
B45: Combien d'unités administratives compte le pays ? | E45: 52
B47: Si les données démographiques par groupe d'âge ne sont pas disponibles au second niveau administratif, veuillez entrer la proportion (%) de population, par groupe d'âge, du pays. Si les données sont disponibles, veuillez laisser les cellules vierges.
B48: 1-4 ans | C48: Enfants d'âge pré-scolaire (EAPréS) | E48: 0.0861
B49: 5-14 ans | C49: Enfants d'âge scolaire (EAS) | E49: 0.268
B50: 15 ans et plus | C50: Adultes | E50: 0.586

Sheet COUNTRY_INFO
A1: INFORMATIONS PAYS
A2: Struture administrative, population par groupe d'âge, statut d'endémicité et interventions planifiées
A4: TOTAL | D4: =SUM(D$9:D$1000) -> 5881799 | E4: =SUM(E$9:E$1000) -> 506423 | F4: =SUM(F$9:F$1000) -> 1576322 | G4: =SUM(G$9:G$1000) -> 3446731 | M4: =SUM(M$9:M$1000) -> 1139811 | N4: =SUM(N$9:N$1000) -> 789779 | O4: =SUM(O$9:O$1000) -> 791573 | P4: =SUM(P$9:P$1000) -> 146411
A6: Structure administrative du pays | D6: Population | H6: Endémicité | M6: Population nécessitant la CP | Q6: Nombre de tournées de traitement prévues pour l'année | U6: Enquêtes épidémiologiques planifiées pour l’année | BG6: sth
A7: Pays | B7: Région/Département | C7: District | D7: Total | E7: EAPréS | F7: EAS | G7: Adultes | H7: FL | I7: Oncho | J7: STH | K7: SCH | L7: Loa | M7: FL | N7: Oncho | O7: STH | P7: SCH | Q7: FL | R7: Oncho | S7: STH | T7: SCH | U7: FL | V7: Oncho | W7: STH | X7: SCH | Y7: IU_ID | Z7: IU_NAME | AA7: x | AB7: x | AC7: x | AD7: x | AE7: x | AF7: x | AG7: x | AH7: x | AI7: x | AM7: x | AN7: x | AO7: x | AP7: x | AQ7: x | BG7: nb | BH7: avg | BI7: max | BP7: nb | BQ7: max | CJ7: popreqPC2019 | CK7: popreqPC2020
A9: =IF(INTRO!$E$33<>0,INTRO!$E$33, " ") -> Congo | B9: Bouenza | C9: Loudima | D9: 55687 | E9: =IF(INTRO!$E$48="","",ROUND($D9*INTRO!$E$48,0)) -> 4795 | F9: =IF(INTRO!$E$49="","",ROUND($D9*INTRO!$E$49,0)) -> 14924 | G9: =IF(INTRO!$E$50="","",ROUND($D9*INTRO!$E$50,0)) -> 32633 | H9: 0 | I9: 1 | J9: 1 | K9: 3 | L9: 1 | M9: =IF(INTRO!$E$37="Endémique",IF($H9>0,IF($H9=4,"Inconnu",IF($H9=99,"Interrompu",$D9)),0),"Non requis") -> 0 | N9: 15972 | O9: =IF(INTRO!$E$41="Endémique", IF(AND($J9>1,$J9<5), IF($J9=4, "Inconnu", E9+F9), 0),"Non requis") -> 0 | P9: 14370 | Q9: 0 | R9: 1 | S9: 0 | T9: 1 | V9: Oui | W9: Oui | X9: Oui | Y9: 12831 | Z9: Loudima
A10: =IF(INTRO!$E$33<>0,INTRO!$E$33, " ") -> Congo | B10: Bouenza | C10: Loutété | D10: 61468 | E10: =IF(INTRO!$E$48="","",ROUND($D10*INTRO!$E$48,0)) -> 5292 | F10: =IF(INTRO!$E$49="","",ROUND($D10*INTRO!$E$49,0)) -> 16473 | G10: =IF(INTRO!$E$50="","",ROUND($D10*INTRO!$E$50,0)) -> 36020 | H10: 1 | I10: 1 | J10: 2 | K10: 2 | L10: 1 | M10: =IF(INTRO!$E$37="Endémique",IF($H10>0,IF($H10=4,"Inconnu",IF($H10=99,"Interrompu",$D10)),0),"Non requis") -> 61468 | N10: 33549 | O10: =IF(INTRO!$E$41="Endémique", IF(AND($J10>1,$J10<5), IF($J10=4, "Inconnu", E10+F10), 0),"Non requis") -> 21765 | P10: 15861 | Q10: 1 | R10: 1 | S10: 1 | T10: 1 | V10: Oui | W10: Oui | X10: Oui | Y10: 12823 | Z10: Loutété
A11: =IF(INTRO!$E$33<>0,INTRO!$E$33, " ") -> Congo | B11: Bouenza | C11: Madingou | D11: 116985 | E11: =IF(INTRO!$E$48="","",ROUND($D11*INTRO!$E$48,0)) -> 10072 | F11: =IF(INTRO!$E$49="","",ROUND($D11*INTRO!$E$49,0)) -> 31352 | G11: =IF(INTRO!$E$50="","",ROUND($D11*INTRO!$E$50,0)) -> 68553 | H11: 1 | I11: 1 | J11: 1 | K11: 0 | L11: 1 | M11: =IF(INTRO!$E$37="Endémique",IF($H11>0,IF($H11=4,"Inconnu",IF($H11=99,"Interrompu",$D11)),0),"Non requis") -> 116985 | N11: 53033 | O11: =IF(INTRO!$E$41="Endémique", IF(AND($J11>1,$J11<5), IF($J11=4, "Inconnu", E11+F11), 0),"Non requis") -> 0 | Q11: 1 | R11: 1 | S11: 0 | T11: 0 | V11: Oui | W11: Oui | X11: Oui | Y11: 12763 | Z11: Madingou
A12: =IF(INTRO!$E$33<>0,INTRO!$E$33, " ") -> Congo | B12: Bouenza | C12: Mouyondzi | D12: 93002 | E12: =IF(INTRO!$E$48="","",ROUND($D12*INTRO!$E$48,0)) -> 8007 | F12: =IF(INTRO!$E$49="","",ROUND($D12*INTRO!$E$49,0)) -> 24925 | G12: =IF(INTRO!$E$50="","",ROUND($D12*INTRO!$E$50,0)) -> 54499 | H12: 1 | I12: 1 | J12: 3 | K12: 3 | L12: 1 | M12: =IF(INTRO!$E$37="Endémique",IF($H12>0,IF($H12=4,"Inconnu",IF($H12=99,"Interrompu",$D12)),0),"Non requis") -> 93002 | N12: 43184 | O12: =IF(INTRO!$E$41="Endémique", IF(AND($J12>1,$J12<5), IF($J12=4, "Inconnu", E12+F12), 0),"Non requis") -> 32932 | P12: 23998 | Q12: 1 | R12: 1 | S12: 2 | T12: 1 | V12: Oui | W12: Oui | X12: Oui | Y12: 12765 | Z12: Mouyondzi
A13: =IF(INTRO!$E$33<>0,INTRO!$E$33, " ") -> Congo | B13: Bouenza | C13: Nkayi | D13: 140052 | E13: =IF(INTRO!$E$48="","",ROUND($D13*INTRO!$E$48,0)) -> 12058 | F13: =IF(INTRO!$E$49="","",ROUND($D13*INTRO!$E$49,0)) -> 37534 | G13: =IF(INTRO!$E$50="","",ROUND($D13*INTRO!$E$50,0)) -> 82070 | H13: 0 | I13: 1 | J13: 2 | K13: 2 | L13: 1 | M13: =IF(INTRO!$E$37="Endémique",IF($H13>0,IF($H13=4,"Inconnu",IF($H13=99,"Interrompu",$D13)),0),"Non requis") -> 0 | N13: 41292 | O13: =IF(INTRO!$E$41="Endémique", IF(AND($J13>1,$J13<5), IF($J13=4, "Inconnu", E13+F13), 0),"Non requis") -> 49592 | P13: 36139 | Q13: 0 | R13: 1 | S13: 1 | T13: 1 | V13: Oui | W13: Oui | X13: Oui | Y13: 12832 | Z13: Nkayi
A14: =IF(INTRO!$E$33<>0,INTRO!$E$33, " ") -> Congo | B14: Brazzaville | C14: Bacongo | D14: 175738 | E14: =IF(INTRO!$E$48="","",ROUND($D14*INTRO!$E$48,0)) -> 15131 | F14: =IF(INTRO!$E$49="","",ROUND($D14*INTRO!$E$49,0)) -> 47098 | G14: =IF(INTRO!$E$50="","",ROUND($D14*INTRO!$E$50,0)) -> 102982 | H14: 0 | I14: 1 | J14: 1 | K14: 4 | L14: 1 | M14: =IF(INTRO!$E$37="Endémique",IF($H14>0,IF($H14=4,"Inconnu",IF($H14=99,"Interrompu",$D14)),0),"Non requis") -> 0 | N14: 129776 | O14: =IF(INTRO!$E$41="Endémique", IF(AND($J14>1,$J14<5), IF($J14=4, "Inconnu", E14+F14), 0),"Non requis") -> 0 | P14: 0 | Q14: 0 | R14: 1 | S14: 0 | T14: 0 | V14: Oui | W14: Oui | X14: Oui | Y14: 12800 | Z14: Bacongo
A15: =IF(INTRO!$E$33<>0,INTRO!$E$33, " ") -> Congo | B15: Brazzaville | C15: Djiri | D15: 200739 | E15: =IF(INTRO!$E$48="","",ROUND($D15*INTRO!$E$48,0)) -> 17284 | F15: =IF(INTRO!$E$49="","",ROUND($D15*INTRO!$E$49,0)) -> 53798 | G15: =IF(INTRO!$E$50="","",ROUND($D15*INTRO!$E$50,0)) -> 117633 | H15: 0 | I15: 4 | J15: 1 | K15: 0 | L15: 1 | M15: =IF(INTRO!$E$37="Endémique",IF($H15>0,IF($H15=4,"Inconnu",IF($H15=99,"Interrompu",$D15)),0),"Non requis") -> 0 | O15: =IF(INTRO!$E$41="Endémique", IF(AND($J15>1,$J15<5), IF($J15=4, "Inconnu", E15+F15), 0),"Non requis") -> 0 | P15: 0 | Q15: 0 | R15: 0 | S15: 0 | T15: 0 | V15: Oui | W15: Oui | X15: Oui | Y15: 12847 | Z15: Djiri
A16: =IF(INTRO!$E$33<>0,INTRO!$E$33, " ") -> Congo | B16: Brazzaville | C16: Île Mbamou | D16: 17137 | E16: =IF(INTRO!$E$48="","",ROUND($D16*INTRO!$E$48,0)) -> 1475 | F16: =IF(INTRO!$E$49="","",ROUND($D16*INTRO!$E$49,0)) -> 4593 | G16: =IF(INTRO!$E$50="","",ROUND($D16*INTRO!$E$50,0)) -> 10042 | H16: 0 | I16: 4 | J16: 1 | K16: 4 | L16: 1 | M16: =IF(INTRO!$E$37="Endémique",IF($H16>0,IF($H16=4,"Inconnu",IF($H16=99,"Interrompu",$D16)),0),"Non requis") -> 0 | O16: =IF(INTRO!$E$41="Endémique", IF(AND($J16>1,$J16<5), IF($J16=4, "Inconnu", E16+F16), 0),"Non requis") -> 0 | P16: 0 | Q16: 0 | R16: 0 | S16: 0 | T16: 0 | V16: Oui | W16: Oui | X16: Oui | Y16: 12834 | Z16: Ile M'Bamou
A17: =IF(INTRO!$E$33<>0,INTRO!$E$33, " ") -> Congo | B17: Brazzaville | C17: Madibou | D17: 197688 | E17: =IF(INTRO!$E$48="","",ROUND($D17*INTRO!$E$48,0)) -> 17021 | F17: =IF(INTRO!$E$49="","",ROUND($D17*INTRO!$E$49,0)) -> 52980 | G17: =IF(INTRO!$E$50="","",ROUND($D17*INTRO!$E$50,0)) -> 115845 | H17: 0 | I17: 1 | J17: 1 | K17: 0 | L17: 1 | M17: =IF(INTRO!$E$37="Endémique",IF($H17>0,IF($H17=4,"Inconnu",IF($H17=99,"Interrompu",$D17)),0),"Non requis") -> 0 | N17: 102873 | O17: =IF(INTRO!$E$41="Endémique", IF(AND($J17>1,$J17<5), IF($J17=4, "Inconnu", E17+F17), 0),"Non requis") -> 0 | P17: 0 | Q17: 0 | R17: 1 | S17: 0 | T17: 0 | V17: Oui | W17: Oui | X17: Oui | Y17: 12824 | Z17: Madibou
A18: =IF(INTRO!$E$33<>0,INTRO!$E$33, " ") -> Congo | B18: Brazzaville | C18: Makélékélé | D18: 256662 | E18: =IF(INTRO!$E$48="","",ROUND($D18*INTRO!$E$48,0)) -> 22099 | F18: =IF(INTRO!$E$49="","",ROUND($D18*INTRO!$E$49,0)) -> 68785 | G18: =IF(INTRO!$E$50="","",ROUND($D18*INTRO!$E$50,0)) -> 150404 | H18: 0 | I18: 1 | J18: 1 | K18: 1 | L18: 1 | M18: =IF(INTRO!$E$37="Endémique",IF($H18>0,IF($H18=4,"Inconnu",IF($H18=99,"Interrompu",$D18)),0),"Non requis") -> 0 | N18: 99861 | O18: =IF(INTRO!$E$41="Endémique", IF(AND($J18>1,$J18<5), IF($J18=4, "Inconnu", E18+F18), 0),"Non requis") -> 0 | P18: 0 | Q18: 0 | R18: 1 | S18: 0 | T18: 0 | V18: Oui | W18: Oui | X18: Oui | Y18: 12805 | Z18: Makélékélé
A19: =IF(INTRO!$E$33<>0,INTRO!$E$33, " ") -> Congo | B19: Brazzaville | C19: Mfilou | D19: 241773 | E19: =IF(INTRO!$E$48="","",ROUND($D19*INTRO!$E$48,0)) -> 20817 | F19: =IF(INTRO!$E$49="","",ROUND($D19*INTRO!$E$49,0)) -> 64795 | G19: =IF(INTRO!$E$50="","",ROUND($D19*INTRO!$E$50,0)) -> 141679 | H19: 0 | I19: 1 | J19: 1 | K19: 0 | L19: 1 | M19: =IF(INTRO!$E$37="Endémique",IF($H19>0,IF($H19=4,"Inconnu",IF($H19=99,"Interrompu",$D19)),0),"Non requis") -> 0 | N19: 92404 | O19: =IF(INTRO!$E$41="Endémique", IF(AND($J19>1,$J19<5), IF($J19=4, "Inconnu", E19+F19), 0),"Non requis") -> 0 | P19: 0 | Q19: 0 | R19: 1 | S19: 0 | T19: 0 | V19: Oui | W19: Oui | X19: Oui | Y19: 12806 | Z19: Mfilou
A20: =IF(INTRO!$E$33<>0,INTRO!$E$33, " ") -> Congo | B20: Brazzaville | C20: Moungali | D20: 255523 | E20: =IF(INTRO!$E$48="","",ROUND($D20*INTRO!$E$48,0)) -> 22001 | F20: =IF(INTRO!$E$49="","",ROUND($D20*INTRO!$E$49,0)) -> 68480 | G20: =IF(INTRO!$E$50="","",ROUND($D20*INTRO!$E$50,0)) -> 149736 | H20: 0 | I20: 4 | J20: 1 | K20: 1 | L20: 1 | M20: =IF(INTRO!$E$37="Endémique",IF($H20>0,IF($H20=4,"Inconnu",IF($H20=99,"Interrompu",$D20)),0),"Non requis") -> 0 | O20: =IF(INTRO!$E$41="Endémique", IF(AND($J20>1,$J20<5), IF($J20=4, "Inconnu", E20+F20), 0),"Non requis") -> 0 | P20: 0 | Q20: 0 | R20: 0 | S20: 0 | T20: 0 | V20: Oui | W20: Oui | X20: Oui | Y20: 12808 | Z20: Moungali
A21: =IF(INTRO!$E$33<>0,INTRO!$E$33, " ") -> Congo | B21: Brazzaville | C21: Ouenzé | D21: 273193 | E21: =IF(INTRO!$E$48="","",ROUND($D21*INTRO!$E$48,0)) -> 23522 | F21: =IF(INTRO!$E$49="","",ROUND($D21*INTRO!$E$49,0)) -> 73216 | G21: =IF(INTRO!$E$50="","",ROUND($D21*INTRO!$E$50,0)) -> 160091 | H21: 0 | I21: 4 | J21: 1 | K21: 0 | L21: 1 | M21: =IF(INTRO!$E$37="Endémique",IF($H21>0,IF($H21=4,"Inconnu",IF($H21=99,"Interrompu",$D21)),0),"Non requis") -> 0 | O21: =IF(INTRO!$E$41="Endémique", IF(AND($J21>1,$J21<5), IF($J21=4, "Inconnu", E21+F21), 0),"Non requis") -> 0 | P21: 0 | Q21: 0 | R21: 0 | S21: 0 | T21: 0 | V21: Oui | W21: Oui | X21: Oui | Y21: 12810 | Z21: Ouenzé
A22: =IF(INTRO!$E$33<>0,INTRO!$E$33, " ") -> Congo | B22: Brazzaville | C22: Poto-Poto | D22: 113704 | E22: =IF(INTRO!$E$48="","",ROUND($D22*INTRO!$E$48,0)) -> 9790 | F22: =IF(INTRO!$E$49="","",ROUND($D22*INTRO!$E$49,0)) -> 30473 | G22: =IF(INTRO!$E$50="","",ROUND($D22*INTRO!$E$50,0)) -> 66631 | H22: 0 | I22: 4 | J22: 1 | K22: 0 | L22: 1 | M22: =IF(INTRO!$E$37="Endémique",IF($H22>0,IF($H22=4,"Inconnu",IF($H22=99,"Interrompu",$D22)),0),"Non requis") -> 0 | O22: =IF(INTRO!$E$41="Endémique", IF(AND($J22>1,$J22<5), IF($J22=4, "Inconnu", E22+F22), 0),"Non requis") -> 0 | P22: 0 | Q22: 0 | R22: 0 | S22: 0 | T22: 0 | V22: Oui | W22: Oui | X22: Oui | Y22: 12811 | Z22: Poto-Poto
A23: =IF(INTRO!$E$33<>0,INTRO!$E$33, " ") -> Congo | B23: Brazzaville | C23: Talangaî | D23: 351268 | E23: =IF(INTRO!$E$48="","",ROUND($D23*INTRO!$E$48,0)) -> 30244 | F23: =IF(INTRO!$E$49="","",ROUND($D23*INTRO!$E$49,0)) -> 94140 | G23: =IF(INTRO!$E$50="","",ROUND($D23*INTRO!$E$50,0)) -> 205843 | H23: 0 | I23: 4 | J23: 0 | K23: 0 | L23: 1 | M23: =IF(INTRO!$E$37="Endémique",IF($H23>0,IF($H23=4,"Inconnu",IF($H23=99,"Interrompu",$D23)),0),"Non requis") -> 0 | O23: =IF(INTRO!$E$41="Endémique", IF(AND($J23>1,$J23<5), IF($J23=4, "Inconnu", E23+F23), 0),"Non requis") -> 0 | P23: 0 | Q23: 0 | R23: 0 | S23: 0 | T23: 0 | V23: Oui | W23: Oui | X23: Oui | Y23: 12833 | Z23: Talangaï
A24: =IF(INTRO!$E$33<>0,INTRO!$E$33, " ") -> Congo | B24: Cuvette | C24: Mossaka | D24: 71653 | E24: =IF(INTRO!$E$48="","",ROUND($D24*INTRO!$E$48,0)) -> 6169 | F24: =IF(INTRO!$E$49="","",ROUND($D24*INTRO!$E$49,0)) -> 19203 | G24: =IF(INTRO!$E$50="","",ROUND($D24*INTRO!$E$50,0)) -> 41989 | H24: 0 | I24: 4 | J24: 2 | K24: 1 | L24: 1 | M24: =IF(INTRO!$E$37="Endémique",IF($H24>0,IF($H24=4,"Inconnu",IF($H24=99,"Interrompu",$D24)),0),"Non requis") -> 0 | O24: =IF(INTRO!$E$41="Endémique", IF(AND($J24>1,$J24<5), IF($J24=4, "Inconnu", E24+F24), 0),"Non requis") -> 25372 | P24: 0 | Q24: 0 | R24: 0 | S24: 1 | T24: 0 | V24: Oui | W24: Oui | X24: Oui | Y24: 12773 | Z24: Mossaka
A25: =IF(INTRO!$E$33<>0,INTRO!$E$33, " ") -> Congo | B25: Cuvette | C25: Owando | D25: 104398 | E25: =IF(INTRO!$E$48="","",ROUND($D25*INTRO!$E$48,0)) -> 8989 | F25: =IF(INTRO!$E$49="","",ROUND($D25*INTRO!$E$49,0)) -> 27979 | G25: =IF(INTRO!$E$50="","",ROUND($D25*INTRO!$E$50,0)) -> 61177 | H25: 1 | I25: 4 | J25: 1 | K25: 1 | L25: 1 | M25: =IF(INTRO!$E$37="Endémique",IF($H25>0,IF($H25=4,"Inconnu",IF($H25=99,"Interrompu",$D25)),0),"Non requis") -> 104398 | O25: =IF(INTRO!$E$41="Endémique", IF(AND($J25>1,$J25<5), IF($J25=4, "Inconnu", E25+F25), 0),"Non requis") -> 0 | P25: 0 | Q25: 1 | R25: 0 | S25: 0 | T25: 0 | V25: Oui | W25: Oui | X25: Oui | Y25: 12775 | Z25: Owando
A26: =IF(INTRO!$E$33<>0,INTRO!$E$33, " ") -> Congo | B26: Cuvette | C26: Oyo-Alima | D26: 62691 | E26: =IF(INTRO!$E$48="","",ROUND($D26*INTRO!$E$48,0)) -> 5398 | F26: =IF(INTRO!$E$49="","",ROUND($D26*INTRO!$E$49,0)) -> 16801 | G26: =IF(INTRO!$E$50="","",ROUND($D26*INTRO!$E$50,0)) -> 36737 | H26: 0 | I26: 4 | J26: 1 | K26: 0 | L26: 1 | M26: =IF(INTRO!$E$37="Endémique",IF($H26>0,IF($H26=4,"Inconnu",IF($H26=99,"Interrompu",$D26)),0),"Non requis") -> 0 | O26: =IF(INTRO!$E$41="Endémique", IF(AND($J26>1,$J26<5), IF($J26=4, "Inconnu", E26+F26), 0),"Non requis") -> 0 | P26: 0 | Q26: 0 | R26: 0 | S26: 0 | T26: 0 | V26: Oui | W26: Oui | X26: Oui | Y26: 12829 | Z26: Oyo-Alima
A27: =IF(INTRO!$E$33<>0,INTRO!$E$33, " ") -> Congo | B27: Cuvette-Ouest | C27: Etoumbi | D27: 47019 | E27: =IF(INTRO!$E$48="","",ROUND($D27*INTRO!$E$48,0)) -> 4048 | F27: =IF(INTRO!$E$49="","",ROUND($D27*INTRO!$E$49,0)) -> 12601 | G27: =IF(INTRO!$E$50="","",ROUND($D27*INTRO!$E$50,0)) -> 27553 | H27: 1 | I27: 4 | J27: 2 | K27: 0 | L27: 1 | M27: =IF(INTRO!$E$37="Endémique",IF($H27>0,IF($H27=4,"Inconnu",IF($H27=99,"Interrompu",$D27)),0),"Non requis") -> 47019 | O27: =IF(INTRO!$E$41="Endémique", IF(AND($J27>1,$J27<5), IF($J27=4, "Inconnu", E27+F27), 0),"Non requis") -> 16649 | P27: 0 | Q27: 1 | R27: 0 | S27: 1 | T27: 0 | V27: Oui | W27: Oui | X27: Oui | Y27: 12822 | Z27: Etoumbi
A28: =IF(INTRO!$E$33<>0,INTRO!$E$33, " ") -> Congo | B28: Cuvette-Ouest | C28: Ewo | D28: 81561 | E28: =IF(INTRO!$E$48="","",ROUND($D28*INTRO!$E$48,0)) -> 7022 | F28: =IF(INTRO!$E$49="","",ROUND($D28*INTRO!$E$49,0)) -> 21858 | G28: =IF(INTRO!$E$50="","",ROUND($D28*INTRO!$E$50,0)) -> 47795 | H28: 1 | I28: 4 | J28: 2 | K28: 1 | L28: 1 | M28: =IF(INTRO!$E$37="Endémique",IF($H28>0,IF($H28=4,"Inconnu",IF($H28=99,"Interrompu",$D28)),0),"Non requis") -> 81561 | O28: =IF(INTRO!$E$41="Endémique", IF(AND($J28>1,$J28<5), IF($J28=4, "Inconnu", E28+F28), 0),"Non requis") -> 28880 | P28: 0 | Q28: 1 | R28: 0 | S28: 1 | T28: 0 | V28: Oui | W28: Oui | X28: Oui | Y28: 12768 | Z28: Ewo
A29: =IF(INTRO!$E$33<>0,INTRO!$E$33, " ") -> Congo | B29: Kouilou | C29: Hinda-Loango | D29: 52313 | E29: =IF(INTRO!$E$48="","",ROUND($D29*INTRO!$E$48,0)) -> 4504 | F29: =IF(INTRO!$E$49="","",ROUND($D29*INTRO!$E$49,0)) -> 14020 | G29: =IF(INTRO!$E$50="","",ROUND($D29*INTRO!$E$50,0)) -> 30655 | H29: 0 | I29: 4 | J29: 3 | K29: 2 | L29: 1 | M29: =IF(INTRO!$E$37="Endémique",IF($H29>0,IF($H29=4,"Inconnu",IF($H29=99,"Interrompu",$D29)),0),"Non requis") -> 0 | O29: =IF(INTRO!$E$41="Endémique", IF(AND($J29>1,$J29<5), IF($J29=4, "Inconnu", E29+F29), 0),"Non requis") -> 18524 | P29: 13499 | Q29: 0 | R29: 0 | S29: 2 | T29: 1 | V29: Oui | W29: Oui | X29: Oui | Y29: 12850 | Z29: Hinda-Loango
A30: =IF(INTRO!$E$33<>0,INTRO!$E$33, " ") -> Congo | B30: Kouilou | C30: Madingo Kayes-Nzambi | D30: 25732 | E30: =IF(INTRO!$E$48="","",ROUND($D30*INTRO!$E$48,0)) -> 2216 | F30: =IF(INTRO!$E$49="","",ROUND($D30*INTRO!$E$49,0)) -> 6896 | G30: =IF(INTRO!$E$50="","",ROUND($D30*INTRO!$E$50,0)) -> 15079 | H30: 0 | I30: 4 | J30: 3 | K30: 3 | L30: 1 | M30: =IF(INTRO!$E$37="Endémique",IF($H30>0,IF($H30=4,"Inconnu",IF($H30=99,"Interrompu",$D30)),0),"Non requis") -> 0 | O30: =IF(INTRO!$E$41="Endémique", IF(AND($J30>1,$J30<5), IF($J30=4, "Inconnu", E30+F30), 0),"Non requis") -> 9112 | P30: 6640 | Q30: 0 | R30: 0 | S30: 2 | T30: 1 | V30: Oui | W30: Oui | X30: Oui | Y30: 12849 | Z30: Madingo-Kayes Nzambi
A31: =IF(INTRO!$E$33<>0,INTRO!$E$33, " ") -> Congo | B31: Kouilou | C31: Mvouti-Kakamouéka | D31: 40925 | E31: =IF(INTRO!$E$48="","",ROUND($D31*INTRO!$E$48,0)) -> 3524 | F31: =IF(INTRO!$E$49="","",ROUND($D31*INTRO!$E$49,0)) -> 10968 | G31: =IF(INTRO!$E$50="","",ROUND($D31*INTRO!$E$50,0)) -> 23982 | H31: 0 | I31: 1 | J31: 2 | K31: 3 | L31: 1 | M31: =IF(INTRO!$E$37="Endémique",IF($H31>0,IF($H31=4,"Inconnu",IF($H31=99,"Interrompu",$D31)),0),"Non requis") -> 0 | N31: 1046 | O31: =IF(INTRO!$E$41="Endémique", IF(AND($J31>1,$J31<5), IF($J31=4, "Inconnu", E31+F31), 0),"Non requis") -> 14492 | P31: 10560 | Q31: 0 | R31: 1 | S31: 1 | T31: 1 | V31: Oui | W31: Oui | X31: Oui | Y31: 12848 | Z31: Mvouti-Kakamoueka
A32: =IF(INTRO!$E$33<>0,INTRO!$E$33, " ") -> Congo | B32: Lékoumou | C32: Sibiti | D32: 98218 | E32: =IF(INTRO!$E$48="","",ROUND($D32*INTRO!$E$48,0)) -> 8457 | F32: =IF(INTRO!$E$49="","",ROUND($D32*INTRO!$E$49,0)) -> 26322 | G32: =IF(INTRO!$E$50="","",ROUND($D32*INTRO!$E$50,0)) -> 57556 | H32: 0 | I32: 1 | J32: 2 | K32: 3 | L32: 1 | M32: =IF(INTRO!$E$37="Endémique",IF($H32>0,IF($H32=4,"Inconnu",IF($H32=99,"Interrompu",$D32)),0),"Non requis") -> 0 | N32: 716 | O32: =IF(INTRO!$E$41="Endémique", IF(AND($J32>1,$J32<5), IF($J32=4, "Inconnu", E32+F32), 0),"Non requis") -> 34779 | P32: 25344 | Q32: 0 | R32: 1 | S32: 1 | T32: 1 | V32: Oui | W32: Oui | X32: Oui | Y32: 12784 | Z32: Sibiti
A33: =IF(INTRO!$E$33<>0,INTRO!$E$33, " ") -> Congo | B33: Lékoumou | C33: Zanaga | D33: 35991 | E33: =IF(INTRO!$E$48="","",ROUND($D33*INTRO!$E$48,0)) -> 3099 | F33: =IF(INTRO!$E$49="","",ROUND($D33*INTRO!$E$49,0)) -> 9646 | G33: =IF(INTRO!$E$50="","",ROUND($D33*INTRO!$E$50,0)) -> 21091 | H33: 0 | I33: 4 | J33: 2 | K33: 0 | L33: 1 | M33: =IF(INTRO!$E$37="Endémique",IF($H33>0,IF($H33=4,"Inconnu",IF($H33=99,"Interrompu",$D33)),0),"Non requis") -> 0 | O33: =IF(INTRO!$E$41="Endémique", IF(AND($J33>1,$J33<5), IF($J33=4, "Inconnu", E33+F33), 0),"Non requis") -> 12745 | P33: 0 | Q33: 0 | R33: 0 | S33: 1 | T33: 0 | V33: Oui | W33: Oui | X33: Oui | Y33: 12785 | Z33: Zanaga
A34: =IF(INTRO!$E$33<>0,INTRO!$E$33, " ") -> Congo | B34: Likouala | C34: Bétou | D34: 159004 | E34: =IF(INTRO!$E$48="","",ROUND($D34*INTRO!$E$48,0)) -> 13690 | F34: =IF(INTRO!$E$49="","",ROUND($D34*INTRO!$E$49,0)) -> 42613 | G34: =IF(INTRO!$E$50="","",ROUND($D34*INTRO!$E$50,0)) -> 93176 | H34: 0 | I34: 4 | J34: 2 | K34: 0 | L34: 1 | M34: =IF(INTRO!$E$37="Endémique",IF($H34>0,IF($H34=4,"Inconnu",IF($H34=99,"Interrompu",$D34)),0),"Non requis") -> 0 | O34: =IF(INTRO!$E$41="Endémique", IF(AND($J34>1,$J34<5), IF($J34=4, "Inconnu", E34+F34), 0),"Non requis") -> 56303 | P34: 0 | Q34: 0 | R34: 0 | S34: 1 | T34: 0 | V34: Oui | W34: Oui | X34: Oui | Y34: 12786 | Z34: Bétou
A35: =IF(INTRO!$E$33<>0,INTRO!$E$33, " ") -> Congo | B35: Likouala | C35: Impfondo | D35: 132589 | E35: =IF(INTRO!$E$48="","",ROUND($D35*INTRO!$E$48,0)) -> 11416 | F35: =IF(INTRO!$E$49="","",ROUND($D35*INTRO!$E$49,0)) -> 35534 | G35: =IF(INTRO!$E$50="","",ROUND($D35*INTRO!$E$50,0)) -> 77697 | H35: 1 | I35: 4 | J35: 2 | K35: 0 | L35: 1 | M35: =IF(INTRO!$E$37="Endémique",IF($H35>0,IF($H35=4,"Inconnu",IF($H35=99,"Interrompu",$D35)),0),"Non requis") -> 132589 | O35: =IF(INTRO!$E$41="Endémique", IF(AND($J35>1,$J35<5), IF($J35=4, "Inconnu", E35+F35), 0),"Non requis") -> 46950 | P35: 0 | Q35: 1 | R35: 0 | S35: 1 | T35: 0 | V35: Oui | W35: Oui | X35: Oui | Y35: 12789 | Z35: Impfondo
A36: =IF(INTRO!$E$33<>0,INTRO!$E$33, " ") -> Congo | B36: Niari | C36: Dolisie | D36: 177043 | E36: =IF(INTRO!$E$48="","",ROUND($D36*INTRO!$E$48,0)) -> 15243 | F36: =IF(INTRO!$E$49="","",ROUND($D36*INTRO!$E$49,0)) -> 47448 | G36: =IF(INTRO!$E$50="","",ROUND($D36*INTRO!$E$50,0)) -> 103747 | H36: 1 | I36: 1 | J36: 2 | K36: 2 | L36: 1 | M36: =IF(INTRO!$E$37="Endémique",IF($H36>0,IF($H36=4,"Inconnu",IF($H36=99,"Interrompu",$D36)),0),"Non requis") -> 177043 | N36: 11762 | O36: =IF(INTRO!$E$41="Endémique", IF(AND($J36>1,$J36<5), IF($J36=4, "Inconnu", E36+F36), 0),"Non requis") -> 62691 | P36: 0 | Q36: 1 | R36: 1 | S36: 1 | T36: 0 | V36: Oui | W36: Oui | X36: Oui | Y36: 12835 | Z36: Dolisie
A37: =IF(INTRO!$E$33<>0,INTRO!$E$33, " ") -> Congo | B37: Niari | C37: Kibangou | D37: 72502 | E37: =IF(INTRO!$E$48="","",ROUND($D37*INTRO!$E$48,0)) -> 6242 | F37: =IF(INTRO!$E$49="","",ROUND($D37*INTRO!$E$49,0)) -> 19431 | G37: =IF(INTRO!$E$50="","",ROUND($D37*INTRO!$E$50,0)) -> 42486 | H37: 1 | I37: 1 | J37: 3 | K37: 1 | L37: 1 | M37: =IF(INTRO!$E$37="Endémique",IF($H37>0,IF($H37=4,"Inconnu",IF($H37=99,"Interrompu",$D37)),0),"Non requis") -> 72502 | N37: 10950 | O37: =IF(INTRO!$E$41="Endémique", IF(AND($J37>1,$J37<5), IF($J37=4, "Inconnu", E37+F37), 0),"Non requis") -> 25673 | P37: 0 | Q37: 1 | R37: 1 | S37: 2 | T37: 0 | V37: Oui | W37: Oui | X37: Oui | Y37: 12791 | Z37: Kibangou
A38: =IF(INTRO!$E$33<>0,INTRO!$E$33, " ") -> Congo | B38: Niari | C38: Kimongo-Londela Nkayes | D38: 43198 | E38: =IF(INTRO!$E$48="","",ROUND($D38*INTRO!$E$48,0)) -> 3719 | F38: =IF(INTRO!$E$49="","",ROUND($D38*INTRO!$E$49,0)) -> 11577 | G38: =IF(INTRO!$E$50="","",ROUND($D38*INTRO!$E$50,0)) -> 25314 | H38: 1 | I38: 4 | J38: 3 | K38: 2 | L38: 1 | M38: =IF(INTRO!$E$37="Endémique",IF($H38>0,IF($H38=4,"Inconnu",IF($H38=99,"Interrompu",$D38)),0),"Non requis") -> 43198 | O38: =IF(INTRO!$E$41="Endémique", IF(AND($J38>1,$J38<5), IF($J38=4, "Inconnu", E38+F38), 0),"Non requis") -> 15296 | P38: 0 | Q38: 1 | R38: 0 | S38: 2 | T38: 0 | V38: Oui | W38: Oui | X38: Oui | Y38: 12836 | Z38: Kimongo-Londela Nkayes
A39: =IF(INTRO!$E$33<>0,INTRO!$E$33, " ") -> Congo | B39: Niari | C39: Mayoko | D39: 17832 | E39: =IF(INTRO!$E$48="","",ROUND($D39*INTRO!$E$48,0)) -> 1535 | F39: =IF(INTRO!$E$49="","",ROUND($D39*INTRO!$E$49,0)) -> 4779 | G39: =IF(INTRO!$E$50="","",ROUND($D39*INTRO!$E$50,0)) -> 10450 | H39: 0 | I39: 4 | J39: 2 | K39: 0 | L39: 1 | M39: =IF(INTRO!$E$37="Endémique",IF($H39>0,IF($H39=4,"Inconnu",IF($H39=99,"Interrompu",$D39)),0),"Non requis") -> 0 | O39: =IF(INTRO!$E$41="Endémique", IF(AND($J39>1,$J39<5), IF($J39=4, "Inconnu", E39+F39), 0),"Non requis") -> 6314 | P39: 0 | Q39: 0 | R39: 0 | S39: 1 | T39: 0 | V39: Oui | W39: Oui | X39: Oui | Y39: 12838 | Z39: Mayoko
A40: =IF(INTRO!$E$33<>0,INTRO!$E$33, " ") -> Congo | B40: Niari | C40: Mossendjo | D40: 51332 | E40: =IF(INTRO!$E$48="","",ROUND($D40*INTRO!$E$48,0)) -> 4420 | F40: =IF(INTRO!$E$49="","",ROUND($D40*INTRO!$E$49,0)) -> 13757 | G40: =IF(INTRO!$E$50="","",ROUND($D40*INTRO!$E$50,0)) -> 30081 | H40: 0 | I40: 4 | J40: 2 | K40: 0 | L40: 1 | M40: =IF(INTRO!$E$37="Endémique",IF($H40>0,IF($H40=4,"Inconnu",IF($H40=99,"Interrompu",$D40)),0),"Non requis") -> 0 | O40: =IF(INTRO!$E$41="Endémique", IF(AND($J40>1,$J40<5), IF($J40=4, "Inconnu", E40+F40), 0),"Non requis") -> 18177 | P40: 0 | Q40: 0 | R40: 0 | S40: 1 | T40: 0 | V40: Oui | W40: Oui | X40: Oui | Y40: 12837 | Z40: Mossendjo
A41: =IF(INTRO!$E$33<>0,INTRO!$E$33, " ") -> Congo | B41: Plateaux | C41: Abala | D41: 49326 | E41: =IF(INTRO!$E$48="","",ROUND($D41*INTRO!$E$48,0)) -> 4247 | F41: =IF(INTRO!$E$49="","",ROUND($D41*INTRO!$E$49,0)) -> 13219 | G41: =IF(INTRO!$E$50="","",ROUND($D41*INTRO!$E$50,0)) -> 28905 | H41: 0 | I41: 4 | J41: 1 | K41: 0 | L41: 1 | M41: =IF(INTRO!$E$37="Endémique",IF($H41>0,IF($H41=4,"Inconnu",IF($H41=99,"Interrompu",$D41)),0),"Non requis") -> 0 | O41: =IF(INTRO!$E$41="Endémique", IF(AND($J41>1,$J41<5), IF($J41=4, "Inconnu", E41+F41), 0),"Non requis") -> 0 | P41: 0 | Q41: 0 | R41: 0 | S41: 0 | T41: 0 | V41: Oui | W41: Oui | X41: Oui | Y41: 12830 | Z41: Abala
A42: =IF(INTRO!$E$33<>0,INTRO!$E$33, " ") -> Congo | B42: Plateaux | C42: Djambala-Lékana | D42: 53468 | E42: =IF(INTRO!$E$48="","",ROUND($D42*INTRO!$E$48,0)) -> 4604 | F42: =IF(INTRO!$E$49="","",ROUND($D42*INTRO!$E$49,0)) -> 14329 | G42: =IF(INTRO!$E$50="","",ROUND($D42*INTRO!$E$50,0)) -> 31332 | H42: 0 | I42: 4 | J42: 3 | K42: 0 | L42: 1 | M42: =IF(INTRO!$E$37="Endémique",IF($H42>0,IF($H42=4,"Inconnu",IF($H42=99,"Interrompu",$D42)),0),"Non requis") -> 0 | O42: =IF(INTRO!$E$41="Endémique", IF(AND($J42>1,$J42<5), IF($J42=4, "Inconnu", E42+F42), 0),"Non requis") -> 18933 | P42: 0 | Q42: 0 | R42: 0 | S42: 2 | T42: 0 | V42: Oui | W42: Oui | X42: Oui | Y42: 12839 | Z42: Djambala-Lékana
A43: =IF(INTRO!$E$33<>0,INTRO!$E$33, " ") -> Congo | B43: Plateaux | C43: Gamboma | D43: 110382 | E43: =IF(INTRO!$E$48="","",ROUND($D43*INTRO!$E$48,0)) -> 9504 | F43: =IF(INTRO!$E$49="","",ROUND($D43*INTRO!$E$49,0)) -> 29582 | G43: =IF(INTRO!$E$50="","",ROUND($D43*INTRO!$E$50,0)) -> 64684 | H43: 0 | I43: 4 | J43: 2 | K43: 0 | L43: 1 | M43: =IF(INTRO!$E$37="Endémique",IF($H43>0,IF($H43=4,"Inconnu",IF($H43=99,"Interrompu",$D43)),0),"Non requis") -> 0 | O43: =IF(INTRO!$E$41="Endémique", IF(AND($J43>1,$J43<5), IF($J43=4, "Inconnu", E43+F43), 0),"Non requis") -> 39086 | P43: 0 | Q43: 0 | R43: 0 | S43: 1 | T43: 0 | V43: Oui | W43: Oui | X43: Oui | Y43: 12798 | Z43: Gamboma
A44: =IF(INTRO!$E$33<>0,INTRO!$E$33, " ") -> Congo | B44: Plateaux | C44: Ngo Mpouya | D44: 40661 | E44: =IF(INTRO!$E$48="","",ROUND($D44*INTRO!$E$48,0)) -> 3501 | F44: =IF(INTRO!$E$49="","",ROUND($D44*INTRO!$E$49,0)) -> 10897 | G44: =IF(INTRO!$E$50="","",ROUND($D44*INTRO!$E$50,0)) -> 23827 | H44: 0 | I44: 4 | J44: 3 | K44: 0 | L44: 1 | M44: =IF(INTRO!$E$37="Endémique",IF($H44>0,IF($H44=4,"Inconnu",IF($H44=99,"Interrompu",$D44)),0),"Non requis") -> 0 | O44: =IF(INTRO!$E$41="Endémique", IF(AND($J44>1,$J44<5), IF($J44=4, "Inconnu", E44+F44), 0),"Non requis") -> 14398 | P44: 0 | Q44: 0 | R44: 0 | S44: 2 | T44: 0 | V44: Oui | W44: Oui | X44: Oui | Y44: 12840 | Z44: Ngo-Mpouya
A45: =IF(INTRO!$E$33<>0,INTRO!$E$33, " ") -> Congo | B45: Pointe-Noire | C45: Loandjili | D45: 306379 | E45: =IF(INTRO!$E$48="","",ROUND($D45*INTRO!$E$48,0)) -> 26379 | F45: =IF(INTRO!$E$49="","",ROUND($D45*INTRO!$E$49,0)) -> 82110 | G45: =IF(INTRO!$E$50="","",ROUND($D45*INTRO!$E$50,0)) -> 179538 | H45: 0 | I45: 4 | J45: 1 | K45: 1 | L45: 1 | M45: =IF(INTRO!$E$37="Endémique",IF($H45>0,IF($H45=4,"Inconnu",IF($H45=99,"Interrompu",$D45)),0),"Non requis") -> 0 | O45: =IF(INTRO!$E$41="Endémique", IF(AND($J45>1,$J45<5), IF($J45=4, "Inconnu", E45+F45), 0),"Non requis") -> 0 | P45: 0 | Q45: 0 | R45: 0 | S45: 0 | T45: 0 | V45: Oui | W45: Oui | X45: Oui | Y45: 12777 | Z45: Loandjili
A46: =IF(INTRO!$E$33<>0,INTRO!$E$33, " ") -> Congo | B46: Pointe-Noire | C46: Lumumba | D46: 192837 | E46: =IF(INTRO!$E$48="","",ROUND($D46*INTRO!$E$48,0)) -> 16603 | F46: =IF(INTRO!$E$49="","",ROUND($D46*INTRO!$E$49,0)) -> 51680 | G46: =IF(INTRO!$E$50="","",ROUND($D46*INTRO!$E$50,0)) -> 113002 | H46: 0 | I46: 4 | J46: 1 | K46: 1 | L46: 1 | M46: =IF(INTRO!$E$37="Endémique",IF($H46>0,IF($H46=4,"Inconnu",IF($H46=99,"Interrompu",$D46)),0),"Non requis") -> 0 | O46: =IF(INTRO!$E$41="Endémique", IF(AND($J46>1,$J46<5), IF($J46=4, "Inconnu", E46+F46), 0),"Non requis") -> 0 | P46: 0 | Q46: 0 | R46: 0 | S46: 0 | T46: 0 | V46: Oui | W46: Oui | X46: Oui | Y46: 12778 | Z46: Lumumba
A47: =IF(INTRO!$E$33<>0,INTRO!$E$33, " ") -> Congo | B47: Pointe-Noire | C47: Mongo-Poukou | D47: 202342 | E47: =IF(INTRO!$E$48="","",ROUND($D47*INTRO!$E$48,0)) -> 17422 | F47: =IF(INTRO!$E$49="","",ROUND($D47*INTRO!$E$49,0)) -> 54228 | G47: =IF(INTRO!$E$50="","",ROUND($D47*INTRO!$E$50,0)) -> 118572 | H47: 0 | I47: 4 | J47: 1 | K47: 4 | L47: 1 | M47: =IF(INTRO!$E$37="Endémique",IF($H47>0,IF($H47=4,"Inconnu",IF($H47=99,"Interrompu",$D47)),0),"Non requis") -> 0 | O47: =IF(INTRO!$E$41="Endémique", IF(AND($J47>1,$J47<5), IF($J47=4, "Inconnu", E47+F47), 0),"Non requis") -> 0 | P47: 0 | Q47: 0 | R47: 0 | S47: 0 | T47: 0 | V47: Oui | W47: Oui | X47: Oui | Y47: 12825 | Z47: Mongo-Mpoukou
A48: =IF(INTRO!$E$33<>0,INTRO!$E$33, " ") -> Congo | B48: Pointe-Noire | C48: Mvoumvou | D48: 130273 | E48: =IF(INTRO!$E$48="","",ROUND($D48*INTRO!$E$48,0)) -> 11217 | F48: =IF(INTRO!$E$49="","",ROUND($D48*INTRO!$E$49,0)) -> 34913 | G48: =IF(INTRO!$E$50="","",ROUND($D48*INTRO!$E$50,0)) -> 76340 | H48: 0 | I48: 4 | J48: 1 | K48: 4 | L48: 1 | M48: =IF(INTRO!$E$37="Endémique",IF($H48>0,IF($H48=4,"Inconnu",IF($H48=99,"Interrompu",$D48)),0),"Non requis") -> 0 | O48: =IF(INTRO!$E$41="Endémique", IF(AND($J48>1,$J48<5), IF($J48=4, "Inconnu", E48+F48), 0),"Non requis") -> 0 | P48: 0 | Q48: 0 | R48: 0 | S48: 0 | T48: 0 | V48: Oui | W48: Oui | X48: Oui | Y48: 12780 | Z48: Mvoumvou
A49: =IF(INTRO!$E$33<>0,INTRO!$E$33, " ") -> Congo | B49: Pointe-Noire | C49: Ngoyo | D49: 222039 | E49: =IF(INTRO!$E$48="","",ROUND($D49*INTRO!$E$48,0)) -> 19118 | F49: =IF(INTRO!$E$49="","",ROUND($D49*INTRO!$E$49,0)) -> 59506 | G49: =IF(INTRO!$E$50="","",ROUND($D49*INTRO!$E$50,0)) -> 130115 | H49: 0 | I49: 4 | J49: 2 | K49: 0 | L49: 1 | M49: =IF(INTRO!$E$37="Endémique",IF($H49>0,IF($H49=4,"Inconnu",IF($H49=99,"Interrompu",$D49)),0),"Non requis") -> 0 | O49: =IF(INTRO!$E$41="Endémique", IF(AND($J49>1,$J49<5), IF($J49=4, "Inconnu", E49+F49), 0),"Non requis") -> 78624 | P49: 0 | Q49: 0 | R49: 0 | S49: 1 | T49: 0 | V49: Oui | W49: Oui | X49: Oui | Y49: 12826 | Z49: Ngoyo
A50: =IF(INTRO!$E$33<>0,INTRO!$E$33, " ") -> Congo | B50: Pointe-Noire | C50: Tchiamba Nzassi | D50: 29476 | E50: =IF(INTRO!$E$48="","",ROUND($D50*INTRO!$E$48,0)) -> 2538 | F50: =IF(INTRO!$E$49="","",ROUND($D50*INTRO!$E$49,0)) -> 7900 | G50: =IF(INTRO!$E$50="","",ROUND($D50*INTRO!$E$50,0)) -> 17273 | H50: 0 | I50: 4 | J50: 2 | K50: 1 | L50: 1 | M50: =IF(INTRO!$E$37="Endémique",IF($H50>0,IF($H50=4,"Inconnu",IF($H50=99,"Interrompu",$D50)),0),"Non requis") -> 0 | O50: =IF(INTRO!$E$41="Endémique", IF(AND($J50>1,$J50<5), IF($J50=4, "Inconnu", E50+F50), 0),"Non requis") -> 10438 | P50: 0 | Q50: 0 | R50: 0 | S50: 1 | T50: 0 | V50: Oui | W50: Oui | X50: Oui | Y50: 12842 | Z50: Tchiamba Nzassi
A51: =IF(INTRO!$E$33<>0,INTRO!$E$33, " ") -> Congo | B51: Pointe-Noire | C51: Tie-Tie | D51: 271988 | E51: =IF(INTRO!$E$48="","",ROUND($D51*INTRO!$E$48,0)) -> 23418 | F51: =IF(INTRO!$E$49="","",ROUND($D51*INTRO!$E$49,0)) -> 72893 | G51: =IF(INTRO!$E$50="","",ROUND($D51*INTRO!$E$50,0)) -> 159385 | H51: 0 | I51: 4 | J51: 1 | K51: 0 | L51: 1 | M51: =IF(INTRO!$E$37="Endémique",IF($H51>0,IF($H51=4,"Inconnu",IF($H51=99,"Interrompu",$D51)),0),"Non requis") -> 0 | O51: =IF(INTRO!$E$41="Endémique", IF(AND($J51>1,$J51<5), IF($J51=4, "Inconnu", E51+F51), 0),"Non requis") -> 0 | P51: 0 | Q51: 0 | R51: 0 | S51: 0 | T51: 0 | V51: Oui | W51: Oui | X51: Oui | Y51: 12841 | Z51: Tié-Tié
A52: =IF(INTRO!$E$33<>0,INTRO!$E$33, " ") -> Congo | B52: Pool | C52: Boko | D52: 31757 | E52: =IF(INTRO!$E$48="","",ROUND($D52*INTRO!$E$48,0)) -> 2734 | F52: =IF(INTRO!$E$49="","",ROUND($D52*INTRO!$E$49,0)) -> 8511 | G52: =IF(INTRO!$E$50="","",ROUND($D52*INTRO!$E$50,0)) -> 18610 | H52: 0 | I52: 1 | J52: 2 | K52: 0 | L52: 1 | M52: =IF(INTRO!$E$37="Endémique",IF($H52>0,IF($H52=4,"Inconnu",IF($H52=99,"Interrompu",$D52)),0),"Non requis") -> 0 | N52: 25621 | O52: =IF(INTRO!$E$41="Endémique", IF(AND($J52>1,$J52<5), IF($J52=4, "Inconnu", E52+F52), 0),"Non requis") -> 11245 | P52: 0 | Q52: 0 | R52: 1 | S52: 1 | T52: 0 | V52: Oui | W52: Oui | X52: Oui | Y52: 12844 | Z52: Boko
A53: =IF(INTRO!$E$33<>0,INTRO!$E$33, " ") -> Congo | B53: Pool | C53: Goma tsétsé | D53: 40061 | E53: =IF(INTRO!$E$48="","",ROUND($D53*INTRO!$E$48,0)) -> 3449 | F53: =IF(INTRO!$E$49="","",ROUND($D53*INTRO!$E$49,0)) -> 10736 | G53: =IF(INTRO!$E$50="","",ROUND($D53*INTRO!$E$50,0)) -> 23476 | H53: 0 | I53: 1 | J53: 1 | K53: 0 | L53: 1 | M53: =IF(INTRO!$E$37="Endémique",IF($H53>0,IF($H53=4,"Inconnu",IF($H53=99,"Interrompu",$D53)),0),"Non requis") -> 0 | N53: 33961 | O53: =IF(INTRO!$E$41="Endémique", IF(AND($J53>1,$J53<5), IF($J53=4, "Inconnu", E53+F53), 0),"Non requis") -> 0 | P53: 0 | Q53: 0 | R53: 1 | S53: 0 | T53: 0 | V53: Oui | W53: Oui | X53: Oui | Y53: 12802 | Z53: Goma Tsétsé
A54: =IF(INTRO!$E$33<>0,INTRO!$E$33, " ") -> Congo | B54: Pool | C54: Ignié | D54: 85690 | E54: =IF(INTRO!$E$48="","",ROUND($D54*INTRO!$E$48,0)) -> 7378 | F54: =IF(INTRO!$E$49="","",ROUND($D54*INTRO!$E$49,0)) -> 22965 | G54: =IF(INTRO!$E$50="","",ROUND($D54*INTRO!$E$50,0)) -> 50214 | H54: 1 | I54: 1 | J54: 2 | K54: 1 | L54: 1 | M54: =IF(INTRO!$E$37="Endémique",IF($H54>0,IF($H54=4,"Inconnu",IF($H54=99,"Interrompu",$D54)),0),"Non requis") -> 85690 | N54: 3505 | O54: =IF(INTRO!$E$41="Endémique", IF(AND($J54>1,$J54<5), IF($J54=4, "Inconnu", E54+F54), 0),"Non requis") -> 30343 | P54: 0 | Q54: 1 | R54: 1 | S54: 1 | T54: 0 | V54: Oui | W54: Oui | X54: Oui | Y54: 12828 | Z54: Ignié
A55: =IF(INTRO!$E$33<>0,INTRO!$E$33, " ") -> Congo | B55: Pool | C55: Kindamba | D55: 34833 | E55: =IF(INTRO!$E$48="","",ROUND($D55*INTRO!$E$48,0)) -> 2999 | F55: =IF(INTRO!$E$49="","",ROUND($D55*INTRO!$E$49,0)) -> 9335 | G55: =IF(INTRO!$E$50="","",ROUND($D55*INTRO!$E$50,0)) -> 20412 | H55: 0 | I55: 1 | J55: 2 | K55: 0 | L55: 1 | M55: =IF(INTRO!$E$37="Endémique",IF($H55>0,IF($H55=4,"Inconnu",IF($H55=99,"Interrompu",$D55)),0),"Non requis") -> 0 | N55: 11927 | O55: =IF(INTRO!$E$41="Endémique", IF(AND($J55>1,$J55<5), IF($J55=4, "Inconnu", E55+F55), 0),"Non requis") -> 12334 | P55: 0 | Q55: 0 | R55: 1 | S55: 1 | T55: 0 | V55: Oui | W55: Oui | X55: Oui | Y55: 12803 | Z55: Kindamba
A56: =IF(INTRO!$E$33<>0,INTRO!$E$33, " ") -> Congo | B56: Pool | C56: Kinkala | D56: 48305 | E56: =IF(INTRO!$E$48="","",ROUND($D56*INTRO!$E$48,0)) -> 4159 | F56: =IF(INTRO!$E$49="","",ROUND($D56*INTRO!$E$49,0)) -> 12946 | G56: =IF(INTRO!$E$50="","",ROUND($D56*INTRO!$E$50,0)) -> 28307 | H56: 0 | I56: 1 | J56: 2 | K56: 0 | L56: 1 | M56: =IF(INTRO!$E$37="Endémique",IF($H56>0,IF($H56=4,"Inconnu",IF($H56=99,"Interrompu",$D56)),0),"Non requis") -> 0 | N56: 19693 | O56: =IF(INTRO!$E$41="Endémique", IF(AND($J56>1,$J56<5), IF($J56=4, "Inconnu", E56+F56), 0),"Non requis") -> 17105 | P56: 0 | Q56: 0 | R56: 1 | S56: 1 | T56: 0 | V56: Oui | W56: Oui | X56: Oui | Y56: 12843 | Z56: Kinkala
A57: =IF(INTRO!$E$33<>0,INTRO!$E$33, " ") -> Congo | B57: Pool | C57: Kintélé | D57: 29953 | E57: =IF(INTRO!$E$48="","",ROUND($D57*INTRO!$E$48,0)) -> 2579 | F57: =IF(INTRO!$E$49="","",ROUND($D57*INTRO!$E$49,0)) -> 8027 | G57: =IF(INTRO!$E$50="","",ROUND($D57*INTRO!$E$50,0)) -> 17552 | H57: 0 | I57: 4 | J57: 1 | K57: 4 | L57: 1 | M57: =IF(INTRO!$E$37="Endémique",IF($H57>0,IF($H57=4,"Inconnu",IF($H57=99,"Interrompu",$D57)),0),"Non requis") -> 0 | O57: =IF(INTRO!$E$41="Endémique", IF(AND($J57>1,$J57<5), IF($J57=4, "Inconnu", E57+F57), 0),"Non requis") -> 0 | P57: 0 | Q57: 0 | R57: 0 | S57: 0 | T57: 0 | V57: Oui | W57: Oui | X57: Oui | Y57: 12846 | Z57: Kintélé
A58: =IF(INTRO!$E$33<>0,INTRO!$E$33, " ") -> Congo | B58: Pool | C58: Mindouli | D58: 53053 | E58: =IF(INTRO!$E$48="","",ROUND($D58*INTRO!$E$48,0)) -> 4568 | F58: =IF(INTRO!$E$49="","",ROUND($D58*INTRO!$E$49,0)) -> 14218 | G58: =IF(INTRO!$E$50="","",ROUND($D58*INTRO!$E$50,0)) -> 31089 | H58: 0 | I58: 1 | J58: 2 | K58: 1 | L58: 1 | M58: =IF(INTRO!$E$37="Endémique",IF($H58>0,IF($H58=4,"Inconnu",IF($H58=99,"Interrompu",$D58)),0),"Non requis") -> 0 | N58: 58654 | O58: =IF(INTRO!$E$41="Endémique", IF(AND($J58>1,$J58<5), IF($J58=4, "Inconnu", E58+F58), 0),"Non requis") -> 18786 | P58: 0 | Q58: 0 | R58: 1 | S58: 1 | T58: 0 | V58: Oui | W58: Oui | X58: Oui | Y58: 12807 | Z58: Mindouli
A59: =IF(INTRO!$E$33<>0,INTRO!$E$33, " ") -> Congo | B59: Sangha | C59: Ouesso | D59: 85499 | E59: =IF(INTRO!$E$48="","",ROUND($D59*INTRO!$E$48,0)) -> 7361 | F59: =IF(INTRO!$E$49="","",ROUND($D59*INTRO!$E$49,0)) -> 22914 | G59: =IF(INTRO!$E$50="","",ROUND($D59*INTRO!$E$50,0)) -> 50102 | H59: 1 | I59: 4 | J59: 2 | K59: 1 | L59: 1 | M59: =IF(INTRO!$E$37="Endémique",IF($H59>0,IF($H59=4,"Inconnu",IF($H59=99,"Interrompu",$D59)),0),"Non requis") -> 85499 | O59: =IF(INTRO!$E$41="Endémique", IF(AND($J59>1,$J59<5), IF($J59=4, "Inconnu", E59+F59), 0),"Non requis") -> 30275 | P59: 0 | Q59: 1 | R59: 0 | S59: 1 | T59: 0 | V59: Oui | W59: Oui | X59: Oui | Y59: 12813 | Z59: Ouesso
A60: =IF(INTRO!$E$33<>0,INTRO!$E$33, " ") -> Congo | B60: Sangha | C60: Sembé-Souanké | D60: 38857 | E60: =IF(INTRO!$E$48="","",ROUND($D60*INTRO!$E$48,0)) -> 3346 | F60: =IF(INTRO!$E$49="","",ROUND($D60*INTRO!$E$49,0)) -> 10414 | G60: =IF(INTRO!$E$50="","",ROUND($D60*INTRO!$E$50,0)) -> 22770 | H60: 1 | I60: 4 | J60: 3 | K60: 0 | L60: 1 | M60: =IF(INTRO!$E$37="Endémique",IF($H60>0,IF($H60=4,"Inconnu",IF($H60=99,"Interrompu",$D60)),0),"Non requis") -> 38857 | O60: =IF(INTRO!$E$41="Endémique", IF(AND($J60>1,$J60<5), IF($J60=4, "Inconnu", E60+F60), 0),"Non requis") -> 13760 | P60: 0 | Q60: 1 | R60: 0 | S60: 2 | T60: 0 | V60: Oui | W60: Oui | X60: Oui | Y60: 12814 | Z60: Sembé-Souanké
AX63: =AZ63=C57 -> FALSE | AY63: Kouilou | AZ63: Hinda-Mvouti | BA63: 12781

Sheet ALB_MBD
A1: Albendazole (ALB) et Mebendazole (MBD)
A2: Structure administrative, population ciblée par groupe d'âge, plan de traitement et information sur les comprimés
A4: TOTAL | D4: =SUM(D$9:D$1000) -> 476179 | E4: =SUM(E$9:E$1000) -> 1482182 | F4: =SUM(F$9:F$1000) -> 1958361 | I4: =SUM(I$9:I$1000) -> 268652 | J4: =SUM(J$9:J$1000) -> 704746 | M4: =SUM(M$9:M$1000) -> 228610 | N4: =SUM(N$9:N$1000) -> 791201.4721 | O4: =SUM(O$9:O$1000) -> 0 | P4: =SUM(P$9:P$1000) -> 1019811.472 | Q4: =SUM(Q$9:Q$1000) -> 0 | R4: =SUM(R$9:R$1000) -> 0 | S4: 0 | T4: 0 | U4: 21000 | V4: 1678144 | W4: 8398 | X4: 0 | Y4: 791201.4721 | Z4: 3970 | AA4: 0 | AB4: 0 | AC4: 0
A6: Structure administrative du pays | D6: Population nécessitant un traitement avec ALB/MBD | G6: Plan de traitement | I6: Population couverte par le PEFL avec ALB | J6: Endémique à la Loase | L6: Médicament choisi pour le traitement des STH | M6: Population cible | U6: Albendazole (ALB) | AA6: Mebendazole (MBD)
A7: Pays | B7: Région/Département | C7: District | D7: EAPréS | E7: EAS | F7: Total | G7: FL | H7: STH | J7: Population | K7: Tours planifiés | M7: STH (ALB) | Q7: STH (MBD) | U7: Reste en stock (FL) | V7: Comprimés devant être fournis (FL) | W7: Flacons (400mg) 200 comprimés (FL) | X7: Reste en stock (STH) | Y7: Comprimés devant être fournis pour EAS (STH) | Z7: Flacons (400mg) 200 comprimés (STH) | AA7: Reste en stock | AB7: Comprimés devant être fournis pour EAS | AC7: Flacons (500mg) 150 comprimés
M8: EAPréS | N8: EAS | O8: Autres | P8: Total | Q8: EAPréS | R8: EAS | S8: Autres | T8: Total
A9: =IF(AND(INTRO!$E$37="Non endémique",INTRO!$E$41="Non endémique")," ",IF(COUNTRY_INFO!A9=0," ",COUNTRY_INFO!A9)) -> Congo | B9: =IF(AND(INTRO!$E$37="Non endémique",INTRO!$E$41="Non endémique")," ",IF(COUNTRY_INFO!B9=0," ",COUNTRY_INFO!B9)) -> Bouenza | C9: =IF(AND(INTRO!$E$37="Non endémique",INTRO!$E$41="Non endémique")," ",IF(COUNTRY_INFO!C9=0," ",COUNTRY_INFO!C9)) -> Loudima | D9: =IF(AND(INTRO!$E$37="Non endémique",INTRO!$E$41="Non endémique"),0,IF(AND(OR(COUNTRY_INFO!$H9=0,COUNTRY_INFO!$H9=4,COUNTRY_INFO!$H9=99),OR(COUNTRY_INFO!$J9=0,COUNTRY_INFO!$J9=4)),0,COUNTRY_INFO!$E9)) -> 4795 | E9: =IF(AND(INTRO!$E$37="Non endémique",INTRO!$E$41="Non endémique"),0,IF(AND(OR(COUNTRY_INFO!$H9=0,COUNTRY_INFO!$H9=4,COUNTRY_INFO!$H9=99),OR(COUNTRY_INFO!$J9=0,COUNTRY_INFO!$J9=4)),0,COUNTRY_INFO!$F9)) -> 14924 | F9: =SUM(D9:E9) -> 19719 | G9: =IF(AND(INTRO!$E$37="Non endémique",INTRO!$E$41="Non endémique"),0,COUNTRY_INFO!Q9) -> 0 | H9: =IF(AND(INTRO!$E$37="Non endémique",INTRO!$E$41="Non endémique"),0,COUNTRY_INFO!S9) -> 0 | I9: =IF($G9=1,IVM!$G9,0) -> 0 | J9: =IF($G9=0, " ", IF(COUNTRY_INFO!$H9=1, IF(COUNTRY_INFO!$L9=1, 0," ")," ")) ->  | L9: ALB | M9: =IF($L9="ALB", IF(INTRO!$E$39="Non endémique",IF($H9<>0,$D9*($H9-$G9),0),$D9*$H9), 0) -> 0 | N9: =IF($L9="ALB", IF($H9=0, 0, IF(AND($I9=0, OR($J9=0,$J9=" ")), $E9*$H9, IF(AND($I9=0, $J9>0), IF(($H9-$K9)<=0, 0, $E9*(MAX($H9,$K9)-MIN($H9,$K9))), IF(AND($I9>0, $J9=0), $E9*($H9-$G9), IF($J9=" ", 0, $J9*$E9/($I9+$J9)*$K9+$I9*$E9/($I9+$J9)*($H9-$G9)))))), 0) -> 0 | P9: =SUM(M9:O9) -> 0 | Q9: =IF($L9="MBD", IF(INTRO!$E$39="Non endémique",IF($H9<>0,$D9*($H9-$G9),0),$D9*$H9),0) -> 0 | R9: =IF($L9="MBD", IF($H9=0, 0, IF(AND($I9=0, OR($J9=0,$J9=" ")), $E9*$H9, IF(AND($I9=0, $J9>0), IF(($H9-$K9)<=0, 0, $E9*(MAX($H9,$K9)-MIN($H9,$K9))), IF(AND($I9>0, $J9=0), $E9*($H9-$G9), IF($J9=" ", 0, $J9*$E9/($I9+$J9)*$K9+$I9*$E9/($I9+$J9)*($H9-$G9)))))), 0) -> 0 | T9: =SUM(Q9:S9) -> 0 | V9: =IF($J9<>" ", IF(($I9+$J9*$K9)>$U9, ($I9+$J9*$K9)-$U9,0), IF($I9>$U9, $I9-$U9, 0)) -> 0 | W9: =IF($J9<>" ", ROUNDUP(($I9+$J9*$K9)/200,0), ROUNDUP($I9/200,0)) -> 0 | Y9: =IF($N9>$X9,$N9-$X9,0) -> 0 | Z9: =ROUNDUP($N9/200,0) -> 0 | AB9: =IF($R9>$AA9,$R9-$AA9,0) -> 0 | AC9: =ROUNDUP($R9/150,0) -> 0
A10: =IF(AND(INTRO!$E$37="Non endémique",INTRO!$E$41="Non endémique")," ",IF(COUNTRY_INFO!A10=0," ",COUNTRY_INFO!A10)) -> Congo | B10: =IF(AND(INTRO!$E$37="Non endémique",INTRO!$E$41="Non endémique")," ",IF(COUNTRY_INFO!B10=0," ",COUNTRY_INFO!B10)) -> Bouenza | C10: =IF(AND(INTRO!$E$37="Non endémique",INTRO!$E$41="Non endémique")," ",IF(COUNTRY_INFO!C10=0," ",COUNTRY_INFO!C10)) -> Loutété | D10: =IF(AND(INTRO!$E$37="Non endémique",INTRO!$E$41="Non endémique"),0,IF(AND(OR(COUNTRY_INFO!$H10=0,COUNTRY_INFO!$H10=4,COUNTRY_INFO!$H10=99),OR(COUNTRY_INFO!$J10=0,COUNTRY_INFO!$J10=4)),0,COUNTRY_INFO!$E10)) -> 5292 | E10: =IF(AND(INTRO!$E$37="Non endémique",INTRO!$E$41="Non endémique"),0,IF(AND(OR(COUNTRY_INFO!$H10=0,COUNTRY_INFO!$H10=4,COUNTRY_INFO!$H10=99),OR(COUNTRY_INFO!$J10=0,COUNTRY_INFO!$J10=4)),0,COUNTRY_INFO!$F10)) -> 16473 | F10: 21765 | G10: =IF(AND(INTRO!$E$37="Non endémique",INTRO!$E$41="Non endémique"),0,COUNTRY_INFO!Q10) -> 1 | H10: =IF(AND(INTRO!$E$37="Non endémique",INTRO!$E$41="Non endémique"),0,COUNTRY_INFO!S10) -> 1 | I10: =IF($G10=1,IVM!$G10,0) -> 37521 | J10: 14972 | K10: 2 | L10: ALB | M10: =IF($L10="ALB", IF(INTRO!$E$39="Non endémique",IF($H10<>0,$D10*($H10-$G10),0),$D10*$H10), 0) -> 5292 | N10: 9396.824567 | P10: 14688.82457 | Q10: =IF($L10="MBD", IF(INTRO!$E$39="Non endémique",IF($H10<>0,$D10*($H10-$G10),0),$D10*$H10),0) -> 0 | R10: 0 | T10: 0 | V10: 67465 | W10: 338 | Y10: 9396.824567 | Z10: 47 | AB10: 0 | AC10: 0
A11: =IF(AND(INTRO!$E$37="Non endémique",INTRO!$E$41="Non endémique")," ",IF(COUNTRY_INFO!A11=0," ",COUNTRY_INFO!A11)) -> Congo | B11: =IF(AND(INTRO!$E$37="Non endémique",INTRO!$E$41="Non endémique")," ",IF(COUNTRY_INFO!B11=0," ",COUNTRY_INFO!B11)) -> Bouenza | C11: =IF(AND(INTRO!$E$37="Non endémique",INTRO!$E$41="Non endémique")," ",IF(COUNTRY_INFO!C11=0," ",COUNTRY_INFO!C11)) -> Madingou | D11: =IF(AND(INTRO!$E$37="Non endémique",INTRO!$E$41="Non endémique"),0,IF(AND(OR(COUNTRY_INFO!$H11=0,COUNTRY_INFO!$H11=4,COUNTRY_INFO!$H11=99),OR(COUNTRY_INFO!$J11=0,COUNTRY_INFO!$J11=4)),0,COUNTRY_INFO!$E11)) -> 10072 | E11: =IF(AND(INTRO!$E$37="Non endémique",INTRO!$E$41="Non endémique"),0,IF(AND(OR(COUNTRY_INFO!$H11=0,COUNTRY_INFO!$H11=4,COUNTRY_INFO!$H11=99),OR(COUNTRY_INFO!$J11=0,COUNTRY_INFO!$J11=4)),0,COUNTRY_INFO!$F11)) -> 31352 | F11: 41424 | G11: =IF(AND(INTRO!$E$37="Non endémique",INTRO!$E$41="Non endémique"),0,COUNTRY_INFO!Q11) -> 1 | H11: =IF(AND(INTRO!$E$37="Non endémique",INTRO!$E$41="Non endémique"),0,COUNTRY_INFO!S11) -> 0 | I11: =IF($G11=1,IVM!$G11,0) -> 64633 | J11: 35272 | K11: 2 | L11: ALB | M11: =IF($L11="ALB", IF(INTRO!$E$39="Non endémique",IF($H11<>0,$D11*($H11-$G11),0),$D11*$H11), 0) -> 0 | N11: 0 | P11: 0 | Q11: =IF($L11="MBD", IF(INTRO!$E$39="Non endémique",IF($H11<>0,$D11*($H11-$G11),0),$D11*$H11),0) -> 0 | R11: 0 | T11: 0 | V11: 135177 | W11: 676 | Y11: 0 | Z11: 0 | AB11: 0 | AC11: 0
A12: =IF(AND(INTRO!$E$37="Non endémique",INTRO!$E$41="Non endémique")," ",IF(COUNTRY_INFO!A12=0," ",COUNTRY_INFO!A12)) -> Congo | B12: =IF(AND(INTRO!$E$37="Non endémique",INTRO!$E$41="Non endémique")," ",IF(COUNTRY_INFO!B12=0," ",COUNTRY_INFO!B12)) -> Bouenza | C12: =IF(AND(INTRO!$E$37="Non endémique",INTRO!$E$41="Non endémique")," ",IF(COUNTRY_INFO!C12=0," ",COUNTRY_INFO!C12)) -> Mouyondzi | D12: =IF(AND(INTRO!$E$37="Non endémique",INTRO!$E$41="Non endémique"),0,IF(AND(OR(COUNTRY_INFO!$H12=0,COUNTRY_INFO!$H12=4,COUNTRY_INFO!$H12=99),OR(COUNTRY_INFO!$J12=0,COUNTRY_INFO!$J12=4)),0,COUNTRY_INFO!$E12)) -> 8007 | E12: =IF(AND(INTRO!$E$37="Non endémique",INTRO!$E$41="Non endémique"),0,IF(AND(OR(COUNTRY_INFO!$H12=0,COUNTRY_INFO!$H12=4,COUNTRY_INFO!$H12=99),OR(COUNTRY_INFO!$J12=0,COUNTRY_INFO!$J12=4)),0,COUNTRY_INFO!$F12)) -> 24925 | F12: 32932 | G12: =IF(AND(INTRO!$E$37="Non endémique",INTRO!$E$41="Non endémique"),0,COUNTRY_INFO!Q12) -> 1 | H12: =IF(AND(INTRO!$E$37="Non endémique",INTRO!$E$41="Non endémique"),0,COUNTRY_INFO!S12) -> 2 | I12: =IF($G12=1,IVM!$G12,0) -> 50527 | J12: 28897 | K12: 2 | L12: ALB | M12: =IF($L12="ALB", IF(INTRO!$E$39="Non endémique",IF($H12<>0,$D12*($H12-$G12),0),$D12*$H12), 0) -> 16014 | N12: 33993.51487 | P12: 50007.51487 | Q12: =IF($L12="MBD", IF(INTRO!$E$39="Non endémique",IF($H12<>0,$D12*($H12-$G12),0),$D12*$H12),0) -> 0 | R12: 0 | T12: 0 | V12: =IF($J12<>" ", IF(($I12+$J12*$K12)>$U12, ($I12+$J12*$K12)-$U12,0), IF($I12>$U12, $I12-$U12, 0)) -> 108321 | W12: 542 | Y12: =IF($N12>$X12,$N12-$X12,0) -> 33993.51487 | Z12: 170 | AB12: 0 | AC12: 0
A13: =IF(AND(INTRO!$E$37="Non endémique",INTRO!$E$41="Non endémique")," ",IF(COUNTRY_INFO!A13=0," ",COUNTRY_INFO!A13)) -> Congo | B13: =IF(AND(INTRO!$E$37="Non endémique",INTRO!$E$41="Non endémique")," ",IF(COUNTRY_INFO!B13=0," ",COUNTRY_INFO!B13)) -> Bouenza | C13: =IF(AND(INTRO!$E$37="Non endémique",INTRO!$E$41="Non endémique")," ",IF(COUNTRY_INFO!C13=0," ",COUNTRY_INFO!C13)) -> Nkayi | D13: =IF(AND(INTRO!$E$37="Non endémique",INTRO!$E$41="Non endémique"),0,IF(AND(OR(COUNTRY_INFO!$H13=0,COUNTRY_INFO!$H13=4,COUNTRY_INFO!$H13=99),OR(COUNTRY_INFO!$J13=0,COUNTRY_INFO!$J13=4)),0,COUNTRY_INFO!$E13)) -> 12058 | E13: =IF(AND(INTRO!$E$37="Non endémique",INTRO!$E$41="Non endémique"),0,IF(AND(OR(COUNTRY_INFO!$H13=0,COUNTRY_INFO!$H13=4,COUNTRY_INFO!$H13=99),OR(COUNTRY_INFO!$J13=0,COUNTRY_INFO!$J13=4)),0,COUNTRY_INFO!$F13)) -> 37534 | F13: 49592 | G13: =IF(AND(INTRO!$E$37="Non endémique",INTRO!$E$41="Non endémique"),0,COUNTRY_INFO!Q13) -> 0 | H13: =IF(AND(INTRO!$E$37="Non endémique",INTRO!$E$41="Non endémique"),0,COUNTRY_INFO!S13) -> 1 | I13: =IF($G13=1,IVM!$G13,0) -> 0 | J13: =IF($G13=0, " ", IF(COUNTRY_INFO!$H13=1, IF(COUNTRY_INFO!$L13=1, 0," ")," ")) ->  | L13: ALB | M13: =IF($L13="ALB", IF(INTRO!$E$39="Non endémique",IF($H13<>0,$D13*($H13-$G13),0),$D13*$H13), 0) -> 12058 | N13: 37534 | P13: 49592 | Q13: =IF($L13="MBD", IF(INTRO!$E$39="Non endémique",IF($H13<>0,$D13*($H13-$G13),0),$D13*$H13),0) -> 0 | R13: 0 | T13: 0 | V13: 0 | W13: 0 | Y13: 37534 | Z13: 188 | AB13: 0 | AC13: 0
A14: =IF(AND(INTRO!$E$37="Non endémique",INTRO!$E$41="Non endémique")," ",IF(COUNTRY_INFO!A14=0," ",COUNTRY_INFO!A14)) -> Congo | B14: =IF(AND(INTRO!$E$37="Non endémique",INTRO!$E$41="Non endémique")," ",IF(COUNTRY_INFO!B14=0," ",COUNTRY_INFO!B14)) -> Brazzaville | C14: =IF(AND(INTRO!$E$37="Non endémique",INTRO!$E$41="Non endémique")," ",IF(COUNTRY_INFO!C14=0," ",COUNTRY_INFO!C14)) -> Bacongo | D14: =IF(AND(INTRO!$E$37="Non endémique",INTRO!$E$41="Non endémique"),0,IF(AND(OR(COUNTRY_INFO!$H14=0,COUNTRY_INFO!$H14=4,COUNTRY_INFO!$H14=99),OR(COUNTRY_INFO!$J14=0,COUNTRY_INFO!$J14=4)),0,COUNTRY_INFO!$E14)) -> 15131 | E14: =IF(AND(INTRO!$E$37="Non endémique",INTRO!$E$41="Non endémique"),0,IF(AND(OR(COUNTRY_INFO!$H14=0,COUNTRY_INFO!$H14=4,COUNTRY_INFO!$H14=99),OR(COUNTRY_INFO!$J14=0,COUNTRY_INFO!$J14=4)),0,COUNTRY_INFO!$F14)) -> 47098 | F14: 62229 | G14: =IF(AND(INTRO!$E$37="Non endémique",INTRO!$E$41="Non endémique"),0,COUNTRY_INFO!Q14) -> 0 | H14: =IF(AND(INTRO!$E$37="Non endémique",INTRO!$E$41="Non endémique"),0,COUNTRY_INFO!S14) -> 0 | I14: =IF($G14=1,IVM!$G14,0) -> 0 | J14: =IF($G14=0, " ", IF(COUNTRY_INFO!$H14=1, IF(COUNTRY_INFO!$L14=1, 0," ")," ")) ->  | L14: ALB | M14: =IF($L14="ALB", IF(INTRO!$E$39="Non endémique",IF($H14<>0,$D14*($H14-$G14),0),$D14*$H14), 0) -> 0 | N14: 0 | P14: 0 | Q14: =IF($L14="MBD", IF(INTRO!$E$39="Non endémique",IF($H14<>0,$D14*($H14-$G14),0),$D14*$H14),0) -> 0 | R14: 0 | T14: 0 | V14: 0 | W14: 0 | Y14: 0 | Z14: 0 | AB14: 0 | AC14: 0
A15: =IF(AND(INTRO!$E$37="Non endémique",INTRO!$E$41="Non endémique")," ",IF(COUNTRY_INFO!A15=0," ",COUNTRY_INFO!A15)) -> Congo | B15: =IF(AND(INTRO!$E$37="Non endémique",INTRO!$E$41="Non endémique")," ",IF(COUNTRY_INFO!B15=0," ",COUNTRY_INFO!B15)) -> Brazzaville | C15: =IF(AND(INTRO!$E$37="Non endémique",INTRO!$E$41="Non endémique")," ",IF(COUNTRY_INFO!C15=0," ",COUNTRY_INFO!C15)) -> Djiri | D15: =IF(AND(INTRO!$E$37="Non endémique",INTRO!$E$41="Non endémique"),0,IF(AND(OR(COUNTRY_INFO!$H15=0,COUNTRY_INFO!$H15=4,COUNTRY_INFO!$H15=99),OR(COUNTRY_INFO!$J15=0,COUNTRY_INFO!$J15=4)),0,COUNTRY_INFO!$E15)) -> 17284 | E15: =IF(AND(INTRO!$E$37="Non endémique",INTRO!$E$41="Non endémique"),0,IF(AND(OR(COUNTRY_INFO!$H15=0,COUNTRY_INFO!$H15=4,COUNTRY_INFO!$H15=99),OR(COUNTRY_INFO!$J15=0,COUNTRY_INFO!$J15=4)),0,COUNTRY_INFO!$F15)) -> 53798 | F15: 71082 | G15: =IF(AND(INTRO!$E$37="Non endémique",INTRO!$E$41="Non endémique"),0,COUNTRY_INFO!Q15) -> 0 | H15: =IF(AND(INTRO!$E$37="Non endémique",INTRO!$E$41="Non endémique"),0,COUNTRY_INFO!S15) -> 0 | I15: =IF($G15=1,IVM!$G15,0) -> 0 | J15: =IF($G15=0, " ", IF(COUNTRY_INFO!$H15=1, IF(COUNTRY_INFO!$L15=1, 0," ")," ")) ->  | L15: ALB | M15: =IF($L15="ALB", IF(INTRO!$E$39="Non endémique",IF($H15<>0,$D15*($H15-$G15),0),$D15*$H15), 0) -> 0 | N15: 0 | P15: 0 | Q15: =IF($L15="MBD", IF(INTRO!$E$39="Non endémique",IF($H15<>0,$D15*($H15-$G15),0),$D15*$H15),0) -> 0 | R15: 0 | T15: 0 | V15: 0 | W15: 0 | Y15: 0 | Z15: 0 | AB15: 0 | AC15: 0
A16: =IF(AND(INTRO!$E$37="Non endémique",INTRO!$E$41="Non endémique")," ",IF(COUNTRY_INFO!A16=0," ",COUNTRY_INFO!A16)) -> Congo | B16: =IF(AND(INTRO!$E$37="Non endémique",INTRO!$E$41="Non endémique")," ",IF(COUNTRY_INFO!B16=0," ",COUNTRY_INFO!B16)) -> Brazzaville | C16: =IF(AND(INTRO!$E$37="Non endémique",INTRO!$E$41="Non endémique")," ",IF(COUNTRY_INFO!C16=0," ",COUNTRY_INFO!C16)) -> Île Mbamou | D16: =IF(AND(INTRO!$E$37="Non endémique",INTRO!$E$41="Non endémique"),0,IF(AND(OR(COUNTRY_INFO!$H16=0,COUNTRY_INFO!$H16=4,COUNTRY_INFO!$H16=99),OR(COUNTRY_INFO!$J16=0,COUNTRY_INFO!$J16=4)),0,COUNTRY_INFO!$E16)) -> 1475 | E16: =IF(AND(INTRO!$E$37="Non endémique",INTRO!$E$41="Non endémique"),0,IF(AND(OR(COUNTRY_INFO!$H16=0,COUNTRY_INFO!$H16=4,COUNTRY_INFO!$H16=99),OR(COUNTRY_INFO!$J16=0,COUNTRY_INFO!$J16=4)),0,COUNTRY_INFO!$F16)) -> 4593 | F16: 6068 | G16: =IF(AND(INTRO!$E$37="Non endémique",INTRO!$E$41="Non endémique"),0,COUNTRY_INFO!Q16) -> 0 | H16: =IF(AND(INTRO!$E$37="Non endémique",INTRO!$E$41="Non endémique"),0,COUNTRY_INFO!S16) -> 0 | I16: =IF($G16=1,IVM!$G16,0) -> 0 | J16: =IF($G16=0, " ", IF(COUNTRY_INFO!$H16=1, IF(COUNTRY_INFO!$L16=1, 0," ")," ")) ->  | L16: ALB | M16: =IF($L16="ALB", IF(INTRO!$E$39="Non endémique",IF($H16<>0,$D16*($H16-$G16),0),$D16*$H16), 0) -> 0 | N16: 0 | P16: 0 | Q16: =IF($L16="MBD", IF(INTRO!$E$39="Non endémique",IF($H16<>0,$D16*($H16-$G16),0),$D16*$H16),0) -> 0 | R16: 0 | T16: 0 | V16: 0 | W16: 0 | Y16: 0 | Z16: 0 | AB16: 0 | AC16: 0
A17: =IF(AND(INTRO!$E$37="Non endémique",INTRO!$E$41="Non endémique")," ",IF(COUNTRY_INFO!A17=0," ",COUNTRY_INFO!A17)) -> Congo | B17: =IF(AND(INTRO!$E$37="Non endémique",INTRO!$E$41="Non endémique")," ",IF(COUNTRY_INFO!B17=0," ",COUNTRY_INFO!B17)) -> Brazzaville | C17: =IF(AND(INTRO!$E$37="Non endémique",INTRO!$E$41="Non endémique")," ",IF(COUNTRY_INFO!C17=0," ",COUNTRY_INFO!C17)) -> Madibou | D17: =IF(AND(INTRO!$E$37="Non endémique",INTRO!$E$41="Non endémique"),0,IF(AND(OR(COUNTRY_INFO!$H17=0,COUNTRY_INFO!$H17=4,COUNTRY_INFO!$H17=99),OR(COUNTRY_INFO!$J17=0,COUNTRY_INFO!$J17=4)),0,COUNTRY_INFO!$E17)) -> 17021 | E17: =IF(AND(INTRO!$E$37="Non endémique",INTRO!$E$41="Non endémique"),0,IF(AND(OR(COUNTRY_INFO!$H17=0,COUNTRY_INFO!$H17=4,COUNTRY_INFO!$H17=99),OR(COUNTRY_INFO!$J17=0,COUNTRY_INFO!$J17=4)),0,COUNTRY_INFO!$F17)) -> 52980 | F17: 70001 | G17: =IF(AND(INTRO!$E$37="Non endémique",INTRO!$E$41="Non endémique"),0,COUNTRY_INFO!Q17) -> 0 | H17: =IF(AND(INTRO!$E$37="Non endémique",INTRO!$E$41="Non endémique"),0,COUNTRY_INFO!S17) -> 0 | I17: =IF($G17=1,IVM!$G17,0) -> 0 | J17: =IF($G17=0, " ", IF(COUNTRY_INFO!$H17=1, IF(COUNTRY_INFO!$L17=1, 0," ")," ")) ->  | L17: ALB | M17: =IF($L17="ALB", IF(INTRO!$E$39="Non endémique",IF($H17<>0,$D17*($H17-$G17),0),$D17*$H17), 0) -> 0 | N17: 0 | P17: 0 | Q17: =IF($L17="MBD", IF(INTRO!$E$39="Non endémique",IF($H17<>0,$D17*($H17-$G17),0),$D17*$H17),0) -> 0 | R17: 0 | T17: 0 | V17: 0 | W17: 0 | Y17: 0 | Z17: 0 | AB17: 0 | AC17: 0
A18: =IF(AND(INTRO!$E$37="Non endémique",INTRO!$E$41="Non endémique")," ",IF(COUNTRY_INFO!A18=0," ",COUNTRY_INFO!A18)) -> Congo | B18: =IF(AND(INTRO!$E$37="Non endémique",INTRO!$E$41="Non endémique")," ",IF(COUNTRY_INFO!B18=0," ",COUNTRY_INFO!B18)) -> Brazzaville | C18: =IF(AND(INTRO!$E$37="Non endémique",INTRO!$E$41="Non endémique")," ",IF(COUNTRY_INFO!C18=0," ",COUNTRY_INFO!C18)) -> Makélékélé | D18: =IF(AND(INTRO!$E$37="Non endémique",INTRO!$E$41="Non endémique"),0,IF(AND(OR(COUNTRY_INFO!$H18=0,COUNTRY_INFO!$H18=4,COUNTRY_INFO!$H18=99),OR(COUNTRY_INFO!$J18=0,COUNTRY_INFO!$J18=4)),0,COUNTRY_INFO!$E18)) -> 22099 | E18: =IF(AND(INTRO!$E$37="Non endémique",INTRO!$E$41="Non endémique"),0,IF(AND(OR(COUNTRY_INFO!$H18=0,COUNTRY_INFO!$H18=4,COUNTRY_INFO!$H18=99),OR(COUNTRY_INFO!$J18=0,COUNTRY_INFO!$J18=4)),0,COUNTRY_INFO!$F18)) -> 68785 | F18: 90884 | G18: =IF(AND(INTRO!$E$37="Non endémique",INTRO!$E$41="Non endémique"),0,COUNTRY_INFO!Q18) -> 0 | H18: =IF(AND(INTRO!$E$37="Non endémique",INTRO!$E$41="Non endémique"),0,COUNTRY_INFO!S18) -> 0 | I18: =IF($G18=1,IVM!$G18,0) -> 0 | J18: =IF($G18=0, " ", IF(COUNTRY_INFO!$H18=1, IF(COUNTRY_INFO!$L18=1, 0," ")," ")) ->  | L18: ALB | M18: =IF($L18="ALB", IF(INTRO!$E$39="Non endémique",IF($H18<>0,$D18*($H18-$G18),0),$D18*$H18), 0) -> 0 | N18: 0 | P18: 0 | Q18: =IF($L18="MBD", IF(INTRO!$E$39="Non endémique",IF($H18<>0,$D18*($H18-$G18),0),$D18*$H18),0) -> 0 | R18: 0 | T18: 0 | V18: 0 | W18: 0 | Y18: 0 | Z18: 0 | AB18: 0 | AC18: 0
A19: =IF(AND(INTRO!$E$37="Non endémique",INTRO!$E$41="Non endémique")," ",IF(COUNTRY_INFO!A19=0," ",COUNTRY_INFO!A19)) -> Congo | B19: =IF(AND(INTRO!$E$37="Non endémique",INTRO!$E$41="Non endémique")," ",IF(COUNTRY_INFO!B19=0," ",COUNTRY_INFO!B19)) -> Brazzaville | C19: =IF(AND(INTRO!$E$37="Non endémique",INTRO!$E$41="Non endémique")," ",IF(COUNTRY_INFO!C19=0," ",COUNTRY_INFO!C19)) -> Mfilou | D19: =IF(AND(INTRO!$E$37="Non endémique",INTRO!$E$41="Non endémique"),0,IF(AND(OR(COUNTRY_INFO!$H19=0,COUNTRY_INFO!$H19=4,COUNTRY_INFO!$H19=99),OR(COUNTRY_INFO!$J19=0,COUNTRY_INFO!$J19=4)),0,COUNTRY_INFO!$E19)) -> 20817 | E19: =IF(AND(INTRO!$E$37="Non endémique",INTRO!$E$41="Non endémique"),0,IF(AND(OR(COUNTRY_INFO!$H19=0,COUNTRY_INFO!$H19=4,COUNTRY_INFO!$H19=99),OR(COUNTRY_INFO!$J19=0,COUNTRY_INFO!$J19=4)),0,COUNTRY_INFO!$F19)) -> 64795 | F19: 85612 | G19: =IF(AND(INTRO!$E$37="Non endémique",INTRO!$E$41="Non endémique"),0,COUNTRY_INFO!Q19) -> 0 | H19: =IF(AND(INTRO!$E$37="Non endémique",INTRO!$E$41="Non endémique"),0,COUNTRY_INFO!S19) -> 0 | I19: =IF($G19=1,IVM!$G19,0) -> 0 | J19: =IF($G19=0, " ", IF(COUNTRY_INFO!$H19=1, IF(COUNTRY_INFO!$L19=1, 0," ")," ")) ->  | L19: ALB | M19: =IF($L19="ALB", IF(INTRO!$E$39="Non endémique",IF($H19<>0,$D19*($H19-$G19),0),$D19*$H19), 0) -> 0 | N19: 0 | P19: 0 | Q19: =IF($L19="MBD", IF(INTRO!$E$39="Non endémique",IF($H19<>0,$D19*($H19-$G19),0),$D19*$H19),0) -> 0 | R19: 0 | T19: 0 | U19: 21000 | V19: 0 | W19: 0 | Y19: 0 | Z19: 0 | AB19: 0 | AC19: 0
A20: =IF(AND(INTRO!$E$37="Non endémique",INTRO!$E$41="Non endémique")," ",IF(COUNTRY_INFO!A20=0," ",COUNTRY_INFO!A20)) -> Congo | B20: =IF(AND(INTRO!$E$37="Non endémique",INTRO!$E$41="Non endémique")," ",IF(COUNTRY_INFO!B20=0," ",COUNTRY_INFO!B20)) -> Brazzaville | C20: =IF(AND(INTRO!$E$37="Non endémique",INTRO!$E$41="Non endémique")," ",IF(COUNTRY_INFO!C20=0," ",COUNTRY_INFO!C20)) -> Moungali | D20: =IF(AND(INTRO!$E$37="Non endémique",INTRO!$E$41="Non endémique"),0,IF(AND(OR(COUNTRY_INFO!$H20=0,COUNTRY_INFO!$H20=4,COUNTRY_INFO!$H20=99),OR(COUNTRY_INFO!$J20=0,COUNTRY_INFO!$J20=4)),0,COUNTRY_INFO!$E20)) -> 22001 | E20: =IF(AND(INTRO!$E$37="Non endémique",INTRO!$E$41="Non endémique"),0,IF(AND(OR(COUNTRY_INFO!$H20=0,COUNTRY_INFO!$H20=4,COUNTRY_INFO!$H20=99),OR(COUNTRY_INFO!$J20=0,COUNTRY_INFO!$J20=4)),0,COUNTRY_INFO!$F20)) -> 68480 | F20: 90481 | G20: =IF(AND(INTRO!$E$37="Non endémique",INTRO!$E$41="Non endémique"),0,COUNTRY_INFO!Q20) -> 0 | H20: =IF(AND(INTRO!$E$37="Non endémique",INTRO!$E$41="Non endémique"),0,COUNTRY_INFO!S20) -> 0 | I20: =IF($G20=1,IVM!$G20,0) -> 0 | J20: =IF($G20=0, " ", IF(COUNTRY_INFO!$H20=1, IF(COUNTRY_INFO!$L20=1, 0," ")," ")) ->  | L20: ALB | M20: =IF($L20="ALB", IF(INTRO!$E$39="Non endémique",IF($H20<>0,$D20*($H20-$G20),0),$D20*$H20), 0) -> 0 | N20: 0 | P20: 0 | Q20: =IF($L20="MBD", IF(INTRO!$E$39="Non endémique",IF($H20<>0,$D20*($H20-$G20),0),$D20*$H20),0) -> 0 | R20: 0 | T20: 0 | V20: 0 | W20: 0 | Y20: 0 | Z20: 0 | AB20: 0 | AC20: 0
A21: =IF(AND(INTRO!$E$37="Non endémique",INTRO!$E$41="Non endémique")," ",IF(COUNTRY_INFO!A21=0," ",COUNTRY_INFO!A21)) -> Congo | B21: =IF(AND(INTRO!$E$37="Non endémique",INTRO!$E$41="Non endémique")," ",IF(COUNTRY_INFO!B21=0," ",COUNTRY_INFO!B21)) -> Brazzaville | C21: =IF(AND(INTRO!$E$37="Non endémique",INTRO!$E$41="Non endémique")," ",IF(COUNTRY_INFO!C21=0," ",COUNTRY_INFO!C21)) -> Ouenzé | D21: =IF(AND(INTRO!$E$37="Non endémique",INTRO!$E$41="Non endémique"),0,IF(AND(OR(COUNTRY_INFO!$H21=0,COUNTRY_INFO!$H21=4,COUNTRY_INFO!$H21=99),OR(COUNTRY_INFO!$J21=0,COUNTRY_INFO!$J21=4)),0,COUNTRY_INFO!$E21)) -> 23522 | E21: =IF(AND(INTRO!$E$37="Non endémique",INTRO!$E$41="Non endémique"),0,IF(AND(OR(COUNTRY_INFO!$H21=0,COUNTRY_INFO!$H21=4,COUNTRY_INFO!$H21=99),OR(COUNTRY_INFO!$J21=0,COUNTRY_INFO!$J21=4)),0,COUNTRY_INFO!$F21)) -> 73216 | F21: 96738 | G21: =IF(AND(INTRO!$E$37="Non endémique",INTRO!$E$41="Non endémique"),0,COUNTRY_INFO!Q21) -> 0 | H21: =IF(AND(INTRO!$E$37="Non endémique",INTRO!$E$41="Non endémique"),0,COUNTRY_INFO!S21) -> 0 | I21: =IF($G21=1,IVM!$G21,0) -> 0 | J21: =IF($G21=0, " ", IF(COUNTRY_INFO!$H21=1, IF(COUNTRY_INFO!$L21=1, 0," ")," ")) ->  | L21: ALB | M21: =IF($L21="ALB", IF(INTRO!$E$39="Non endémique",IF($H21<>0,$D21*($H21-$G21),0),$D21*$H21), 0) -> 0 | N21: 0 | P21: 0 | Q21: =IF($L21="MBD", IF(INTRO!$E$39="Non endémique",IF($H21<>0,$D21*($H21-$G21),0),$D21*$H21),0) -> 0 | R21: 0 | T21: 0 | V21: 0 | W21: 0 | Y21: 0 | Z21: 0 | AB21: 0 | AC21: 0
A22: =IF(AND(INTRO!$E$37="Non endémique",INTRO!$E$41="Non endémique")," ",IF(COUNTRY_INFO!A22=0," ",COUNTRY_INFO!A22)) -> Congo | B22: =IF(AND(INTRO!$E$37="Non endémique",INTRO!$E$41="Non endémique")," ",IF(COUNTRY_INFO!B22=0," ",COUNTRY_INFO!B22)) -> Brazzaville | C22: =IF(AND(INTRO!$E$37="Non endémique",INTRO!$E$41="Non endémique")," ",IF(COUNTRY_INFO!C22=0," ",COUNTRY_INFO!C22)) -> Poto-Poto | D22: =IF(AND(INTRO!$E$37="Non endémique",INTRO!$E$41="Non endémique"),0,IF(AND(OR(COUNTRY_INFO!$H22=0,COUNTRY_INFO!$H22=4,COUNTRY_INFO!$H22=99),OR(COUNTRY_INFO!$J22=0,COUNTRY_INFO!$J22=4)),0,COUNTRY_INFO!$E22)) -> 9790 | E22: =IF(AND(INTRO!$E$37="Non endémique",INTRO!$E$41="Non endémique"),0,IF(AND(OR(COUNTRY_INFO!$H22=0,COUNTRY_INFO!$H22=4,COUNTRY_INFO!$H22=99),OR(COUNTRY_INFO!$J22=0,COUNTRY_INFO!$J22=4)),0,COUNTRY_INFO!$F22)) -> 30473 | F22: 40263 | G22: =IF(AND(INTRO!$E$37="Non endémique",INTRO!$E$41="Non endémique"),0,COUNTRY_INFO!Q22) -> 0 | H22: =IF(AND(INTRO!$E$37="Non endémique",INTRO!$E$41="Non endémique"),0,COUNTRY_INFO!S22) -> 0 | I22: =IF($G22=1,IVM!$G22,0) -> 0 | J22: =IF($G22=0, " ", IF(COUNTRY_INFO!$H22=1, IF(COUNTRY_INFO!$L22=1, 0," ")," ")) ->  | L22: ALB | M22: =IF($L22="ALB", IF(INTRO!$E$39="Non endémique",IF($H22<>0,$D22*($H22-$G22),0),$D22*$H22), 0) -> 0 | N22: 0 | P22: 0 | Q22: =IF($L22="MBD", IF(INTRO!$E$39="Non endémique",IF($H22<>0,$D22*($H22-$G22),0),$D22*$H22),0) -> 0 | R22: 0 | T22: 0 | V22: 0 | W22: 0 | Y22: 0 | Z22: 0 | AB22: 0 | AC22: 0
A23: =IF(AND(INTRO!$E$37="Non endémique",INTRO!$E$41="Non endémique")," ",IF(COUNTRY_INFO!A23=0," ",COUNTRY_INFO!A23)) -> Congo | B23: =IF(AND(INTRO!$E$37="Non endémique",INTRO!$E$41="Non endémique")," ",IF(COUNTRY_INFO!B23=0," ",COUNTRY_INFO!B23)) -> Brazzaville | C23: =IF(AND(INTRO!$E$37="Non endémique",INTRO!$E$41="Non endémique")," ",IF(COUNTRY_INFO!C23=0," ",COUNTRY_INFO!C23)) -> Talangaî | D23: =IF(AND(INTRO!$E$37="Non endémique",INTRO!$E$41="Non endémique"),0,IF(AND(OR(COUNTRY_INFO!$H23=0,COUNTRY_INFO!$H23=4,COUNTRY_INFO!$H23=99),OR(COUNTRY_INFO!$J23=0,COUNTRY_INFO!$J23=4)),0,COUNTRY_INFO!$E23)) -> 0 | E23: =IF(AND(INTRO!$E$37="Non endémique",INTRO!$E$41="Non endémique"),0,IF(AND(OR(COUNTRY_INFO!$H23=0,COUNTRY_INFO!$H23=4,COUNTRY_INFO!$H23=99),OR(COUNTRY_INFO!$J23=0,COUNTRY_INFO!$J23=4)),0,COUNTRY_INFO!$F23)) -> 0 | F23: 0 | G23: =IF(AND(INTRO!$E$37="Non endémique",INTRO!$E$41="Non endémique"),0,COUNTRY_INFO!Q23) -> 0 | H23: =IF(AND(INTRO!$E$37="Non endémique",INTRO!$E$41="Non endémique"),0,COUNTRY_INFO!S23) -> 0 | I23: =IF($G23=1,IVM!$G23,0) -> 0 | J23: =IF($G23=0, " ", IF(COUNTRY_INFO!$H23=1, IF(COUNTRY_INFO!$L23=1, 0," ")," ")) ->  | L23: ALB | M23: =IF($L23="ALB", IF(INTRO!$E$39="Non endémique",IF($H23<>0,$D23*($H23-$G23),0),$D23*$H23), 0) -> 0 | N23: 0 | P23: 0 | Q23: =IF($L23="MBD", IF(INTRO!$E$39="Non endémique",IF($H23<>0,$D23*($H23-$G23),0),$D23*$H23),0) -> 0 | R23: 0 | T23: 0 | V23: 0 | W23: 0 | Y23: 0 | Z23: 0 | AB23: 0 | AC23: 0
A24: =IF(AND(INTRO!$E$37="Non endémique",INTRO!$E$41="Non endémique")," ",IF(COUNTRY_INFO!A24=0," ",COUNTRY_INFO!A24)) -> Congo | B24: =IF(AND(INTRO!$E$37="Non endémique",INTRO!$E$41="Non endémique")," ",IF(COUNTRY_INFO!B24=0," ",COUNTRY_INFO!B24)) -> Cuvette | C24: =IF(AND(INTRO!$E$37="Non endémique",INTRO!$E$41="Non endémique")," ",IF(COUNTRY_INFO!C24=0," ",COUNTRY_INFO!C24)) -> Mossaka | D24: =IF(AND(INTRO!$E$37="Non endémique",INTRO!$E$41="Non endémique"),0,IF(AND(OR(COUNTRY_INFO!$H24=0,COUNTRY_INFO!$H24=4,COUNTRY_INFO!$H24=99),OR(COUNTRY_INFO!$J24=0,COUNTRY_INFO!$J24=4)),0,COUNTRY_INFO!$E24)) -> 6169 | E24: =IF(AND(INTRO!$E$37="Non endémique",INTRO!$E$41="Non endémique"),0,IF(AND(OR(COUNTRY_INFO!$H24=0,COUNTRY_INFO!$H24=4,COUNTRY_INFO!$H24=99),OR(COUNTRY_INFO!$J24=0,COUNTRY_INFO!$J24=4)),0,COUNTRY_INFO!$F24)) -> 19203 | F24: 25372 | G24: =IF(AND(INTRO!$E$37="Non endémique",INTRO!$E$41="Non endémique"),0,COUNTRY_INFO!Q24) -> 0 | H24: =IF(AND(INTRO!$E$37="Non endémique",INTRO!$E$41="Non endémique"),0,COUNTRY_INFO!S24) -> 1 | I24: =IF($G24=1,IVM!$G24,0) -> 0 | J24: =IF($G24=0, " ", IF(COUNTRY_INFO!$H24=1, IF(COUNTRY_INFO!$L24=1, 0," ")," ")) ->  | L24: ALB | M24: =IF($L24="ALB", IF(INTRO!$E$39="Non endémique",IF($H24<>0,$D24*($H24-$G24),0),$D24*$H24), 0) -> 6169 | N24: 19203 | P24: =SUM(M24:O24) -> 25372 | Q24: =IF($L24="MBD", IF(INTRO!$E$39="Non endémique",IF($H24<>0,$D24*($H24-$G24),0),$D24*$H24),0) -> 0 | R24: 0 | T24: 0 | V24: 0 | W24: 0 | Y24: =IF($N24>$X24,$N24-$X24,0) -> 19203 | Z24: 97 | AB24: 0 | AC24: 0
A25: =IF(AND(INTRO!$E$37="Non endémique",INTRO!$E$41="Non endémique")," ",IF(COUNTRY_INFO!A25=0," ",COUNTRY_INFO!A25)) -> Congo | B25: =IF(AND(INTRO!$E$37="Non endémique",INTRO!$E$41="Non endémique")," ",IF(COUNTRY_INFO!B25=0," ",COUNTRY_INFO!B25)) -> Cuvette | C25: =IF(AND(INTRO!$E$37="Non endémique",INTRO!$E$41="Non endémique")," ",IF(COUNTRY_INFO!C25=0," ",COUNTRY_INFO!C25)) -> Owando | D25: =IF(AND(INTRO!$E$37="Non endémique",INTRO!$E$41="Non endémique"),0,IF(AND(OR(COUNTRY_INFO!$H25=0,COUNTRY_INFO!$H25=4,COUNTRY_INFO!$H25=99),OR(COUNTRY_INFO!$J25=0,COUNTRY_INFO!$J25=4)),0,COUNTRY_INFO!$E25)) -> 8989 | E25: =IF(AND(INTRO!$E$37="Non endémique",INTRO!$E$41="Non endémique"),0,IF(AND(OR(COUNTRY_INFO!$H25=0,COUNTRY_INFO!$H25=4,COUNTRY_INFO!$H25=99),OR(COUNTRY_INFO!$J25=0,COUNTRY_INFO!$J25=4)),0,COUNTRY_INFO!$F25)) -> 27979 | F25: 36968 | G25: =IF(AND(INTRO!$E$37="Non endémique",INTRO!$E$41="Non endémique"),0,COUNTRY_INFO!Q25) -> 1 | H25: =IF(AND(INTRO!$E$37="Non endémique",INTRO!$E$41="Non endémique"),0,COUNTRY_INFO!S25) -> 0 | I25: =IF($G25=1,IVM!$G25,0) -> 4211 | J25: 84945 | K25: 2 | L25: ALB | M25: =IF($L25="ALB", IF(INTRO!$E$39="Non endémique",IF($H25<>0,$D25*($H25-$G25),0),$D25*$H25), 0) -> 0 | N25: 0 | P25: 0 | Q25: =IF($L25="MBD", IF(INTRO!$E$39="Non endémique",IF($H25<>0,$D25*($H25-$G25),0),$D25*$H25),0) -> 0 | R25: 0 | T25: 0 | V25: 174101 | W25: 871 | Y25: 0 | Z25: 0 | AB25: 0 | AC25: 0
A26: =IF(AND(INTRO!$E$37="Non endémique",INTRO!$E$41="Non endémique")," ",IF(COUNTRY_INFO!A26=0," ",COUNTRY_INFO!A26)) -> Congo | B26: =IF(AND(INTRO!$E$37="Non endémique",INTRO!$E$41="Non endémique")," ",IF(COUNTRY_INFO!B26=0," ",COUNTRY_INFO!B26)) -> Cuvette | C26: =IF(AND(INTRO!$E$37="Non endémique",INTRO!$E$41="Non endémique")," ",IF(COUNTRY_INFO!C26=0," ",COUNTRY_INFO!C26)) -> Oyo-Alima | D26: =IF(AND(INTRO!$E$37="Non endémique",INTRO!$E$41="Non endémique"),0,IF(AND(OR(COUNTRY_INFO!$H26=0,COUNTRY_INFO!$H26=4,COUNTRY_INFO!$H26=99),OR(COUNTRY_INFO!$J26=0,COUNTRY_INFO!$J26=4)),0,COUNTRY_INFO!$E26)) -> 5398 | E26: =IF(AND(INTRO!$E$37="Non endémique",INTRO!$E$41="Non endémique"),0,IF(AND(OR(COUNTRY_INFO!$H26=0,COUNTRY_INFO!$H26=4,COUNTRY_INFO!$H26=99),OR(COUNTRY_INFO!$J26=0,COUNTRY_INFO!$J26=4)),0,COUNTRY_INFO!$F26)) -> 16801 | F26: 22199 | G26: =IF(AND(INTRO!$E$37="Non endémique",INTRO!$E$41="Non endémique"),0,COUNTRY_INFO!Q26) -> 0 | H26: =IF(AND(INTRO!$E$37="Non endémique",INTRO!$E$41="Non endémique"),0,COUNTRY_INFO!S26) -> 0 | I26: =IF($G26=1,IVM!$G26,0) -> 0 | J26: =IF($G26=0, " ", IF(COUNTRY_INFO!$H26=1, IF(COUNTRY_INFO!$L26=1, 0," ")," ")) ->  | L26: ALB | M26: =IF($L26="ALB", IF(INTRO!$E$39="Non endémique",IF($H26<>0,$D26*($H26-$G26),0),$D26*$H26), 0) -> 0 | N26: 0 | P26: 0 | Q26: =IF($L26="MBD", IF(INTRO!$E$39="Non endémique",IF($H26<>0,$D26*($H26-$G26),0),$D26*$H26),0) -> 0 | R26: 0 | T26: 0 | V26: 0 | W26: 0 | Y26: 0 | Z26: 0 | AB26: 0 | AC26: 0
A27: =IF(AND(INTRO!$E$37="Non endémique",INTRO!$E$41="Non endémique")," ",IF(COUNTRY_INFO!A27=0," ",COUNTRY_INFO!A27)) -> Congo | B27: =IF(AND(INTRO!$E$37="Non endémique",INTRO!$E$41="Non endémique")," ",IF(COUNTRY_INFO!B27=0," ",COUNTRY_INFO!B27)) -> Cuvette-Ouest | C27: =IF(AND(INTRO!$E$37="Non endémique",INTRO!$E$41="Non endémique")," ",IF(COUNTRY_INFO!C27=0," ",COUNTRY_INFO!C27)) -> Etoumbi | D27: =IF(AND(INTRO!$E$37="Non endémique",INTRO!$E$41="Non endémique"),0,IF(AND(OR(COUNTRY_INFO!$H27=0,COUNTRY_INFO!$H27=4,COUNTRY_INFO!$H27=99),OR(COUNTRY_INFO!$J27=0,COUNTRY_INFO!$J27=4)),0,COUNTRY_INFO!$E27)) -> 4048 | E27: =IF(AND(INTRO!$E$37="Non endémique",INTRO!$E$41="Non endémique"),0,IF(AND(OR(COUNTRY_INFO!$H27=0,COUNTRY_INFO!$H27=4,COUNTRY_INFO!$H27=99),OR(COUNTRY_INFO!$J27=0,COUNTRY_INFO!$J27=4)),0,COUNTRY_INFO!$F27)) -> 12601 | F27: 16649 | G27: =IF(AND(INTRO!$E$37="Non endémique",INTRO!$E$41="Non endémique"),0,COUNTRY_INFO!Q27) -> 1 | H27: =IF(AND(INTRO!$E$37="Non endémique",INTRO!$E$41="Non endémique"),0,COUNTRY_INFO!S27) -> 1 | I27: =IF($G27=1,IVM!$G27,0) -> 1897 | J27: 38257 | K27: 2 | L27: ALB | M27: =IF($L27="ALB", IF(INTRO!$E$39="Non endémique",IF($H27<>0,$D27*($H27-$G27),0),$D27*$H27), 0) -> 4048 | N27: 24011.37904 | P27: 28059.37904 | Q27: =IF($L27="MBD", IF(INTRO!$E$39="Non endémique",IF($H27<>0,$D27*($H27-$G27),0),$D27*$H27),0) -> 0 | R27: 0 | T27: 0 | V27: 78411 | W27: 393 | Y27: 24011.37904 | Z27: 121 | AB27: 0 | AC27: 0
A28: =IF(AND(INTRO!$E$37="Non endémique",INTRO!$E$41="Non endémique")," ",IF(COUNTRY_INFO!A28=0," ",COUNTRY_INFO!A28)) -> Congo | B28: =IF(AND(INTRO!$E$37="Non endémique",INTRO!$E$41="Non endémique")," ",IF(COUNTRY_INFO!B28=0," ",COUNTRY_INFO!B28)) -> Cuvette-Ouest | C28: =IF(AND(INTRO!$E$37="Non endémique",INTRO!$E$41="Non endémique")," ",IF(COUNTRY_INFO!C28=0," ",COUNTRY_INFO!C28)) -> Ewo | D28: =IF(AND(INTRO!$E$37="Non endémique",INTRO!$E$41="Non endémique"),0,IF(AND(OR(COUNTRY_INFO!$H28=0,COUNTRY_INFO!$H28=4,COUNTRY_INFO!$H28=99),OR(COUNTRY_INFO!$J28=0,COUNTRY_INFO!$J28=4)),0,COUNTRY_INFO!$E28)) -> 7022 | E28: =IF(AND(INTRO!$E$37="Non endémique",INTRO!$E$41="Non endémique"),0,IF(AND(OR(COUNTRY_INFO!$H28=0,COUNTRY_INFO!$H28=4,COUNTRY_INFO!$H28=99),OR(COUNTRY_INFO!$J28=0,COUNTRY_INFO!$J28=4)),0,COUNTRY_INFO!$F28)) -> 21858 | F28: 28880 | G28: =IF(AND(INTRO!$E$37="Non endémique",INTRO!$E$41="Non endémique"),0,COUNTRY_INFO!Q28) -> 1 | H28: =IF(AND(INTRO!$E$37="Non endémique",INTRO!$E$41="Non endémique"),0,COUNTRY_INFO!S28) -> 1 | I28: =IF($G28=1,IVM!$G28,0) -> 5290 | J28: 64363 | K28: 2 | L28: ALB | M28: =IF($L28="ALB", IF(INTRO!$E$39="Non endémique",IF($H28<>0,$D28*($H28-$G28),0),$D28*$H28), 0) -> 7022 | N28: 40395.86103 | P28: 47417.86103 | Q28: =IF($L28="MBD", IF(INTRO!$E$39="Non endémique",IF($H28<>0,$D28*($H28-$G28),0),$D28*$H28),0) -> 0 | R28: 0 | T28: 0 | V28: 134016 | W28: 671 | Y28: 40395.86103 | Z28: 202 | AB28: 0 | AC28: 0
A29: =IF(AND(INTRO!$E$37="Non endémique",INTRO!$E$41="Non endémique")," ",IF(COUNTRY_INFO!A29=0," ",COUNTRY_INFO!A29)) -> Congo | B29: =IF(AND(INTRO!$E$37="Non endémique",INTRO!$E$41="Non endémique")," ",IF(COUNTRY_INFO!B29=0," ",COUNTRY_INFO!B29)) -> Kouilou | C29: =IF(AND(INTRO!$E$37="Non endémique",INTRO!$E$41="Non endémique")," ",IF(COUNTRY_INFO!C29=0," ",COUNTRY_INFO!C29)) -> Hinda-Loango | D29: =IF(AND(INTRO!$E$37="Non endémique",INTRO!$E$41="Non endémique"),0,IF(AND(OR(COUNTRY_INFO!$H29=0,COUNTRY_INFO!$H29=4,COUNTRY_INFO!$H29=99),OR(COUNTRY_INFO!$J29=0,COUNTRY_INFO!$J29=4)),0,COUNTRY_INFO!$E29)) -> 4504 | E29: =IF(AND(INTRO!$E$37="Non endémique",INTRO!$E$41="Non endémique"),0,IF(AND(OR(COUNTRY_INFO!$H29=0,COUNTRY_INFO!$H29=4,COUNTRY_INFO!$H29=99),OR(COUNTRY_INFO!$J29=0,COUNTRY_INFO!$J29=4)),0,COUNTRY_INFO!$F29)) -> 14020 | F29: 18524 | G29: =IF(AND(INTRO!$E$37="Non endémique",INTRO!$E$41="Non endémique"),0,COUNTRY_INFO!Q29) -> 0 | H29: =IF(AND(INTRO!$E$37="Non endémique",INTRO!$E$41="Non endémique"),0,COUNTRY_INFO!S29) -> 2 | I29: =IF($G29=1,IVM!$G29,0) -> 0 | J29: =IF($G29=0, " ", IF(COUNTRY_INFO!$H29=1, IF(COUNTRY_INFO!$L29=1, 0," ")," ")) ->  | L29: ALB | M29: =IF($L29="ALB", IF(INTRO!$E$39="Non endémique",IF($H29<>0,$D29*($H29-$G29),0),$D29*$H29), 0) -> 9008 | N29: 28040 | P29: 37048 | Q29: =IF($L29="MBD", IF(INTRO!$E$39="Non endémique",IF($H29<>0,$D29*($H29-$G29),0),$D29*$H29),0) -> 0 | R29: 0 | T29: 0 | V29: 0 | W29: 0 | Y29: 28040 | Z29: 141 | AB29: 0 | AC29: 0
A30: =IF(AND(INTRO!$E$37="Non endémique",INTRO!$E$41="Non endémique")," ",IF(COUNTRY_INFO!A30=0," ",COUNTRY_INFO!A30)) -> Congo | B30: =IF(AND(INTRO!$E$37="Non endémique",INTRO!$E$41="Non endémique")," ",IF(COUNTRY_INFO!B30=0," ",COUNTRY_INFO!B30)) -> Kouilou | C30: =IF(AND(INTRO!$E$37="Non endémique",INTRO!$E$41="Non endémique")," ",IF(COUNTRY_INFO!C30=0," ",COUNTRY_INFO!C30)) -> Madingo Kayes-Nzambi | D30: =IF(AND(INTRO!$E$37="Non endémique",INTRO!$E$41="Non endémique"),0,IF(AND(OR(COUNTRY_INFO!$H30=0,COUNTRY_INFO!$H30=4,COUNTRY_INFO!$H30=99),OR(COUNTRY_INFO!$J30=0,COUNTRY_INFO!$J30=4)),0,COUNTRY_INFO!$E30)) -> 2216 | E30: =IF(AND(INTRO!$E$37="Non endémique",INTRO!$E$41="Non endémique"),0,IF(AND(OR(COUNTRY_INFO!$H30=0,COUNTRY_INFO!$H30=4,COUNTRY_INFO!$H30=99),OR(COUNTRY_INFO!$J30=0,COUNTRY_INFO!$J30=4)),0,COUNTRY_INFO!$F30)) -> 6896 | F30: 9112 | G30: =IF(AND(INTRO!$E$37="Non endémique",INTRO!$E$41="Non endémique"),0,COUNTRY_INFO!Q30) -> 0 | H30: =IF(AND(INTRO!$E$37="Non endémique",INTRO!$E$41="Non endémique"),0,COUNTRY_INFO!S30) -> 2 | I30: =IF($G30=1,IVM!$G30,0) -> 0 | J30: =IF($G30=0, " ", IF(COUNTRY_INFO!$H30=1, IF(COUNTRY_INFO!$L30=1, 0," ")," ")) ->  | L30: ALB | M30: =IF($L30="ALB", IF(INTRO!$E$39="Non endémique",IF($H30<>0,$D30*($H30-$G30),0),$D30*$H30), 0) -> 4432 | N30: 13792 | P30: 18224 | Q30: =IF($L30="MBD", IF(INTRO!$E$39="Non endémique",IF($H30<>0,$D30*($H30-$G30),0),$D30*$H30),0) -> 0 | R30: 0 | T30: 0 | V30: 0 | W30: 0 | Y30: 13792 | Z30: 69 | AB30: 0 | AC30: 0
A31: =IF(AND(INTRO!$E$37="Non endémique",INTRO!$E$41="Non endémique")," ",IF(COUNTRY_INFO!A31=0," ",COUNTRY_INFO!A31)) -> Congo | B31: =IF(AND(INTRO!$E$37="Non endémique",INTRO!$E$41="Non endémique")," ",IF(COUNTRY_INFO!B31=0," ",COUNTRY_INFO!B31)) -> Kouilou | C31: =IF(AND(INTRO!$E$37="Non endémique",INTRO!$E$41="Non endémique")," ",IF(COUNTRY_INFO!C31=0," ",COUNTRY_INFO!C31)) -> Mvouti-Kakamouéka | D31: =IF(AND(INTRO!$E$37="Non endémique",INTRO!$E$41="Non endémique"),0,IF(AND(OR(COUNTRY_INFO!$H31=0,COUNTRY_INFO!$H31=4,COUNTRY_INFO!$H31=99),OR(COUNTRY_INFO!$J31=0,COUNTRY_INFO!$J31=4)),0,COUNTRY_INFO!$E31)) -> 3524 | E31: =IF(AND(INTRO!$E$37="Non endémique",INTRO!$E$41="Non endémique"),0,IF(AND(OR(COUNTRY_INFO!$H31=0,COUNTRY_INFO!$H31=4,COUNTRY_INFO!$H31=99),OR(COUNTRY_INFO!$J31=0,COUNTRY_INFO!$J31=4)),0,COUNTRY_INFO!$F31)) -> 10968 | F31: 14492 | G31: =IF(AND(INTRO!$E$37="Non endémique",INTRO!$E$41="Non endémique"),0,COUNTRY_INFO!Q31) -> 0 | H31: =IF(AND(INTRO!$E$37="Non endémique",INTRO!$E$41="Non endémique"),0,COUNTRY_INFO!S31) -> 1 | I31: =IF($G31=1,IVM!$G31,0) -> 0 | J31: =IF($G31=0, " ", IF(COUNTRY_INFO!$H31=1, IF(COUNTRY_INFO!$L31=1, 0," ")," ")) ->  | L31: ALB | M31: =IF($L31="ALB", IF(INTRO!$E$39="Non endémique",IF($H31<>0,$D31*($H31-$G31),0),$D31*$H31), 0) -> 3524 | N31: 10968 | P31: 14492 | Q31: =IF($L31="MBD", IF(INTRO!$E$39="Non endémique",IF($H31<>0,$D31*($H31-$G31),0),$D31*$H31),0) -> 0 | R31: 0 | T31: 0 | V31: 0 | W31: 0 | Y31: 10968 | Z31: 55 | AB31: 0 | AC31: 0
A32: =IF(AND(INTRO!$E$37="Non endémique",INTRO!$E$41="Non endémique")," ",IF(COUNTRY_INFO!A32=0," ",COUNTRY_INFO!A32)) -> Congo | B32: =IF(AND(INTRO!$E$37="Non endémique",INTRO!$E$41="Non endémique")," ",IF(COUNTRY_INFO!B32=0," ",COUNTRY_INFO!B32)) -> Lékoumou | C32: =IF(AND(INTRO!$E$37="Non endémique",INTRO!$E$41="Non endémique")," ",IF(COUNTRY_INFO!C32=0," ",COUNTRY_INFO!C32)) -> Sibiti | D32: =IF(AND(INTRO!$E$37="Non endémique",INTRO!$E$41="Non endémique"),0,IF(AND(OR(COUNTRY_INFO!$H32=0,COUNTRY_INFO!$H32=4,COUNTRY_INFO!$H32=99),OR(COUNTRY_INFO!$J32=0,COUNTRY_INFO!$J32=4)),0,COUNTRY_INFO!$E32)) -> 8457 | E32: =IF(AND(INTRO!$E$37="Non endémique",INTRO!$E$41="Non endémique"),0,IF(AND(OR(COUNTRY_INFO!$H32=0,COUNTRY_INFO!$H32=4,COUNTRY_INFO!$H32=99),OR(COUNTRY_INFO!$J32=0,COUNTRY_INFO!$J32=4)),0,COUNTRY_INFO!$F32)) -> 26322 | F32: 34779 | G32: =IF(AND(INTRO!$E$37="Non endémique",INTRO!$E$41="Non endémique"),0,COUNTRY_INFO!Q32) -> 0 | H32: =IF(AND(INTRO!$E$37="Non endémique",INTRO!$E$41="Non endémique"),0,COUNTRY_INFO!S32) -> 1 | I32: =IF($G32=1,IVM!$G32,0) -> 0 | J32: =IF($G32=0, " ", IF(COUNTRY_INFO!$H32=1, IF(COUNTRY_INFO!$L32=1, 0," ")," ")) ->  | L32: ALB | M32: =IF($L32="ALB", IF(INTRO!$E$39="Non endémique",IF($H32<>0,$D32*($H32-$G32),0),$D32*$H32), 0) -> 8457 | N32: 26322 | P32: 34779 | Q32: =IF($L32="MBD", IF(INTRO!$E$39="Non endémique",IF($H32<>0,$D32*($H32-$G32),0),$D32*$H32),0) -> 0 | R32: 0 | T32: 0 | V32: 0 | W32: 0 | Y32: 26322 | Z32: 132 | AB32: 0 | AC32: 0
A33: =IF(AND(INTRO!$E$37="Non endémique",INTRO!$E$41="Non endémique")," ",IF(COUNTRY_INFO!A33=0," ",COUNTRY_INFO!A33)) -> Congo | B33: =IF(AND(INTRO!$E$37="Non endémique",INTRO!$E$41="Non endémique")," ",IF(COUNTRY_INFO!B33=0," ",COUNTRY_INFO!B33)) -> Lékoumou | C33: =IF(AND(INTRO!$E$37="Non endémique",INTRO!$E$41="Non endémique")," ",IF(COUNTRY_INFO!C33=0," ",COUNTRY_INFO!C33)) -> Zanaga | D33: =IF(AND(INTRO!$E$37="Non endémique",INTRO!$E$41="Non endémique"),0,IF(AND(OR(COUNTRY_INFO!$H33=0,COUNTRY_INFO!$H33=4,COUNTRY_INFO!$H33=99),OR(COUNTRY_INFO!$J33=0,COUNTRY_INFO!$J33=4)),0,COUNTRY_INFO!$E33)) -> 3099 | E33: =IF(AND(INTRO!$E$37="Non endémique",INTRO!$E$41="Non endémique"),0,IF(AND(OR(COUNTRY_INFO!$H33=0,COUNTRY_INFO!$H33=4,COUNTRY_INFO!$H33=99),OR(COUNTRY_INFO!$J33=0,COUNTRY_INFO!$J33=4)),0,COUNTRY_INFO!$F33)) -> 9646 | F33: 12745 | G33: =IF(AND(INTRO!$E$37="Non endémique",INTRO!$E$41="Non endémique"),0,COUNTRY_INFO!Q33) -> 0 | H33: =IF(AND(INTRO!$E$37="Non endémique",INTRO!$E$41="Non endémique"),0,COUNTRY_INFO!S33) -> 1 | I33: =IF($G33=1,IVM!$G33,0) -> 0 | J33: =IF($G33=0, " ", IF(COUNTRY_INFO!$H33=1, IF(COUNTRY_INFO!$L33=1, 0," ")," ")) ->  | L33: ALB | M33: =IF($L33="ALB", IF(INTRO!$E$39="Non endémique",IF($H33<>0,$D33*($H33-$G33),0),$D33*$H33), 0) -> 3099 | N33: 9646 | P33: 12745 | Q33: =IF($L33="MBD", IF(INTRO!$E$39="Non endémique",IF($H33<>0,$D33*($H33-$G33),0),$D33*$H33),0) -> 0 | R33: 0 | T33: 0 | V33: 0 | W33: 0 | Y33: 9646 | Z33: 49 | AB33: 0 | AC33: 0
A34: =IF(AND(INTRO!$E$37="Non endémique",INTRO!$E$41="Non endémique")," ",IF(COUNTRY_INFO!A34=0," ",COUNTRY_INFO!A34)) -> Congo | B34: =IF(AND(INTRO!$E$37="Non endémique",INTRO!$E$41="Non endémique")," ",IF(COUNTRY_INFO!B34=0," ",COUNTRY_INFO!B34)) -> Likouala | C34: =IF(AND(INTRO!$E$37="Non endémique",INTRO!$E$41="Non endémique")," ",IF(COUNTRY_INFO!C34=0," ",COUNTRY_INFO!C34)) -> Bétou | D34: =IF(AND(INTRO!$E$37="Non endémique",INTRO!$E$41="Non endémique"),0,IF(AND(OR(COUNTRY_INFO!$H34=0,COUNTRY_INFO!$H34=4,COUNTRY_INFO!$H34=99),OR(COUNTRY_INFO!$J34=0,COUNTRY_INFO!$J34=4)),0,COUNTRY_INFO!$E34)) -> 13690 | E34: =IF(AND(INTRO!$E$37="Non endémique",INTRO!$E$41="Non endémique"),0,IF(AND(OR(COUNTRY_INFO!$H34=0,COUNTRY_INFO!$H34=4,COUNTRY_INFO!$H34=99),OR(COUNTRY_INFO!$J34=0,COUNTRY_INFO!$J34=4)),0,COUNTRY_INFO!$F34)) -> 42613 | F34: 56303 | G34: =IF(AND(INTRO!$E$37="Non endémique",INTRO!$E$41="Non endémique"),0,COUNTRY_INFO!Q34) -> 0 | H34: =IF(AND(INTRO!$E$37="Non endémique",INTRO!$E$41="Non endémique"),0,COUNTRY_INFO!S34) -> 1 | I34: =IF($G34=1,IVM!$G34,0) -> 0 | J34: =IF($G34=0, " ", IF(COUNTRY_INFO!$H34=1, IF(COUNTRY_INFO!$L34=1, 0," ")," ")) ->  | L34: ALB | M34: =IF($L34="ALB", IF(INTRO!$E$39="Non endémique",IF($H34<>0,$D34*($H34-$G34),0),$D34*$H34), 0) -> 13690 | N34: 42613 | P34: 56303 | Q34: =IF($L34="MBD", IF(INTRO!$E$39="Non endémique",IF($H34<>0,$D34*($H34-$G34),0),$D34*$H34),0) -> 0 | R34: 0 | T34: 0 | V34: 0 | W34: 0 | Y34: 42613 | Z34: 214 | AB34: 0 | AC34: 0
A35: =IF(AND(INTRO!$E$37="Non endémique",INTRO!$E$41="Non endémique")," ",IF(COUNTRY_INFO!A35=0," ",COUNTRY_INFO!A35)) -> Congo | B35: =IF(AND(INTRO!$E$37="Non endémique",INTRO!$E$41="Non endémique")," ",IF(COUNTRY_INFO!B35=0," ",COUNTRY_INFO!B35)) -> Likouala | C35: =IF(AND(INTRO!$E$37="Non endémique",INTRO!$E$41="Non endémique")," ",IF(COUNTRY_INFO!C35=0," ",COUNTRY_INFO!C35)) -> Impfondo | D35: =IF(AND(INTRO!$E$37="Non endémique",INTRO!$E$41="Non endémique"),0,IF(AND(OR(COUNTRY_INFO!$H35=0,COUNTRY_INFO!$H35=4,COUNTRY_INFO!$H35=99),OR(COUNTRY_INFO!$J35=0,COUNTRY_INFO!$J35=4)),0,COUNTRY_INFO!$E35)) -> 11416 | E35: =IF(AND(INTRO!$E$37="Non endémique",INTRO!$E$41="Non endémique"),0,IF(AND(OR(COUNTRY_INFO!$H35=0,COUNTRY_INFO!$H35=4,COUNTRY_INFO!$H35=99),OR(COUNTRY_INFO!$J35=0,COUNTRY_INFO!$J35=4)),0,COUNTRY_INFO!$F35)) -> 35534 | F35: 46950 | G35: =IF(AND(INTRO!$E$37="Non endémique",INTRO!$E$41="Non endémique"),0,COUNTRY_INFO!Q35) -> 1 | H35: =IF(AND(INTRO!$E$37="Non endémique",INTRO!$E$41="Non endémique"),0,COUNTRY_INFO!S35) -> 1 | I35: =IF($G35=1,IVM!$G35,0) -> 5347 | J35: 107884 | K35: 2 | L35: ALB | M35: =IF($L35="ALB", IF(INTRO!$E$39="Non endémique",IF($H35<>0,$D35*($H35-$G35),0),$D35*$H35), 0) -> 11416 | N35: 67712.02332 | P35: 79128.02332 | Q35: =IF($L35="MBD", IF(INTRO!$E$39="Non endémique",IF($H35<>0,$D35*($H35-$G35),0),$D35*$H35),0) -> 0 | R35: 0 | T35: 0 | V35: 221115 | W35: 1106 | Y35: 67712.02332 | Z35: 339 | AB35: 0 | AC35: 0
A36: =IF(AND(INTRO!$E$37="Non endémique",INTRO!$E$41="Non endémique")," ",IF(COUNTRY_INFO!A36=0," ",COUNTRY_INFO!A36)) -> Congo | B36: =IF(AND(INTRO!$E$37="Non endémique",INTRO!$E$41="Non endémique")," ",IF(COUNTRY_INFO!B36=0," ",COUNTRY_INFO!B36)) -> Niari | C36: =IF(AND(INTRO!$E$37="Non endémique",INTRO!$E$41="Non endémique")," ",IF(COUNTRY_INFO!C36=0," ",COUNTRY_INFO!C36)) -> Dolisie | D36: =IF(AND(INTRO!$E$37="Non endémique",INTRO!$E$41="Non endémique"),0,IF(AND(OR(COUNTRY_INFO!$H36=0,COUNTRY_INFO!$H36=4,COUNTRY_INFO!$H36=99),OR(COUNTRY_INFO!$J36=0,COUNTRY_INFO!$J36=4)),0,COUNTRY_INFO!$E36)) -> 15243 | E36: =IF(AND(INTRO!$E$37="Non endémique",INTRO!$E$41="Non endémique"),0,IF(AND(OR(COUNTRY_INFO!$H36=0,COUNTRY_INFO!$H36=4,COUNTRY_INFO!$H36=99),OR(COUNTRY_INFO!$J36=0,COUNTRY_INFO!$J36=4)),0,COUNTRY_INFO!$F36)) -> 47448 | F36: 62691 | G36: =IF(AND(INTRO!$E$37="Non endémique",INTRO!$E$41="Non endémique"),0,COUNTRY_INFO!Q36) -> 1 | H36: =IF(AND(INTRO!$E$37="Non endémique",INTRO!$E$41="Non endémique"),0,COUNTRY_INFO!S36) -> 1 | I36: =IF($G36=1,IVM!$G36,0) -> 50448 | J36: 100747 | K36: 2 | L36: ALB | M36: =IF($L36="ALB", IF(INTRO!$E$39="Non endémique",IF($H36<>0,$D36*($H36-$G36),0),$D36*$H36), 0) -> 15243 | N36: 63232.82722 | P36: 78475.82722 | Q36: =IF($L36="MBD", IF(INTRO!$E$39="Non endémique",IF($H36<>0,$D36*($H36-$G36),0),$D36*$H36),0) -> 0 | R36: 0 | T36: 0 | V36: 251942 | W36: 1260 | Y36: 63232.82722 | Z36: 317 | AB36: 0 | AC36: 0
A37: =IF(AND(INTRO!$E$37="Non endémique",INTRO!$E$41="Non endémique")," ",IF(COUNTRY_INFO!A37=0," ",COUNTRY_INFO!A37)) -> Congo | B37: =IF(AND(INTRO!$E$37="Non endémique",INTRO!$E$41="Non endémique")," ",IF(COUNTRY_INFO!B37=0," ",COUNTRY_INFO!B37)) -> Niari | C37: =IF(AND(INTRO!$E$37="Non endémique",INTRO!$E$41="Non endémique")," ",IF(COUNTRY_INFO!C37=0," ",COUNTRY_INFO!C37)) -> Kibangou | D37: =IF(AND(INTRO!$E$37="Non endémique",INTRO!$E$41="Non endémique"),0,IF(AND(OR(COUNTRY_INFO!$H37=0,COUNTRY_INFO!$H37=4,COUNTRY_INFO!$H37=99),OR(COUNTRY_INFO!$J37=0,COUNTRY_INFO!$J37=4)),0,COUNTRY_INFO!$E37)) -> 6242 | E37: =IF(AND(INTRO!$E$37="Non endémique",INTRO!$E$41="Non endémique"),0,IF(AND(OR(COUNTRY_INFO!$H37=0,COUNTRY_INFO!$H37=4,COUNTRY_INFO!$H37=99),OR(COUNTRY_INFO!$J37=0,COUNTRY_INFO!$J37=4)),0,COUNTRY_INFO!$F37)) -> 19431 | F37: 25673 | G37: =IF(AND(INTRO!$E$37="Non endémique",INTRO!$E$41="Non endémique"),0,COUNTRY_INFO!Q37) -> 1 | H37: =IF(AND(INTRO!$E$37="Non endémique",INTRO!$E$41="Non endémique"),0,COUNTRY_INFO!S37) -> 2 | I37: =IF($G37=1,IVM!$G37,0) -> 26543 | J37: 35374 | K37: 2 | L37: ALB | M37: =IF($L37="ALB", IF(INTRO!$E$39="Non endémique",IF($H37<>0,$D37*($H37-$G37),0),$D37*$H37), 0) -> 12484 | N37: 30532.18698 | P37: 43016.18698 | Q37: =IF($L37="MBD", IF(INTRO!$E$39="Non endémique",IF($H37<>0,$D37*($H37-$G37),0),$D37*$H37),0) -> 0 | R37: 0 | T37: 0 | V37: 97291 | W37: 487 | Y37: 30532.18698 | Z37: 153 | AB37: 0 | AC37: 0
A38: =IF(AND(INTRO!$E$37="Non endémique",INTRO!$E$41="Non endémique")," ",IF(COUNTRY_INFO!A38=0," ",COUNTRY_INFO!A38)) -> Congo | B38: =IF(AND(INTRO!$E$37="Non endémique",INTRO!$E$41="Non endémique")," ",IF(COUNTRY_INFO!B38=0," ",COUNTRY_INFO!B38)) -> Niari | C38: =IF(AND(INTRO!$E$37="Non endémique",INTRO!$E$41="Non endémique")," ",IF(COUNTRY_INFO!C38=0," ",COUNTRY_INFO!C38)) -> Kimongo-Londela Nkayes | D38: =IF(AND(INTRO!$E$37="Non endémique",INTRO!$E$41="Non endémique"),0,IF(AND(OR(COUNTRY_INFO!$H38=0,COUNTRY_INFO!$H38=4,COUNTRY_INFO!$H38=99),OR(COUNTRY_INFO!$J38=0,COUNTRY_INFO!$J38=4)),0,COUNTRY_INFO!$E38)) -> 3719 | E38: =IF(AND(INTRO!$E$37="Non endémique",INTRO!$E$41="Non endémique"),0,IF(AND(OR(COUNTRY_INFO!$H38=0,COUNTRY_INFO!$H38=4,COUNTRY_INFO!$H38=99),OR(COUNTRY_INFO!$J38=0,COUNTRY_INFO!$J38=4)),0,COUNTRY_INFO!$F38)) -> 11577 | F38: 15296 | G38: =IF(AND(INTRO!$E$37="Non endémique",INTRO!$E$41="Non endémique"),0,COUNTRY_INFO!Q38) -> 1 | H38: =IF(AND(INTRO!$E$37="Non endémique",INTRO!$E$41="Non endémique"),0,COUNTRY_INFO!S38) -> 2 | I38: =IF($G38=1,IVM!$G38,0) -> 1742 | J38: 35149 | K38: 2 | L38: ALB | M38: =IF($L38="ALB", IF(INTRO!$E$39="Non endémique",IF($H38<>0,$D38*($H38-$G38),0),$D38*$H38), 0) -> 7438 | N38: 22607.33187 | P38: 30045.33187 | Q38: =IF($L38="MBD", IF(INTRO!$E$39="Non endémique",IF($H38<>0,$D38*($H38-$G38),0),$D38*$H38),0) -> 0 | R38: 0 | T38: 0 | V38: 72040 | W38: 361 | Y38: 22607.33187 | Z38: 114 | AB38: 0 | AC38: 0
A39: =IF(AND(INTRO!$E$37="Non endémique",INTRO!$E$41="Non endémique")," ",IF(COUNTRY_INFO!A39=0," ",COUNTRY_INFO!A39)) -> Congo | B39: =IF(AND(INTRO!$E$37="Non endémique",INTRO!$E$41="Non endémique")," ",IF(COUNTRY_INFO!B39=0," ",COUNTRY_INFO!B39)) -> Niari | C39: =IF(AND(INTRO!$E$37="Non endémique",INTRO!$E$41="Non endémique")," ",IF(COUNTRY_INFO!C39=0," ",COUNTRY_INFO!C39)) -> Mayoko | D39: =IF(AND(INTRO!$E$37="Non endémique",INTRO!$E$41="Non endémique"),0,IF(AND(OR(COUNTRY_INFO!$H39=0,COUNTRY_INFO!$H39=4,COUNTRY_INFO!$H39=99),OR(COUNTRY_INFO!$J39=0,COUNTRY_INFO!$J39=4)),0,COUNTRY_INFO!$E39)) -> 1535 | E39: =IF(AND(INTRO!$E$37="Non endémique",INTRO!$E$41="Non endémique"),0,IF(AND(OR(COUNTRY_INFO!$H39=0,COUNTRY_INFO!$H39=4,COUNTRY_INFO!$H39=99),OR(COUNTRY_INFO!$J39=0,COUNTRY_INFO!$J39=4)),0,COUNTRY_INFO!$F39)) -> 4779 | F39: 6314 | G39: =IF(AND(INTRO!$E$37="Non endémique",INTRO!$E$41="Non endémique"),0,COUNTRY_INFO!Q39) -> 0 | H39: =IF(AND(INTRO!$E$37="Non endémique",INTRO!$E$41="Non endémique"),0,COUNTRY_INFO!S39) -> 1 | I39: =IF($G39=1,IVM!$G39,0) -> 0 | J39: =IF($G39=0, " ", IF(COUNTRY_INFO!$H39=1, IF(COUNTRY_INFO!$L39=1, 0," ")," ")) ->  | L39: ALB | M39: =IF($L39="ALB", IF(INTRO!$E$39="Non endémique",IF($H39<>0,$D39*($H39-$G39),0),$D39*$H39), 0) -> 1535 | N39: 4779 | P39: 6314 | Q39: =IF($L39="MBD", IF(INTRO!$E$39="Non endémique",IF($H39<>0,$D39*($H39-$G39),0),$D39*$H39),0) -> 0 | R39: 0 | T39: 0 | V39: 0 | W39: 0 | Y39: 4779 | Z39: 24 | AB39: 0 | AC39: 0
A40: =IF(AND(INTRO!$E$37="Non endémique",INTRO!$E$41="Non endémique")," ",IF(COUNTRY_INFO!A40=0," ",COUNTRY_INFO!A40)) -> Congo | B40: =IF(AND(INTRO!$E$37="Non endémique",INTRO!$E$41="Non endémique")," ",IF(COUNTRY_INFO!B40=0," ",COUNTRY_INFO!B40)) -> Niari | C40: =IF(AND(INTRO!$E$37="Non endémique",INTRO!$E$41="Non endémique")," ",IF(COUNTRY_INFO!C40=0," ",COUNTRY_INFO!C40)) -> Mossendjo | D40: =IF(AND(INTRO!$E$37="Non endémique",INTRO!$E$41="Non endémique"),0,IF(AND(OR(COUNTRY_INFO!$H40=0,COUNTRY_INFO!$H40=4,COUNTRY_INFO!$H40=99),OR(COUNTRY_INFO!$J40=0,COUNTRY_INFO!$J40=4)),0,COUNTRY_INFO!$E40)) -> 4420 | E40: =IF(AND(INTRO!$E$37="Non endémique",INTRO!$E$41="Non endémique"),0,IF(AND(OR(COUNTRY_INFO!$H40=0,COUNTRY_INFO!$H40=4,COUNTRY_INFO!$H40=99),OR(COUNTRY_INFO!$J40=0,COUNTRY_INFO!$J40=4)),0,COUNTRY_INFO!$F40)) -> 13757 | F40: 18177 | G40: =IF(AND(INTRO!$E$37="Non endémique",INTRO!$E$41="Non endémique"),0,COUNTRY_INFO!Q40) -> 0 | H40: =IF(AND(INTRO!$E$37="Non endémique",INTRO!$E$41="Non endémique"),0,COUNTRY_INFO!S40) -> 1 | I40: =IF($G40=1,IVM!$G40,0) -> 0 | J40: =IF($G40=0, " ", IF(COUNTRY_INFO!$H40=1, IF(COUNTRY_INFO!$L40=1, 0," ")," ")) ->  | L40: ALB | M40: =IF($L40="ALB", IF(INTRO!$E$39="Non endémique",IF($H40<>0,$D40*($H40-$G40),0),$D40*$H40), 0) -> 4420 | N40: 13757 | P40: 18177 | Q40: =IF($L40="MBD", IF(INTRO!$E$39="Non endémique",IF($H40<>0,$D40*($H40-$G40),0),$D40*$H40),0) -> 0 | R40: 0 | T40: 0 | V40: 0 | W40: 0 | Y40: 13757 | Z40: 69 | AB40: 0 | AC40: 0
A41: =IF(AND(INTRO!$E$37="Non endémique",INTRO!$E$41="Non endémique")," ",IF(COUNTRY_INFO!A41=0," ",COUNTRY_INFO!A41)) -> Congo | B41: =IF(AND(INTRO!$E$37="Non endémique",INTRO!$E$41="Non endémique")," ",IF(COUNTRY_INFO!B41=0," ",COUNTRY_INFO!B41)) -> Plateaux | C41: =IF(AND(INTRO!$E$37="Non endémique",INTRO!$E$41="Non endémique")," ",IF(COUNTRY_INFO!C41=0," ",COUNTRY_INFO!C41)) -> Abala | D41: =IF(AND(INTRO!$E$37="Non endémique",INTRO!$E$41="Non endémique"),0,IF(AND(OR(COUNTRY_INFO!$H41=0,COUNTRY_INFO!$H41=4,COUNTRY_INFO!$H41=99),OR(COUNTRY_INFO!$J41=0,COUNTRY_INFO!$J41=4)),0,COUNTRY_INFO!$E41)) -> 4247 | E41: =IF(AND(INTRO!$E$37="Non endémique",INTRO!$E$41="Non endémique"),0,IF(AND(OR(COUNTRY_INFO!$H41=0,COUNTRY_INFO!$H41=4,COUNTRY_INFO!$H41=99),OR(COUNTRY_INFO!$J41=0,COUNTRY_INFO!$J41=4)),0,COUNTRY_INFO!$F41)) -> 13219 | F41: =SUM(D41:E41) -> 17466 | G41: =IF(AND(INTRO!$E$37="Non endémique",INTRO!$E$41="Non endémique"),0,COUNTRY_INFO!Q41) -> 0 | H41: =IF(AND(INTRO!$E$37="Non endémique",INTRO!$E$41="Non endémique"),0,COUNTRY_INFO!S41) -> 0 | I41: =IF($G41=1,IVM!$G41,0) -> 0 | J41: =IF($G41=0, " ", IF(COUNTRY_INFO!$H41=1, IF(COUNTRY_INFO!$L41=1, 0," ")," ")) ->  | L41: ALB | M41: =IF($L41="ALB", IF(INTRO!$E$39="Non endémique",IF($H41<>0,$D41*($H41-$G41),0),$D41*$H41), 0) -> 0 | N41: =IF($L41="ALB", IF($H41=0, 0, IF(AND($I41=0, OR($J41=0,$J41=" ")), $E41*$H41, IF(AND($I41=0, $J41>0), IF(($H41-$K41)<=0, 0, $E41*(MAX($H41,$K41)-MIN($H41,$K41))), IF(AND($I41>0, $J41=0), $E41*($H41-$G41), IF($J41=" ", 0, $J41*$E41/($I41+$J41)*$K41+$I41*$E41/($I41+$J41)*($H41-$G41)))))), 0) -> 0 | P41: =SUM(M41:O41) -> 0 | Q41: =IF($L41="MBD", IF(INTRO!$E$39="Non endémique",IF($H41<>0,$D41*($H41-$G41),0),$D41*$H41),0) -> 0 | R41: =IF($L41="MBD", IF($H41=0, 0, IF(AND($I41=0, OR($J41=0,$J41=" ")), $E41*$H41, IF(AND($I41=0, $J41>0), IF(($H41-$K41)<=0, 0, $E41*(MAX($H41,$K41)-MIN($H41,$K41))), IF(AND($I41>0, $J41=0), $E41*($H41-$G41), IF($J41=" ", 0, $J41*$E41/($I41+$J41)*$K41+$I41*$E41/($I41+$J41)*($H41-$G41)))))), 0) -> 0 | T41: =SUM(Q41:S41) -> 0 | V41: =IF($J41<>" ", IF(($I41+$J41*$K41)>$U41, ($I41+$J41*$K41)-$U41,0), IF($I41>$U41, $I41-$U41, 0)) -> 0 | W41: =IF($J41<>" ", ROUNDUP(($I41+$J41*$K41)/200,0), ROUNDUP($I41/200,0)) -> 0 | Y41: =IF($N41>$X41,$N41-$X41,0) -> 0 | Z41: =ROUNDUP($N41/200,0) -> 0 | AB41: =IF($R41>$AA41,$R41-$AA41,0) -> 0 | AC41: =ROUNDUP($R41/150,0) -> 0
A42: =IF(AND(INTRO!$E$37="Non endémique",INTRO!$E$41="Non endémique")," ",IF(COUNTRY_INFO!A42=0," ",COUNTRY_INFO!A42)) -> Congo | B42: =IF(AND(INTRO!$E$37="Non endémique",INTRO!$E$41="Non endémique")," ",IF(COUNTRY_INFO!B42=0," ",COUNTRY_INFO!B42)) -> Plateaux | C42: =IF(AND(INTRO!$E$37="Non endémique",INTRO!$E$41="Non endémique")," ",IF(COUNTRY_INFO!C42=0," ",COUNTRY_INFO!C42)) -> Djambala-Lékana | D42: =IF(AND(INTRO!$E$37="Non endémique",INTRO!$E$41="Non endémique"),0,IF(AND(OR(COUNTRY_INFO!$H42=0,COUNTRY_INFO!$H42=4,COUNTRY_INFO!$H42=99),OR(COUNTRY_INFO!$J42=0,COUNTRY_INFO!$J42=4)),0,COUNTRY_INFO!$E42)) -> 4604 | E42: =IF(AND(INTRO!$E$37="Non endémique",INTRO!$E$41="Non endémique"),0,IF(AND(OR(COUNTRY_INFO!$H42=0,COUNTRY_INFO!$H42=4,COUNTRY_INFO!$H42=99),OR(COUNTRY_INFO!$J42=0,COUNTRY_INFO!$J42=4)),0,COUNTRY_INFO!$F42)) -> 14329 | F42: 18933 | G42: =IF(AND(INTRO!$E$37="Non endémique",INTRO!$E$41="Non endémique"),0,COUNTRY_INFO!Q42) -> 0 | H42: =IF(AND(INTRO!$E$37="Non endémique",INTRO!$E$41="Non endémique"),0,COUNTRY_INFO!S42) -> 2 | I42: =IF($G42=1,IVM!$G42,0) -> 0 | J42: =IF($G42=0, " ", IF(COUNTRY_INFO!$H42=1, IF(COUNTRY_INFO!$L42=1, 0," ")," ")) ->  | L42: ALB | M42: =IF($L42="ALB", IF(INTRO!$E$39="Non endémique",IF($H42<>0,$D42*($H42-$G42),0),$D42*$H42), 0) -> 9208 | N42: 28658 | P42: 37866 | Q42: =IF($L42="MBD", IF(INTRO!$E$39="Non endémique",IF($H42<>0,$D42*($H42-$G42),0),$D42*$H42),0) -> 0 | R42: 0 | T42: 0 | V42: 0 | W42: 0 | Y42: 28658 | Z42: 144 | AB42: 0 | AC42: 0
A43: =IF(AND(INTRO!$E$37="Non endémique",INTRO!$E$41="Non endémique")," ",IF(COUNTRY_INFO!A43=0," ",COUNTRY_INFO!A43)) -> Congo | B43: =IF(AND(INTRO!$E$37="Non endémique",INTRO!$E$41="Non endémique")," ",IF(COUNTRY_INFO!B43=0," ",COUNTRY_INFO!B43)) -> Plateaux | C43: =IF(AND(INTRO!$E$37="Non endémique",INTRO!$E$41="Non endémique")," ",IF(COUNTRY_INFO!C43=0," ",COUNTRY_INFO!C43)) -> Gamboma | D43: =IF(AND(INTRO!$E$37="Non endémique",INTRO!$E$41="Non endémique"),0,IF(AND(OR(COUNTRY_INFO!$H43=0,COUNTRY_INFO!$H43=4,COUNTRY_INFO!$H43=99),OR(COUNTRY_INFO!$J43=0,COUNTRY_INFO!$J43=4)),0,COUNTRY_INFO!$E43)) -> 9504 | E43: =IF(AND(INTRO!$E$37="Non endémique",INTRO!$E$41="Non endémique"),0,IF(AND(OR(COUNTRY_INFO!$H43=0,COUNTRY_INFO!$H43=4,COUNTRY_INFO!$H43=99),OR(COUNTRY_INFO!$J43=0,COUNTRY_INFO!$J43=4)),0,COUNTRY_INFO!$F43)) -> 29582 | F43: 39086 | G43: =IF(AND(INTRO!$E$37="Non endémique",INTRO!$E$41="Non endémique"),0,COUNTRY_INFO!Q43) -> 0 | H43: =IF(AND(INTRO!$E$37="Non endémique",INTRO!$E$41="Non endémique"),0,COUNTRY_INFO!S43) -> 1 | I43: =IF($G43=1,IVM!$G43,0) -> 0 | J43: =IF($G43=0, " ", IF(COUNTRY_INFO!$H43=1, IF(COUNTRY_INFO!$L43=1, 0," ")," ")) ->  | L43: ALB | M43: =IF($L43="ALB", IF(INTRO!$E$39="Non endémique",IF($H43<>0,$D43*($H43-$G43),0),$D43*$H43), 0) -> 9504 | N43: 29582 | P43: 39086 | Q43: =IF($L43="MBD", IF(INTRO!$E$39="Non endémique",IF($H43<>0,$D43*($H43-$G43),0),$D43*$H43),0) -> 0 | R43: 0 | T43: 0 | V43: 0 | W43: 0 | Y43: 29582 | Z43: 148 | AB43: 0 | AC43: 0
A44: =IF(AND(INTRO!$E$37="Non endémique",INTRO!$E$41="Non endémique")," ",IF(COUNTRY_INFO!A44=0," ",COUNTRY_INFO!A44)) -> Congo | B44: =IF(AND(INTRO!$E$37="Non endémique",INTRO!$E$41="Non endémique")," ",IF(COUNTRY_INFO!B44=0," ",COUNTRY_INFO!B44)) -> Plateaux | C44: =IF(AND(INTRO!$E$37="Non endémique",INTRO!$E$41="Non endémique")," ",IF(COUNTRY_INFO!C44=0," ",COUNTRY_INFO!C44)) -> Ngo Mpouya | D44: =IF(AND(INTRO!$E$37="Non endémique",INTRO!$E$41="Non endémique"),0,IF(AND(OR(COUNTRY_INFO!$H44=0,COUNTRY_INFO!$H44=4,COUNTRY_INFO!$H44=99),OR(COUNTRY_INFO!$J44=0,COUNTRY_INFO!$J44=4)),0,COUNTRY_INFO!$E44)) -> 3501 | E44: =IF(AND(INTRO!$E$37="Non endémique",INTRO!$E$41="Non endémique"),0,IF(AND(OR(COUNTRY_INFO!$H44=0,COUNTRY_INFO!$H44=4,COUNTRY_INFO!$H44=99),OR(COUNTRY_INFO!$J44=0,COUNTRY_INFO!$J44=4)),0,COUNTRY_INFO!$F44)) -> 10897 | F44: 14398 | G44: =IF(AND(INTRO!$E$37="Non endémique",INTRO!$E$41="Non endémique"),0,COUNTRY_INFO!Q44) -> 0 | H44: =IF(AND(INTRO!$E$37="Non endémique",INTRO!$E$41="Non endémique"),0,COUNTRY_INFO!S44) -> 2 | I44: =IF($G44=1,IVM!$G44,0) -> 0 | J44: =IF($G44=0, " ", IF(COUNTRY_INFO!$H44=1, IF(COUNTRY_INFO!$L44=1, 0," ")," ")) ->  | L44: ALB | M44: =IF($L44="ALB", IF(INTRO!$E$39="Non endémique",IF($H44<>0,$D44*($H44-$G44),0),$D44*$H44), 0) -> 7002 | N44: 21794 | P44: 28796 | Q44: =IF($L44="MBD", IF(INTRO!$E$39="Non endémique",IF($H44<>0,$D44*($H44-$G44),0),$D44*$H44),0) -> 0 | R44: 0 | T44: 0 | V44: 0 | W44: 0 | Y44: 21794 | Z44: 109 | AB44: 0 | AC44: 0
A45: =IF(AND(INTRO!$E$37="Non endémique",INTRO!$E$41="Non endémique")," ",IF(COUNTRY_INFO!A45=0," ",COUNTRY_INFO!A45)) -> Congo | B45: =IF(AND(INTRO!$E$37="Non endémique",INTRO!$E$41="Non endémique")," ",IF(COUNTRY_INFO!B45=0," ",COUNTRY_INFO!B45)) -> Pointe-Noire | C45: =IF(AND(INTRO!$E$37="Non endémique",INTRO!$E$41="Non endémique")," ",IF(COUNTRY_INFO!C45=0," ",COUNTRY_INFO!C45)) -> Loandjili | D45: =IF(AND(INTRO!$E$37="Non endémique",INTRO!$E$41="Non endémique"),0,IF(AND(OR(COUNTRY_INFO!$H45=0,COUNTRY_INFO!$H45=4,COUNTRY_INFO!$H45=99),OR(COUNTRY_INFO!$J45=0,COUNTRY_INFO!$J45=4)),0,COUNTRY_INFO!$E45)) -> 26379 | E45: =IF(AND(INTRO!$E$37="Non endémique",INTRO!$E$41="Non endémique"),0,IF(AND(OR(COUNTRY_INFO!$H45=0,COUNTRY_INFO!$H45=4,COUNTRY_INFO!$H45=99),OR(COUNTRY_INFO!$J45=0,COUNTRY_INFO!$J45=4)),0,COUNTRY_INFO!$F45)) -> 82110 | F45: 108489 | G45: =IF(AND(INTRO!$E$37="Non endémique",INTRO!$E$41="Non endémique"),0,COUNTRY_INFO!Q45) -> 0 | H45: =IF(AND(INTRO!$E$37="Non endémique",INTRO!$E$41="Non endémique"),0,COUNTRY_INFO!S45) -> 0 | I45: =IF($G45=1,IVM!$G45,0) -> 0 | J45: =IF($G45=0, " ", IF(COUNTRY_INFO!$H45=1, IF(COUNTRY_INFO!$L45=1, 0," ")," ")) ->  | L45: ALB | M45: =IF($L45="ALB", IF(INTRO!$E$39="Non endémique",IF($H45<>0,$D45*($H45-$G45),0),$D45*$H45), 0) -> 0 | N45: 0 | P45: 0 | Q45: =IF($L45="MBD", IF(INTRO!$E$39="Non endémique",IF($H45<>0,$D45*($H45-$G45),0),$D45*$H45),0) -> 0 | R45: 0 | T45: 0 | V45: 0 | W45: 0 | Y45: 0 | Z45: 0 | AB45: 0 | AC45: 0
A46: =IF(AND(INTRO!$E$37="Non endémique",INTRO!$E$41="Non endémique")," ",IF(COUNTRY_INFO!A46=0," ",COUNTRY_INFO!A46)) -> Congo | B46: =IF(AND(INTRO!$E$37="Non endémique",INTRO!$E$41="Non endémique")," ",IF(COUNTRY_INFO!B46=0," ",COUNTRY_INFO!B46)) -> Pointe-Noire | C46: =IF(AND(INTRO!$E$37="Non endémique",INTRO!$E$41="Non endémique")," ",IF(COUNTRY_INFO!C46=0," ",COUNTRY_INFO!C46)) -> Lumumba | D46: =IF(AND(INTRO!$E$37="Non endémique",INTRO!$E$41="Non endémique"),0,IF(AND(OR(COUNTRY_INFO!$H46=0,COUNTRY_INFO!$H46=4,COUNTRY_INFO!$H46=99),OR(COUNTRY_INFO!$J46=0,COUNTRY_INFO!$J46=4)),0,COUNTRY_INFO!$E46)) -> 16603 | E46: =IF(AND(INTRO!$E$37="Non endémique",INTRO!$E$41="Non endémique"),0,IF(AND(OR(COUNTRY_INFO!$H46=0,COUNTRY_INFO!$H46=4,COUNTRY_INFO!$H46=99),OR(COUNTRY_INFO!$J46=0,COUNTRY_INFO!$J46=4)),0,COUNTRY_INFO!$F46)) -> 51680 | F46: 68283 | G46: =IF(AND(INTRO!$E$37="Non endémique",INTRO!$E$41="Non endémique"),0,COUNTRY_INFO!Q46) -> 0 | H46: =IF(AND(INTRO!$E$37="Non endémique",INTRO!$E$41="Non endémique"),0,COUNTRY_INFO!S46) -> 0 | I46: =IF($G46=1,IVM!$G46,0) -> 0 | J46: =IF($G46=0, " ", IF(COUNTRY_INFO!$H46=1, IF(COUNTRY_INFO!$L46=1, 0," ")," ")) ->  | L46: ALB | M46: =IF($L46="ALB", IF(INTRO!$E$39="Non endémique",IF($H46<>0,$D46*($H46-$G46),0),$D46*$H46), 0) -> 0 | N46: 0 | P46: 0 | Q46: =IF($L46="MBD", IF(INTRO!$E$39="Non endémique",IF($H46<>0,$D46*($H46-$G46),0),$D46*$H46),0) -> 0 | R46: 0 | T46: 0 | V46: 0 | W46: 0 | Y46: 0 | Z46: 0 | AB46: 0 | AC46: 0
A47: =IF(AND(INTRO!$E$37="Non endémique",INTRO!$E$41="Non endémique")," ",IF(COUNTRY_INFO!A47=0," ",COUNTRY_INFO!A47)) -> Congo | B47: =IF(AND(INTRO!$E$37="Non endémique",INTRO!$E$41="Non endémique")," ",IF(COUNTRY_INFO!B47=0," ",COUNTRY_INFO!B47)) -> Pointe-Noire | C47: =IF(AND(INTRO!$E$37="Non endémique",INTRO!$E$41="Non endémique")," ",IF(COUNTRY_INFO!C47=0," ",COUNTRY_INFO!C47)) -> Mongo-Poukou | D47: =IF(AND(INTRO!$E$37="Non endémique",INTRO!$E$41="Non endémique"),0,IF(AND(OR(COUNTRY_INFO!$H47=0,COUNTRY_INFO!$H47=4,COUNTRY_INFO!$H47=99),OR(COUNTRY_INFO!$J47=0,COUNTRY_INFO!$J47=4)),0,COUNTRY_INFO!$E47)) -> 17422 | E47: =IF(AND(INTRO!$E$37="Non endémique",INTRO!$E$41="Non endémique"),0,IF(AND(OR(COUNTRY_INFO!$H47=0,COUNTRY_INFO!$H47=4,COUNTRY_INFO!$H47=99),OR(COUNTRY_INFO!$J47=0,COUNTRY_INFO!$J47=4)),0,COUNTRY_INFO!$F47)) -> 54228 | F47: 71650 | G47: =IF(AND(INTRO!$E$37="Non endémique",INTRO!$E$41="Non endémique"),0,COUNTRY_INFO!Q47) -> 0 | H47: =IF(AND(INTRO!$E$37="Non endémique",INTRO!$E$41="Non endémique"),0,COUNTRY_INFO!S47) -> 0 | I47: =IF($G47=1,IVM!$G47,0) -> 0 | J47: =IF($G47=0, " ", IF(COUNTRY_INFO!$H47=1, IF(COUNTRY_INFO!$L47=1, 0," ")," ")) ->  | L47: ALB | M47: =IF($L47="ALB", IF(INTRO!$E$39="Non endémique",IF($H47<>0,$D47*($H47-$G47),0),$D47*$H47), 0) -> 0 | N47: 0 | P47: 0 | Q47: =IF($L47="MBD", IF(INTRO!$E$39="Non endémique",IF($H47<>0,$D47*($H47-$G47),0),$D47*$H47),0) -> 0 | R47: 0 | T47: 0 | V47: 0 | W47: 0 | Y47: 0 | Z47: 0 | AB47: 0 | AC47: 0
A48: =IF(AND(INTRO!$E$37="Non endémique",INTRO!$E$41="Non endémique")," ",IF(COUNTRY_INFO!A48=0," ",COUNTRY_INFO!A48)) -> Congo | B48: =IF(AND(INTRO!$E$37="Non endémique",INTRO!$E$41="Non endémique")," ",IF(COUNTRY_INFO!B48=0," ",COUNTRY_INFO!B48)) -> Pointe-Noire | C48: =IF(AND(INTRO!$E$37="Non endémique",INTRO!$E$41="Non endémique")," ",IF(COUNTRY_INFO!C48=0," ",COUNTRY_INFO!C48)) -> Mvoumvou | D48: =IF(AND(INTRO!$E$37="Non endémique",INTRO!$E$41="Non endémique"),0,IF(AND(OR(COUNTRY_INFO!$H48=0,COUNTRY_INFO!$H48=4,COUNTRY_INFO!$H48=99),OR(COUNTRY_INFO!$J48=0,COUNTRY_INFO!$J48=4)),0,COUNTRY_INFO!$E48)) -> 11217 | E48: =IF(AND(INTRO!$E$37="Non endémique",INTRO!$E$41="Non endémique"),0,IF(AND(OR(COUNTRY_INFO!$H48=0,COUNTRY_INFO!$H48=4,COUNTRY_INFO!$H48=99),OR(COUNTRY_INFO!$J48=0,COUNTRY_INFO!$J48=4)),0,COUNTRY_INFO!$F48)) -> 34913 | F48: 46130 | G48: =IF(AND(INTRO!$E$37="Non endémique",INTRO!$E$41="Non endémique"),0,COUNTRY_INFO!Q48) -> 0 | H48: =IF(AND(INTRO!$E$37="Non endémique",INTRO!$E$41="Non endémique"),0,COUNTRY_INFO!S48) -> 0 | I48: =IF($G48=1,IVM!$G48,0) -> 0 | J48: =IF($G48=0, " ", IF(COUNTRY_INFO!$H48=1, IF(COUNTRY_INFO!$L48=1, 0," ")," ")) ->  | L48: ALB | M48: =IF($L48="ALB", IF(INTRO!$E$39="Non endémique",IF($H48<>0,$D48*($H48-$G48),0),$D48*$H48), 0) -> 0 | N48: 0 | P48: 0 | Q48: =IF($L48="MBD", IF(INTRO!$E$39="Non endémique",IF($H48<>0,$D48*($H48-$G48),0),$D48*$H48),0) -> 0 | R48: 0 | T48: 0 | V48: 0 | W48: 0 | Y48: 0 | Z48: 0 | AB48: 0 | AC48: 0
A49: =IF(AND(INTRO!$E$37="Non endémique",INTRO!$E$41="Non endémique")," ",IF(COUNTRY_INFO!A49=0," ",COUNTRY_INFO!A49)) -> Congo | B49: =IF(AND(INTRO!$E$37="Non endémique",INTRO!$E$41="Non endémique")," ",IF(COUNTRY_INFO!B49=0," ",COUNTRY_INFO!B49)) -> Pointe-Noire | C49: =IF(AND(INTRO!$E$37="Non endémique",INTRO!$E$41="Non endémique")," ",IF(COUNTRY_INFO!C49=0," ",COUNTRY_INFO!C49)) -> Ngoyo | D49: =IF(AND(INTRO!$E$37="Non endémique",INTRO!$E$41="Non endémique"),0,IF(AND(OR(COUNTRY_INFO!$H49=0,COUNTRY_INFO!$H49=4,COUNTRY_INFO!$H49=99),OR(COUNTRY_INFO!$J49=0,COUNTRY_INFO!$J49=4)),0,COUNTRY_INFO!$E49)) -> 19118 | E49: =IF(AND(INTRO!$E$37="Non endémique",INTRO!$E$41="Non endémique"),0,IF(AND(OR(COUNTRY_INFO!$H49=0,COUNTRY_INFO!$H49=4,COUNTRY_INFO!$H49=99),OR(COUNTRY_INFO!$J49=0,COUNTRY_INFO!$J49=4)),0,COUNTRY_INFO!$F49)) -> 59506 | F49: 78624 | G49: =IF(AND(INTRO!$E$37="Non endémique",INTRO!$E$41="Non endémique"),0,COUNTRY_INFO!Q49) -> 0 | H49: =IF(AND(INTRO!$E$37="Non endémique",INTRO!$E$41="Non endémique"),0,COUNTRY_INFO!S49) -> 1 | I49: =IF($G49=1,IVM!$G49,0) -> 0 | J49: =IF($G49=0, " ", IF(COUNTRY_INFO!$H49=1, IF(COUNTRY_INFO!$L49=1, 0," ")," ")) ->  | L49: ALB | M49: =IF($L49="ALB", IF(INTRO!$E$39="Non endémique",IF($H49<>0,$D49*($H49-$G49),0),$D49*$H49), 0) -> 19118 | N49: 59506 | P49: 78624 | Q49: =IF($L49="MBD", IF(INTRO!$E$39="Non endémique",IF($H49<>0,$D49*($H49-$G49),0),$D49*$H49),0) -> 0 | R49: 0 | T49: 0 | V49: 0 | W49: 0 | Y49: 59506 | Z49: 298 | AB49: 0 | AC49: 0
A50: =IF(AND(INTRO!$E$37="Non endémique",INTRO!$E$41="Non endémique")," ",IF(COUNTRY_INFO!A50=0," ",COUNTRY_INFO!A50)) -> Congo | B50: =IF(AND(INTRO!$E$37="Non endémique",INTRO!$E$41="Non endémique")," ",IF(COUNTRY_INFO!B50=0," ",COUNTRY_INFO!B50)) -> Pointe-Noire | C50: =IF(AND(INTRO!$E$37="Non endémique",INTRO!$E$41="Non endémique")," ",IF(COUNTRY_INFO!C50=0," ",COUNTRY_INFO!C50)) -> Tchiamba Nzassi | D50: =IF(AND(INTRO!$E$37="Non endémique",INTRO!$E$41="Non endémique"),0,IF(AND(OR(COUNTRY_INFO!$H50=0,COUNTRY_INFO!$H50=4,COUNTRY_INFO!$H50=99),OR(COUNTRY_INFO!$J50=0,COUNTRY_INFO!$J50=4)),0,COUNTRY_INFO!$E50)) -> 2538 | E50: =IF(AND(INTRO!$E$37="Non endémique",INTRO!$E$41="Non endémique"),0,IF(AND(OR(COUNTRY_INFO!$H50=0,COUNTRY_INFO!$H50=4,COUNTRY_INFO!$H50=99),OR(COUNTRY_INFO!$J50=0,COUNTRY_INFO!$J50=4)),0,COUNTRY_INFO!$F50)) -> 7900 | F50: 10438 | G50: =IF(AND(INTRO!$E$37="Non endémique",INTRO!$E$41="Non endémique"),0,COUNTRY_INFO!Q50) -> 0 | H50: =IF(AND(INTRO!$E$37="Non endémique",INTRO!$E$41="Non endémique"),0,COUNTRY_INFO!S50) -> 1 | I50: =IF($G50=1,IVM!$G50,0) -> 0 | J50: =IF($G50=0, " ", IF(COUNTRY_INFO!$H50=1, IF(COUNTRY_INFO!$L50=1, 0," ")," ")) ->  | L50: ALB | M50: =IF($L50="ALB", IF(INTRO!$E$39="Non endémique",IF($H50<>0,$D50*($H50-$G50),0),$D50*$H50), 0) -> 2538 | N50: 7900 | P50: 10438 | Q50: =IF($L50="MBD", IF(INTRO!$E$39="Non endémique",IF($H50<>0,$D50*($H50-$G50),0),$D50*$H50),0) -> 0 | R50: 0 | T50: 0 | V50: 0 | W50: 0 | Y50: 7900 | Z50: 40 | AB50: 0 | AC50: 0
A51: =IF(AND(INTRO!$E$37="Non endémique",INTRO!$E$41="Non endémique")," ",IF(COUNTRY_INFO!A51=0," ",COUNTRY_INFO!A51)) -> Congo | B51: =IF(AND(INTRO!$E$37="Non endémique",INTRO!$E$41="Non endémique")," ",IF(COUNTRY_INFO!B51=0," ",COUNTRY_INFO!B51)) -> Pointe-Noire | C51: =IF(AND(INTRO!$E$37="Non endémique",INTRO!$E$41="Non endémique")," ",IF(COUNTRY_INFO!C51=0," ",COUNTRY_INFO!C51)) -> Tie-Tie | D51: =IF(AND(INTRO!$E$37="Non endémique",INTRO!$E$41="Non endémique"),0,IF(AND(OR(COUNTRY_INFO!$H51=0,COUNTRY_INFO!$H51=4,COUNTRY_INFO!$H51=99),OR(COUNTRY_INFO!$J51=0,COUNTRY_INFO!$J51=4)),0,COUNTRY_INFO!$E51)) -> 23418 | E51: =IF(AND(INTRO!$E$37="Non endémique",INTRO!$E$41="Non endémique"),0,IF(AND(OR(COUNTRY_INFO!$H51=0,COUNTRY_INFO!$H51=4,COUNTRY_INFO!$H51=99),OR(COUNTRY_INFO!$J51=0,COUNTRY_INFO!$J51=4)),0,COUNTRY_INFO!$F51)) -> 72893 | F51: 96311 | G51: =IF(AND(INTRO!$E$37="Non endémique",INTRO!$E$41="Non endémique"),0,COUNTRY_INFO!Q51) -> 0 | H51: =IF(AND(INTRO!$E$37="Non endémique",INTRO!$E$41="Non endémique"),0,COUNTRY_INFO!S51) -> 0 | I51: =IF($G51=1,IVM!$G51,0) -> 0 | J51: =IF($G51=0, " ", IF(COUNTRY_INFO!$H51=1, IF(COUNTRY_INFO!$L51=1, 0," ")," ")) ->  | L51: ALB | M51: =IF($L51="ALB", IF(INTRO!$E$39="Non endémique",IF($H51<>0,$D51*($H51-$G51),0),$D51*$H51), 0) -> 0 | N51: 0 | P51: 0 | Q51: =IF($L51="MBD", IF(INTRO!$E$39="Non endémique",IF($H51<>0,$D51*($H51-$G51),0),$D51*$H51),0) -> 0 | R51: 0 | T51: 0 | V51: 0 | W51: 0 | Y51: 0 | Z51: 0 | AB51: 0 | AC51: 0
A52: =IF(AND(INTRO!$E$37="Non endémique",INTRO!$E$41="Non endémique")," ",IF(COUNTRY_INFO!A52=0," ",COUNTRY_INFO!A52)) -> Congo | B52: =IF(AND(INTRO!$E$37="Non endémique",INTRO!$E$41="Non endémique")," ",IF(COUNTRY_INFO!B52=0," ",COUNTRY_INFO!B52)) -> Pool | C52: =IF(AND(INTRO!$E$37="Non endémique",INTRO!$E$41="Non endémique")," ",IF(COUNTRY_INFO!C52=0," ",COUNTRY_INFO!C52)) -> Boko | D52: =IF(AND(INTRO!$E$37="Non endémique",INTRO!$E$41="Non endémique"),0,IF(AND(OR(COUNTRY_INFO!$H52=0,COUNTRY_INFO!$H52=4,COUNTRY_INFO!$H52=99),OR(COUNTRY_INFO!$J52=0,COUNTRY_INFO!$J52=4)),0,COUNTRY_INFO!$E52)) -> 2734 | E52: =IF(AND(INTRO!$E$37="Non endémique",INTRO!$E$41="Non endémique"),0,IF(AND(OR(COUNTRY_INFO!$H52=0,COUNTRY_INFO!$H52=4,COUNTRY_INFO!$H52=99),OR(COUNTRY_INFO!$J52=0,COUNTRY_INFO!$J52=4)),0,COUNTRY_INFO!$F52)) -> 8511 | F52: 11245 | G52: =IF(AND(INTRO!$E$37="Non endémique",INTRO!$E$41="Non endémique"),0,COUNTRY_INFO!Q52) -> 0 | H52: =IF(AND(INTRO!$E$37="Non endémique",INTRO!$E$41="Non endémique"),0,COUNTRY_INFO!S52) -> 1 | I52: =IF($G52=1,IVM!$G52,0) -> 0 | J52: =IF($G52=0, " ", IF(COUNTRY_INFO!$H52=1, IF(COUNTRY_INFO!$L52=1, 0," ")," ")) ->  | L52: ALB | M52: =IF($L52="ALB", IF(INTRO!$E$39="Non endémique",IF($H52<>0,$D52*($H52-$G52),0),$D52*$H52), 0) -> 2734 | N52: 8511 | P52: 11245 | Q52: =IF($L52="MBD", IF(INTRO!$E$39="Non endémique",IF($H52<>0,$D52*($H52-$G52),0),$D52*$H52),0) -> 0 | R52: 0 | T52: 0 | V52: 0 | W52: 0 | Y52: 8511 | Z52: 43 | AB52: 0 | AC52: 0
A53: =IF(AND(INTRO!$E$37="Non endémique",INTRO!$E$41="Non endémique")," ",IF(COUNTRY_INFO!A53=0," ",COUNTRY_INFO!A53)) -> Congo | B53: =IF(AND(INTRO!$E$37="Non endémique",INTRO!$E$41="Non endémique")," ",IF(COUNTRY_INFO!B53=0," ",COUNTRY_INFO!B53)) -> Pool | C53: =IF(AND(INTRO!$E$37="Non endémique",INTRO!$E$41="Non endémique")," ",IF(COUNTRY_INFO!C53=0," ",COUNTRY_INFO!C53)) -> Goma tsétsé | D53: =IF(AND(INTRO!$E$37="Non endémique",INTRO!$E$41="Non endémique"),0,IF(AND(OR(COUNTRY_INFO!$H53=0,COUNTRY_INFO!$H53=4,COUNTRY_INFO!$H53=99),OR(COUNTRY_INFO!$J53=0,COUNTRY_INFO!$J53=4)),0,COUNTRY_INFO!$E53)) -> 3449 | E53: =IF(AND(INTRO!$E$37="Non endémique",INTRO!$E$41="Non endémique"),0,IF(AND(OR(COUNTRY_INFO!$H53=0,COUNTRY_INFO!$H53=4,COUNTRY_INFO!$H53=99),OR(COUNTRY_INFO!$J53=0,COUNTRY_INFO!$J53=4)),0,COUNTRY_INFO!$F53)) -> 10736 | F53: 14185 | G53: =IF(AND(INTRO!$E$37="Non endémique",INTRO!$E$41="Non endémique"),0,COUNTRY_INFO!Q53) -> 0 | H53: =IF(AND(INTRO!$E$37="Non endémique",INTRO!$E$41="Non endémique"),0,COUNTRY_INFO!S53) -> 0 | I53: =IF($G53=1,IVM!$G53,0) -> 0 | J53: =IF($G53=0, " ", IF(COUNTRY_INFO!$H53=1, IF(COUNTRY_INFO!$L53=1, 0," ")," ")) ->  | L53: ALB | M53: =IF($L53="ALB", IF(INTRO!$E$39="Non endémique",IF($H53<>0,$D53*($H53-$G53),0),$D53*$H53), 0) -> 0 | N53: 0 | P53: 0 | Q53: =IF($L53="MBD", IF(INTRO!$E$39="Non endémique",IF($H53<>0,$D53*($H53-$G53),0),$D53*$H53),0) -> 0 | R53: 0 | T53: 0 | V53: 0 | W53: 0 | Y53: 0 | Z53: 0 | AB53: 0 | AC53: 0
A54: =IF(AND(INTRO!$E$37="Non endémique",INTRO!$E$41="Non endémique")," ",IF(COUNTRY_INFO!A54=0," ",COUNTRY_INFO!A54)) -> Congo | B54: =IF(AND(INTRO!$E$37="Non endémique",INTRO!$E$41="Non endémique")," ",IF(COUNTRY_INFO!B54=0," ",COUNTRY_INFO!B54)) -> Pool | C54: =IF(AND(INTRO!$E$37="Non endémique",INTRO!$E$41="Non endémique")," ",IF(COUNTRY_INFO!C54=0," ",COUNTRY_INFO!C54)) -> Ignié | D54: =IF(AND(INTRO!$E$37="Non endémique",INTRO!$E$41="Non endémique"),0,IF(AND(OR(COUNTRY_INFO!$H54=0,COUNTRY_INFO!$H54=4,COUNTRY_INFO!$H54=99),OR(COUNTRY_INFO!$J54=0,COUNTRY_INFO!$J54=4)),0,COUNTRY_INFO!$E54)) -> 7378 | E54: =IF(AND(INTRO!$E$37="Non endémique",INTRO!$E$41="Non endémique"),0,IF(AND(OR(COUNTRY_INFO!$H54=0,COUNTRY_INFO!$H54=4,COUNTRY_INFO!$H54=99),OR(COUNTRY_INFO!$J54=0,COUNTRY_INFO!$J54=4)),0,COUNTRY_INFO!$F54)) -> 22965 | F54: 30343 | G54: =IF(AND(INTRO!$E$37="Non endémique",INTRO!$E$41="Non endémique"),0,COUNTRY_INFO!Q54) -> 1 | H54: =IF(AND(INTRO!$E$37="Non endémique",INTRO!$E$41="Non endémique"),0,COUNTRY_INFO!S54) -> 1 | I54: =IF($G54=1,IVM!$G54,0) -> 15478 | J54: 57701 | K54: 2 | L54: ALB | M54: =IF($L54="ALB", IF(INTRO!$E$39="Non endémique",IF($H54<>0,$D54*($H54-$G54),0),$D54*$H54), 0) -> 7378 | N54: 36215.40237 | P54: 43593.40237 | Q54: =IF($L54="MBD", IF(INTRO!$E$39="Non endémique",IF($H54<>0,$D54*($H54-$G54),0),$D54*$H54),0) -> 0 | R54: 0 | T54: 0 | V54: 130880 | W54: 655 | Y54: 36215.40237 | Z54: 182 | AB54: 0 | AC54: 0
A55: =IF(AND(INTRO!$E$37="Non endémique",INTRO!$E$41="Non endémique")," ",IF(COUNTRY_INFO!A55=0," ",COUNTRY_INFO!A55)) -> Congo | B55: =IF(AND(INTRO!$E$37="Non endémique",INTRO!$E$41="Non endémique")," ",IF(COUNTRY_INFO!B55=0," ",COUNTRY_INFO!B55)) -> Pool | C55: =IF(AND(INTRO!$E$37="Non endémique",INTRO!$E$41="Non endémique")," ",IF(COUNTRY_INFO!C55=0," ",COUNTRY_INFO!C55)) -> Kindamba | D55: =IF(AND(INTRO!$E$37="Non endémique",INTRO!$E$41="Non endémique"),0,IF(AND(OR(COUNTRY_INFO!$H55=0,COUNTRY_INFO!$H55=4,COUNTRY_INFO!$H55=99),OR(COUNTRY_INFO!$J55=0,COUNTRY_INFO!$J55=4)),0,COUNTRY_INFO!$E55)) -> 2999 | E55: =IF(AND(INTRO!$E$37="Non endémique",INTRO!$E$41="Non endémique"),0,IF(AND(OR(COUNTRY_INFO!$H55=0,COUNTRY_INFO!$H55=4,COUNTRY_INFO!$H55=99),OR(COUNTRY_INFO!$J55=0,COUNTRY_INFO!$J55=4)),0,COUNTRY_INFO!$F55)) -> 9335 | F55: 12334 | G55: =IF(AND(INTRO!$E$37="Non endémique",INTRO!$E$41="Non endémique"),0,COUNTRY_INFO!Q55) -> 0 | H55: =IF(AND(INTRO!$E$37="Non endémique",INTRO!$E$41="Non endémique"),0,COUNTRY_INFO!S55) -> 1 | I55: =IF($G55=1,IVM!$G55,0) -> 0 | J55: =IF($G55=0, " ", IF(COUNTRY_INFO!$H55=1, IF(COUNTRY_INFO!$L55=1, 0," ")," ")) ->  | L55: ALB | M55: =IF($L55="ALB", IF(INTRO!$E$39="Non endémique",IF($H55<>0,$D55*($H55-$G55),0),$D55*$H55), 0) -> 2999 | N55: 9335 | P55: 12334 | Q55: =IF($L55="MBD", IF(INTRO!$E$39="Non endémique",IF($H55<>0,$D55*($H55-$G55),0),$D55*$H55),0) -> 0 | R55: 0 | T55: 0 | V55: 0 | W55: 0 | Y55: 9335 | Z55: 47 | AB55: 0 | AC55: 0
A56: =IF(AND(INTRO!$E$37="Non endémique",INTRO!$E$41="Non endémique")," ",IF(COUNTRY_INFO!A56=0," ",COUNTRY_INFO!A56)) -> Congo | B56: =IF(AND(INTRO!$E$37="Non endémique",INTRO!$E$41="Non endémique")," ",IF(COUNTRY_INFO!B56=0," ",COUNTRY_INFO!B56)) -> Pool | C56: =IF(AND(INTRO!$E$37="Non endémique",INTRO!$E$41="Non endémique")," ",IF(COUNTRY_INFO!C56=0," ",COUNTRY_INFO!C56)) -> Kinkala | D56: =IF(AND(INTRO!$E$37="Non endémique",INTRO!$E$41="Non endémique"),0,IF(AND(OR(COUNTRY_INFO!$H56=0,COUNTRY_INFO!$H56=4,COUNTRY_INFO!$H56=99),OR(COUNTRY_INFO!$J56=0,COUNTRY_INFO!$J56=4)),0,COUNTRY_INFO!$E56)) -> 4159 | E56: =IF(AND(INTRO!$E$37="Non endémique",INTRO!$E$41="Non endémique"),0,IF(AND(OR(COUNTRY_INFO!$H56=0,COUNTRY_INFO!$H56=4,COUNTRY_INFO!$H56=99),OR(COUNTRY_INFO!$J56=0,COUNTRY_INFO!$J56=4)),0,COUNTRY_INFO!$F56)) -> 12946 | F56: 17105 | G56: =IF(AND(INTRO!$E$37="Non endémique",INTRO!$E$41="Non endémique"),0,COUNTRY_INFO!Q56) -> 0 | H56: =IF(AND(INTRO!$E$37="Non endémique",INTRO!$E$41="Non endémique"),0,COUNTRY_INFO!S56) -> 1 | I56: =IF($G56=1,IVM!$G56,0) -> 0 | J56: =IF($G56=0, " ", IF(COUNTRY_INFO!$H56=1, IF(COUNTRY_INFO!$L56=1, 0," ")," ")) ->  | L56: ALB | M56: =IF($L56="ALB", IF(INTRO!$E$39="Non endémique",IF($H56<>0,$D56*($H56-$G56),0),$D56*$H56), 0) -> 4159 | N56: 12946 | P56: 17105 | Q56: =IF($L56="MBD", IF(INTRO!$E$39="Non endémique",IF($H56<>0,$D56*($H56-$G56),0),$D56*$H56),0) -> 0 | R56: 0 | T56: 0 | V56: 0 | W56: 0 | Y56: 12946 | Z56: 65 | AB56: 0 | AC56: 0
A57: =IF(AND(INTRO!$E$37="Non endémique",INTRO!$E$41="Non endémique")," ",IF(COUNTRY_INFO!A57=0," ",COUNTRY_INFO!A57)) -> Congo | B57: =IF(AND(INTRO!$E$37="Non endémique",INTRO!$E$41="Non endémique")," ",IF(COUNTRY_INFO!B57=0," ",COUNTRY_INFO!B57)) -> Pool | C57: =IF(AND(INTRO!$E$37="Non endémique",INTRO!$E$41="Non endémique")," ",IF(COUNTRY_INFO!C57=0," ",COUNTRY_INFO!C57)) -> Kintélé | D57: =IF(AND(INTRO!$E$37="Non endémique",INTRO!$E$41="Non endémique"),0,IF(AND(OR(COUNTRY_INFO!$H57=0,COUNTRY_INFO!$H57=4,COUNTRY_INFO!$H57=99),OR(COUNTRY_INFO!$J57=0,COUNTRY_INFO!$J57=4)),0,COUNTRY_INFO!$E57)) -> 2579 | E57: =IF(AND(INTRO!$E$37="Non endémique",INTRO!$E$41="Non endémique"),0,IF(AND(OR(COUNTRY_INFO!$H57=0,COUNTRY_INFO!$H57=4,COUNTRY_INFO!$H57=99),OR(COUNTRY_INFO!$J57=0,COUNTRY_INFO!$J57=4)),0,COUNTRY_INFO!$F57)) -> 8027 | F57: 10606 | G57: =IF(AND(INTRO!$E$37="Non endémique",INTRO!$E$41="Non endémique"),0,COUNTRY_INFO!Q57) -> 0 | H57: =IF(AND(INTRO!$E$37="Non endémique",INTRO!$E$41="Non endémique"),0,COUNTRY_INFO!S57) -> 0 | I57: =IF($G57=1,IVM!$G57,0) -> 0 | J57: =IF($G57=0, " ", IF(COUNTRY_INFO!$H57=1, IF(COUNTRY_INFO!$L57=1, 0," ")," ")) ->  | L57: ALB | M57: =IF($L57="ALB", IF(INTRO!$E$39="Non endémique",IF($H57<>0,$D57*($H57-$G57),0),$D57*$H57), 0) -> 0 | N57: 0 | P57: 0 | Q57: =IF($L57="MBD", IF(INTRO!$E$39="Non endémique",IF($H57<>0,$D57*($H57-$G57),0),$D57*$H57),0) -> 0 | R57: 0 | T57: 0 | V57: 0 | W57: 0 | Y57: 0 | Z57: 0 | AB57: 0 | AC57: 0
A58: =IF(AND(INTRO!$E$37="Non endémique",INTRO!$E$41="Non endémique")," ",IF(COUNTRY_INFO!A58=0," ",COUNTRY_INFO!A58)) -> Congo | B58: =IF(AND(INTRO!$E$37="Non endémique",INTRO!$E$41="Non endémique")," ",IF(COUNTRY_INFO!B58=0," ",COUNTRY_INFO!B58)) -> Pool | C58: =IF(AND(INTRO!$E$37="Non endémique",INTRO!$E$41="Non endémique")," ",IF(COUNTRY_INFO!C58=0," ",COUNTRY_INFO!C58)) -> Mindouli | D58: =IF(AND(INTRO!$E$37="Non endémique",INTRO!$E$41="Non endémique"),0,IF(AND(OR(COUNTRY_INFO!$H58=0,COUNTRY_INFO!$H58=4,COUNTRY_INFO!$H58=99),OR(COUNTRY_INFO!$J58=0,COUNTRY_INFO!$J58=4)),0,COUNTRY_INFO!$E58)) -> 4568 | E58: =IF(AND(INTRO!$E$37="Non endémique",INTRO!$E$41="Non endémique"),0,IF(AND(OR(COUNTRY_INFO!$H58=0,COUNTRY_INFO!$H58=4,COUNTRY_INFO!$H58=99),OR(COUNTRY_INFO!$J58=0,COUNTRY_INFO!$J58=4)),0,COUNTRY_INFO!$F58)) -> 14218 | F58: 18786 | G58: =IF(AND(INTRO!$E$37="Non endémique",INTRO!$E$41="Non endémique"),0,COUNTRY_INFO!Q58) -> 0 | H58: =IF(AND(INTRO!$E$37="Non endémique",INTRO!$E$41="Non endémique"),0,COUNTRY_INFO!S58) -> 1 | I58: =IF($G58=1,IVM!$G58,0) -> 0 | J58: =IF($G58=0, " ", IF(COUNTRY_INFO!$H58=1, IF(COUNTRY_INFO!$L58=1, 0," ")," ")) ->  | L58: ALB | M58: =IF($L58="ALB", IF(INTRO!$E$39="Non endémique",IF($H58<>0,$D58*($H58-$G58),0),$D58*$H58), 0) -> 4568 | N58: 14218 | P58: 18786 | Q58: =IF($L58="MBD", IF(INTRO!$E$39="Non endémique",IF($H58<>0,$D58*($H58-$G58),0),$D58*$H58),0) -> 0 | R58: 0 | T58: 0 | V58: 0 | W58: 0 | Y58: 14218 | Z58: 72 | AB58: 0 | AC58: 0
A59: =IF(AND(INTRO!$E$37="Non endémique",INTRO!$E$41="Non endémique")," ",IF(COUNTRY_INFO!A59=0," ",COUNTRY_INFO!A59)) -> Congo | B59: =IF(AND(INTRO!$E$37="Non endémique",INTRO!$E$41="Non endémique")," ",IF(COUNTRY_INFO!B59=0," ",COUNTRY_INFO!B59)) -> Sangha | C59: =IF(AND(INTRO!$E$37="Non endémique",INTRO!$E$41="Non endémique")," ",IF(COUNTRY_INFO!C59=0," ",COUNTRY_INFO!C59)) -> Ouesso | D59: =IF(AND(INTRO!$E$37="Non endémique",INTRO!$E$41="Non endémique"),0,IF(AND(OR(COUNTRY_INFO!$H59=0,COUNTRY_INFO!$H59=4,COUNTRY_INFO!$H59=99),OR(COUNTRY_INFO!$J59=0,COUNTRY_INFO!$J59=4)),0,COUNTRY_INFO!$E59)) -> 7361 | E59: =IF(AND(INTRO!$E$37="Non endémique",INTRO!$E$41="Non endémique"),0,IF(AND(OR(COUNTRY_INFO!$H59=0,COUNTRY_INFO!$H59=4,COUNTRY_INFO!$H59=99),OR(COUNTRY_INFO!$J59=0,COUNTRY_INFO!$J59=4)),0,COUNTRY_INFO!$F59)) -> 22914 | F59: 30275 | G59: =IF(AND(INTRO!$E$37="Non endémique",INTRO!$E$41="Non endémique"),0,COUNTRY_INFO!Q59) -> 1 | H59: =IF(AND(INTRO!$E$37="Non endémique",INTRO!$E$41="Non endémique"),0,COUNTRY_INFO!S59) -> 1 | I59: =IF($G59=1,IVM!$G59,0) -> 3448 | J59: 69568 | K59: 2 | L59: ALB | M59: =IF($L59="ALB", IF(INTRO!$E$39="Non endémique",IF($H59<>0,$D59*($H59-$G59),0),$D59*$H59), 0) -> 7361 | N59: 43663.88605 | P59: 51024.88605 | Q59: =IF($L59="MBD", IF(INTRO!$E$39="Non endémique",IF($H59<>0,$D59*($H59-$G59),0),$D59*$H59),0) -> 0 | R59: 0 | T59: 0 | V59: 142584 | W59: 713 | Y59: 43663.88605 | Z59: 219 | AB59: 0 | AC59: 0
A60: =IF(AND(INTRO!$E$37="Non endémique",INTRO!$E$41="Non endémique")," ",IF(COUNTRY_INFO!A60=0," ",COUNTRY_INFO!A60)) -> Congo | B60: =IF(AND(INTRO!$E$37="Non endémique",INTRO!$E$41="Non endémique")," ",IF(COUNTRY_INFO!B60=0," ",COUNTRY_INFO!B60)) -> Sangha | C60: =IF(AND(INTRO!$E$37="Non endémique",INTRO!$E$41="Non endémique")," ",IF(COUNTRY_INFO!C60=0," ",COUNTRY_INFO!C60)) -> Sembé-Souanké | D60: =IF(AND(INTRO!$E$37="Non endémique",INTRO!$E$41="Non endémique"),0,IF(AND(OR(COUNTRY_INFO!$H60=0,COUNTRY_INFO!$H60=4,COUNTRY_INFO!$H60=99),OR(COUNTRY_INFO!$J60=0,COUNTRY_INFO!$J60=4)),0,COUNTRY_INFO!$E60)) -> 3346 | E60: =IF(AND(INTRO!$E$37="Non endémique",INTRO!$E$41="Non endémique"),0,IF(AND(OR(COUNTRY_INFO!$H60=0,COUNTRY_INFO!$H60=4,COUNTRY_INFO!$H60=99),OR(COUNTRY_INFO!$J60=0,COUNTRY_INFO!$J60=4)),0,COUNTRY_INFO!$F60)) -> 10414 | F60: 13760 | G60: =IF(AND(INTRO!$E$37="Non endémique",INTRO!$E$41="Non endémique"),0,COUNTRY_INFO!Q60) -> 1 | H60: =IF(AND(INTRO!$E$37="Non endémique",INTRO!$E$41="Non endémique"),0,COUNTRY_INFO!S60) -> 2 | I60: =IF($G60=1,IVM!$G60,0) -> 1567 | J60: 31617 | K60: 2 | L60: ALB | M60: =IF($L60="ALB", IF(INTRO!$E$39="Non endémique",IF($H60<>0,$D60*($H60-$G60),0),$D60*$H60), 0) -> 6692 | N60: 20336.23475 | P60: 27028.23475 | Q60: =IF($L60="MBD", IF(INTRO!$E$39="Non endémique",IF($H60<>0,$D60*($H60-$G60),0),$D60*$H60),0) -> 0 | R60: 0 | T60: 0 | V60: 64801 | W60: 325 | Y60: 20336.23475 | Z60: 102 | AB60: 0 | AC60: 0

Sheet PZQ
A1: Praziquantel (PZQ)
A2: Structure administrative, population ciblée par groupe d'âge, plan de traitement et information sur les comprimés
A4: TOTAL | D4: =SUM(D$9:D$1000) -> 288643.59 | E4: =SUM(E$9:E$1000) -> 239310.2 | F4: =SUM(F$9:F$1000) -> 527953.79 | I4: =SUM(I$9:I$1000) -> 118048.5 | J4: 0 | K4: 213498 | L4: 331546.5 | M4: 295121.25 | N4: 640494 | O4: 295121.25 | P4: 12000 | Q4: =SUM(Q$9:Q$1000) -> 295121.25 | R4: 299
A6: Structure administrative du pays | D6: Population nécessitant un traitement avec PZQ | G6: Plan de traitement | I6: Population cible | M6: Praziquantel (PZQ)
A7: Pays | B7: Région/Département | C7: District | D7: EAS | E7: Adultes | F7: Total | G7: SCH | H7: Tous EAS ciblés ? | I7: EAS | J7: EAS à un niveau inférieur | K7: Adultes | L7: Total | M7: EAS | N7: Adultes | O7: Total requis pour EAS | P7: Reste en stock | Q7: Comprimés devant être fournis | R7: Flacons (600mg) 1000 comprimés
A9: =IF(INTRO!$E$43="Non endémique"," ", IF(COUNTRY_INFO!A9=0," ",COUNTRY_INFO!A9)) -> Congo | B9: =IF(INTRO!$E$43="Non endémique"," ", IF(COUNTRY_INFO!B9=0," ",COUNTRY_INFO!B9)) -> Bouenza | C9: =IF(INTRO!$E$43="Non endémique"," ", IF(COUNTRY_INFO!C9=0," ",COUNTRY_INFO!C9)) -> Loudima | D9: =IF(INTRO!$E$43="Non endémique", 0, IF(COUNTRY_INFO!$K9>0, IF(COUNTRY_INFO!$K9=4, 0, IF(COUNTRY_INFO!$K9=1, COUNTRY_INFO!$F9*0.33, IF(COUNTRY_INFO!$K9=2, COUNTRY_INFO!$F9*0.5, COUNTRY_INFO!$F9))), 0)) -> 14924 | E9: =IF(INTRO!$E$43="Non endémique", 0, IF(COUNTRY_INFO!$K9>0, IF(COUNTRY_INFO!$K9=4, 0, IF(COUNTRY_INFO!$K9=1, 0, IF(COUNTRY_INFO!$K9=2, COUNTRY_INFO!$G9*0.2, COUNTRY_INFO!$G9))), 0)) -> 32633 | F9: =SUM(D9:E9) -> 47557 | G9: =IF(INTRO!$E$43="Non endémique", "Non requis", COUNTRY_INFO!T9) -> 1 | I9: =IF($D9=0,0,IF(AND($G9>0,$H9<>"Oui"),D9,IF(AND($G9>0,$H9="Oui"),COUNTRY_INFO!$F9,0))) -> 14924 | K9: =IF($G9>0,E9, 0) -> 32633 | L9: =IF($J9=0,SUM(I9,K9),SUM(J9,K9)) -> 47557 | M9: =IF($J9=0,$I9*2.5,$J9*2.5) -> 37310 | N9: =$K9*3 -> 97899 | O9: =M9 -> 37310 | Q9: =IF($O9>$P9,O9-P9,0) -> 37310 | R9: =ROUNDUP($O9/1000,0) -> 38
A10: =IF(INTRO!$E$43="Non endémique"," ", IF(COUNTRY_INFO!A10=0," ",COUNTRY_INFO!A10)) -> Congo | B10: =IF(INTRO!$E$43="Non endémique"," ", IF(COUNTRY_INFO!B10=0," ",COUNTRY_INFO!B10)) -> Bouenza | C10: =IF(INTRO!$E$43="Non endémique"," ", IF(COUNTRY_INFO!C10=0," ",COUNTRY_INFO!C10)) -> Loutété | D10: =IF(INTRO!$E$43="Non endémique", 0, IF(COUNTRY_INFO!$K10>0, IF(COUNTRY_INFO!$K10=4, 0, IF(COUNTRY_INFO!$K10=1, COUNTRY_INFO!$F10*0.33, IF(COUNTRY_INFO!$K10=2, COUNTRY_INFO!$F10*0.5, COUNTRY_INFO!$F10))), 0)) -> 8236.5 | E10: =IF(INTRO!$E$43="Non endémique", 0, IF(COUNTRY_INFO!$K10>0, IF(COUNTRY_INFO!$K10=4, 0, IF(COUNTRY_INFO!$K10=1, 0, IF(COUNTRY_INFO!$K10=2, COUNTRY_INFO!$G10*0.2, COUNTRY_INFO!$G10))), 0)) -> 7204 | F10: 15440.5 | G10: =IF(INTRO!$E$43="Non endémique", "Non requis", COUNTRY_INFO!T10) -> 1 | I10: =IF($D10=0,0,IF(AND($G10>0,$H10<>"Oui"),D10,IF(AND($G10>0,$H10="Oui"),COUNTRY_INFO!$F10,0))) -> 8236.5 | K10: 7204 | L10: 15440.5 | M10: =IF($J10=0,$I10*2.5,$J10*2.5) -> 20591.25 | N10: 21612 | O10: =M10 -> 20591.25 | Q10: =IF($O10>$P10,O10-P10,0) -> 20591.25 | R10: 21
A11: =IF(INTRO!$E$43="Non endémique"," ", IF(COUNTRY_INFO!A11=0," ",COUNTRY_INFO!A11)) -> Congo | B11: =IF(INTRO!$E$43="Non endémique"," ", IF(COUNTRY_INFO!B11=0," ",COUNTRY_INFO!B11)) -> Bouenza | C11: =IF(INTRO!$E$43="Non endémique"," ", IF(COUNTRY_INFO!C11=0," ",COUNTRY_INFO!C11)) -> Madingou | D11: =IF(INTRO!$E$43="Non endémique", 0, IF(COUNTRY_INFO!$K11>0, IF(COUNTRY_INFO!$K11=4, 0, IF(COUNTRY_INFO!$K11=1, COUNTRY_INFO!$F11*0.33, IF(COUNTRY_INFO!$K11=2, COUNTRY_INFO!$F11*0.5, COUNTRY_INFO!$F11))), 0)) -> 0 | E11: =IF(INTRO!$E$43="Non endémique", 0, IF(COUNTRY_INFO!$K11>0, IF(COUNTRY_INFO!$K11=4, 0, IF(COUNTRY_INFO!$K11=1, 0, IF(COUNTRY_INFO!$K11=2, COUNTRY_INFO!$G11*0.2, COUNTRY_INFO!$G11))), 0)) -> 0 | F11: 0 | G11: =IF(INTRO!$E$43="Non endémique", "Non requis", COUNTRY_INFO!T11) -> 0 | I11: =IF($D11=0,0,IF(AND($G11>0,$H11<>"Oui"),D11,IF(AND($G11>0,$H11="Oui"),COUNTRY_INFO!$F11,0))) -> 0 | K11: 0 | L11: 0 | M11: 0 | N11: 0 | O11: 0 | Q11: =IF($O11>$P11,O11-P11,0) -> 0 | R11: 0
A12: =IF(INTRO!$E$43="Non endémique"," ", IF(COUNTRY_INFO!A12=0," ",COUNTRY_INFO!A12)) -> Congo | B12: =IF(INTRO!$E$43="Non endémique"," ", IF(COUNTRY_INFO!B12=0," ",COUNTRY_INFO!B12)) -> Bouenza | C12: =IF(INTRO!$E$43="Non endémique"," ", IF(COUNTRY_INFO!C12=0," ",COUNTRY_INFO!C12)) -> Mouyondzi | D12: =IF(INTRO!$E$43="Non endémique", 0, IF(COUNTRY_INFO!$K12>0, IF(COUNTRY_INFO!$K12=4, 0, IF(COUNTRY_INFO!$K12=1, COUNTRY_INFO!$F12*0.33, IF(COUNTRY_INFO!$K12=2, COUNTRY_INFO!$F12*0.5, COUNTRY_INFO!$F12))), 0)) -> 24925 | E12: =IF(INTRO!$E$43="Non endémique", 0, IF(COUNTRY_INFO!$K12>0, IF(COUNTRY_INFO!$K12=4, 0, IF(COUNTRY_INFO!$K12=1, 0, IF(COUNTRY_INFO!$K12=2, COUNTRY_INFO!$G12*0.2, COUNTRY_INFO!$G12))), 0)) -> 54499 | F12: 79424 | G12: =IF(INTRO!$E$43="Non endémique", "Non requis", COUNTRY_INFO!T12) -> 1 | I12: =IF($D12=0,0,IF(AND($G12>0,$H12<>"Oui"),D12,IF(AND($G12>0,$H12="Oui"),COUNTRY_INFO!$F12,0))) -> 24925 | K12: 54499 | L12: 79424 | M12: 62312.5 | N12: 163497 | O12: 62312.5 | Q12: =IF($O12>$P12,O12-P12,0) -> 62312.5 | R12: 63
A13: =IF(INTRO!$E$43="Non endémique"," ", IF(COUNTRY_INFO!A13=0," ",COUNTRY_INFO!A13)) -> Congo | B13: =IF(INTRO!$E$43="Non endémique"," ", IF(COUNTRY_INFO!B13=0," ",COUNTRY_INFO!B13)) -> Bouenza | C13: =IF(INTRO!$E$43="Non endémique"," ", IF(COUNTRY_INFO!C13=0," ",COUNTRY_INFO!C13)) -> Nkayi | D13: =IF(INTRO!$E$43="Non endémique", 0, IF(COUNTRY_INFO!$K13>0, IF(COUNTRY_INFO!$K13=4, 0, IF(COUNTRY_INFO!$K13=1, COUNTRY_INFO!$F13*0.33, IF(COUNTRY_INFO!$K13=2, COUNTRY_INFO!$F13*0.5, COUNTRY_INFO!$F13))), 0)) -> 18767 | E13: =IF(INTRO!$E$43="Non endémique", 0, IF(COUNTRY_INFO!$K13>0, IF(COUNTRY_INFO!$K13=4, 0, IF(COUNTRY_INFO!$K13=1, 0, IF(COUNTRY_INFO!$K13=2, COUNTRY_INFO!$G13*0.2, COUNTRY_INFO!$G13))), 0)) -> 16414 | F13: 35181 | G13: =IF(INTRO!$E$43="Non endémique", "Non requis", COUNTRY_INFO!T13) -> 1 | I13: =IF($D13=0,0,IF(AND($G13>0,$H13<>"Oui"),D13,IF(AND($G13>0,$H13="Oui"),COUNTRY_INFO!$F13,0))) -> 18767 | K13: 16414 | L13: 35181 | M13: 46917.5 | N13: 49242 | O13: 46917.5 | Q13: 46917.5 | R13: 47
A14: =IF(INTRO!$E$43="Non endémique"," ", IF(COUNTRY_INFO!A14=0," ",COUNTRY_INFO!A14)) -> Congo | B14: =IF(INTRO!$E$43="Non endémique"," ", IF(COUNTRY_INFO!B14=0," ",COUNTRY_INFO!B14)) -> Brazzaville | C14: =IF(INTRO!$E$43="Non endémique"," ", IF(COUNTRY_INFO!C14=0," ",COUNTRY_INFO!C14)) -> Bacongo | D14: =IF(INTRO!$E$43="Non endémique", 0, IF(COUNTRY_INFO!$K14>0, IF(COUNTRY_INFO!$K14=4, 0, IF(COUNTRY_INFO!$K14=1, COUNTRY_INFO!$F14*0.33, IF(COUNTRY_INFO!$K14=2, COUNTRY_INFO!$F14*0.5, COUNTRY_INFO!$F14))), 0)) -> 0 | E14: =IF(INTRO!$E$43="Non endémique", 0, IF(COUNTRY_INFO!$K14>0, IF(COUNTRY_INFO!$K14=4, 0, IF(COUNTRY_INFO!$K14=1, 0, IF(COUNTRY_INFO!$K14=2, COUNTRY_INFO!$G14*0.2, COUNTRY_INFO!$G14))), 0)) -> 0 | F14: 0 | G14: =IF(INTRO!$E$43="Non endémique", "Non requis", COUNTRY_INFO!T14) -> 0 | I14: =IF($D14=0,0,IF(AND($G14>0,$H14<>"Oui"),D14,IF(AND($G14>0,$H14="Oui"),COUNTRY_INFO!$F14,0))) -> 0 | K14: 0 | L14: 0 | M14: 0 | N14: 0 | O14: 0 | Q14: 0 | R14: 0
A15: =IF(INTRO!$E$43="Non endémique"," ", IF(COUNTRY_INFO!A15=0," ",COUNTRY_INFO!A15)) -> Congo | B15: =IF(INTRO!$E$43="Non endémique"," ", IF(COUNTRY_INFO!B15=0," ",COUNTRY_INFO!B15)) -> Brazzaville | C15: =IF(INTRO!$E$43="Non endémique"," ", IF(COUNTRY_INFO!C15=0," ",COUNTRY_INFO!C15)) -> Djiri | D15: =IF(INTRO!$E$43="Non endémique", 0, IF(COUNTRY_INFO!$K15>0, IF(COUNTRY_INFO!$K15=4, 0, IF(COUNTRY_INFO!$K15=1, COUNTRY_INFO!$F15*0.33, IF(COUNTRY_INFO!$K15=2, COUNTRY_INFO!$F15*0.5, COUNTRY_INFO!$F15))), 0)) -> 0 | E15: =IF(INTRO!$E$43="Non endémique", 0, IF(COUNTRY_INFO!$K15>0, IF(COUNTRY_INFO!$K15=4, 0, IF(COUNTRY_INFO!$K15=1, 0, IF(COUNTRY_INFO!$K15=2, COUNTRY_INFO!$G15*0.2, COUNTRY_INFO!$G15))), 0)) -> 0 | F15: 0 | G15: =IF(INTRO!$E$43="Non endémique", "Non requis", COUNTRY_INFO!T15) -> 0 | I15: =IF($D15=0,0,IF(AND($G15>0,$H15<>"Oui"),D15,IF(AND($G15>0,$H15="Oui"),COUNTRY_INFO!$F15,0))) -> 0 | K15: 0 | L15: 0 | M15: 0 | N15: 0 | O15: 0 | Q15: 0 | R15: 0
A16: =IF(INTRO!$E$43="Non endémique"," ", IF(COUNTRY_INFO!A16=0," ",COUNTRY_INFO!A16)) -> Congo | B16: =IF(INTRO!$E$43="Non endémique"," ", IF(COUNTRY_INFO!B16=0," ",COUNTRY_INFO!B16)) -> Brazzaville | C16: =IF(INTRO!$E$43="Non endémique"," ", IF(COUNTRY_INFO!C16=0," ",COUNTRY_INFO!C16)) -> Île Mbamou | D16: =IF(INTRO!$E$43="Non endémique", 0, IF(COUNTRY_INFO!$K16>0, IF(COUNTRY_INFO!$K16=4, 0, IF(COUNTRY_INFO!$K16=1, COUNTRY_INFO!$F16*0.33, IF(COUNTRY_INFO!$K16=2, COUNTRY_INFO!$F16*0.5, COUNTRY_INFO!$F16))), 0)) -> 0 | E16: =IF(INTRO!$E$43="Non endémique", 0, IF(COUNTRY_INFO!$K16>0, IF(COUNTRY_INFO!$K16=4, 0, IF(COUNTRY_INFO!$K16=1, 0, IF(COUNTRY_INFO!$K16=2, COUNTRY_INFO!$G16*0.2, COUNTRY_INFO!$G16))), 0)) -> 0 | F16: 0 | G16: =IF(INTRO!$E$43="Non endémique", "Non requis", COUNTRY_INFO!T16) -> 0 | I16: =IF($D16=0,0,IF(AND($G16>0,$H16<>"Oui"),D16,IF(AND($G16>0,$H16="Oui"),COUNTRY_INFO!$F16,0))) -> 0 | K16: 0 | L16: 0 | M16: 0 | N16: 0 | O16: 0 | P16: 12000 | Q16: 0 | R16: 0
A17: =IF(INTRO!$E$43="Non endémique"," ", IF(COUNTRY_INFO!A17=0," ",COUNTRY_INFO!A17)) -> Congo | B17: =IF(INTRO!$E$43="Non endémique"," ", IF(COUNTRY_INFO!B17=0," ",COUNTRY_INFO!B17)) -> Brazzaville | C17: =IF(INTRO!$E$43="Non endémique"," ", IF(COUNTRY_INFO!C17=0," ",COUNTRY_INFO!C17)) -> Madibou | D17: =IF(INTRO!$E$43="Non endémique", 0, IF(COUNTRY_INFO!$K17>0, IF(COUNTRY_INFO!$K17=4, 0, IF(COUNTRY_INFO!$K17=1, COUNTRY_INFO!$F17*0.33, IF(COUNTRY_INFO!$K17=2, COUNTRY_INFO!$F17*0.5, COUNTRY_INFO!$F17))), 0)) -> 0 | E17: =IF(INTRO!$E$43="Non endémique", 0, IF(COUNTRY_INFO!$K17>0, IF(COUNTRY_INFO!$K17=4, 0, IF(COUNTRY_INFO!$K17=1, 0, IF(COUNTRY_INFO!$K17=2, COUNTRY_INFO!$G17*0.2, COUNTRY_INFO!$G17))), 0)) -> 0 | F17: 0 | G17: =IF(INTRO!$E$43="Non endémique", "Non requis", COUNTRY_INFO!T17) -> 0 | I17: =IF($D17=0,0,IF(AND($G17>0,$H17<>"Oui"),D17,IF(AND($G17>0,$H17="Oui"),COUNTRY_INFO!$F17,0))) -> 0 | K17: 0 | L17: 0 | M17: 0 | N17: 0 | O17: 0 | Q17: 0 | R17: 0
A18: =IF(INTRO!$E$43="Non endémique"," ", IF(COUNTRY_INFO!A18=0," ",COUNTRY_INFO!A18)) -> Congo | B18: =IF(INTRO!$E$43="Non endémique"," ", IF(COUNTRY_INFO!B18=0," ",COUNTRY_INFO!B18)) -> Brazzaville | C18: =IF(INTRO!$E$43="Non endémique"," ", IF(COUNTRY_INFO!C18=0," ",COUNTRY_INFO!C18)) -> Makélékélé | D18: =IF(INTRO!$E$43="Non endémique", 0, IF(COUNTRY_INFO!$K18>0, IF(COUNTRY_INFO!$K18=4, 0, IF(COUNTRY_INFO!$K18=1, COUNTRY_INFO!$F18*0.33, IF(COUNTRY_INFO!$K18=2, COUNTRY_INFO!$F18*0.5, COUNTRY_INFO!$F18))), 0)) -> 22699.05 | E18: =IF(INTRO!$E$43="Non endémique", 0, IF(COUNTRY_INFO!$K18>0, IF(COUNTRY_INFO!$K18=4, 0, IF(COUNTRY_INFO!$K18=1, 0, IF(COUNTRY_INFO!$K18=2, COUNTRY_INFO!$G18*0.2, COUNTRY_INFO!$G18))), 0)) -> 0 | F18: 22699.05 | G18: =IF(INTRO!$E$43="Non endémique", "Non requis", COUNTRY_INFO!T18) -> 0 | I18: =IF($D18=0,0,IF(AND($G18>0,$H18<>"Oui"),D18,IF(AND($G18>0,$H18="Oui"),COUNTRY_INFO!$F18,0))) -> 0 | K18: 0 | L18: 0 | M18: 0 | N18: 0 | O18: 0 | Q18: 0 | R18: 0
A19: =IF(INTRO!$E$43="Non endémique"," ", IF(COUNTRY_INFO!A19=0," ",COUNTRY_INFO!A19)) -> Congo | B19: =IF(INTRO!$E$43="Non endémique"," ", IF(COUNTRY_INFO!B19=0," ",COUNTRY_INFO!B19)) -> Brazzaville | C19: =IF(INTRO!$E$43="Non endémique"," ", IF(COUNTRY_INFO!C19=0," ",COUNTRY_INFO!C19)) -> Mfilou | D19: =IF(INTRO!$E$43="Non endémique", 0, IF(COUNTRY_INFO!$K19>0, IF(COUNTRY_INFO!$K19=4, 0, IF(COUNTRY_INFO!$K19=1, COUNTRY_INFO!$F19*0.33, IF(COUNTRY_INFO!$K19=2, COUNTRY_INFO!$F19*0.5, COUNTRY_INFO!$F19))), 0)) -> 0 | E19: =IF(INTRO!$E$43="Non endémique", 0, IF(COUNTRY_INFO!$K19>0, IF(COUNTRY_INFO!$K19=4, 0, IF(COUNTRY_INFO!$K19=1, 0, IF(COUNTRY_INFO!$K19=2, COUNTRY_INFO!$G19*0.2, COUNTRY_INFO!$G19))), 0)) -> 0 | F19: 0 | G19: =IF(INTRO!$E$43="Non endémique", "Non requis", COUNTRY_INFO!T19) -> 0 | I19: =IF($D19=0,0,IF(AND($G19>0,$H19<>"Oui"),D19,IF(AND($G19>0,$H19="Oui"),COUNTRY_INFO!$F19,0))) -> 0 | K19: 0 | L19: 0 | M19: 0 | N19: 0 | O19: 0 | Q19: 0 | R19: 0
A20: =IF(INTRO!$E$43="Non endémique"," ", IF(COUNTRY_INFO!A20=0," ",COUNTRY_INFO!A20)) -> Congo | B20: =IF(INTRO!$E$43="Non endémique"," ", IF(COUNTRY_INFO!B20=0," ",COUNTRY_INFO!B20)) -> Brazzaville | C20: =IF(INTRO!$E$43="Non endémique"," ", IF(COUNTRY_INFO!C20=0," ",COUNTRY_INFO!C20)) -> Moungali | D20: =IF(INTRO!$E$43="Non endémique", 0, IF(COUNTRY_INFO!$K20>0, IF(COUNTRY_INFO!$K20=4, 0, IF(COUNTRY_INFO!$K20=1, COUNTRY_INFO!$F20*0.33, IF(COUNTRY_INFO!$K20=2, COUNTRY_INFO!$F20*0.5, COUNTRY_INFO!$F20))), 0)) -> 22598.4 | E20: =IF(INTRO!$E$43="Non endémique", 0, IF(COUNTRY_INFO!$K20>0, IF(COUNTRY_INFO!$K20=4, 0, IF(COUNTRY_INFO!$K20=1, 0, IF(COUNTRY_INFO!$K20=2, COUNTRY_INFO!$G20*0.2, COUNTRY_INFO!$G20))), 0)) -> 0 | F20: 22598.4 | G20: =IF(INTRO!$E$43="Non endémique", "Non requis", COUNTRY_INFO!T20) -> 0 | I20: =IF($D20=0,0,IF(AND($G20>0,$H20<>"Oui"),D20,IF(AND($G20>0,$H20="Oui"),COUNTRY_INFO!$F20,0))) -> 0 | K20: 0 | L20: 0 | M20: 0 | N20: 0 | O20: 0 | Q20: 0 | R20: 0
A21: =IF(INTRO!$E$43="Non endémique"," ", IF(COUNTRY_INFO!A21=0," ",COUNTRY_INFO!A21)) -> Congo | B21: =IF(INTRO!$E$43="Non endémique"," ", IF(COUNTRY_INFO!B21=0," ",COUNTRY_INFO!B21)) -> Brazzaville | C21: =IF(INTRO!$E$43="Non endémique"," ", IF(COUNTRY_INFO!C21=0," ",COUNTRY_INFO!C21)) -> Ouenzé | D21: =IF(INTRO!$E$43="Non endémique", 0, IF(COUNTRY_INFO!$K21>0, IF(COUNTRY_INFO!$K21=4, 0, IF(COUNTRY_INFO!$K21=1, COUNTRY_INFO!$F21*0.33, IF(COUNTRY_INFO!$K21=2, COUNTRY_INFO!$F21*0.5, COUNTRY_INFO!$F21))), 0)) -> 0 | E21: =IF(INTRO!$E$43="Non endémique", 0, IF(COUNTRY_INFO!$K21>0, IF(COUNTRY_INFO!$K21=4, 0, IF(COUNTRY_INFO!$K21=1, 0, IF(COUNTRY_INFO!$K21=2, COUNTRY_INFO!$G21*0.2, COUNTRY_INFO!$G21))), 0)) -> 0 | F21: 0 | G21: =IF(INTRO!$E$43="Non endémique", "Non requis", COUNTRY_INFO!T21) -> 0 | I21: =IF($D21=0,0,IF(AND($G21>0,$H21<>"Oui"),D21,IF(AND($G21>0,$H21="Oui"),COUNTRY_INFO!$F21,0))) -> 0 | K21: 0 | L21: 0 | M21: 0 | N21: 0 | O21: 0 | Q21: 0 | R21: 0
A22: =IF(INTRO!$E$43="Non endémique"," ", IF(COUNTRY_INFO!A22=0," ",COUNTRY_INFO!A22)) -> Congo | B22: =IF(INTRO!$E$43="Non endémique"," ", IF(COUNTRY_INFO!B22=0," ",COUNTRY_INFO!B22)) -> Brazzaville | C22: =IF(INTRO!$E$43="Non endémique"," ", IF(COUNTRY_INFO!C22=0," ",COUNTRY_INFO!C22)) -> Poto-Poto | D22: =IF(INTRO!$E$43="Non endémique", 0, IF(COUNTRY_INFO!$K22>0, IF(COUNTRY_INFO!$K22=4, 0, IF(COUNTRY_INFO!$K22=1, COUNTRY_INFO!$F22*0.33, IF(COUNTRY_INFO!$K22=2, COUNTRY_INFO!$F22*0.5, COUNTRY_INFO!$F22))), 0)) -> 0 | E22: =IF(INTRO!$E$43="Non endémique", 0, IF(COUNTRY_INFO!$K22>0, IF(COUNTRY_INFO!$K22=4, 0, IF(COUNTRY_INFO!$K22=1, 0, IF(COUNTRY_INFO!$K22=2, COUNTRY_INFO!$G22*0.2, COUNTRY_INFO!$G22))), 0)) -> 0 | F22: 0 | G22: =IF(INTRO!$E$43="Non endémique", "Non requis", COUNTRY_INFO!T22) -> 0 | I22: =IF($D22=0,0,IF(AND($G22>0,$H22<>"Oui"),D22,IF(AND($G22>0,$H22="Oui"),COUNTRY_INFO!$F22,0))) -> 0 | K22: 0 | L22: 0 | M22: 0 | N22: 0 | O22: 0 | Q22: 0 | R22: 0
A23: =IF(INTRO!$E$43="Non endémique"," ", IF(COUNTRY_INFO!A23=0," ",COUNTRY_INFO!A23)) -> Congo | B23: =IF(INTRO!$E$43="Non endémique"," ", IF(COUNTRY_INFO!B23=0," ",COUNTRY_INFO!B23)) -> Brazzaville | C23: =IF(INTRO!$E$43="Non endémique"," ", IF(COUNTRY_INFO!C23=0," ",COUNTRY_INFO!C23)) -> Talangaî | D23: =IF(INTRO!$E$43="Non endémique", 0, IF(COUNTRY_INFO!$K23>0, IF(COUNTRY_INFO!$K23=4, 0, IF(COUNTRY_INFO!$K23=1, COUNTRY_INFO!$F23*0.33, IF(COUNTRY_INFO!$K23=2, COUNTRY_INFO!$F23*0.5, COUNTRY_INFO!$F23))), 0)) -> 0 | E23: =IF(INTRO!$E$43="Non endémique", 0, IF(COUNTRY_INFO!$K23>0, IF(COUNTRY_INFO!$K23=4, 0, IF(COUNTRY_INFO!$K23=1, 0, IF(COUNTRY_INFO!$K23=2, COUNTRY_INFO!$G23*0.2, COUNTRY_INFO!$G23))), 0)) -> 0 | F23: 0 | G23: =IF(INTRO!$E$43="Non endémique", "Non requis", COUNTRY_INFO!T23) -> 0 | I23: =IF($D23=0,0,IF(AND($G23>0,$H23<>"Oui"),D23,IF(AND($G23>0,$H23="Oui"),COUNTRY_INFO!$F23,0))) -> 0 | K23: 0 | L23: 0 | M23: 0 | N23: 0 | O23: 0 | Q23: 0 | R23: 0
A24: =IF(INTRO!$E$43="Non endémique"," ", IF(COUNTRY_INFO!A24=0," ",COUNTRY_INFO!A24)) -> Congo | B24: =IF(INTRO!$E$43="Non endémique"," ", IF(COUNTRY_INFO!B24=0," ",COUNTRY_INFO!B24)) -> Cuvette | C24: =IF(INTRO!$E$43="Non endémique"," ", IF(COUNTRY_INFO!C24=0," ",COUNTRY_INFO!C24)) -> Mossaka | D24: =IF(INTRO!$E$43="Non endémique", 0, IF(COUNTRY_INFO!$K24>0, IF(COUNTRY_INFO!$K24=4, 0, IF(COUNTRY_INFO!$K24=1, COUNTRY_INFO!$F24*0.33, IF(COUNTRY_INFO!$K24=2, COUNTRY_INFO!$F24*0.5, COUNTRY_INFO!$F24))), 0)) -> 6336.99 | E24: =IF(INTRO!$E$43="Non endémique", 0, IF(COUNTRY_INFO!$K24>0, IF(COUNTRY_INFO!$K24=4, 0, IF(COUNTRY_INFO!$K24=1, 0, IF(COUNTRY_INFO!$K24=2, COUNTRY_INFO!$G24*0.2, COUNTRY_INFO!$G24))), 0)) -> 0 | F24: 6336.99 | G24: =IF(INTRO!$E$43="Non endémique", "Non requis", COUNTRY_INFO!T24) -> 0 | I24: =IF($D24=0,0,IF(AND($G24>0,$H24<>"Oui"),D24,IF(AND($G24>0,$H24="Oui"),COUNTRY_INFO!$F24,0))) -> 0 | K24: 0 | L24: 0 | M24: 0 | N24: 0 | O24: 0 | Q24: 0 | R24: 0
A25: =IF(INTRO!$E$43="Non endémique"," ", IF(COUNTRY_INFO!A25=0," ",COUNTRY_INFO!A25)) -> Congo | B25: =IF(INTRO!$E$43="Non endémique"," ", IF(COUNTRY_INFO!B25=0," ",COUNTRY_INFO!B25)) -> Cuvette | C25: =IF(INTRO!$E$43="Non endémique"," ", IF(COUNTRY_INFO!C25=0," ",COUNTRY_INFO!C25)) -> Owando | D25: =IF(INTRO!$E$43="Non endémique", 0, IF(COUNTRY_INFO!$K25>0, IF(COUNTRY_INFO!$K25=4, 0, IF(COUNTRY_INFO!$K25=1, COUNTRY_INFO!$F25*0.33, IF(COUNTRY_INFO!$K25=2, COUNTRY_INFO!$F25*0.5, COUNTRY_INFO!$F25))), 0)) -> 9233.07 | E25: =IF(INTRO!$E$43="Non endémique", 0, IF(COUNTRY_INFO!$K25>0, IF(COUNTRY_INFO!$K25=4, 0, IF(COUNTRY_INFO!$K25=1, 0, IF(COUNTRY_INFO!$K25=2, COUNTRY_INFO!$G25*0.2, COUNTRY_INFO!$G25))), 0)) -> 0 | F25: 9233.07 | G25: =IF(INTRO!$E$43="Non endémique", "Non requis", COUNTRY_INFO!T25) -> 0 | I25: =IF($D25=0,0,IF(AND($G25>0,$H25<>"Oui"),D25,IF(AND($G25>0,$H25="Oui"),COUNTRY_INFO!$F25,0))) -> 0 | K25: 0 | L25: 0 | M25: 0 | N25: 0 | O25: 0 | Q25: 0 | R25: 0
A26: =IF(INTRO!$E$43="Non endémique"," ", IF(COUNTRY_INFO!A26=0," ",COUNTRY_INFO!A26)) -> Congo | B26: =IF(INTRO!$E$43="Non endémique"," ", IF(COUNTRY_INFO!B26=0," ",COUNTRY_INFO!B26)) -> Cuvette | C26: =IF(INTRO!$E$43="Non endémique"," ", IF(COUNTRY_INFO!C26=0," ",COUNTRY_INFO!C26)) -> Oyo-Alima | D26: =IF(INTRO!$E$43="Non endémique", 0, IF(COUNTRY_INFO!$K26>0, IF(COUNTRY_INFO!$K26=4, 0, IF(COUNTRY_INFO!$K26=1, COUNTRY_INFO!$F26*0.33, IF(COUNTRY_INFO!$K26=2, COUNTRY_INFO!$F26*0.5, COUNTRY_INFO!$F26))), 0)) -> 0 | E26: =IF(INTRO!$E$43="Non endémique", 0, IF(COUNTRY_INFO!$K26>0, IF(COUNTRY_INFO!$K26=4, 0, IF(COUNTRY_INFO!$K26=1, 0, IF(COUNTRY_INFO!$K26=2, COUNTRY_INFO!$G26*0.2, COUNTRY_INFO!$G26))), 0)) -> 0 | F26: 0 | G26: =IF(INTRO!$E$43="Non endémique", "Non requis", COUNTRY_INFO!T26) -> 0 | I26: =IF($D26=0,0,IF(AND($G26>0,$H26<>"Oui"),D26,IF(AND($G26>0,$H26="Oui"),COUNTRY_INFO!$F26,0))) -> 0 | K26: 0 | L26: 0 | M26: 0 | N26: 0 | O26: 0 | Q26: 0 | R26: 0
A27: =IF(INTRO!$E$43="Non endémique"," ", IF(COUNTRY_INFO!A27=0," ",COUNTRY_INFO!A27)) -> Congo | B27: =IF(INTRO!$E$43="Non endémique"," ", IF(COUNTRY_INFO!B27=0," ",COUNTRY_INFO!B27)) -> Cuvette-Ouest | C27: =IF(INTRO!$E$43="Non endémique"," ", IF(COUNTRY_INFO!C27=0," ",COUNTRY_INFO!C27)) -> Etoumbi | D27: =IF(INTRO!$E$43="Non endémique", 0, IF(COUNTRY_INFO!$K27>0, IF(COUNTRY_INFO!$K27=4, 0, IF(COUNTRY_INFO!$K27=1, COUNTRY_INFO!$F27*0.33, IF(COUNTRY_INFO!$K27=2, COUNTRY_INFO!$F27*0.5, COUNTRY_INFO!$F27))), 0)) -> 0 | E27: =IF(INTRO!$E$43="Non endémique", 0, IF(COUNTRY_INFO!$K27>0, IF(COUNTRY_INFO!$K27=4, 0, IF(COUNTRY_INFO!$K27=1, 0, IF(COUNTRY_INFO!$K27=2, COUNTRY_INFO!$G27*0.2, COUNTRY_INFO!$G27))), 0)) -> 0 | F27: 0 | G27: =IF(INTRO!$E$43="Non endémique", "Non requis", COUNTRY_INFO!T27) -> 0 | I27: =IF($D27=0,0,IF(AND($G27>0,$H27<>"Oui"),D27,IF(AND($G27>0,$H27="Oui"),COUNTRY_INFO!$F27,0))) -> 0 | K27: 0 | L27: 0 | M27: 0 | N27: 0 | O27: 0 | Q27: 0 | R27: 0
A28: =IF(INTRO!$E$43="Non endémique"," ", IF(COUNTRY_INFO!A28=0," ",COUNTRY_INFO!A28)) -> Congo | B28: =IF(INTRO!$E$43="Non endémique"," ", IF(COUNTRY_INFO!B28=0," ",COUNTRY_INFO!B28)) -> Cuvette-Ouest | C28: =IF(INTRO!$E$43="Non endémique"," ", IF(COUNTRY_INFO!C28=0," ",COUNTRY_INFO!C28)) -> Ewo | D28: =IF(INTRO!$E$43="Non endémique", 0, IF(COUNTRY_INFO!$K28>0, IF(COUNTRY_INFO!$K28=4, 0, IF(COUNTRY_INFO!$K28=1, COUNTRY_INFO!$F28*0.33, IF(COUNTRY_INFO!$K28=2, COUNTRY_INFO!$F28*0.5, COUNTRY_INFO!$F28))), 0)) -> 7213.14 | E28: =IF(INTRO!$E$43="Non endémique", 0, IF(COUNTRY_INFO!$K28>0, IF(COUNTRY_INFO!$K28=4, 0, IF(COUNTRY_INFO!$K28=1, 0, IF(COUNTRY_INFO!$K28=2, COUNTRY_INFO!$G28*0.2, COUNTRY_INFO!$G28))), 0)) -> 0 | F28: 7213.14 | G28: =IF(INTRO!$E$43="Non endémique", "Non requis", COUNTRY_INFO!T28) -> 0 | I28: =IF($D28=0,0,IF(AND($G28>0,$H28<>"Oui"),D28,IF(AND($G28>0,$H28="Oui"),COUNTRY_INFO!$F28,0))) -> 0 | K28: 0 | L28: 0 | M28: 0 | N28: 0 | O28: 0 | Q28: 0 | R28: 0
A29: =IF(INTRO!$E$43="Non endémique"," ", IF(COUNTRY_INFO!A29=0," ",COUNTRY_INFO!A29)) -> Congo | B29: =IF(INTRO!$E$43="Non endémique"," ", IF(COUNTRY_INFO!B29=0," ",COUNTRY_INFO!B29)) -> Kouilou | C29: =IF(INTRO!$E$43="Non endémique"," ", IF(COUNTRY_INFO!C29=0," ",COUNTRY_INFO!C29)) -> Hinda-Loango | D29: =IF(INTRO!$E$43="Non endémique", 0, IF(COUNTRY_INFO!$K29>0, IF(COUNTRY_INFO!$K29=4, 0, IF(COUNTRY_INFO!$K29=1, COUNTRY_INFO!$F29*0.33, IF(COUNTRY_INFO!$K29=2, COUNTRY_INFO!$F29*0.5, COUNTRY_INFO!$F29))), 0)) -> 7010 | E29: =IF(INTRO!$E$43="Non endémique", 0, IF(COUNTRY_INFO!$K29>0, IF(COUNTRY_INFO!$K29=4, 0, IF(COUNTRY_INFO!$K29=1, 0, IF(COUNTRY_INFO!$K29=2, COUNTRY_INFO!$G29*0.2, COUNTRY_INFO!$G29))), 0)) -> 6131 | F29: 13141 | G29: =IF(INTRO!$E$43="Non endémique", "Non requis", COUNTRY_INFO!T29) -> 1 | I29: =IF($D29=0,0,IF(AND($G29>0,$H29<>"Oui"),D29,IF(AND($G29>0,$H29="Oui"),COUNTRY_INFO!$F29,0))) -> 7010 | K29: 6131 | L29: 13141 | M29: 17525 | N29: 18393 | O29: 17525 | Q29: 17525 | R29: 18
A30: =IF(INTRO!$E$43="Non endémique"," ", IF(COUNTRY_INFO!A30=0," ",COUNTRY_INFO!A30)) -> Congo | B30: =IF(INTRO!$E$43="Non endémique"," ", IF(COUNTRY_INFO!B30=0," ",COUNTRY_INFO!B30)) -> Kouilou | C30: =IF(INTRO!$E$43="Non endémique"," ", IF(COUNTRY_INFO!C30=0," ",COUNTRY_INFO!C30)) -> Madingo Kayes-Nzambi | D30: =IF(INTRO!$E$43="Non endémique", 0, IF(COUNTRY_INFO!$K30>0, IF(COUNTRY_INFO!$K30=4, 0, IF(COUNTRY_INFO!$K30=1, COUNTRY_INFO!$F30*0.33, IF(COUNTRY_INFO!$K30=2, COUNTRY_INFO!$F30*0.5, COUNTRY_INFO!$F30))), 0)) -> 6896 | E30: =IF(INTRO!$E$43="Non endémique", 0, IF(COUNTRY_INFO!$K30>0, IF(COUNTRY_INFO!$K30=4, 0, IF(COUNTRY_INFO!$K30=1, 0, IF(COUNTRY_INFO!$K30=2, COUNTRY_INFO!$G30*0.2, COUNTRY_INFO!$G30))), 0)) -> 15079 | F30: 21975 | G30: =IF(INTRO!$E$43="Non endémique", "Non requis", COUNTRY_INFO!T30) -> 1 | I30: =IF($D30=0,0,IF(AND($G30>0,$H30<>"Oui"),D30,IF(AND($G30>0,$H30="Oui"),COUNTRY_INFO!$F30,0))) -> 6896 | K30: 15079 | L30: 21975 | M30: 17240 | N30: 45237 | O30: 17240 | Q30: 17240 | R30: 18
A31: =IF(INTRO!$E$43="Non endémique"," ", IF(COUNTRY_INFO!A31=0," ",COUNTRY_INFO!A31)) -> Congo | B31: =IF(INTRO!$E$43="Non endémique"," ", IF(COUNTRY_INFO!B31=0," ",COUNTRY_INFO!B31)) -> Kouilou | C31: =IF(INTRO!$E$43="Non endémique"," ", IF(COUNTRY_INFO!C31=0," ",COUNTRY_INFO!C31)) -> Mvouti-Kakamouéka | D31: =IF(INTRO!$E$43="Non endémique", 0, IF(COUNTRY_INFO!$K31>0, IF(COUNTRY_INFO!$K31=4, 0, IF(COUNTRY_INFO!$K31=1, COUNTRY_INFO!$F31*0.33, IF(COUNTRY_INFO!$K31=2, COUNTRY_INFO!$F31*0.5, COUNTRY_INFO!$F31))), 0)) -> 10968 | E31: =IF(INTRO!$E$43="Non endémique", 0, IF(COUNTRY_INFO!$K31>0, IF(COUNTRY_INFO!$K31=4, 0, IF(COUNTRY_INFO!$K31=1, 0, IF(COUNTRY_INFO!$K31=2, COUNTRY_INFO!$G31*0.2, COUNTRY_INFO!$G31))), 0)) -> 23982 | F31: 34950 | G31: =IF(INTRO!$E$43="Non endémique", "Non requis", COUNTRY_INFO!T31) -> 1 | I31: =IF($D31=0,0,IF(AND($G31>0,$H31<>"Oui"),D31,IF(AND($G31>0,$H31="Oui"),COUNTRY_INFO!$F31,0))) -> 10968 | K31: 23982 | L31: 34950 | M31: 27420 | N31: 71946 | O31: 27420 | Q31: 27420 | R31: 28
A32: =IF(INTRO!$E$43="Non endémique"," ", IF(COUNTRY_INFO!A32=0," ",COUNTRY_INFO!A32)) -> Congo | B32: =IF(INTRO!$E$43="Non endémique"," ", IF(COUNTRY_INFO!B32=0," ",COUNTRY_INFO!B32)) -> Lékoumou | C32: =IF(INTRO!$E$43="Non endémique"," ", IF(COUNTRY_INFO!C32=0," ",COUNTRY_INFO!C32)) -> Sibiti | D32: =IF(INTRO!$E$43="Non endémique", 0, IF(COUNTRY_INFO!$K32>0, IF(COUNTRY_INFO!$K32=4, 0, IF(COUNTRY_INFO!$K32=1, COUNTRY_INFO!$F32*0.33, IF(COUNTRY_INFO!$K32=2, COUNTRY_INFO!$F32*0.5, COUNTRY_INFO!$F32))), 0)) -> 26322 | E32: =IF(INTRO!$E$43="Non endémique", 0, IF(COUNTRY_INFO!$K32>0, IF(COUNTRY_INFO!$K32=4, 0, IF(COUNTRY_INFO!$K32=1, 0, IF(COUNTRY_INFO!$K32=2, COUNTRY_INFO!$G32*0.2, COUNTRY_INFO!$G32))), 0)) -> 57556 | F32: 83878 | G32: =IF(INTRO!$E$43="Non endémique", "Non requis", COUNTRY_INFO!T32) -> 1 | I32: =IF($D32=0,0,IF(AND($G32>0,$H32<>"Oui"),D32,IF(AND($G32>0,$H32="Oui"),COUNTRY_INFO!$F32,0))) -> 26322 | K32: 57556 | L32: 83878 | M32: 65805 | N32: 172668 | O32: 65805 | Q32: 65805 | R32: 66
A33: =IF(INTRO!$E$43="Non endémique"," ", IF(COUNTRY_INFO!A33=0," ",COUNTRY_INFO!A33)) -> Congo | B33: =IF(INTRO!$E$43="Non endémique"," ", IF(COUNTRY_INFO!B33=0," ",COUNTRY_INFO!B33)) -> Lékoumou | C33: =IF(INTRO!$E$43="Non endémique"," ", IF(COUNTRY_INFO!C33=0," ",COUNTRY_INFO!C33)) -> Zanaga | D33: =IF(INTRO!$E$43="Non endémique", 0, IF(COUNTRY_INFO!$K33>0, IF(COUNTRY_INFO!$K33=4, 0, IF(COUNTRY_INFO!$K33=1, COUNTRY_INFO!$F33*0.33, IF(COUNTRY_INFO!$K33=2, COUNTRY_INFO!$F33*0.5, COUNTRY_INFO!$F33))), 0)) -> 0 | E33: =IF(INTRO!$E$43="Non endémique", 0, IF(COUNTRY_INFO!$K33>0, IF(COUNTRY_INFO!$K33=4, 0, IF(COUNTRY_INFO!$K33=1, 0, IF(COUNTRY_INFO!$K33=2, COUNTRY_INFO!$G33*0.2, COUNTRY_INFO!$G33))), 0)) -> 0 | F33: 0 | G33: =IF(INTRO!$E$43="Non endémique", "Non requis", COUNTRY_INFO!T33) -> 0 | I33: =IF($D33=0,0,IF(AND($G33>0,$H33<>"Oui"),D33,IF(AND($G33>0,$H33="Oui"),COUNTRY_INFO!$F33,0))) -> 0 | K33: 0 | L33: 0 | M33: 0 | N33: 0 | O33: 0 | Q33: 0 | R33: 0
A34: =IF(INTRO!$E$43="Non endémique"," ", IF(COUNTRY_INFO!A34=0," ",COUNTRY_INFO!A34)) -> Congo | B34: =IF(INTRO!$E$43="Non endémique"," ", IF(COUNTRY_INFO!B34=0," ",COUNTRY_INFO!B34)) -> Likouala | C34: =IF(INTRO!$E$43="Non endémique"," ", IF(COUNTRY_INFO!C34=0," ",COUNTRY_INFO!C34)) -> Bétou | D34: =IF(INTRO!$E$43="Non endémique", 0, IF(COUNTRY_INFO!$K34>0, IF(COUNTRY_INFO!$K34=4, 0, IF(COUNTRY_INFO!$K34=1, COUNTRY_INFO!$F34*0.33, IF(COUNTRY_INFO!$K34=2, COUNTRY_INFO!$F34*0.5, COUNTRY_INFO!$F34))), 0)) -> 0 | E34: =IF(INTRO!$E$43="Non endémique", 0, IF(COUNTRY_INFO!$K34>0, IF(COUNTRY_INFO!$K34=4, 0, IF(COUNTRY_INFO!$K34=1, 0, IF(COUNTRY_INFO!$K34=2, COUNTRY_INFO!$G34*0.2, COUNTRY_INFO!$G34))), 0)) -> 0 | F34: 0 | G34: =IF(INTRO!$E$43="Non endémique", "Non requis", COUNTRY_INFO!T34) -> 0 | I34: =IF($D34=0,0,IF(AND($G34>0,$H34<>"Oui"),D34,IF(AND($G34>0,$H34="Oui"),COUNTRY_INFO!$F34,0))) -> 0 | K34: 0 | L34: 0 | M34: 0 | N34: 0 | O34: 0 | Q34: 0 | R34: 0
A35: =IF(INTRO!$E$43="Non endémique"," ", IF(COUNTRY_INFO!A35=0," ",COUNTRY_INFO!A35)) -> Congo | B35: =IF(INTRO!$E$43="Non endémique"," ", IF(COUNTRY_INFO!B35=0," ",COUNTRY_INFO!B35)) -> Likouala | C35: =IF(INTRO!$E$43="Non endémique"," ", IF(COUNTRY_INFO!C35=0," ",COUNTRY_INFO!C35)) -> Impfondo | D35: =IF(INTRO!$E$43="Non endémique", 0, IF(COUNTRY_INFO!$K35>0, IF(COUNTRY_INFO!$K35=4, 0, IF(COUNTRY_INFO!$K35=1, COUNTRY_INFO!$F35*0.33, IF(COUNTRY_INFO!$K35=2, COUNTRY_INFO!$F35*0.5, COUNTRY_INFO!$F35))), 0)) -> 0 | E35: =IF(INTRO!$E$43="Non endémique", 0, IF(COUNTRY_INFO!$K35>0, IF(COUNTRY_INFO!$K35=4, 0, IF(COUNTRY_INFO!$K35=1, 0, IF(COUNTRY_INFO!$K35=2, COUNTRY_INFO!$G35*0.2, COUNTRY_INFO!$G35))), 0)) -> 0 | F35: 0 | G35: =IF(INTRO!$E$43="Non endémique", "Non requis", COUNTRY_INFO!T35) -> 0 | I35: =IF($D35=0,0,IF(AND($G35>0,$H35<>"Oui"),D35,IF(AND($G35>0,$H35="Oui"),COUNTRY_INFO!$F35,0))) -> 0 | K35: 0 | L35: 0 | M35: 0 | N35: 0 | O35: 0 | Q35: 0 | R35: 0
A36: =IF(INTRO!$E$43="Non endémique"," ", IF(COUNTRY_INFO!A36=0," ",COUNTRY_INFO!A36)) -> Congo | B36: =IF(INTRO!$E$43="Non endémique"," ", IF(COUNTRY_INFO!B36=0," ",COUNTRY_INFO!B36)) -> Niari | C36: =IF(INTRO!$E$43="Non endémique"," ", IF(COUNTRY_INFO!C36=0," ",COUNTRY_INFO!C36)) -> Dolisie | D36: =IF(INTRO!$E$43="Non endémique", 0, IF(COUNTRY_INFO!$K36>0, IF(COUNTRY_INFO!$K36=4, 0, IF(COUNTRY_INFO!$K36=1, COUNTRY_INFO!$F36*0.33, IF(COUNTRY_INFO!$K36=2, COUNTRY_INFO!$F36*0.5, COUNTRY_INFO!$F36))), 0)) -> 23724 | E36: =IF(INTRO!$E$43="Non endémique", 0, IF(COUNTRY_INFO!$K36>0, IF(COUNTRY_INFO!$K36=4, 0, IF(COUNTRY_INFO!$K36=1, 0, IF(COUNTRY_INFO!$K36=2, COUNTRY_INFO!$G36*0.2, COUNTRY_INFO!$G36))), 0)) -> 20749.4 | F36: 44473.4 | G36: =IF(INTRO!$E$43="Non endémique", "Non requis", COUNTRY_INFO!T36) -> 0 | I36: =IF($D36=0,0,IF(AND($G36>0,$H36<>"Oui"),D36,IF(AND($G36>0,$H36="Oui"),COUNTRY_INFO!$F36,0))) -> 0 | K36: 0 | L36: 0 | M36: 0 | N36: 0 | O36: 0 | Q36: 0 | R36: 0
A37: =IF(INTRO!$E$43="Non endémique"," ", IF(COUNTRY_INFO!A37=0," ",COUNTRY_INFO!A37)) -> Congo | B37: =IF(INTRO!$E$43="Non endémique"," ", IF(COUNTRY_INFO!B37=0," ",COUNTRY_INFO!B37)) -> Niari | C37: =IF(INTRO!$E$43="Non endémique"," ", IF(COUNTRY_INFO!C37=0," ",COUNTRY_INFO!C37)) -> Kibangou | D37: =IF(INTRO!$E$43="Non endémique", 0, IF(COUNTRY_INFO!$K37>0, IF(COUNTRY_INFO!$K37=4, 0, IF(COUNTRY_INFO!$K37=1, COUNTRY_INFO!$F37*0.33, IF(COUNTRY_INFO!$K37=2, COUNTRY_INFO!$F37*0.5, COUNTRY_INFO!$F37))), 0)) -> 6412.23 | E37: =IF(INTRO!$E$43="Non endémique", 0, IF(COUNTRY_INFO!$K37>0, IF(COUNTRY_INFO!$K37=4, 0, IF(COUNTRY_INFO!$K37=1, 0, IF(COUNTRY_INFO!$K37=2, COUNTRY_INFO!$G37*0.2, COUNTRY_INFO!$G37))), 0)) -> 0 | F37: 6412.23 | G37: =IF(INTRO!$E$43="Non endémique", "Non requis", COUNTRY_INFO!T37) -> 0 | I37: =IF($D37=0,0,IF(AND($G37>0,$H37<>"Oui"),D37,IF(AND($G37>0,$H37="Oui"),COUNTRY_INFO!$F37,0))) -> 0 | K37: 0 | L37: 0 | M37: 0 | N37: 0 | O37: 0 | Q37: 0 | R37: 0
A38: =IF(INTRO!$E$43="Non endémique"," ", IF(COUNTRY_INFO!A38=0," ",COUNTRY_INFO!A38)) -> Congo | B38: =IF(INTRO!$E$43="Non endémique"," ", IF(COUNTRY_INFO!B38=0," ",COUNTRY_INFO!B38)) -> Niari | C38: =IF(INTRO!$E$43="Non endémique"," ", IF(COUNTRY_INFO!C38=0," ",COUNTRY_INFO!C38)) -> Kimongo-Londela Nkayes | D38: =IF(INTRO!$E$43="Non endémique", 0, IF(COUNTRY_INFO!$K38>0, IF(COUNTRY_INFO!$K38=4, 0, IF(COUNTRY_INFO!$K38=1, COUNTRY_INFO!$F38*0.33, IF(COUNTRY_INFO!$K38=2, COUNTRY_INFO!$F38*0.5, COUNTRY_INFO!$F38))), 0)) -> 5788.5 | E38: =IF(INTRO!$E$43="Non endémique", 0, IF(COUNTRY_INFO!$K38>0, IF(COUNTRY_INFO!$K38=4, 0, IF(COUNTRY_INFO!$K38=1, 0, IF(COUNTRY_INFO!$K38=2, COUNTRY_INFO!$G38*0.2, COUNTRY_INFO!$G38))), 0)) -> 5062.8 | F38: 10851.3 | G38: =IF(INTRO!$E$43="Non endémique", "Non requis", COUNTRY_INFO!T38) -> 0 | I38: =IF($D38=0,0,IF(AND($G38>0,$H38<>"Oui"),D38,IF(AND($G38>0,$H38="Oui"),COUNTRY_INFO!$F38,0))) -> 0 | K38: 0 | L38: 0 | M38: 0 | N38: 0 | O38: 0 | Q38: 0 | R38: 0
A39: =IF(INTRO!$E$43="Non endémique"," ", IF(COUNTRY_INFO!A39=0," ",COUNTRY_INFO!A39)) -> Congo | B39: =IF(INTRO!$E$43="Non endémique"," ", IF(COUNTRY_INFO!B39=0," ",COUNTRY_INFO!B39)) -> Niari | C39: =IF(INTRO!$E$43="Non endémique"," ", IF(COUNTRY_INFO!C39=0," ",COUNTRY_INFO!C39)) -> Mayoko | D39: =IF(INTRO!$E$43="Non endémique", 0, IF(COUNTRY_INFO!$K39>0, IF(COUNTRY_INFO!$K39=4, 0, IF(COUNTRY_INFO!$K39=1, COUNTRY_INFO!$F39*0.33, IF(COUNTRY_INFO!$K39=2, COUNTRY_INFO!$F39*0.5, COUNTRY_INFO!$F39))), 0)) -> 0 | E39: =IF(INTRO!$E$43="Non endémique", 0, IF(COUNTRY_INFO!$K39>0, IF(COUNTRY_INFO!$K39=4, 0, IF(COUNTRY_INFO!$K39=1, 0, IF(COUNTRY_INFO!$K39=2, COUNTRY_INFO!$G39*0.2, COUNTRY_INFO!$G39))), 0)) -> 0 | F39: 0 | G39: =IF(INTRO!$E$43="Non endémique", "Non requis", COUNTRY_INFO!T39) -> 0 | I39: =IF($D39=0,0,IF(AND($G39>0,$H39<>"Oui"),D39,IF(AND($G39>0,$H39="Oui"),COUNTRY_INFO!$F39,0))) -> 0 | K39: 0 | L39: 0 | M39: 0 | N39: 0 | O39: 0 | Q39: 0 | R39: 0
A40: =IF(INTRO!$E$43="Non endémique"," ", IF(COUNTRY_INFO!A40=0," ",COUNTRY_INFO!A40)) -> Congo | B40: =IF(INTRO!$E$43="Non endémique"," ", IF(COUNTRY_INFO!B40=0," ",COUNTRY_INFO!B40)) -> Niari | C40: =IF(INTRO!$E$43="Non endémique"," ", IF(COUNTRY_INFO!C40=0," ",COUNTRY_INFO!C40)) -> Mossendjo | D40: =IF(INTRO!$E$43="Non endémique", 0, IF(COUNTRY_INFO!$K40>0, IF(COUNTRY_INFO!$K40=4, 0, IF(COUNTRY_INFO!$K40=1, COUNTRY_INFO!$F40*0.33, IF(COUNTRY_INFO!$K40=2, COUNTRY_INFO!$F40*0.5, COUNTRY_INFO!$F40))), 0)) -> 0 | E40: =IF(INTRO!$E$43="Non endémique", 0, IF(COUNTRY_INFO!$K40>0, IF(COUNTRY_INFO!$K40=4, 0, IF(COUNTRY_INFO!$K40=1, 0, IF(COUNTRY_INFO!$K40=2, COUNTRY_INFO!$G40*0.2, COUNTRY_INFO!$G40))), 0)) -> 0 | F40: 0 | G40: =IF(INTRO!$E$43="Non endémique", "Non requis", COUNTRY_INFO!T40) -> 0 | I40: =IF($D40=0,0,IF(AND($G40>0,$H40<>"Oui"),D40,IF(AND($G40>0,$H40="Oui"),COUNTRY_INFO!$F40,0))) -> 0 | K40: 0 | L40: 0 | M40: 0 | N40: 0 | O40: 0 | Q40: 0 | R40: 0
A41: =IF(INTRO!$E$43="Non endémique"," ", IF(COUNTRY_INFO!A41=0," ",COUNTRY_INFO!A41)) -> Congo | B41: =IF(INTRO!$E$43="Non endémique"," ", IF(COUNTRY_INFO!B41=0," ",COUNTRY_INFO!B41)) -> Plateaux | C41: =IF(INTRO!$E$43="Non endémique"," ", IF(COUNTRY_INFO!C41=0," ",COUNTRY_INFO!C41)) -> Abala | D41: =IF(INTRO!$E$43="Non endémique", 0, IF(COUNTRY_INFO!$K41>0, IF(COUNTRY_INFO!$K41=4, 0, IF(COUNTRY_INFO!$K41=1, COUNTRY_INFO!$F41*0.33, IF(COUNTRY_INFO!$K41=2, COUNTRY_INFO!$F41*0.5, COUNTRY_INFO!$F41))), 0)) -> 0 | E41: =IF(INTRO!$E$43="Non endémique", 0, IF(COUNTRY_INFO!$K41>0, IF(COUNTRY_INFO!$K41=4, 0, IF(COUNTRY_INFO!$K41=1, 0, IF(COUNTRY_INFO!$K41=2, COUNTRY_INFO!$G41*0.2, COUNTRY_INFO!$G41))), 0)) -> 0 | F41: =SUM(D41:E41) -> 0 | G41: =IF(INTRO!$E$43="Non endémique", "Non requis", COUNTRY_INFO!T41) -> 0 | I41: =IF($D41=0,0,IF(AND($G41>0,$H41<>"Oui"),D41,IF(AND($G41>0,$H41="Oui"),COUNTRY_INFO!$F41,0))) -> 0 | K41: =IF($G41>0,E41, 0) -> 0 | L41: =IF($J41=0,SUM(I41,K41),SUM(J41,K41)) -> 0 | M41: =IF($J41=0,$I41*2.5,$J41*2.5) -> 0 | N41: =$K41*3 -> 0 | O41: =M41 -> 0 | Q41: =IF($O41>$P41,O41-P41,0) -> 0 | R41: =ROUNDUP($O41/1000,0) -> 0
A42: =IF(INTRO!$E$43="Non endémique"," ", IF(COUNTRY_INFO!A42=0," ",COUNTRY_INFO!A42)) -> Congo | B42: =IF(INTRO!$E$43="Non endémique"," ", IF(COUNTRY_INFO!B42=0," ",COUNTRY_INFO!B42)) -> Plateaux | C42: =IF(INTRO!$E$43="Non endémique"," ", IF(COUNTRY_INFO!C42=0," ",COUNTRY_INFO!C42)) -> Djambala-Lékana | D42: =IF(INTRO!$E$43="Non endémique", 0, IF(COUNTRY_INFO!$K42>0, IF(COUNTRY_INFO!$K42=4, 0, IF(COUNTRY_INFO!$K42=1, COUNTRY_INFO!$F42*0.33, IF(COUNTRY_INFO!$K42=2, COUNTRY_INFO!$F42*0.5, COUNTRY_INFO!$F42))), 0)) -> 0 | E42: =IF(INTRO!$E$43="Non endémique", 0, IF(COUNTRY_INFO!$K42>0, IF(COUNTRY_INFO!$K42=4, 0, IF(COUNTRY_INFO!$K42=1, 0, IF(COUNTRY_INFO!$K42=2, COUNTRY_INFO!$G42*0.2, COUNTRY_INFO!$G42))), 0)) -> 0 | F42: 0 | G42: =IF(INTRO!$E$43="Non endémique", "Non requis", COUNTRY_INFO!T42) -> 0 | I42: =IF($D42=0,0,IF(AND($G42>0,$H42<>"Oui"),D42,IF(AND($G42>0,$H42="Oui"),COUNTRY_INFO!$F42,0))) -> 0 | K42: 0 | L42: 0 | M42: 0 | N42: 0 | O42: 0 | Q42: 0 | R42: 0
A43: =IF(INTRO!$E$43="Non endémique"," ", IF(COUNTRY_INFO!A43=0," ",COUNTRY_INFO!A43)) -> Congo | B43: =IF(INTRO!$E$43="Non endémique"," ", IF(COUNTRY_INFO!B43=0," ",COUNTRY_INFO!B43)) -> Plateaux | C43: =IF(INTRO!$E$43="Non endémique"," ", IF(COUNTRY_INFO!C43=0," ",COUNTRY_INFO!C43)) -> Gamboma | D43: =IF(INTRO!$E$43="Non endémique", 0, IF(COUNTRY_INFO!$K43>0, IF(COUNTRY_INFO!$K43=4, 0, IF(COUNTRY_INFO!$K43=1, COUNTRY_INFO!$F43*0.33, IF(COUNTRY_INFO!$K43=2, COUNTRY_INFO!$F43*0.5, COUNTRY_INFO!$F43))), 0)) -> 0 | E43: =IF(INTRO!$E$43="Non endémique", 0, IF(COUNTRY_INFO!$K43>0, IF(COUNTRY_INFO!$K43=4, 0, IF(COUNTRY_INFO!$K43=1, 0, IF(COUNTRY_INFO!$K43=2, COUNTRY_INFO!$G43*0.2, COUNTRY_INFO!$G43))), 0)) -> 0 | F43: 0 | G43: =IF(INTRO!$E$43="Non endémique", "Non requis", COUNTRY_INFO!T43) -> 0 | I43: =IF($D43=0,0,IF(AND($G43>0,$H43<>"Oui"),D43,IF(AND($G43>0,$H43="Oui"),COUNTRY_INFO!$F43,0))) -> 0 | K43: 0 | L43: 0 | M43: 0 | N43: 0 | O43: 0 | Q43: 0 | R43: 0
A44: =IF(INTRO!$E$43="Non endémique"," ", IF(COUNTRY_INFO!A44=0," ",COUNTRY_INFO!A44)) -> Congo | B44: =IF(INTRO!$E$43="Non endémique"," ", IF(COUNTRY_INFO!B44=0," ",COUNTRY_INFO!B44)) -> Plateaux | C44: =IF(INTRO!$E$43="Non endémique"," ", IF(COUNTRY_INFO!C44=0," ",COUNTRY_INFO!C44)) -> Ngo Mpouya | D44: =IF(INTRO!$E$43="Non endémique", 0, IF(COUNTRY_INFO!$K44>0, IF(COUNTRY_INFO!$K44=4, 0, IF(COUNTRY_INFO!$K44=1, COUNTRY_INFO!$F44*0.33, IF(COUNTRY_INFO!$K44=2, COUNTRY_INFO!$F44*0.5, COUNTRY_INFO!$F44))), 0)) -> 0 | E44: =IF(INTRO!$E$43="Non endémique", 0, IF(COUNTRY_INFO!$K44>0, IF(COUNTRY_INFO!$K44=4, 0, IF(COUNTRY_INFO!$K44=1, 0, IF(COUNTRY_INFO!$K44=2, COUNTRY_INFO!$G44*0.2, COUNTRY_INFO!$G44))), 0)) -> 0 | F44: 0 | G44: =IF(INTRO!$E$43="Non endémique", "Non requis", COUNTRY_INFO!T44) -> 0 | I44: =IF($D44=0,0,IF(AND($G44>0,$H44<>"Oui"),D44,IF(AND($G44>0,$H44="Oui"),COUNTRY_INFO!$F44,0))) -> 0 | K44: 0 | L44: 0 | M44: 0 | N44: 0 | O44: 0 | Q44: 0 | R44: 0
A45: =IF(INTRO!$E$43="Non endémique"," ", IF(COUNTRY_INFO!A45=0," ",COUNTRY_INFO!A45)) -> Congo | B45: =IF(INTRO!$E$43="Non endémique"," ", IF(COUNTRY_INFO!B45=0," ",COUNTRY_INFO!B45)) -> Pointe-Noire | C45: =IF(INTRO!$E$43="Non endémique"," ", IF(COUNTRY_INFO!C45=0," ",COUNTRY_INFO!C45)) -> Loandjili | D45: =IF(INTRO!$E$43="Non endémique", 0, IF(COUNTRY_INFO!$K45>0, IF(COUNTRY_INFO!$K45=4, 0, IF(COUNTRY_INFO!$K45=1, COUNTRY_INFO!$F45*0.33, IF(COUNTRY_INFO!$K45=2, COUNTRY_INFO!$F45*0.5, COUNTRY_INFO!$F45))), 0)) -> 27096.3 | E45: =IF(INTRO!$E$43="Non endémique", 0, IF(COUNTRY_INFO!$K45>0, IF(COUNTRY_INFO!$K45=4, 0, IF(COUNTRY_INFO!$K45=1, 0, IF(COUNTRY_INFO!$K45=2, COUNTRY_INFO!$G45*0.2, COUNTRY_INFO!$G45))), 0)) -> 0 | F45: 27096.3 | G45: =IF(INTRO!$E$43="Non endémique", "Non requis", COUNTRY_INFO!T45) -> 0 | I45: =IF($D45=0,0,IF(AND($G45>0,$H45<>"Oui"),D45,IF(AND($G45>0,$H45="Oui"),COUNTRY_INFO!$F45,0))) -> 0 | K45: 0 | L45: 0 | M45: 0 | N45: 0 | O45: 0 | Q45: 0 | R45: 0
A46: =IF(INTRO!$E$43="Non endémique"," ", IF(COUNTRY_INFO!A46=0," ",COUNTRY_INFO!A46)) -> Congo | B46: =IF(INTRO!$E$43="Non endémique"," ", IF(COUNTRY_INFO!B46=0," ",COUNTRY_INFO!B46)) -> Pointe-Noire | C46: =IF(INTRO!$E$43="Non endémique"," ", IF(COUNTRY_INFO!C46=0," ",COUNTRY_INFO!C46)) -> Lumumba | D46: =IF(INTRO!$E$43="Non endémique", 0, IF(COUNTRY_INFO!$K46>0, IF(COUNTRY_INFO!$K46=4, 0, IF(COUNTRY_INFO!$K46=1, COUNTRY_INFO!$F46*0.33, IF(COUNTRY_INFO!$K46=2, COUNTRY_INFO!$F46*0.5, COUNTRY_INFO!$F46))), 0)) -> 17054.4 | E46: =IF(INTRO!$E$43="Non endémique", 0, IF(COUNTRY_INFO!$K46>0, IF(COUNTRY_INFO!$K46=4, 0, IF(COUNTRY_INFO!$K46=1, 0, IF(COUNTRY_INFO!$K46=2, COUNTRY_INFO!$G46*0.2, COUNTRY_INFO!$G46))), 0)) -> 0 | F46: 17054.4 | G46: =IF(INTRO!$E$43="Non endémique", "Non requis", COUNTRY_INFO!T46) -> 0 | I46: =IF($D46=0,0,IF(AND($G46>0,$H46<>"Oui"),D46,IF(AND($G46>0,$H46="Oui"),COUNTRY_INFO!$F46,0))) -> 0 | K46: 0 | L46: 0 | M46: 0 | N46: 0 | O46: 0 | Q46: 0 | R46: 0
A47: =IF(INTRO!$E$43="Non endémique"," ", IF(COUNTRY_INFO!A47=0," ",COUNTRY_INFO!A47)) -> Congo | B47: =IF(INTRO!$E$43="Non endémique"," ", IF(COUNTRY_INFO!B47=0," ",COUNTRY_INFO!B47)) -> Pointe-Noire | C47: =IF(INTRO!$E$43="Non endémique"," ", IF(COUNTRY_INFO!C47=0," ",COUNTRY_INFO!C47)) -> Mongo-Poukou | D47: =IF(INTRO!$E$43="Non endémique", 0, IF(COUNTRY_INFO!$K47>0, IF(COUNTRY_INFO!$K47=4, 0, IF(COUNTRY_INFO!$K47=1, COUNTRY_INFO!$F47*0.33, IF(COUNTRY_INFO!$K47=2, COUNTRY_INFO!$F47*0.5, COUNTRY_INFO!$F47))), 0)) -> 0 | E47: =IF(INTRO!$E$43="Non endémique", 0, IF(COUNTRY_INFO!$K47>0, IF(COUNTRY_INFO!$K47=4, 0, IF(COUNTRY_INFO!$K47=1, 0, IF(COUNTRY_INFO!$K47=2, COUNTRY_INFO!$G47*0.2, COUNTRY_INFO!$G47))), 0)) -> 0 | F47: 0 | G47: =IF(INTRO!$E$43="Non endémique", "Non requis", COUNTRY_INFO!T47) -> 0 | I47: =IF($D47=0,0,IF(AND($G47>0,$H47<>"Oui"),D47,IF(AND($G47>0,$H47="Oui"),COUNTRY_INFO!$F47,0))) -> 0 | K47: 0 | L47: 0 | M47: 0 | N47: 0 | O47: 0 | Q47: 0 | R47: 0
A48: =IF(INTRO!$E$43="Non endémique"," ", IF(COUNTRY_INFO!A48=0," ",COUNTRY_INFO!A48)) -> Congo | B48: =IF(INTRO!$E$43="Non endémique"," ", IF(COUNTRY_INFO!B48=0," ",COUNTRY_INFO!B48)) -> Pointe-Noire | C48: =IF(INTRO!$E$43="Non endémique"," ", IF(COUNTRY_INFO!C48=0," ",COUNTRY_INFO!C48)) -> Mvoumvou | D48: =IF(INTRO!$E$43="Non endémique", 0, IF(COUNTRY_INFO!$K48>0, IF(COUNTRY_INFO!$K48=4, 0, IF(COUNTRY_INFO!$K48=1, COUNTRY_INFO!$F48*0.33, IF(COUNTRY_INFO!$K48=2, COUNTRY_INFO!$F48*0.5, COUNTRY_INFO!$F48))), 0)) -> 0 | E48: =IF(INTRO!$E$43="Non endémique", 0, IF(COUNTRY_INFO!$K48>0, IF(COUNTRY_INFO!$K48=4, 0, IF(COUNTRY_INFO!$K48=1, 0, IF(COUNTRY_INFO!$K48=2, COUNTRY_INFO!$G48*0.2, COUNTRY_INFO!$G48))), 0)) -> 0 | F48: 0 | G48: =IF(INTRO!$E$43="Non endémique", "Non requis", COUNTRY_INFO!T48) -> 0 | I48: =IF($D48=0,0,IF(AND($G48>0,$H48<>"Oui"),D48,IF(AND($G48>0,$H48="Oui"),COUNTRY_INFO!$F48,0))) -> 0 | K48: 0 | L48: 0 | M48: 0 | N48: 0 | O48: 0 | Q48: 0 | R48: 0
A49: =IF(INTRO!$E$43="Non endémique"," ", IF(COUNTRY_INFO!A49=0," ",COUNTRY_INFO!A49)) -> Congo | B49: =IF(INTRO!$E$43="Non endémique"," ", IF(COUNTRY_INFO!B49=0," ",COUNTRY_INFO!B49)) -> Pointe-Noire | C49: =IF(INTRO!$E$43="Non endémique"," ", IF(COUNTRY_INFO!C49=0," ",COUNTRY_INFO!C49)) -> Ngoyo | D49: =IF(INTRO!$E$43="Non endémique", 0, IF(COUNTRY_INFO!$K49>0, IF(COUNTRY_INFO!$K49=4, 0, IF(COUNTRY_INFO!$K49=1, COUNTRY_INFO!$F49*0.33, IF(COUNTRY_INFO!$K49=2, COUNTRY_INFO!$F49*0.5, COUNTRY_INFO!$F49))), 0)) -> 0 | E49: =IF(INTRO!$E$43="Non endémique", 0, IF(COUNTRY_INFO!$K49>0, IF(COUNTRY_INFO!$K49=4, 0, IF(COUNTRY_INFO!$K49=1, 0, IF(COUNTRY_INFO!$K49=2, COUNTRY_INFO!$G49*0.2, COUNTRY_INFO!$G49))), 0)) -> 0 | F49: 0 | G49: =IF(INTRO!$E$43="Non endémique", "Non requis", COUNTRY_INFO!T49) -> 0 | I49: =IF($D49=0,0,IF(AND($G49>0,$H49<>"Oui"),D49,IF(AND($G49>0,$H49="Oui"),COUNTRY_INFO!$F49,0))) -> 0 | K49: 0 | L49: 0 | M49: 0 | N49: 0 | O49: 0 | Q49: 0 | R49: 0
A50: =IF(INTRO!$E$43="Non endémique"," ", IF(COUNTRY_INFO!A50=0," ",COUNTRY_INFO!A50)) -> Congo | B50: =IF(INTRO!$E$43="Non endémique"," ", IF(COUNTRY_INFO!B50=0," ",COUNTRY_INFO!B50)) -> Pointe-Noire | C50: =IF(INTRO!$E$43="Non endémique"," ", IF(COUNTRY_INFO!C50=0," ",COUNTRY_INFO!C50)) -> Tchiamba Nzassi | D50: =IF(INTRO!$E$43="Non endémique", 0, IF(COUNTRY_INFO!$K50>0, IF(COUNTRY_INFO!$K50=4, 0, IF(COUNTRY_INFO!$K50=1, COUNTRY_INFO!$F50*0.33, IF(COUNTRY_INFO!$K50=2, COUNTRY_INFO!$F50*0.5, COUNTRY_INFO!$F50))), 0)) -> 2607 | E50: =IF(INTRO!$E$43="Non endémique", 0, IF(COUNTRY_INFO!$K50>0, IF(COUNTRY_INFO!$K50=4, 0, IF(COUNTRY_INFO!$K50=1, 0, IF(COUNTRY_INFO!$K50=2, COUNTRY_INFO!$G50*0.2, COUNTRY_INFO!$G50))), 0)) -> 0 | F50: 2607 | G50: =IF(INTRO!$E$43="Non endémique", "Non requis", COUNTRY_INFO!T50) -> 0 | I50: =IF($D50=0,0,IF(AND($G50>0,$H50<>"Oui"),D50,IF(AND($G50>0,$H50="Oui"),COUNTRY_INFO!$F50,0))) -> 0 | K50: 0 | L50: 0 | M50: 0 | N50: 0 | O50: 0 | Q50: 0 | R50: 0
A51: =IF(INTRO!$E$43="Non endémique"," ", IF(COUNTRY_INFO!A51=0," ",COUNTRY_INFO!A51)) -> Congo | B51: =IF(INTRO!$E$43="Non endémique"," ", IF(COUNTRY_INFO!B51=0," ",COUNTRY_INFO!B51)) -> Pointe-Noire | C51: =IF(INTRO!$E$43="Non endémique"," ", IF(COUNTRY_INFO!C51=0," ",COUNTRY_INFO!C51)) -> Tie-Tie | D51: =IF(INTRO!$E$43="Non endémique", 0, IF(COUNTRY_INFO!$K51>0, IF(COUNTRY_INFO!$K51=4, 0, IF(COUNTRY_INFO!$K51=1, COUNTRY_INFO!$F51*0.33, IF(COUNTRY_INFO!$K51=2, COUNTRY_INFO!$F51*0.5, COUNTRY_INFO!$F51))), 0)) -> 0 | E51: =IF(INTRO!$E$43="Non endémique", 0, IF(COUNTRY_INFO!$K51>0, IF(COUNTRY_INFO!$K51=4, 0, IF(COUNTRY_INFO!$K51=1, 0, IF(COUNTRY_INFO!$K51=2, COUNTRY_INFO!$G51*0.2, COUNTRY_INFO!$G51))), 0)) -> 0 | F51: 0 | G51: =IF(INTRO!$E$43="Non endémique", "Non requis", COUNTRY_INFO!T51) -> 0 | I51: =IF($D51=0,0,IF(AND($G51>0,$H51<>"Oui"),D51,IF(AND($G51>0,$H51="Oui"),COUNTRY_INFO!$F51,0))) -> 0 | K51: 0 | L51: 0 | M51: 0 | N51: 0 | O51: 0 | Q51: 0 | R51: 0
A52: =IF(INTRO!$E$43="Non endémique"," ", IF(COUNTRY_INFO!A52=0," ",COUNTRY_INFO!A52)) -> Congo | B52: =IF(INTRO!$E$43="Non endémique"," ", IF(COUNTRY_INFO!B52=0," ",COUNTRY_INFO!B52)) -> Pool | C52: =IF(INTRO!$E$43="Non endémique"," ", IF(COUNTRY_INFO!C52=0," ",COUNTRY_INFO!C52)) -> Boko | D52: =IF(INTRO!$E$43="Non endémique", 0, IF(COUNTRY_INFO!$K52>0, IF(COUNTRY_INFO!$K52=4, 0, IF(COUNTRY_INFO!$K52=1, COUNTRY_INFO!$F52*0.33, IF(COUNTRY_INFO!$K52=2, COUNTRY_INFO!$F52*0.5, COUNTRY_INFO!$F52))), 0)) -> 0 | E52: =IF(INTRO!$E$43="Non endémique", 0, IF(COUNTRY_INFO!$K52>0, IF(COUNTRY_INFO!$K52=4, 0, IF(COUNTRY_INFO!$K52=1, 0, IF(COUNTRY_INFO!$K52=2, COUNTRY_INFO!$G52*0.2, COUNTRY_INFO!$G52))), 0)) -> 0 | F52: 0 | G52: =IF(INTRO!$E$43="Non endémique", "Non requis", COUNTRY_INFO!T52) -> 0 | I52: =IF($D52=0,0,IF(AND($G52>0,$H52<>"Oui"),D52,IF(AND($G52>0,$H52="Oui"),COUNTRY_INFO!$F52,0))) -> 0 | K52: 0 | L52: 0 | M52: 0 | N52: 0 | O52: 0 | Q52: 0 | R52: 0
A53: =IF(INTRO!$E$43="Non endémique"," ", IF(COUNTRY_INFO!A53=0," ",COUNTRY_INFO!A53)) -> Congo | B53: =IF(INTRO!$E$43="Non endémique"," ", IF(COUNTRY_INFO!B53=0," ",COUNTRY_INFO!B53)) -> Pool | C53: =IF(INTRO!$E$43="Non endémique"," ", IF(COUNTRY_INFO!C53=0," ",COUNTRY_INFO!C53)) -> Goma tsétsé | D53: =IF(INTRO!$E$43="Non endémique", 0, IF(COUNTRY_INFO!$K53>0, IF(COUNTRY_INFO!$K53=4, 0, IF(COUNTRY_INFO!$K53=1, COUNTRY_INFO!$F53*0.33, IF(COUNTRY_INFO!$K53=2, COUNTRY_INFO!$F53*0.5, COUNTRY_INFO!$F53))), 0)) -> 0 | E53: =IF(INTRO!$E$43="Non endémique", 0, IF(COUNTRY_INFO!$K53>0, IF(COUNTRY_INFO!$K53=4, 0, IF(COUNTRY_INFO!$K53=1, 0, IF(COUNTRY_INFO!$K53=2, COUNTRY_INFO!$G53*0.2, COUNTRY_INFO!$G53))), 0)) -> 0 | F53: 0 | G53: =IF(INTRO!$E$43="Non endémique", "Non requis", COUNTRY_INFO!T53) -> 0 | I53: =IF($D53=0,0,IF(AND($G53>0,$H53<>"Oui"),D53,IF(AND($G53>0,$H53="Oui"),COUNTRY_INFO!$F53,0))) -> 0 | K53: 0 | L53: 0 | M53: 0 | N53: 0 | O53: 0 | Q53: 0 | R53: 0
A54: =IF(INTRO!$E$43="Non endémique"," ", IF(COUNTRY_INFO!A54=0," ",COUNTRY_INFO!A54)) -> Congo | B54: =IF(INTRO!$E$43="Non endémique"," ", IF(COUNTRY_INFO!B54=0," ",COUNTRY_INFO!B54)) -> Pool | C54: =IF(INTRO!$E$43="Non endémique"," ", IF(COUNTRY_INFO!C54=0," ",COUNTRY_INFO!C54)) -> Ignié | D54: =IF(INTRO!$E$43="Non endémique", 0, IF(COUNTRY_INFO!$K54>0, IF(COUNTRY_INFO!$K54=4, 0, IF(COUNTRY_INFO!$K54=1, COUNTRY_INFO!$F54*0.33, IF(COUNTRY_INFO!$K54=2, COUNTRY_INFO!$F54*0.5, COUNTRY_INFO!$F54))), 0)) -> 7578.45 | E54: =IF(INTRO!$E$43="Non endémique", 0, IF(COUNTRY_INFO!$K54>0, IF(COUNTRY_INFO!$K54=4, 0, IF(COUNTRY_INFO!$K54=1, 0, IF(COUNTRY_INFO!$K54=2, COUNTRY_INFO!$G54*0.2, COUNTRY_INFO!$G54))), 0)) -> 0 | F54: 7578.45 | G54: =IF(INTRO!$E$43="Non endémique", "Non requis", COUNTRY_INFO!T54) -> 0 | I54: =IF($D54=0,0,IF(AND($G54>0,$H54<>"Oui"),D54,IF(AND($G54>0,$H54="Oui"),COUNTRY_INFO!$F54,0))) -> 0 | K54: 0 | L54: 0 | M54: 0 | N54: 0 | O54: 0 | Q54: 0 | R54: 0
A55: =IF(INTRO!$E$43="Non endémique"," ", IF(COUNTRY_INFO!A55=0," ",COUNTRY_INFO!A55)) -> Congo | B55: =IF(INTRO!$E$43="Non endémique"," ", IF(COUNTRY_INFO!B55=0," ",COUNTRY_INFO!B55)) -> Pool | C55: =IF(INTRO!$E$43="Non endémique"," ", IF(COUNTRY_INFO!C55=0," ",COUNTRY_INFO!C55)) -> Kindamba | D55: =IF(INTRO!$E$43="Non endémique", 0, IF(COUNTRY_INFO!$K55>0, IF(COUNTRY_INFO!$K55=4, 0, IF(COUNTRY_INFO!$K55=1, COUNTRY_INFO!$F55*0.33, IF(COUNTRY_INFO!$K55=2, COUNTRY_INFO!$F55*0.5, COUNTRY_INFO!$F55))), 0)) -> 0 | E55: =IF(INTRO!$E$43="Non endémique", 0, IF(COUNTRY_INFO!$K55>0, IF(COUNTRY_INFO!$K55=4, 0, IF(COUNTRY_INFO!$K55=1, 0, IF(COUNTRY_INFO!$K55=2, COUNTRY_INFO!$G55*0.2, COUNTRY_INFO!$G55))), 0)) -> 0 | F55: 0 | G55: =IF(INTRO!$E$43="Non endémique", "Non requis", COUNTRY_INFO!T55) -> 0 | I55: =IF($D55=0,0,IF(AND($G55>0,$H55<>"Oui"),D55,IF(AND($G55>0,$H55="Oui"),COUNTRY_INFO!$F55,0))) -> 0 | K55: 0 | L55: 0 | M55: 0 | N55: 0 | O55: 0 | Q55: 0 | R55: 0
A56: =IF(INTRO!$E$43="Non endémique"," ", IF(COUNTRY_INFO!A56=0," ",COUNTRY_INFO!A56)) -> Congo | B56: =IF(INTRO!$E$43="Non endémique"," ", IF(COUNTRY_INFO!B56=0," ",COUNTRY_INFO!B56)) -> Pool | C56: =IF(INTRO!$E$43="Non endémique"," ", IF(COUNTRY_INFO!C56=0," ",COUNTRY_INFO!C56)) -> Kinkala | D56: =IF(INTRO!$E$43="Non endémique", 0, IF(COUNTRY_INFO!$K56>0, IF(COUNTRY_INFO!$K56=4, 0, IF(COUNTRY_INFO!$K56=1, COUNTRY_INFO!$F56*0.33, IF(COUNTRY_INFO!$K56=2, COUNTRY_INFO!$F56*0.5, COUNTRY_INFO!$F56))), 0)) -> 0 | E56: =IF(INTRO!$E$43="Non endémique", 0, IF(COUNTRY_INFO!$K56>0, IF(COUNTRY_INFO!$K56=4, 0, IF(COUNTRY_INFO!$K56=1, 0, IF(COUNTRY_INFO!$K56=2, COUNTRY_INFO!$G56*0.2, COUNTRY_INFO!$G56))), 0)) -> 0 | F56: 0 | G56: =IF(INTRO!$E$43="Non endémique", "Non requis", COUNTRY_INFO!T56) -> 0 | I56: =IF($D56=0,0,IF(AND($G56>0,$H56<>"Oui"),D56,IF(AND($G56>0,$H56="Oui"),COUNTRY_INFO!$F56,0))) -> 0 | K56: 0 | L56: 0 | M56: 0 | N56: 0 | O56: 0 | Q56: 0 | R56: 0
A57: =IF(INTRO!$E$43="Non endémique"," ", IF(COUNTRY_INFO!A57=0," ",COUNTRY_INFO!A57)) -> Congo | B57: =IF(INTRO!$E$43="Non endémique"," ", IF(COUNTRY_INFO!B57=0," ",COUNTRY_INFO!B57)) -> Pool | C57: =IF(INTRO!$E$43="Non endémique"," ", IF(COUNTRY_INFO!C57=0," ",COUNTRY_INFO!C57)) -> Kintélé | D57: =IF(INTRO!$E$43="Non endémique", 0, IF(COUNTRY_INFO!$K57>0, IF(COUNTRY_INFO!$K57=4, 0, IF(COUNTRY_INFO!$K57=1, COUNTRY_INFO!$F57*0.33, IF(COUNTRY_INFO!$K57=2, COUNTRY_INFO!$F57*0.5, COUNTRY_INFO!$F57))), 0)) -> 0 | E57: =IF(INTRO!$E$43="Non endémique", 0, IF(COUNTRY_INFO!$K57>0, IF(COUNTRY_INFO!$K57=4, 0, IF(COUNTRY_INFO!$K57=1, 0, IF(COUNTRY_INFO!$K57=2, COUNTRY_INFO!$G57*0.2, COUNTRY_INFO!$G57))), 0)) -> 0 | F57: 0 | G57: =IF(INTRO!$E$43="Non endémique", "Non requis", COUNTRY_INFO!T57) -> 0 | I57: =IF($D57=0,0,IF(AND($G57>0,$H57<>"Oui"),D57,IF(AND($G57>0,$H57="Oui"),COUNTRY_INFO!$F57,0))) -> 0 | K57: 0 | L57: 0 | M57: 0 | N57: 0 | O57: 0 | Q57: 0 | R57: 0
A58: =IF(INTRO!$E$43="Non endémique"," ", IF(COUNTRY_INFO!A58=0," ",COUNTRY_INFO!A58)) -> Congo | B58: =IF(INTRO!$E$43="Non endémique"," ", IF(COUNTRY_INFO!B58=0," ",COUNTRY_INFO!B58)) -> Pool | C58: =IF(INTRO!$E$43="Non endémique"," ", IF(COUNTRY_INFO!C58=0," ",COUNTRY_INFO!C58)) -> Mindouli | D58: =IF(INTRO!$E$43="Non endémique", 0, IF(COUNTRY_INFO!$K58>0, IF(COUNTRY_INFO!$K58=4, 0, IF(COUNTRY_INFO!$K58=1, COUNTRY_INFO!$F58*0.33, IF(COUNTRY_INFO!$K58=2, COUNTRY_INFO!$F58*0.5, COUNTRY_INFO!$F58))), 0)) -> 4691.94 | E58: =IF(INTRO!$E$43="Non endémique", 0, IF(COUNTRY_INFO!$K58>0, IF(COUNTRY_INFO!$K58=4, 0, IF(COUNTRY_INFO!$K58=1, 0, IF(COUNTRY_INFO!$K58=2, COUNTRY_INFO!$G58*0.2, COUNTRY_INFO!$G58))), 0)) -> 0 | F58: 4691.94 | G58: =IF(INTRO!$E$43="Non endémique", "Non requis", COUNTRY_INFO!T58) -> 0 | I58: =IF($D58=0,0,IF(AND($G58>0,$H58<>"Oui"),D58,IF(AND($G58>0,$H58="Oui"),COUNTRY_INFO!$F58,0))) -> 0 | K58: 0 | L58: 0 | M58: 0 | N58: 0 | O58: 0 | Q58: 0 | R58: 0
A59: =IF(INTRO!$E$43="Non endémique"," ", IF(COUNTRY_INFO!A59=0," ",COUNTRY_INFO!A59)) -> Congo | B59: =IF(INTRO!$E$43="Non endémique"," ", IF(COUNTRY_INFO!B59=0," ",COUNTRY_INFO!B59)) -> Sangha | C59: =IF(INTRO!$E$43="Non endémique"," ", IF(COUNTRY_INFO!C59=0," ",COUNTRY_INFO!C59)) -> Ouesso | D59: =IF(INTRO!$E$43="Non endémique", 0, IF(COUNTRY_INFO!$K59>0, IF(COUNTRY_INFO!$K59=4, 0, IF(COUNTRY_INFO!$K59=1, COUNTRY_INFO!$F59*0.33, IF(COUNTRY_INFO!$K59=2, COUNTRY_INFO!$F59*0.5, COUNTRY_INFO!$F59))), 0)) -> 7561.62 | E59: =IF(INTRO!$E$43="Non endémique", 0, IF(COUNTRY_INFO!$K59>0, IF(COUNTRY_INFO!$K59=4, 0, IF(COUNTRY_INFO!$K59=1, 0, IF(COUNTRY_INFO!$K59=2, COUNTRY_INFO!$G59*0.2, COUNTRY_INFO!$G59))), 0)) -> 0 | F59: 7561.62 | G59: =IF(INTRO!$E$43="Non endémique", "Non requis", COUNTRY_INFO!T59) -> 0 | I59: =IF($D59=0,0,IF(AND($G59>0,$H59<>"Oui"),D59,IF(AND($G59>0,$H59="Oui"),COUNTRY_INFO!$F59,0))) -> 0 | K59: 0 | L59: 0 | M59: 0 | N59: 0 | O59: 0 | Q59: 0 | R59: 0
A60: =IF(INTRO!$E$43="Non endémique"," ", IF(COUNTRY_INFO!A60=0," ",COUNTRY_INFO!A60)) -> Congo | B60: =IF(INTRO!$E$43="Non endémique"," ", IF(COUNTRY_INFO!B60=0," ",COUNTRY_INFO!B60)) -> Sangha | C60: =IF(INTRO!$E$43="Non endémique"," ", IF(COUNTRY_INFO!C60=0," ",COUNTRY_INFO!C60)) -> Sembé-Souanké | D60: =IF(INTRO!$E$43="Non endémique", 0, IF(COUNTRY_INFO!$K60>0, IF(COUNTRY_INFO!$K60=4, 0, IF(COUNTRY_INFO!$K60=1, COUNTRY_INFO!$F60*0.33, IF(COUNTRY_INFO!$K60=2, COUNTRY_INFO!$F60*0.5, COUNTRY_INFO!$F60))), 0)) -> 0 | E60: =IF(INTRO!$E$43="Non endémique", 0, IF(COUNTRY_INFO!$K60>0, IF(COUNTRY_INFO!$K60=4, 0, IF(COUNTRY_INFO!$K60=1, 0, IF(COUNTRY_INFO!$K60=2, COUNTRY_INFO!$G60*0.2, COUNTRY_INFO!$G60))), 0)) -> 0 | F60: 0 | G60: =IF(INTRO!$E$43="Non endémique", "Non requis", COUNTRY_INFO!T60) -> 0 | I60: =IF($D60=0,0,IF(AND($G60>0,$H60<>"Oui"),D60,IF(AND($G60>0,$H60="Oui"),COUNTRY_INFO!$F60,0))) -> 0 | K60: 0 | L60: 0 | M60: 0 | N60: 0 | O60: 0 | Q60: 0 | R60: 0

Sheet IVM
A1: Ivermectine (IVM)
A2: Structure administrative, population ciblée par groupe d'âge, plan de traitement et information sur les comprimés
A4: TOTAL | D4: =SUM(D$9:D$1000) -> 1593847 | G4: =SUM(G$9:G$1000) -> 268652 | H4: 776432 | I4: 0 | J4: 776432 | K4: 315473.2 | L4: 1737257.2 | M4: 436752.4 | N4: 2489482.8 | O4: 101500 | P4: 2387982.8 | Q4: 4991
A6: Structure administrative du pays | E6: Plan de traitement | G6: Population cible | K6: Ivermectine (IVM)
A7: Pays | B7: Région/Département | C7: District | D7: Population nécessitant un traitement avec IVM | E7: FL | F7: Oncho | G7: FL | H7: Oncho | K7: FL uniquement | L7: Oncho uniquement | M7: FL+Oncho | N7: Total requis | O7: Reste en stock | P7: Comprimés devant être fournis | Q7: Flacons (3mg) 500 comprimés
H8: dans le district | I8: dans les village | J8: total
A9: =IF(INTRO!$E$39="Non endémique"," ",IF(COUNTRY_INFO!A9=0," ",COUNTRY_INFO!A9)) -> Congo | B9: =IF(INTRO!$E$39="Non endémique"," ",IF(COUNTRY_INFO!B9=0," ",COUNTRY_INFO!B9)) -> Bouenza | C9: =IF(INTRO!$E$39="Non endémique"," ",IF(COUNTRY_INFO!C9=0," ",COUNTRY_INFO!C9)) -> Loudima | D9: =IF(INTRO!$E$39="Non endémique",0,IF(INTRO!$E$39="Endémique mais pas de CP",IF(COUNTRY_INFO!$H9=1,COUNTRY_INFO!F9+COUNTRY_INFO!G9,0),IF(COUNTRY_INFO!$H9=1,COUNTRY_INFO!F9+COUNTRY_INFO!G9,IF(COUNTRY_INFO!$I9=1,IF(COUNTRY_INFO!N9>=(COUNTRY_INFO!F9+COUNTRY_INFO!G9),COUNTRY_INFO!F9+COUNTRY_INFO!G9,COUNTRY_INFO!$N9),0)))) -> 15972 | E9: =IF(AND(INTRO!$E$39="Non endémique",INTRO!$E$37="Non endémique"),"Non requis",IF(INTRO!$E$39="Non endémique","Traiter avec DEC",COUNTRY_INFO!Q9)) -> 0 | F9: =IF(INTRO!$E$39<>"Non endémique",COUNTRY_INFO!R9,"Non requis") -> 1 | G9: =IF(COUNTRY_INFO!H9=1, IF($E9=1,IF(ALB_MBD!$J9<>" ",COUNTRY_INFO!F9+COUNTRY_INFO!G9-ALB_MBD!$J9,COUNTRY_INFO!F9+COUNTRY_INFO!G9), 0),0) -> 0 | H9: =IF(INTRO!$E$39<>"Endémique",0, IF(AND(COUNTRY_INFO!$I9=1,$F9<>0),IF(COUNTRY_INFO!N9>=(COUNTRY_INFO!F9+COUNTRY_INFO!G9),COUNTRY_INFO!F9+COUNTRY_INFO!G9,COUNTRY_INFO!$N9), 0)) -> 15972 | J9: =IF(I9=0,H9,IF(I9>H9,H9,I9)) -> 15972 | K9: =IF(G9<J9,0,IF($E9=1, (G9-J9)*2.8, 0)) -> 0 | L9: =IF($E9<$F9, J9*(F9-E9)*2.8, 0) -> 44721.6 | M9: =IF(AND($E9=1, $F9<>0), J9*2.8, 0) -> 0 | N9: =SUM(K9:M9) -> 44721.6 | P9: =IF($N9>$O9,$N9-$O9,0) -> 44721.6 | Q9: =ROUNDUP($N9/500,0) -> 90
A10: =IF(INTRO!$E$39="Non endémique"," ",IF(COUNTRY_INFO!A10=0," ",COUNTRY_INFO!A10)) -> Congo | B10: =IF(INTRO!$E$39="Non endémique"," ",IF(COUNTRY_INFO!B10=0," ",COUNTRY_INFO!B10)) -> Bouenza | C10: =IF(INTRO!$E$39="Non endémique"," ",IF(COUNTRY_INFO!C10=0," ",COUNTRY_INFO!C10)) -> Loutété | D10: =IF(INTRO!$E$39="Non endémique",0,IF(INTRO!$E$39="Endémique mais pas de CP",IF(COUNTRY_INFO!$H10=1,COUNTRY_INFO!F10+COUNTRY_INFO!G10,0),IF(COUNTRY_INFO!$H10=1,COUNTRY_INFO!F10+COUNTRY_INFO!G10,IF(COUNTRY_INFO!$I10=1,IF(COUNTRY_INFO!N10>=(COUNTRY_INFO!F10+COUNTRY_INFO!G10),COUNTRY_INFO!F10+COUNTRY_INFO!G10,COUNTRY_INFO!$N10),0)))) -> 52493 | E10: =IF(AND(INTRO!$E$39="Non endémique",INTRO!$E$37="Non endémique"),"Non requis",IF(INTRO!$E$39="Non endémique","Traiter avec DEC",COUNTRY_INFO!Q10)) -> 1 | F10: =IF(INTRO!$E$39<>"Non endémique",COUNTRY_INFO!R10,"Non requis") -> 1 | G10: =IF(COUNTRY_INFO!H10=1, IF($E10=1,IF(ALB_MBD!$J10<>" ",COUNTRY_INFO!F10+COUNTRY_INFO!G10-ALB_MBD!$J10,COUNTRY_INFO!F10+COUNTRY_INFO!G10), 0),0) -> 37521 | H10: =IF(INTRO!$E$39<>"Endémique",0, IF(AND(COUNTRY_INFO!$I10=1,$F10<>0),IF(COUNTRY_INFO!N10>=(COUNTRY_INFO!F10+COUNTRY_INFO!G10),COUNTRY_INFO!F10+COUNTRY_INFO!G10,COUNTRY_INFO!$N10), 0)) -> 33549 | J10: =IF(I10=0,H10,IF(I10>H10,H10,I10)) -> 33549 | K10: 11121.6 | L10: =IF($E10<$F10, J10*(F10-E10)*2.8, 0) -> 0 | M10: 93937.2 | N10: =SUM(K10:M10) -> 105058.8 | P10: 105058.8 | Q10: 211
A11: =IF(INTRO!$E$39="Non endémique"," ",IF(COUNTRY_INFO!A11=0," ",COUNTRY_INFO!A11)) -> Congo | B11: =IF(INTRO!$E$39="Non endémique"," ",IF(COUNTRY_INFO!B11=0," ",COUNTRY_INFO!B11)) -> Bouenza | C11: =IF(INTRO!$E$39="Non endémique"," ",IF(COUNTRY_INFO!C11=0," ",COUNTRY_INFO!C11)) -> Madingou | D11: =IF(INTRO!$E$39="Non endémique",0,IF(INTRO!$E$39="Endémique mais pas de CP",IF(COUNTRY_INFO!$H11=1,COUNTRY_INFO!F11+COUNTRY_INFO!G11,0),IF(COUNTRY_INFO!$H11=1,COUNTRY_INFO!F11+COUNTRY_INFO!G11,IF(COUNTRY_INFO!$I11=1,IF(COUNTRY_INFO!N11>=(COUNTRY_INFO!F11+COUNTRY_INFO!G11),COUNTRY_INFO!F11+COUNTRY_INFO!G11,COUNTRY_INFO!$N11),0)))) -> 99905 | E11: =IF(AND(INTRO!$E$39="Non endémique",INTRO!$E$37="Non endémique"),"Non requis",IF(INTRO!$E$39="Non endémique","Traiter avec DEC",COUNTRY_INFO!Q11)) -> 1 | F11: =IF(INTRO!$E$39<>"Non endémique",COUNTRY_INFO!R11,"Non requis") -> 1 | G11: =IF(COUNTRY_INFO!H11=1, IF($E11=1,IF(ALB_MBD!$J11<>" ",COUNTRY_INFO!F11+COUNTRY_INFO!G11-ALB_MBD!$J11,COUNTRY_INFO!F11+COUNTRY_INFO!G11), 0),0) -> 64633 | H11: =IF(INTRO!$E$39<>"Endémique",0, IF(AND(COUNTRY_INFO!$I11=1,$F11<>0),IF(COUNTRY_INFO!N11>=(COUNTRY_INFO!F11+COUNTRY_INFO!G11),COUNTRY_INFO!F11+COUNTRY_INFO!G11,COUNTRY_INFO!$N11), 0)) -> 53033 | J11: 53033 | K11: 32480 | L11: 0 | M11: 148492.4 | N11: 180972.4 | P11: 180972.4 | Q11: 362
A12: =IF(INTRO!$E$39="Non endémique"," ",IF(COUNTRY_INFO!A12=0," ",COUNTRY_INFO!A12)) -> Congo | B12: =IF(INTRO!$E$39="Non endémique"," ",IF(COUNTRY_INFO!B12=0," ",COUNTRY_INFO!B12)) -> Bouenza | C12: =IF(INTRO!$E$39="Non endémique"," ",IF(COUNTRY_INFO!C12=0," ",COUNTRY_INFO!C12)) -> Mouyondzi | D12: =IF(INTRO!$E$39="Non endémique",0,IF(INTRO!$E$39="Endémique mais pas de CP",IF(COUNTRY_INFO!$H12=1,COUNTRY_INFO!F12+COUNTRY_INFO!G12,0),IF(COUNTRY_INFO!$H12=1,COUNTRY_INFO!F12+COUNTRY_INFO!G12,IF(COUNTRY_INFO!$I12=1,IF(COUNTRY_INFO!N12>=(COUNTRY_INFO!F12+COUNTRY_INFO!G12),COUNTRY_INFO!F12+COUNTRY_INFO!G12,COUNTRY_INFO!$N12),0)))) -> 79424 | E12: =IF(AND(INTRO!$E$39="Non endémique",INTRO!$E$37="Non endémique"),"Non requis",IF(INTRO!$E$39="Non endémique","Traiter avec DEC",COUNTRY_INFO!Q12)) -> 1 | F12: =IF(INTRO!$E$39<>"Non endémique",COUNTRY_INFO!R12,"Non requis") -> 1 | G12: =IF(COUNTRY_INFO!H12=1, IF($E12=1,IF(ALB_MBD!$J12<>" ",COUNTRY_INFO!F12+COUNTRY_INFO!G12-ALB_MBD!$J12,COUNTRY_INFO!F12+COUNTRY_INFO!G12), 0),0) -> 50527 | H12: =IF(INTRO!$E$39<>"Endémique",0, IF(AND(COUNTRY_INFO!$I12=1,$F12<>0),IF(COUNTRY_INFO!N12>=(COUNTRY_INFO!F12+COUNTRY_INFO!G12),COUNTRY_INFO!F12+COUNTRY_INFO!G12,COUNTRY_INFO!$N12), 0)) -> 43184 | J12: =IF(I12=0,H12,IF(I12>H12,H12,I12)) -> 43184 | K12: =IF(G12<J12,0,IF($E12=1, (G12-J12)*2.8, 0)) -> 20560.4 | L12: 0 | M12: =IF(AND($E12=1, $F12<>0), J12*2.8, 0) -> 120915.2 | N12: =SUM(K12:M12) -> 141475.6 | P12: 141475.6 | Q12: 283
A13: =IF(INTRO!$E$39="Non endémique"," ",IF(COUNTRY_INFO!A13=0," ",COUNTRY_INFO!A13)) -> Congo | B13: =IF(INTRO!$E$39="Non endémique"," ",IF(COUNTRY_INFO!B13=0," ",COUNTRY_INFO!B13)) -> Bouenza | C13: =IF(INTRO!$E$39="Non endémique"," ",IF(COUNTRY_INFO!C13=0," ",COUNTRY_INFO!C13)) -> Nkayi | D13: =IF(INTRO!$E$39="Non endémique",0,IF(INTRO!$E$39="Endémique mais pas de CP",IF(COUNTRY_INFO!$H13=1,COUNTRY_INFO!F13+COUNTRY_INFO!G13,0),IF(COUNTRY_INFO!$H13=1,COUNTRY_INFO!F13+COUNTRY_INFO!G13,IF(COUNTRY_INFO!$I13=1,IF(COUNTRY_INFO!N13>=(COUNTRY_INFO!F13+COUNTRY_INFO!G13),COUNTRY_INFO!F13+COUNTRY_INFO!G13,COUNTRY_INFO!$N13),0)))) -> 41292 | E13: =IF(AND(INTRO!$E$39="Non endémique",INTRO!$E$37="Non endémique"),"Non requis",IF(INTRO!$E$39="Non endémique","Traiter avec DEC",COUNTRY_INFO!Q13)) -> 0 | F13: =IF(INTRO!$E$39<>"Non endémique",COUNTRY_INFO!R13,"Non requis") -> 1 | G13: =IF(COUNTRY_INFO!H13=1, IF($E13=1,IF(ALB_MBD!$J13<>" ",COUNTRY_INFO!F13+COUNTRY_INFO!G13-ALB_MBD!$J13,COUNTRY_INFO!F13+COUNTRY_INFO!G13), 0),0) -> 0 | H13: =IF(INTRO!$E$39<>"Endémique",0, IF(AND(COUNTRY_INFO!$I13=1,$F13<>0),IF(COUNTRY_INFO!N13>=(COUNTRY_INFO!F13+COUNTRY_INFO!G13),COUNTRY_INFO!F13+COUNTRY_INFO!G13,COUNTRY_INFO!$N13), 0)) -> 41292 | J13: 41292 | K13: 0 | L13: =IF($E13<$F13, J13*(F13-E13)*2.8, 0) -> 115617.6 | M13: 0 | N13: 115617.6 | P13: 115617.6 | Q13: 232
A14: =IF(INTRO!$E$39="Non endémique"," ",IF(COUNTRY_INFO!A14=0," ",COUNTRY_INFO!A14)) -> Congo | B14: =IF(INTRO!$E$39="Non endémique"," ",IF(COUNTRY_INFO!B14=0," ",COUNTRY_INFO!B14)) -> Brazzaville | C14: =IF(INTRO!$E$39="Non endémique"," ",IF(COUNTRY_INFO!C14=0," ",COUNTRY_INFO!C14)) -> Bacongo | D14: =IF(INTRO!$E$39="Non endémique",0,IF(INTRO!$E$39="Endémique mais pas de CP",IF(COUNTRY_INFO!$H14=1,COUNTRY_INFO!F14+COUNTRY_INFO!G14,0),IF(COUNTRY_INFO!$H14=1,COUNTRY_INFO!F14+COUNTRY_INFO!G14,IF(COUNTRY_INFO!$I14=1,IF(COUNTRY_INFO!N14>=(COUNTRY_INFO!F14+COUNTRY_INFO!G14),COUNTRY_INFO!F14+COUNTRY_INFO!G14,COUNTRY_INFO!$N14),0)))) -> 129776 | E14: =IF(AND(INTRO!$E$39="Non endémique",INTRO!$E$37="Non endémique"),"Non requis",IF(INTRO!$E$39="Non endémique","Traiter avec DEC",COUNTRY_INFO!Q14)) -> 0 | F14: =IF(INTRO!$E$39<>"Non endémique",COUNTRY_INFO!R14,"Non requis") -> 1 | G14: =IF(COUNTRY_INFO!H14=1, IF($E14=1,IF(ALB_MBD!$J14<>" ",COUNTRY_INFO!F14+COUNTRY_INFO!G14-ALB_MBD!$J14,COUNTRY_INFO!F14+COUNTRY_INFO!G14), 0),0) -> 0 | H14: =IF(INTRO!$E$39<>"Endémique",0, IF(AND(COUNTRY_INFO!$I14=1,$F14<>0),IF(COUNTRY_INFO!N14>=(COUNTRY_INFO!F14+COUNTRY_INFO!G14),COUNTRY_INFO!F14+COUNTRY_INFO!G14,COUNTRY_INFO!$N14), 0)) -> 129776 | J14: 129776 | K14: 0 | L14: 363372.8 | M14: 0 | N14: 363372.8 | P14: 363372.8 | Q14: 727
A15: =IF(INTRO!$E$39="Non endémique"," ",IF(COUNTRY_INFO!A15=0," ",COUNTRY_INFO!A15)) -> Congo | B15: =IF(INTRO!$E$39="Non endémique"," ",IF(COUNTRY_INFO!B15=0," ",COUNTRY_INFO!B15)) -> Brazzaville | C15: =IF(INTRO!$E$39="Non endémique"," ",IF(COUNTRY_INFO!C15=0," ",COUNTRY_INFO!C15)) -> Djiri | D15: =IF(INTRO!$E$39="Non endémique",0,IF(INTRO!$E$39="Endémique mais pas de CP",IF(COUNTRY_INFO!$H15=1,COUNTRY_INFO!F15+COUNTRY_INFO!G15,0),IF(COUNTRY_INFO!$H15=1,COUNTRY_INFO!F15+COUNTRY_INFO!G15,IF(COUNTRY_INFO!$I15=1,IF(COUNTRY_INFO!N15>=(COUNTRY_INFO!F15+COUNTRY_INFO!G15),COUNTRY_INFO!F15+COUNTRY_INFO!G15,COUNTRY_INFO!$N15),0)))) -> 0 | E15: =IF(AND(INTRO!$E$39="Non endémique",INTRO!$E$37="Non endémique"),"Non requis",IF(INTRO!$E$39="Non endémique","Traiter avec DEC",COUNTRY_INFO!Q15)) -> 0 | F15: =IF(INTRO!$E$39<>"Non endémique",COUNTRY_INFO!R15,"Non requis") -> 0 | G15: =IF(COUNTRY_INFO!H15=1, IF($E15=1,IF(ALB_MBD!$J15<>" ",COUNTRY_INFO!F15+COUNTRY_INFO!G15-ALB_MBD!$J15,COUNTRY_INFO!F15+COUNTRY_INFO!G15), 0),0) -> 0 | H15: =IF(INTRO!$E$39<>"Endémique",0, IF(AND(COUNTRY_INFO!$I15=1,$F15<>0),IF(COUNTRY_INFO!N15>=(COUNTRY_INFO!F15+COUNTRY_INFO!G15),COUNTRY_INFO!F15+COUNTRY_INFO!G15,COUNTRY_INFO!$N15), 0)) -> 0 | J15: 0 | K15: 0 | L15: 0 | M15: 0 | N15: 0 | P15: 0 | Q15: 0
A16: =IF(INTRO!$E$39="Non endémique"," ",IF(COUNTRY_INFO!A16=0," ",COUNTRY_INFO!A16)) -> Congo | B16: =IF(INTRO!$E$39="Non endémique"," ",IF(COUNTRY_INFO!B16=0," ",COUNTRY_INFO!B16)) -> Brazzaville | C16: =IF(INTRO!$E$39="Non endémique"," ",IF(COUNTRY_INFO!C16=0," ",COUNTRY_INFO!C16)) -> Île Mbamou | D16: =IF(INTRO!$E$39="Non endémique",0,IF(INTRO!$E$39="Endémique mais pas de CP",IF(COUNTRY_INFO!$H16=1,COUNTRY_INFO!F16+COUNTRY_INFO!G16,0),IF(COUNTRY_INFO!$H16=1,COUNTRY_INFO!F16+COUNTRY_INFO!G16,IF(COUNTRY_INFO!$I16=1,IF(COUNTRY_INFO!N16>=(COUNTRY_INFO!F16+COUNTRY_INFO!G16),COUNTRY_INFO!F16+COUNTRY_INFO!G16,COUNTRY_INFO!$N16),0)))) -> 0 | E16: =IF(AND(INTRO!$E$39="Non endémique",INTRO!$E$37="Non endémique"),"Non requis",IF(INTRO!$E$39="Non endémique","Traiter avec DEC",COUNTRY_INFO!Q16)) -> 0 | F16: =IF(INTRO!$E$39<>"Non endémique",COUNTRY_INFO!R16,"Non requis") -> 0 | G16: =IF(COUNTRY_INFO!H16=1, IF($E16=1,IF(ALB_MBD!$J16<>" ",COUNTRY_INFO!F16+COUNTRY_INFO!G16-ALB_MBD!$J16,COUNTRY_INFO!F16+COUNTRY_INFO!G16), 0),0) -> 0 | H16: =IF(INTRO!$E$39<>"Endémique",0, IF(AND(COUNTRY_INFO!$I16=1,$F16<>0),IF(COUNTRY_INFO!N16>=(COUNTRY_INFO!F16+COUNTRY_INFO!G16),COUNTRY_INFO!F16+COUNTRY_INFO!G16,COUNTRY_INFO!$N16), 0)) -> 0 | J16: 0 | K16: 0 | L16: 0 | M16: 0 | N16: 0 | P16: 0 | Q16: 0
A17: =IF(INTRO!$E$39="Non endémique"," ",IF(COUNTRY_INFO!A17=0," ",COUNTRY_INFO!A17)) -> Congo | B17: =IF(INTRO!$E$39="Non endémique"," ",IF(COUNTRY_INFO!B17=0," ",COUNTRY_INFO!B17)) -> Brazzaville | C17: =IF(INTRO!$E$39="Non endémique"," ",IF(COUNTRY_INFO!C17=0," ",COUNTRY_INFO!C17)) -> Madibou | D17: =IF(INTRO!$E$39="Non endémique",0,IF(INTRO!$E$39="Endémique mais pas de CP",IF(COUNTRY_INFO!$H17=1,COUNTRY_INFO!F17+COUNTRY_INFO!G17,0),IF(COUNTRY_INFO!$H17=1,COUNTRY_INFO!F17+COUNTRY_INFO!G17,IF(COUNTRY_INFO!$I17=1,IF(COUNTRY_INFO!N17>=(COUNTRY_INFO!F17+COUNTRY_INFO!G17),COUNTRY_INFO!F17+COUNTRY_INFO!G17,COUNTRY_INFO!$N17),0)))) -> 102873 | E17: =IF(AND(INTRO!$E$39="Non endémique",INTRO!$E$37="Non endémique"),"Non requis",IF(INTRO!$E$39="Non endémique","Traiter avec DEC",COUNTRY_INFO!Q17)) -> 0 | F17: =IF(INTRO!$E$39<>"Non endémique",COUNTRY_INFO!R17,"Non requis") -> 1 | G17: =IF(COUNTRY_INFO!H17=1, IF($E17=1,IF(ALB_MBD!$J17<>" ",COUNTRY_INFO!F17+COUNTRY_INFO!G17-ALB_MBD!$J17,COUNTRY_INFO!F17+COUNTRY_INFO!G17), 0),0) -> 0 | H17: =IF(INTRO!$E$39<>"Endémique",0, IF(AND(COUNTRY_INFO!$I17=1,$F17<>0),IF(COUNTRY_INFO!N17>=(COUNTRY_INFO!F17+COUNTRY_INFO!G17),COUNTRY_INFO!F17+COUNTRY_INFO!G17,COUNTRY_INFO!$N17), 0)) -> 102873 | J17: 102873 | K17: 0 | L17: 288044.4 | M17: 0 | N17: 288044.4 | P17: 288044.4 | Q17: 577
A18: =IF(INTRO!$E$39="Non endémique"," ",IF(COUNTRY_INFO!A18=0," ",COUNTRY_INFO!A18)) -> Congo | B18: =IF(INTRO!$E$39="Non endémique"," ",IF(COUNTRY_INFO!B18=0," ",COUNTRY_INFO!B18)) -> Brazzaville | C18: =IF(INTRO!$E$39="Non endémique"," ",IF(COUNTRY_INFO!C18=0," ",COUNTRY_INFO!C18)) -> Makélékélé | D18: =IF(INTRO!$E$39="Non endémique",0,IF(INTRO!$E$39="Endémique mais pas de CP",IF(COUNTRY_INFO!$H18=1,COUNTRY_INFO!F18+COUNTRY_INFO!G18,0),IF(COUNTRY_INFO!$H18=1,COUNTRY_INFO!F18+COUNTRY_INFO!G18,IF(COUNTRY_INFO!$I18=1,IF(COUNTRY_INFO!N18>=(COUNTRY_INFO!F18+COUNTRY_INFO!G18),COUNTRY_INFO!F18+COUNTRY_INFO!G18,COUNTRY_INFO!$N18),0)))) -> 99861 | E18: =IF(AND(INTRO!$E$39="Non endémique",INTRO!$E$37="Non endémique"),"Non requis",IF(INTRO!$E$39="Non endémique","Traiter avec DEC",COUNTRY_INFO!Q18)) -> 0 | F18: =IF(INTRO!$E$39<>"Non endémique",COUNTRY_INFO!R18,"Non requis") -> 1 | G18: =IF(COUNTRY_INFO!H18=1, IF($E18=1,IF(ALB_MBD!$J18<>" ",COUNTRY_INFO!F18+COUNTRY_INFO!G18-ALB_MBD!$J18,COUNTRY_INFO!F18+COUNTRY_INFO!G18), 0),0) -> 0 | H18: =IF(INTRO!$E$39<>"Endémique",0, IF(AND(COUNTRY_INFO!$I18=1,$F18<>0),IF(COUNTRY_INFO!N18>=(COUNTRY_INFO!F18+COUNTRY_INFO!G18),COUNTRY_INFO!F18+COUNTRY_INFO!G18,COUNTRY_INFO!$N18), 0)) -> 99861 | J18: 99861 | K18: 0 | L18: 279610.8 | M18: 0 | N18: 279610.8 | O18: 101500 | P18: 178110.8 | Q18: 560
A19: =IF(INTRO!$E$39="Non endémique"," ",IF(COUNTRY_INFO!A19=0," ",COUNTRY_INFO!A19)) -> Congo | B19: =IF(INTRO!$E$39="Non endémique"," ",IF(COUNTRY_INFO!B19=0," ",COUNTRY_INFO!B19)) -> Brazzaville | C19: =IF(INTRO!$E$39="Non endémique"," ",IF(COUNTRY_INFO!C19=0," ",COUNTRY_INFO!C19)) -> Mfilou | D19: =IF(INTRO!$E$39="Non endémique",0,IF(INTRO!$E$39="Endémique mais pas de CP",IF(COUNTRY_INFO!$H19=1,COUNTRY_INFO!F19+COUNTRY_INFO!G19,0),IF(COUNTRY_INFO!$H19=1,COUNTRY_INFO!F19+COUNTRY_INFO!G19,IF(COUNTRY_INFO!$I19=1,IF(COUNTRY_INFO!N19>=(COUNTRY_INFO!F19+COUNTRY_INFO!G19),COUNTRY_INFO!F19+COUNTRY_INFO!G19,COUNTRY_INFO!$N19),0)))) -> 92404 | E19: =IF(AND(INTRO!$E$39="Non endémique",INTRO!$E$37="Non endémique"),"Non requis",IF(INTRO!$E$39="Non endémique","Traiter avec DEC",COUNTRY_INFO!Q19)) -> 0 | F19: =IF(INTRO!$E$39<>"Non endémique",COUNTRY_INFO!R19,"Non requis") -> 1 | G19: =IF(COUNTRY_INFO!H19=1, IF($E19=1,IF(ALB_MBD!$J19<>" ",COUNTRY_INFO!F19+COUNTRY_INFO!G19-ALB_MBD!$J19,COUNTRY_INFO!F19+COUNTRY_INFO!G19), 0),0) -> 0 | H19: =IF(INTRO!$E$39<>"Endémique",0, IF(AND(COUNTRY_INFO!$I19=1,$F19<>0),IF(COUNTRY_INFO!N19>=(COUNTRY_INFO!F19+COUNTRY_INFO!G19),COUNTRY_INFO!F19+COUNTRY_INFO!G19,COUNTRY_INFO!$N19), 0)) -> 92404 | J19: 92404 | K19: 0 | L19: 258731.2 | M19: 0 | N19: 258731.2 | P19: 258731.2 | Q19: 518
A20: =IF(INTRO!$E$39="Non endémique"," ",IF(COUNTRY_INFO!A20=0," ",COUNTRY_INFO!A20)) -> Congo | B20: =IF(INTRO!$E$39="Non endémique"," ",IF(COUNTRY_INFO!B20=0," ",COUNTRY_INFO!B20)) -> Brazzaville | C20: =IF(INTRO!$E$39="Non endémique"," ",IF(COUNTRY_INFO!C20=0," ",COUNTRY_INFO!C20)) -> Moungali | D20: =IF(INTRO!$E$39="Non endémique",0,IF(INTRO!$E$39="Endémique mais pas de CP",IF(COUNTRY_INFO!$H20=1,COUNTRY_INFO!F20+COUNTRY_INFO!G20,0),IF(COUNTRY_INFO!$H20=1,COUNTRY_INFO!F20+COUNTRY_INFO!G20,IF(COUNTRY_INFO!$I20=1,IF(COUNTRY_INFO!N20>=(COUNTRY_INFO!F20+COUNTRY_INFO!G20),COUNTRY_INFO!F20+COUNTRY_INFO!G20,COUNTRY_INFO!$N20),0)))) -> 0 | E20: =IF(AND(INTRO!$E$39="Non endémique",INTRO!$E$37="Non endémique"),"Non requis",IF(INTRO!$E$39="Non endémique","Traiter avec DEC",COUNTRY_INFO!Q20)) -> 0 | F20: =IF(INTRO!$E$39<>"Non endémique",COUNTRY_INFO!R20,"Non requis") -> 0 | G20: =IF(COUNTRY_INFO!H20=1, IF($E20=1,IF(ALB_MBD!$J20<>" ",COUNTRY_INFO!F20+COUNTRY_INFO!G20-ALB_MBD!$J20,COUNTRY_INFO!F20+COUNTRY_INFO!G20), 0),0) -> 0 | H20: =IF(INTRO!$E$39<>"Endémique",0, IF(AND(COUNTRY_INFO!$I20=1,$F20<>0),IF(COUNTRY_INFO!N20>=(COUNTRY_INFO!F20+COUNTRY_INFO!G20),COUNTRY_INFO!F20+COUNTRY_INFO!G20,COUNTRY_INFO!$N20), 0)) -> 0 | J20: 0 | K20: 0 | L20: 0 | M20: 0 | N20: 0 | P20: 0 | Q20: 0
A21: =IF(INTRO!$E$39="Non endémique"," ",IF(COUNTRY_INFO!A21=0," ",COUNTRY_INFO!A21)) -> Congo | B21: =IF(INTRO!$E$39="Non endémique"," ",IF(COUNTRY_INFO!B21=0," ",COUNTRY_INFO!B21)) -> Brazzaville | C21: =IF(INTRO!$E$39="Non endémique"," ",IF(COUNTRY_INFO!C21=0," ",COUNTRY_INFO!C21)) -> Ouenzé | D21: =IF(INTRO!$E$39="Non endémique",0,IF(INTRO!$E$39="Endémique mais pas de CP",IF(COUNTRY_INFO!$H21=1,COUNTRY_INFO!F21+COUNTRY_INFO!G21,0),IF(COUNTRY_INFO!$H21=1,COUNTRY_INFO!F21+COUNTRY_INFO!G21,IF(COUNTRY_INFO!$I21=1,IF(COUNTRY_INFO!N21>=(COUNTRY_INFO!F21+COUNTRY_INFO!G21),COUNTRY_INFO!F21+COUNTRY_INFO!G21,COUNTRY_INFO!$N21),0)))) -> 0 | E21: =IF(AND(INTRO!$E$39="Non endémique",INTRO!$E$37="Non endémique"),"Non requis",IF(INTRO!$E$39="Non endémique","Traiter avec DEC",COUNTRY_INFO!Q21)) -> 0 | F21: =IF(INTRO!$E$39<>"Non endémique",COUNTRY_INFO!R21,"Non requis") -> 0 | G21: =IF(COUNTRY_INFO!H21=1, IF($E21=1,IF(ALB_MBD!$J21<>" ",COUNTRY_INFO!F21+COUNTRY_INFO!G21-ALB_MBD!$J21,COUNTRY_INFO!F21+COUNTRY_INFO!G21), 0),0) -> 0 | H21: =IF(INTRO!$E$39<>"Endémique",0, IF(AND(COUNTRY_INFO!$I21=1,$F21<>0),IF(COUNTRY_INFO!N21>=(COUNTRY_INFO!F21+COUNTRY_INFO!G21),COUNTRY_INFO!F21+COUNTRY_INFO!G21,COUNTRY_INFO!$N21), 0)) -> 0 | J21: 0 | K21: 0 | L21: 0 | M21: 0 | N21: 0 | P21: 0 | Q21: 0
A22: =IF(INTRO!$E$39="Non endémique"," ",IF(COUNTRY_INFO!A22=0," ",COUNTRY_INFO!A22)) -> Congo | B22: =IF(INTRO!$E$39="Non endémique"," ",IF(COUNTRY_INFO!B22=0," ",COUNTRY_INFO!B22)) -> Brazzaville | C22: =IF(INTRO!$E$39="Non endémique"," ",IF(COUNTRY_INFO!C22=0," ",COUNTRY_INFO!C22)) -> Poto-Poto | D22: =IF(INTRO!$E$39="Non endémique",0,IF(INTRO!$E$39="Endémique mais pas de CP",IF(COUNTRY_INFO!$H22=1,COUNTRY_INFO!F22+COUNTRY_INFO!G22,0),IF(COUNTRY_INFO!$H22=1,COUNTRY_INFO!F22+COUNTRY_INFO!G22,IF(COUNTRY_INFO!$I22=1,IF(COUNTRY_INFO!N22>=(COUNTRY_INFO!F22+COUNTRY_INFO!G22),COUNTRY_INFO!F22+COUNTRY_INFO!G22,COUNTRY_INFO!$N22),0)))) -> 0 | E22: =IF(AND(INTRO!$E$39="Non endémique",INTRO!$E$37="Non endémique"),"Non requis",IF(INTRO!$E$39="Non endémique","Traiter avec DEC",COUNTRY_INFO!Q22)) -> 0 | F22: =IF(INTRO!$E$39<>"Non endémique",COUNTRY_INFO!R22,"Non requis") -> 0 | G22: =IF(COUNTRY_INFO!H22=1, IF($E22=1,IF(ALB_MBD!$J22<>" ",COUNTRY_INFO!F22+COUNTRY_INFO!G22-ALB_MBD!$J22,COUNTRY_INFO!F22+COUNTRY_INFO!G22), 0),0) -> 0 | H22: =IF(INTRO!$E$39<>"Endémique",0, IF(AND(COUNTRY_INFO!$I22=1,$F22<>0),IF(COUNTRY_INFO!N22>=(COUNTRY_INFO!F22+COUNTRY_INFO!G22),COUNTRY_INFO!F22+COUNTRY_INFO!G22,COUNTRY_INFO!$N22), 0)) -> 0 | J22: 0 | K22: 0 | L22: 0 | M22: 0 | N22: 0 | P22: 0 | Q22: 0
A23: =IF(INTRO!$E$39="Non endémique"," ",IF(COUNTRY_INFO!A23=0," ",COUNTRY_INFO!A23)) -> Congo | B23: =IF(INTRO!$E$39="Non endémique"," ",IF(COUNTRY_INFO!B23=0," ",COUNTRY_INFO!B23)) -> Brazzaville | C23: =IF(INTRO!$E$39="Non endémique"," ",IF(COUNTRY_INFO!C23=0," ",COUNTRY_INFO!C23)) -> Talangaî | D23: =IF(INTRO!$E$39="Non endémique",0,IF(INTRO!$E$39="Endémique mais pas de CP",IF(COUNTRY_INFO!$H23=1,COUNTRY_INFO!F23+COUNTRY_INFO!G23,0),IF(COUNTRY_INFO!$H23=1,COUNTRY_INFO!F23+COUNTRY_INFO!G23,IF(COUNTRY_INFO!$I23=1,IF(COUNTRY_INFO!N23>=(COUNTRY_INFO!F23+COUNTRY_INFO!G23),COUNTRY_INFO!F23+COUNTRY_INFO!G23,COUNTRY_INFO!$N23),0)))) -> 0 | E23: =IF(AND(INTRO!$E$39="Non endémique",INTRO!$E$37="Non endémique"),"Non requis",IF(INTRO!$E$39="Non endémique","Traiter avec DEC",COUNTRY_INFO!Q23)) -> 0 | F23: =IF(INTRO!$E$39<>"Non endémique",COUNTRY_INFO!R23,"Non requis") -> 0 | G23: =IF(COUNTRY_INFO!H23=1, IF($E23=1,IF(ALB_MBD!$J23<>" ",COUNTRY_INFO!F23+COUNTRY_INFO!G23-ALB_MBD!$J23,COUNTRY_INFO!F23+COUNTRY_INFO!G23), 0),0) -> 0 | H23: =IF(INTRO!$E$39<>"Endémique",0, IF(AND(COUNTRY_INFO!$I23=1,$F23<>0),IF(COUNTRY_INFO!N23>=(COUNTRY_INFO!F23+COUNTRY_INFO!G23),COUNTRY_INFO!F23+COUNTRY_INFO!G23,COUNTRY_INFO!$N23), 0)) -> 0 | J23: 0 | K23: 0 | L23: 0 | M23: 0 | N23: 0 | P23: 0 | Q23: 0
A24: =IF(INTRO!$E$39="Non endémique"," ",IF(COUNTRY_INFO!A24=0," ",COUNTRY_INFO!A24)) -> Congo | B24: =IF(INTRO!$E$39="Non endémique"," ",IF(COUNTRY_INFO!B24=0," ",COUNTRY_INFO!B24)) -> Cuvette | C24: =IF(INTRO!$E$39="Non endémique"," ",IF(COUNTRY_INFO!C24=0," ",COUNTRY_INFO!C24)) -> Mossaka | D24: =IF(INTRO!$E$39="Non endémique",0,IF(INTRO!$E$39="Endémique mais pas de CP",IF(COUNTRY_INFO!$H24=1,COUNTRY_INFO!F24+COUNTRY_INFO!G24,0),IF(COUNTRY_INFO!$H24=1,COUNTRY_INFO!F24+COUNTRY_INFO!G24,IF(COUNTRY_INFO!$I24=1,IF(COUNTRY_INFO!N24>=(COUNTRY_INFO!F24+COUNTRY_INFO!G24),COUNTRY_INFO!F24+COUNTRY_INFO!G24,COUNTRY_INFO!$N24),0)))) -> 0 | E24: =IF(AND(INTRO!$E$39="Non endémique",INTRO!$E$37="Non endémique"),"Non requis",IF(INTRO!$E$39="Non endémique","Traiter avec DEC",COUNTRY_INFO!Q24)) -> 0 | F24: =IF(INTRO!$E$39<>"Non endémique",COUNTRY_INFO!R24,"Non requis") -> 0 | G24: =IF(COUNTRY_INFO!H24=1, IF($E24=1,IF(ALB_MBD!$J24<>" ",COUNTRY_INFO!F24+COUNTRY_INFO!G24-ALB_MBD!$J24,COUNTRY_INFO!F24+COUNTRY_INFO!G24), 0),0) -> 0 | H24: =IF(INTRO!$E$39<>"Endémique",0, IF(AND(COUNTRY_INFO!$I24=1,$F24<>0),IF(COUNTRY_INFO!N24>=(COUNTRY_INFO!F24+COUNTRY_INFO!G24),COUNTRY_INFO!F24+COUNTRY_INFO!G24,COUNTRY_INFO!$N24), 0)) -> 0 | J24: 0 | K24: 0 | L24: 0 | M24: 0 | N24: 0 | P24: 0 | Q24: 0
A25: =IF(INTRO!$E$39="Non endémique"," ",IF(COUNTRY_INFO!A25=0," ",COUNTRY_INFO!A25)) -> Congo | B25: =IF(INTRO!$E$39="Non endémique"," ",IF(COUNTRY_INFO!B25=0," ",COUNTRY_INFO!B25)) -> Cuvette | C25: =IF(INTRO!$E$39="Non endémique"," ",IF(COUNTRY_INFO!C25=0," ",COUNTRY_INFO!C25)) -> Owando | D25: =IF(INTRO!$E$39="Non endémique",0,IF(INTRO!$E$39="Endémique mais pas de CP",IF(COUNTRY_INFO!$H25=1,COUNTRY_INFO!F25+COUNTRY_INFO!G25,0),IF(COUNTRY_INFO!$H25=1,COUNTRY_INFO!F25+COUNTRY_INFO!G25,IF(COUNTRY_INFO!$I25=1,IF(COUNTRY_INFO!N25>=(COUNTRY_INFO!F25+COUNTRY_INFO!G25),COUNTRY_INFO!F25+COUNTRY_INFO!G25,COUNTRY_INFO!$N25),0)))) -> 89156 | E25: =IF(AND(INTRO!$E$39="Non endémique",INTRO!$E$37="Non endémique"),"Non requis",IF(INTRO!$E$39="Non endémique","Traiter avec DEC",COUNTRY_INFO!Q25)) -> 1 | F25: =IF(INTRO!$E$39<>"Non endémique",COUNTRY_INFO!R25,"Non requis") -> 0 | G25: =IF(COUNTRY_INFO!H25=1, IF($E25=1,IF(ALB_MBD!$J25<>" ",COUNTRY_INFO!F25+COUNTRY_INFO!G25-ALB_MBD!$J25,COUNTRY_INFO!F25+COUNTRY_INFO!G25), 0),0) -> 4211 | H25: =IF(INTRO!$E$39<>"Endémique",0, IF(AND(COUNTRY_INFO!$I25=1,$F25<>0),IF(COUNTRY_INFO!N25>=(COUNTRY_INFO!F25+COUNTRY_INFO!G25),COUNTRY_INFO!F25+COUNTRY_INFO!G25,COUNTRY_INFO!$N25), 0)) -> 0 | J25: 0 | K25: 11790.8 | L25: 0 | M25: 0 | N25: 11790.8 | P25: 11790.8 | Q25: 24
A26: =IF(INTRO!$E$39="Non endémique"," ",IF(COUNTRY_INFO!A26=0," ",COUNTRY_INFO!A26)) -> Congo | B26: =IF(INTRO!$E$39="Non endémique"," ",IF(COUNTRY_INFO!B26=0," ",COUNTRY_INFO!B26)) -> Cuvette | C26: =IF(INTRO!$E$39="Non endémique"," ",IF(COUNTRY_INFO!C26=0," ",COUNTRY_INFO!C26)) -> Oyo-Alima | D26: =IF(INTRO!$E$39="Non endémique",0,IF(INTRO!$E$39="Endémique mais pas de CP",IF(COUNTRY_INFO!$H26=1,COUNTRY_INFO!F26+COUNTRY_INFO!G26,0),IF(COUNTRY_INFO!$H26=1,COUNTRY_INFO!F26+COUNTRY_INFO!G26,IF(COUNTRY_INFO!$I26=1,IF(COUNTRY_INFO!N26>=(COUNTRY_INFO!F26+COUNTRY_INFO!G26),COUNTRY_INFO!F26+COUNTRY_INFO!G26,COUNTRY_INFO!$N26),0)))) -> 0 | E26: =IF(AND(INTRO!$E$39="Non endémique",INTRO!$E$37="Non endémique"),"Non requis",IF(INTRO!$E$39="Non endémique","Traiter avec DEC",COUNTRY_INFO!Q26)) -> 0 | F26: =IF(INTRO!$E$39<>"Non endémique",COUNTRY_INFO!R26,"Non requis") -> 0 | G26: =IF(COUNTRY_INFO!H26=1, IF($E26=1,IF(ALB_MBD!$J26<>" ",COUNTRY_INFO!F26+COUNTRY_INFO!G26-ALB_MBD!$J26,COUNTRY_INFO!F26+COUNTRY_INFO!G26), 0),0) -> 0 | H26: =IF(INTRO!$E$39<>"Endémique",0, IF(AND(COUNTRY_INFO!$I26=1,$F26<>0),IF(COUNTRY_INFO!N26>=(COUNTRY_INFO!F26+COUNTRY_INFO!G26),COUNTRY_INFO!F26+COUNTRY_INFO!G26,COUNTRY_INFO!$N26), 0)) -> 0 | J26: 0 | K26: 0 | L26: 0 | M26: 0 | N26: 0 | P26: 0 | Q26: 0
A27: =IF(INTRO!$E$39="Non endémique"," ",IF(COUNTRY_INFO!A27=0," ",COUNTRY_INFO!A27)) -> Congo | B27: =IF(INTRO!$E$39="Non endémique"," ",IF(COUNTRY_INFO!B27=0," ",COUNTRY_INFO!B27)) -> Cuvette-Ouest | C27: =IF(INTRO!$E$39="Non endémique"," ",IF(COUNTRY_INFO!C27=0," ",COUNTRY_INFO!C27)) -> Etoumbi | D27: =IF(INTRO!$E$39="Non endémique",0,IF(INTRO!$E$39="Endémique mais pas de CP",IF(COUNTRY_INFO!$H27=1,COUNTRY_INFO!F27+COUNTRY_INFO!G27,0),IF(COUNTRY_INFO!$H27=1,COUNTRY_INFO!F27+COUNTRY_INFO!G27,IF(COUNTRY_INFO!$I27=1,IF(COUNTRY_INFO!N27>=(COUNTRY_INFO!F27+COUNTRY_INFO!G27),COUNTRY_INFO!F27+COUNTRY_INFO!G27,COUNTRY_INFO!$N27),0)))) -> 40154 | E27: =IF(AND(INTRO!$E$39="Non endémique",INTRO!$E$37="Non endémique"),"Non requis",IF(INTRO!$E$39="Non endémique","Traiter avec DEC",COUNTRY_INFO!Q27)) -> 1 | F27: =IF(INTRO!$E$39<>"Non endémique",COUNTRY_INFO!R27,"Non requis") -> 0 | G27: =IF(COUNTRY_INFO!H27=1, IF($E27=1,IF(ALB_MBD!$J27<>" ",COUNTRY_INFO!F27+COUNTRY_INFO!G27-ALB_MBD!$J27,COUNTRY_INFO!F27+COUNTRY_INFO!G27), 0),0) -> 1897 | H27: =IF(INTRO!$E$39<>"Endémique",0, IF(AND(COUNTRY_INFO!$I27=1,$F27<>0),IF(COUNTRY_INFO!N27>=(COUNTRY_INFO!F27+COUNTRY_INFO!G27),COUNTRY_INFO!F27+COUNTRY_INFO!G27,COUNTRY_INFO!$N27), 0)) -> 0 | J27: 0 | K27: 5311.6 | L27: 0 | M27: 0 | N27: 5311.6 | P27: 5311.6 | Q27: 11
A28: =IF(INTRO!$E$39="Non endémique"," ",IF(COUNTRY_INFO!A28=0," ",COUNTRY_INFO!A28)) -> Congo | B28: =IF(INTRO!$E$39="Non endémique"," ",IF(COUNTRY_INFO!B28=0," ",COUNTRY_INFO!B28)) -> Cuvette-Ouest | C28: =IF(INTRO!$E$39="Non endémique"," ",IF(COUNTRY_INFO!C28=0," ",COUNTRY_INFO!C28)) -> Ewo | D28: =IF(INTRO!$E$39="Non endémique",0,IF(INTRO!$E$39="Endémique mais pas de CP",IF(COUNTRY_INFO!$H28=1,COUNTRY_INFO!F28+COUNTRY_INFO!G28,0),IF(COUNTRY_INFO!$H28=1,COUNTRY_INFO!F28+COUNTRY_INFO!G28,IF(COUNTRY_INFO!$I28=1,IF(COUNTRY_INFO!N28>=(COUNTRY_INFO!F28+COUNTRY_INFO!G28),COUNTRY_INFO!F28+COUNTRY_INFO!G28,COUNTRY_INFO!$N28),0)))) -> 69653 | E28: =IF(AND(INTRO!$E$39="Non endémique",INTRO!$E$37="Non endémique"),"Non requis",IF(INTRO!$E$39="Non endémique","Traiter avec DEC",COUNTRY_INFO!Q28)) -> 1 | F28: 0 | G28: =IF(COUNTRY_INFO!H28=1, IF($E28=1,IF(ALB_MBD!$J28<>" ",COUNTRY_INFO!F28+COUNTRY_INFO!G28-ALB_MBD!$J28,COUNTRY_INFO!F28+COUNTRY_INFO!G28), 0),0) -> 5290 | H28: =IF(INTRO!$E$39<>"Endémique",0, IF(AND(COUNTRY_INFO!$I28=1,$F28<>0),IF(COUNTRY_INFO!N28>=(COUNTRY_INFO!F28+COUNTRY_INFO!G28),COUNTRY_INFO!F28+COUNTRY_INFO!G28,COUNTRY_INFO!$N28), 0)) -> 0 | J28: 0 | K28: 14812 | L28: 0 | M28: 0 | N28: 14812 | P28: 14812 | Q28: 30
A29: =IF(INTRO!$E$39="Non endémique"," ",IF(COUNTRY_INFO!A29=0," ",COUNTRY_INFO!A29)) -> Congo | B29: =IF(INTRO!$E$39="Non endémique"," ",IF(COUNTRY_INFO!B29=0," ",COUNTRY_INFO!B29)) -> Kouilou | C29: =IF(INTRO!$E$39="Non endémique"," ",IF(COUNTRY_INFO!C29=0," ",COUNTRY_INFO!C29)) -> Hinda-Loango | D29: =IF(INTRO!$E$39="Non endémique",0,IF(INTRO!$E$39="Endémique mais pas de CP",IF(COUNTRY_INFO!$H29=1,COUNTRY_INFO!F29+COUNTRY_INFO!G29,0),IF(COUNTRY_INFO!$H29=1,COUNTRY_INFO!F29+COUNTRY_INFO!G29,IF(COUNTRY_INFO!$I29=1,IF(COUNTRY_INFO!N29>=(COUNTRY_INFO!F29+COUNTRY_INFO!G29),COUNTRY_INFO!F29+COUNTRY_INFO!G29,COUNTRY_INFO!$N29),0)))) -> 0 | E29: =IF(AND(INTRO!$E$39="Non endémique",INTRO!$E$37="Non endémique"),"Non requis",IF(INTRO!$E$39="Non endémique","Traiter avec DEC",COUNTRY_INFO!Q29)) -> 0 | F29: =IF(INTRO!$E$39<>"Non endémique",COUNTRY_INFO!R29,"Non requis") -> 0 | G29: =IF(COUNTRY_INFO!H29=1, IF($E29=1,IF(ALB_MBD!$J29<>" ",COUNTRY_INFO!F29+COUNTRY_INFO!G29-ALB_MBD!$J29,COUNTRY_INFO!F29+COUNTRY_INFO!G29), 0),0) -> 0 | H29: =IF(INTRO!$E$39<>"Endémique",0, IF(AND(COUNTRY_INFO!$I29=1,$F29<>0),IF(COUNTRY_INFO!N29>=(COUNTRY_INFO!F29+COUNTRY_INFO!G29),COUNTRY_INFO!F29+COUNTRY_INFO!G29,COUNTRY_INFO!$N29), 0)) -> 0 | J29: 0 | K29: 0 | L29: 0 | M29: 0 | N29: 0 | P29: 0 | Q29: 0
A30: =IF(INTRO!$E$39="Non endémique"," ",IF(COUNTRY_INFO!A30=0," ",COUNTRY_INFO!A30)) -> Congo | B30: =IF(INTRO!$E$39="Non endémique"," ",IF(COUNTRY_INFO!B30=0," ",COUNTRY_INFO!B30)) -> Kouilou | C30: =IF(INTRO!$E$39="Non endémique"," ",IF(COUNTRY_INFO!C30=0," ",COUNTRY_INFO!C30)) -> Madingo Kayes-Nzambi | D30: =IF(INTRO!$E$39="Non endémique",0,IF(INTRO!$E$39="Endémique mais pas de CP",IF(COUNTRY_INFO!$H30=1,COUNTRY_INFO!F30+COUNTRY_INFO!G30,0),IF(COUNTRY_INFO!$H30=1,COUNTRY_INFO!F30+COUNTRY_INFO!G30,IF(COUNTRY_INFO!$I30=1,IF(COUNTRY_INFO!N30>=(COUNTRY_INFO!F30+COUNTRY_INFO!G30),COUNTRY_INFO!F30+COUNTRY_INFO!G30,COUNTRY_INFO!$N30),0)))) -> 0 | E30: =IF(AND(INTRO!$E$39="Non endémique",INTRO!$E$37="Non endémique"),"Non requis",IF(INTRO!$E$39="Non endémique","Traiter avec DEC",COUNTRY_INFO!Q30)) -> 0 | F30: =IF(INTRO!$E$39<>"Non endémique",COUNTRY_INFO!R30,"Non requis") -> 0 | G30: =IF(COUNTRY_INFO!H30=1, IF($E30=1,IF(ALB_MBD!$J30<>" ",COUNTRY_INFO!F30+COUNTRY_INFO!G30-ALB_MBD!$J30,COUNTRY_INFO!F30+COUNTRY_INFO!G30), 0),0) -> 0 | H30: =IF(INTRO!$E$39<>"Endémique",0, IF(AND(COUNTRY_INFO!$I30=1,$F30<>0),IF(COUNTRY_INFO!N30>=(COUNTRY_INFO!F30+COUNTRY_INFO!G30),COUNTRY_INFO!F30+COUNTRY_INFO!G30,COUNTRY_INFO!$N30), 0)) -> 0 | J30: 0 | K30: 0 | L30: 0 | M30: 0 | N30: 0 | P30: 0 | Q30: 0
A31: =IF(INTRO!$E$39="Non endémique"," ",IF(COUNTRY_INFO!A31=0," ",COUNTRY_INFO!A31)) -> Congo | B31: =IF(INTRO!$E$39="Non endémique"," ",IF(COUNTRY_INFO!B31=0," ",COUNTRY_INFO!B31)) -> Kouilou | C31: =IF(INTRO!$E$39="Non endémique"," ",IF(COUNTRY_INFO!C31=0," ",COUNTRY_INFO!C31)) -> Mvouti-Kakamouéka | D31: =IF(INTRO!$E$39="Non endémique",0,IF(INTRO!$E$39="Endémique mais pas de CP",IF(COUNTRY_INFO!$H31=1,COUNTRY_INFO!F31+COUNTRY_INFO!G31,0),IF(COUNTRY_INFO!$H31=1,COUNTRY_INFO!F31+COUNTRY_INFO!G31,IF(COUNTRY_INFO!$I31=1,IF(COUNTRY_INFO!N31>=(COUNTRY_INFO!F31+COUNTRY_INFO!G31),COUNTRY_INFO!F31+COUNTRY_INFO!G31,COUNTRY_INFO!$N31),0)))) -> 1046 | E31: =IF(AND(INTRO!$E$39="Non endémique",INTRO!$E$37="Non endémique"),"Non requis",IF(INTRO!$E$39="Non endémique","Traiter avec DEC",COUNTRY_INFO!Q31)) -> 0 | F31: =IF(INTRO!$E$39<>"Non endémique",COUNTRY_INFO!R31,"Non requis") -> 1 | G31: =IF(COUNTRY_INFO!H31=1, IF($E31=1,IF(ALB_MBD!$J31<>" ",COUNTRY_INFO!F31+COUNTRY_INFO!G31-ALB_MBD!$J31,COUNTRY_INFO!F31+COUNTRY_INFO!G31), 0),0) -> 0 | H31: =IF(INTRO!$E$39<>"Endémique",0, IF(AND(COUNTRY_INFO!$I31=1,$F31<>0),IF(COUNTRY_INFO!N31>=(COUNTRY_INFO!F31+COUNTRY_INFO!G31),COUNTRY_INFO!F31+COUNTRY_INFO!G31,COUNTRY_INFO!$N31), 0)) -> 1046 | J31: 1046 | K31: 0 | L31: 2928.8 | M31: 0 | N31: 2928.8 | P31: 2928.8 | Q31: 6
A32: =IF(INTRO!$E$39="Non endémique"," ",IF(COUNTRY_INFO!A32=0," ",COUNTRY_INFO!A32)) -> Congo | B32: =IF(INTRO!$E$39="Non endémique"," ",IF(COUNTRY_INFO!B32=0," ",COUNTRY_INFO!B32)) -> Lékoumou | C32: =IF(INTRO!$E$39="Non endémique"," ",IF(COUNTRY_INFO!C32=0," ",COUNTRY_INFO!C32)) -> Sibiti | D32: =IF(INTRO!$E$39="Non endémique",0,IF(INTRO!$E$39="Endémique mais pas de CP",IF(COUNTRY_INFO!$H32=1,COUNTRY_INFO!F32+COUNTRY_INFO!G32,0),IF(COUNTRY_INFO!$H32=1,COUNTRY_INFO!F32+COUNTRY_INFO!G32,IF(COUNTRY_INFO!$I32=1,IF(COUNTRY_INFO!N32>=(COUNTRY_INFO!F32+COUNTRY_INFO!G32),COUNTRY_INFO!F32+COUNTRY_INFO!G32,COUNTRY_INFO!$N32),0)))) -> 716 | E32: =IF(AND(INTRO!$E$39="Non endémique",INTRO!$E$37="Non endémique"),"Non requis",IF(INTRO!$E$39="Non endémique","Traiter avec DEC",COUNTRY_INFO!Q32)) -> 0 | F32: =IF(INTRO!$E$39<>"Non endémique",COUNTRY_INFO!R32,"Non requis") -> 1 | G32: =IF(COUNTRY_INFO!H32=1, IF($E32=1,IF(ALB_MBD!$J32<>" ",COUNTRY_INFO!F32+COUNTRY_INFO!G32-ALB_MBD!$J32,COUNTRY_INFO!F32+COUNTRY_INFO!G32), 0),0) -> 0 | H32: =IF(INTRO!$E$39<>"Endémique",0, IF(AND(COUNTRY_INFO!$I32=1,$F32<>0),IF(COUNTRY_INFO!N32>=(COUNTRY_INFO!F32+COUNTRY_INFO!G32),COUNTRY_INFO!F32+COUNTRY_INFO!G32,COUNTRY_INFO!$N32), 0)) -> 716 | J32: 716 | K32: 0 | L32: 2004.8 | M32: 0 | N32: 2004.8 | P32: 2004.8 | Q32: 5
A33: =IF(INTRO!$E$39="Non endémique"," ",IF(COUNTRY_INFO!A33=0," ",COUNTRY_INFO!A33)) -> Congo | B33: =IF(INTRO!$E$39="Non endémique"," ",IF(COUNTRY_INFO!B33=0," ",COUNTRY_INFO!B33)) -> Lékoumou | C33: =IF(INTRO!$E$39="Non endémique"," ",IF(COUNTRY_INFO!C33=0," ",COUNTRY_INFO!C33)) -> Zanaga | D33: =IF(INTRO!$E$39="Non endémique",0,IF(INTRO!$E$39="Endémique mais pas de CP",IF(COUNTRY_INFO!$H33=1,COUNTRY_INFO!F33+COUNTRY_INFO!G33,0),IF(COUNTRY_INFO!$H33=1,COUNTRY_INFO!F33+COUNTRY_INFO!G33,IF(COUNTRY_INFO!$I33=1,IF(COUNTRY_INFO!N33>=(COUNTRY_INFO!F33+COUNTRY_INFO!G33),COUNTRY_INFO!F33+COUNTRY_INFO!G33,COUNTRY_INFO!$N33),0)))) -> 0 | E33: =IF(AND(INTRO!$E$39="Non endémique",INTRO!$E$37="Non endémique"),"Non requis",IF(INTRO!$E$39="Non endémique","Traiter avec DEC",COUNTRY_INFO!Q33)) -> 0 | F33: =IF(INTRO!$E$39<>"Non endémique",COUNTRY_INFO!R33,"Non requis") -> 0 | G33: =IF(COUNTRY_INFO!H33=1, IF($E33=1,IF(ALB_MBD!$J33<>" ",COUNTRY_INFO!F33+COUNTRY_INFO!G33-ALB_MBD!$J33,COUNTRY_INFO!F33+COUNTRY_INFO!G33), 0),0) -> 0 | H33: =IF(INTRO!$E$39<>"Endémique",0, IF(AND(COUNTRY_INFO!$I33=1,$F33<>0),IF(COUNTRY_INFO!N33>=(COUNTRY_INFO!F33+COUNTRY_INFO!G33),COUNTRY_INFO!F33+COUNTRY_INFO!G33,COUNTRY_INFO!$N33), 0)) -> 0 | J33: 0 | K33: 0 | L33: 0 | M33: 0 | N33: 0 | P33: 0 | Q33: 0
A34: =IF(INTRO!$E$39="Non endémique"," ",IF(COUNTRY_INFO!A34=0," ",COUNTRY_INFO!A34)) -> Congo | B34: =IF(INTRO!$E$39="Non endémique"," ",IF(COUNTRY_INFO!B34=0," ",COUNTRY_INFO!B34)) -> Likouala | C34: =IF(INTRO!$E$39="Non endémique"," ",IF(COUNTRY_INFO!C34=0," ",COUNTRY_INFO!C34)) -> Bétou | D34: =IF(INTRO!$E$39="Non endémique",0,IF(INTRO!$E$39="Endémique mais pas de CP",IF(COUNTRY_INFO!$H34=1,COUNTRY_INFO!F34+COUNTRY_INFO!G34,0),IF(COUNTRY_INFO!$H34=1,COUNTRY_INFO!F34+COUNTRY_INFO!G34,IF(COUNTRY_INFO!$I34=1,IF(COUNTRY_INFO!N34>=(COUNTRY_INFO!F34+COUNTRY_INFO!G34),COUNTRY_INFO!F34+COUNTRY_INFO!G34,COUNTRY_INFO!$N34),0)))) -> 0 | E34: =IF(AND(INTRO!$E$39="Non endémique",INTRO!$E$37="Non endémique"),"Non requis",IF(INTRO!$E$39="Non endémique","Traiter avec DEC",COUNTRY_INFO!Q34)) -> 0 | F34: =IF(INTRO!$E$39<>"Non endémique",COUNTRY_INFO!R34,"Non requis") -> 0 | G34: =IF(COUNTRY_INFO!H34=1, IF($E34=1,IF(ALB_MBD!$J34<>" ",COUNTRY_INFO!F34+COUNTRY_INFO!G34-ALB_MBD!$J34,COUNTRY_INFO!F34+COUNTRY_INFO!G34), 0),0) -> 0 | H34: =IF(INTRO!$E$39<>"Endémique",0, IF(AND(COUNTRY_INFO!$I34=1,$F34<>0),IF(COUNTRY_INFO!N34>=(COUNTRY_INFO!F34+COUNTRY_INFO!G34),COUNTRY_INFO!F34+COUNTRY_INFO!G34,COUNTRY_INFO!$N34), 0)) -> 0 | J34: 0 | K34: 0 | L34: 0 | M34: 0 | N34: 0 | P34: 0 | Q34: 0
A35: =IF(INTRO!$E$39="Non endémique"," ",IF(COUNTRY_INFO!A35=0," ",COUNTRY_INFO!A35)) -> Congo | B35: =IF(INTRO!$E$39="Non endémique"," ",IF(COUNTRY_INFO!B35=0," ",COUNTRY_INFO!B35)) -> Likouala | C35: =IF(INTRO!$E$39="Non endémique"," ",IF(COUNTRY_INFO!C35=0," ",COUNTRY_INFO!C35)) -> Impfondo | D35: =IF(INTRO!$E$39="Non endémique",0,IF(INTRO!$E$39="Endémique mais pas de CP",IF(COUNTRY_INFO!$H35=1,COUNTRY_INFO!F35+COUNTRY_INFO!G35,0),IF(COUNTRY_INFO!$H35=1,COUNTRY_INFO!F35+COUNTRY_INFO!G35,IF(COUNTRY_INFO!$I35=1,IF(COUNTRY_INFO!N35>=(COUNTRY_INFO!F35+COUNTRY_INFO!G35),COUNTRY_INFO!F35+COUNTRY_INFO!G35,COUNTRY_INFO!$N35),0)))) -> 113231 | E35: =IF(AND(INTRO!$E$39="Non endémique",INTRO!$E$37="Non endémique"),"Non requis",IF(INTRO!$E$39="Non endémique","Traiter avec DEC",COUNTRY_INFO!Q35)) -> 1 | F35: =IF(INTRO!$E$39<>"Non endémique",COUNTRY_INFO!R35,"Non requis") -> 0 | G35: =IF(COUNTRY_INFO!H35=1, IF($E35=1,IF(ALB_MBD!$J35<>" ",COUNTRY_INFO!F35+COUNTRY_INFO!G35-ALB_MBD!$J35,COUNTRY_INFO!F35+COUNTRY_INFO!G35), 0),0) -> 5347 | H35: =IF(INTRO!$E$39<>"Endémique",0, IF(AND(COUNTRY_INFO!$I35=1,$F35<>0),IF(COUNTRY_INFO!N35>=(COUNTRY_INFO!F35+COUNTRY_INFO!G35),COUNTRY_INFO!F35+COUNTRY_INFO!G35,COUNTRY_INFO!$N35), 0)) -> 0 | J35: 0 | K35: 14971.6 | L35: 0 | M35: 0 | N35: 14971.6 | P35: 14971.6 | Q35: 30
A36: =IF(INTRO!$E$39="Non endémique"," ",IF(COUNTRY_INFO!A36=0," ",COUNTRY_INFO!A36)) -> Congo | B36: =IF(INTRO!$E$39="Non endémique"," ",IF(COUNTRY_INFO!B36=0," ",COUNTRY_INFO!B36)) -> Niari | C36: =IF(INTRO!$E$39="Non endémique"," ",IF(COUNTRY_INFO!C36=0," ",COUNTRY_INFO!C36)) -> Dolisie | D36: =IF(INTRO!$E$39="Non endémique",0,IF(INTRO!$E$39="Endémique mais pas de CP",IF(COUNTRY_INFO!$H36=1,COUNTRY_INFO!F36+COUNTRY_INFO!G36,0),IF(COUNTRY_INFO!$H36=1,COUNTRY_INFO!F36+COUNTRY_INFO!G36,IF(COUNTRY_INFO!$I36=1,IF(COUNTRY_INFO!N36>=(COUNTRY_INFO!F36+COUNTRY_INFO!G36),COUNTRY_INFO!F36+COUNTRY_INFO!G36,COUNTRY_INFO!$N36),0)))) -> 151195 | E36: =IF(AND(INTRO!$E$39="Non endémique",INTRO!$E$37="Non endémique"),"Non requis",IF(INTRO!$E$39="Non endémique","Traiter avec DEC",COUNTRY_INFO!Q36)) -> 1 | F36: =IF(INTRO!$E$39<>"Non endémique",COUNTRY_INFO!R36,"Non requis") -> 1 | G36: =IF(COUNTRY_INFO!H36=1, IF($E36=1,IF(ALB_MBD!$J36<>" ",COUNTRY_INFO!F36+COUNTRY_INFO!G36-ALB_MBD!$J36,COUNTRY_INFO!F36+COUNTRY_INFO!G36), 0),0) -> 50448 | H36: =IF(INTRO!$E$39<>"Endémique",0, IF(AND(COUNTRY_INFO!$I36=1,$F36<>0),IF(COUNTRY_INFO!N36>=(COUNTRY_INFO!F36+COUNTRY_INFO!G36),COUNTRY_INFO!F36+COUNTRY_INFO!G36,COUNTRY_INFO!$N36), 0)) -> 11762 | J36: 11762 | K36: 108320.8 | L36: 0 | M36: 32933.6 | N36: 141254.4 | P36: 141254.4 | Q36: 283
A37: =IF(INTRO!$E$39="Non endémique"," ",IF(COUNTRY_INFO!A37=0," ",COUNTRY_INFO!A37)) -> Congo | B37: =IF(INTRO!$E$39="Non endémique"," ",IF(COUNTRY_INFO!B37=0," ",COUNTRY_INFO!B37)) -> Niari | C37: =IF(INTRO!$E$39="Non endémique"," ",IF(COUNTRY_INFO!C37=0," ",COUNTRY_INFO!C37)) -> Kibangou | D37: =IF(INTRO!$E$39="Non endémique",0,IF(INTRO!$E$39="Endémique mais pas de CP",IF(COUNTRY_INFO!$H37=1,COUNTRY_INFO!F37+COUNTRY_INFO!G37,0),IF(COUNTRY_INFO!$H37=1,COUNTRY_INFO!F37+COUNTRY_INFO!G37,IF(COUNTRY_INFO!$I37=1,IF(COUNTRY_INFO!N37>=(COUNTRY_INFO!F37+COUNTRY_INFO!G37),COUNTRY_INFO!F37+COUNTRY_INFO!G37,COUNTRY_INFO!$N37),0)))) -> 61917 | E37: =IF(AND(INTRO!$E$39="Non endémique",INTRO!$E$37="Non endémique"),"Non requis",IF(INTRO!$E$39="Non endémique","Traiter avec DEC",COUNTRY_INFO!Q37)) -> 1 | F37: =IF(INTRO!$E$39<>"Non endémique",COUNTRY_INFO!R37,"Non requis") -> 1 | G37: =IF(COUNTRY_INFO!H37=1, IF($E37=1,IF(ALB_MBD!$J37<>" ",COUNTRY_INFO!F37+COUNTRY_INFO!G37-ALB_MBD!$J37,COUNTRY_INFO!F37+COUNTRY_INFO!G37), 0),0) -> 26543 | H37: =IF(INTRO!$E$39<>"Endémique",0, IF(AND(COUNTRY_INFO!$I37=1,$F37<>0),IF(COUNTRY_INFO!N37>=(COUNTRY_INFO!F37+COUNTRY_INFO!G37),COUNTRY_INFO!F37+COUNTRY_INFO!G37,COUNTRY_INFO!$N37), 0)) -> 10950 | J37: 10950 | K37: 43660.4 | L37: 0 | M37: 30660 | N37: 74320.4 | P37: 74320.4 | Q37: 149
A38: =IF(INTRO!$E$39="Non endémique"," ",IF(COUNTRY_INFO!A38=0," ",COUNTRY_INFO!A38)) -> Congo | B38: =IF(INTRO!$E$39="Non endémique"," ",IF(COUNTRY_INFO!B38=0," ",COUNTRY_INFO!B38)) -> Niari | C38: =IF(INTRO!$E$39="Non endémique"," ",IF(COUNTRY_INFO!C38=0," ",COUNTRY_INFO!C38)) -> Kimongo-Londela Nkayes | D38: =IF(INTRO!$E$39="Non endémique",0,IF(INTRO!$E$39="Endémique mais pas de CP",IF(COUNTRY_INFO!$H38=1,COUNTRY_INFO!F38+COUNTRY_INFO!G38,0),IF(COUNTRY_INFO!$H38=1,COUNTRY_INFO!F38+COUNTRY_INFO!G38,IF(COUNTRY_INFO!$I38=1,IF(COUNTRY_INFO!N38>=(COUNTRY_INFO!F38+COUNTRY_INFO!G38),COUNTRY_INFO!F38+COUNTRY_INFO!G38,COUNTRY_INFO!$N38),0)))) -> 36891 | E38: =IF(AND(INTRO!$E$39="Non endémique",INTRO!$E$37="Non endémique"),"Non requis",IF(INTRO!$E$39="Non endémique","Traiter avec DEC",COUNTRY_INFO!Q38)) -> 1 | F38: =IF(INTRO!$E$39<>"Non endémique",COUNTRY_INFO!R38,"Non requis") -> 0 | G38: =IF(COUNTRY_INFO!H38=1, IF($E38=1,IF(ALB_MBD!$J38<>" ",COUNTRY_INFO!F38+COUNTRY_INFO!G38-ALB_MBD!$J38,COUNTRY_INFO!F38+COUNTRY_INFO!G38), 0),0) -> 1742 | H38: =IF(INTRO!$E$39<>"Endémique",0, IF(AND(COUNTRY_INFO!$I38=1,$F38<>0),IF(COUNTRY_INFO!N38>=(COUNTRY_INFO!F38+COUNTRY_INFO!G38),COUNTRY_INFO!F38+COUNTRY_INFO!G38,COUNTRY_INFO!$N38), 0)) -> 0 | J38: 0 | K38: 4877.6 | L38: 0 | M38: 0 | N38: 4877.6 | P38: 4877.6 | Q38: 10
A39: =IF(INTRO!$E$39="Non endémique"," ",IF(COUNTRY_INFO!A39=0," ",COUNTRY_INFO!A39)) -> Congo | B39: =IF(INTRO!$E$39="Non endémique"," ",IF(COUNTRY_INFO!B39=0," ",COUNTRY_INFO!B39)) -> Niari | C39: =IF(INTRO!$E$39="Non endémique"," ",IF(COUNTRY_INFO!C39=0," ",COUNTRY_INFO!C39)) -> Mayoko | D39: =IF(INTRO!$E$39="Non endémique",0,IF(INTRO!$E$39="Endémique mais pas de CP",IF(COUNTRY_INFO!$H39=1,COUNTRY_INFO!F39+COUNTRY_INFO!G39,0),IF(COUNTRY_INFO!$H39=1,COUNTRY_INFO!F39+COUNTRY_INFO!G39,IF(COUNTRY_INFO!$I39=1,IF(COUNTRY_INFO!N39>=(COUNTRY_INFO!F39+COUNTRY_INFO!G39),COUNTRY_INFO!F39+COUNTRY_INFO!G39,COUNTRY_INFO!$N39),0)))) -> 0 | E39: =IF(AND(INTRO!$E$39="Non endémique",INTRO!$E$37="Non endémique"),"Non requis",IF(INTRO!$E$39="Non endémique","Traiter avec DEC",COUNTRY_INFO!Q39)) -> 0 | F39: =IF(INTRO!$E$39<>"Non endémique",COUNTRY_INFO!R39,"Non requis") -> 0 | G39: =IF(COUNTRY_INFO!H39=1, IF($E39=1,IF(ALB_MBD!$J39<>" ",COUNTRY_INFO!F39+COUNTRY_INFO!G39-ALB_MBD!$J39,COUNTRY_INFO!F39+COUNTRY_INFO!G39), 0),0) -> 0 | H39: =IF(INTRO!$E$39<>"Endémique",0, IF(AND(COUNTRY_INFO!$I39=1,$F39<>0),IF(COUNTRY_INFO!N39>=(COUNTRY_INFO!F39+COUNTRY_INFO!G39),COUNTRY_INFO!F39+COUNTRY_INFO!G39,COUNTRY_INFO!$N39), 0)) -> 0 | J39: 0 | K39: 0 | L39: 0 | M39: 0 | N39: 0 | P39: 0 | Q39: 0
A40: =IF(INTRO!$E$39="Non endémique"," ",IF(COUNTRY_INFO!A40=0," ",COUNTRY_INFO!A40)) -> Congo | B40: =IF(INTRO!$E$39="Non endémique"," ",IF(COUNTRY_INFO!B40=0," ",COUNTRY_INFO!B40)) -> Niari | C40: =IF(INTRO!$E$39="Non endémique"," ",IF(COUNTRY_INFO!C40=0," ",COUNTRY_INFO!C40)) -> Mossendjo | D40: =IF(INTRO!$E$39="Non endémique",0,IF(INTRO!$E$39="Endémique mais pas de CP",IF(COUNTRY_INFO!$H40=1,COUNTRY_INFO!F40+COUNTRY_INFO!G40,0),IF(COUNTRY_INFO!$H40=1,COUNTRY_INFO!F40+COUNTRY_INFO!G40,IF(COUNTRY_INFO!$I40=1,IF(COUNTRY_INFO!N40>=(COUNTRY_INFO!F40+COUNTRY_INFO!G40),COUNTRY_INFO!F40+COUNTRY_INFO!G40,COUNTRY_INFO!$N40),0)))) -> 0 | E40: =IF(AND(INTRO!$E$39="Non endémique",INTRO!$E$37="Non endémique"),"Non requis",IF(INTRO!$E$39="Non endémique","Traiter avec DEC",COUNTRY_INFO!Q40)) -> 0 | F40: =IF(INTRO!$E$39<>"Non endémique",COUNTRY_INFO!R40,"Non requis") -> 0 | G40: =IF(COUNTRY_INFO!H40=1, IF($E40=1,IF(ALB_MBD!$J40<>" ",COUNTRY_INFO!F40+COUNTRY_INFO!G40-ALB_MBD!$J40,COUNTRY_INFO!F40+COUNTRY_INFO!G40), 0),0) -> 0 | H40: =IF(INTRO!$E$39<>"Endémique",0, IF(AND(COUNTRY_INFO!$I40=1,$F40<>0),IF(COUNTRY_INFO!N40>=(COUNTRY_INFO!F40+COUNTRY_INFO!G40),COUNTRY_INFO!F40+COUNTRY_INFO!G40,COUNTRY_INFO!$N40), 0)) -> 0 | J40: 0 | K40: 0 | L40: 0 | M40: 0 | N40: 0 | P40: 0 | Q40: 0
A41: =IF(INTRO!$E$39="Non endémique"," ",IF(COUNTRY_INFO!A41=0," ",COUNTRY_INFO!A41)) -> Congo | B41: =IF(INTRO!$E$39="Non endémique"," ",IF(COUNTRY_INFO!B41=0," ",COUNTRY_INFO!B41)) -> Plateaux | C41: =IF(INTRO!$E$39="Non endémique"," ",IF(COUNTRY_INFO!C41=0," ",COUNTRY_INFO!C41)) -> Abala | D41: =IF(INTRO!$E$39="Non endémique",0,IF(INTRO!$E$39="Endémique mais pas de CP",IF(COUNTRY_INFO!$H41=1,COUNTRY_INFO!F41+COUNTRY_INFO!G41,0),IF(COUNTRY_INFO!$H41=1,COUNTRY_INFO!F41+COUNTRY_INFO!G41,IF(COUNTRY_INFO!$I41=1,IF(COUNTRY_INFO!N41>=(COUNTRY_INFO!F41+COUNTRY_INFO!G41),COUNTRY_INFO!F41+COUNTRY_INFO!G41,COUNTRY_INFO!$N41),0)))) -> 0 | E41: =IF(AND(INTRO!$E$39="Non endémique",INTRO!$E$37="Non endémique"),"Non requis",IF(INTRO!$E$39="Non endémique","Traiter avec DEC",COUNTRY_INFO!Q41)) -> 0 | F41: =IF(INTRO!$E$39<>"Non endémique",COUNTRY_INFO!R41,"Non requis") -> 0 | G41: =IF(COUNTRY_INFO!H41=1, IF($E41=1,IF(ALB_MBD!$J41<>" ",COUNTRY_INFO!F41+COUNTRY_INFO!G41-ALB_MBD!$J41,COUNTRY_INFO!F41+COUNTRY_INFO!G41), 0),0) -> 0 | H41: =IF(INTRO!$E$39<>"Endémique",0, IF(AND(COUNTRY_INFO!$I41=1,$F41<>0),IF(COUNTRY_INFO!N41>=(COUNTRY_INFO!F41+COUNTRY_INFO!G41),COUNTRY_INFO!F41+COUNTRY_INFO!G41,COUNTRY_INFO!$N41), 0)) -> 0 | J41: =IF(I41=0,H41,IF(I41>H41,H41,I41)) -> 0 | K41: =IF(G41<J41,0,IF($E41=1, (G41-J41)*2.8, 0)) -> 0 | L41: =IF($E41<$F41, J41*(F41-E41)*2.8, 0) -> 0 | M41: =IF(AND($E41=1, $F41<>0), J41*2.8, 0) -> 0 | N41: =SUM(K41:M41) -> 0 | P41: =IF($N41>$O41,$N41-$O41,0) -> 0 | Q41: =ROUNDUP($N41/500,0) -> 0
A42: =IF(INTRO!$E$39="Non endémique"," ",IF(COUNTRY_INFO!A42=0," ",COUNTRY_INFO!A42)) -> Congo | B42: =IF(INTRO!$E$39="Non endémique"," ",IF(COUNTRY_INFO!B42=0," ",COUNTRY_INFO!B42)) -> Plateaux | C42: =IF(INTRO!$E$39="Non endémique"," ",IF(COUNTRY_INFO!C42=0," ",COUNTRY_INFO!C42)) -> Djambala-Lékana | D42: =IF(INTRO!$E$39="Non endémique",0,IF(INTRO!$E$39="Endémique mais pas de CP",IF(COUNTRY_INFO!$H42=1,COUNTRY_INFO!F42+COUNTRY_INFO!G42,0),IF(COUNTRY_INFO!$H42=1,COUNTRY_INFO!F42+COUNTRY_INFO!G42,IF(COUNTRY_INFO!$I42=1,IF(COUNTRY_INFO!N42>=(COUNTRY_INFO!F42+COUNTRY_INFO!G42),COUNTRY_INFO!F42+COUNTRY_INFO!G42,COUNTRY_INFO!$N42),0)))) -> 0 | E42: =IF(AND(INTRO!$E$39="Non endémique",INTRO!$E$37="Non endémique"),"Non requis",IF(INTRO!$E$39="Non endémique","Traiter avec DEC",COUNTRY_INFO!Q42)) -> 0 | F42: =IF(INTRO!$E$39<>"Non endémique",COUNTRY_INFO!R42,"Non requis") -> 0 | G42: =IF(COUNTRY_INFO!H42=1, IF($E42=1,IF(ALB_MBD!$J42<>" ",COUNTRY_INFO!F42+COUNTRY_INFO!G42-ALB_MBD!$J42,COUNTRY_INFO!F42+COUNTRY_INFO!G42), 0),0) -> 0 | H42: =IF(INTRO!$E$39<>"Endémique",0, IF(AND(COUNTRY_INFO!$I42=1,$F42<>0),IF(COUNTRY_INFO!N42>=(COUNTRY_INFO!F42+COUNTRY_INFO!G42),COUNTRY_INFO!F42+COUNTRY_INFO!G42,COUNTRY_INFO!$N42), 0)) -> 0 | J42: 0 | K42: 0 | L42: 0 | M42: 0 | N42: 0 | P42: 0 | Q42: 0
A43: =IF(INTRO!$E$39="Non endémique"," ",IF(COUNTRY_INFO!A43=0," ",COUNTRY_INFO!A43)) -> Congo | B43: =IF(INTRO!$E$39="Non endémique"," ",IF(COUNTRY_INFO!B43=0," ",COUNTRY_INFO!B43)) -> Plateaux | C43: =IF(INTRO!$E$39="Non endémique"," ",IF(COUNTRY_INFO!C43=0," ",COUNTRY_INFO!C43)) -> Gamboma | D43: =IF(INTRO!$E$39="Non endémique",0,IF(INTRO!$E$39="Endémique mais pas de CP",IF(COUNTRY_INFO!$H43=1,COUNTRY_INFO!F43+COUNTRY_INFO!G43,0),IF(COUNTRY_INFO!$H43=1,COUNTRY_INFO!F43+COUNTRY_INFO!G43,IF(COUNTRY_INFO!$I43=1,IF(COUNTRY_INFO!N43>=(COUNTRY_INFO!F43+COUNTRY_INFO!G43),COUNTRY_INFO!F43+COUNTRY_INFO!G43,COUNTRY_INFO!$N43),0)))) -> 0 | E43: =IF(AND(INTRO!$E$39="Non endémique",INTRO!$E$37="Non endémique"),"Non requis",IF(INTRO!$E$39="Non endémique","Traiter avec DEC",COUNTRY_INFO!Q43)) -> 0 | F43: =IF(INTRO!$E$39<>"Non endémique",COUNTRY_INFO!R43,"Non requis") -> 0 | G43: =IF(COUNTRY_INFO!H43=1, IF($E43=1,IF(ALB_MBD!$J43<>" ",COUNTRY_INFO!F43+COUNTRY_INFO!G43-ALB_MBD!$J43,COUNTRY_INFO!F43+COUNTRY_INFO!G43), 0),0) -> 0 | H43: =IF(INTRO!$E$39<>"Endémique",0, IF(AND(COUNTRY_INFO!$I43=1,$F43<>0),IF(COUNTRY_INFO!N43>=(COUNTRY_INFO!F43+COUNTRY_INFO!G43),COUNTRY_INFO!F43+COUNTRY_INFO!G43,COUNTRY_INFO!$N43), 0)) -> 0 | J43: 0 | K43: 0 | L43: 0 | M43: 0 | N43: 0 | P43: 0 | Q43: 0
A44: =IF(INTRO!$E$39="Non endémique"," ",IF(COUNTRY_INFO!A44=0," ",COUNTRY_INFO!A44)) -> Congo | B44: =IF(INTRO!$E$39="Non endémique"," ",IF(COUNTRY_INFO!B44=0," ",COUNTRY_INFO!B44)) -> Plateaux | C44: =IF(INTRO!$E$39="Non endémique"," ",IF(COUNTRY_INFO!C44=0," ",COUNTRY_INFO!C44)) -> Ngo Mpouya | D44: =IF(INTRO!$E$39="Non endémique",0,IF(INTRO!$E$39="Endémique mais pas de CP",IF(COUNTRY_INFO!$H44=1,COUNTRY_INFO!F44+COUNTRY_INFO!G44,0),IF(COUNTRY_INFO!$H44=1,COUNTRY_INFO!F44+COUNTRY_INFO!G44,IF(COUNTRY_INFO!$I44=1,IF(COUNTRY_INFO!N44>=(COUNTRY_INFO!F44+COUNTRY_INFO!G44),COUNTRY_INFO!F44+COUNTRY_INFO!G44,COUNTRY_INFO!$N44),0)))) -> 0 | E44: =IF(AND(INTRO!$E$39="Non endémique",INTRO!$E$37="Non endémique"),"Non requis",IF(INTRO!$E$39="Non endémique","Traiter avec DEC",COUNTRY_INFO!Q44)) -> 0 | F44: =IF(INTRO!$E$39<>"Non endémique",COUNTRY_INFO!R44,"Non requis") -> 0 | G44: =IF(COUNTRY_INFO!H44=1, IF($E44=1,IF(ALB_MBD!$J44<>" ",COUNTRY_INFO!F44+COUNTRY_INFO!G44-ALB_MBD!$J44,COUNTRY_INFO!F44+COUNTRY_INFO!G44), 0),0) -> 0 | H44: =IF(INTRO!$E$39<>"Endémique",0, IF(AND(COUNTRY_INFO!$I44=1,$F44<>0),IF(COUNTRY_INFO!N44>=(COUNTRY_INFO!F44+COUNTRY_INFO!G44),COUNTRY_INFO!F44+COUNTRY_INFO!G44,COUNTRY_INFO!$N44), 0)) -> 0 | J44: 0 | K44: 0 | L44: 0 | M44: 0 | N44: 0 | P44: 0 | Q44: 0
A45: =IF(INTRO!$E$39="Non endémique"," ",IF(COUNTRY_INFO!A45=0," ",COUNTRY_INFO!A45)) -> Congo | B45: =IF(INTRO!$E$39="Non endémique"," ",IF(COUNTRY_INFO!B45=0," ",COUNTRY_INFO!B45)) -> Pointe-Noire | C45: =IF(INTRO!$E$39="Non endémique"," ",IF(COUNTRY_INFO!C45=0," ",COUNTRY_INFO!C45)) -> Loandjili | D45: =IF(INTRO!$E$39="Non endémique",0,IF(INTRO!$E$39="Endémique mais pas de CP",IF(COUNTRY_INFO!$H45=1,COUNTRY_INFO!F45+COUNTRY_INFO!G45,0),IF(COUNTRY_INFO!$H45=1,COUNTRY_INFO!F45+COUNTRY_INFO!G45,IF(COUNTRY_INFO!$I45=1,IF(COUNTRY_INFO!N45>=(COUNTRY_INFO!F45+COUNTRY_INFO!G45),COUNTRY_INFO!F45+COUNTRY_INFO!G45,COUNTRY_INFO!$N45),0)))) -> 0 | E45: =IF(AND(INTRO!$E$39="Non endémique",INTRO!$E$37="Non endémique"),"Non requis",IF(INTRO!$E$39="Non endémique","Traiter avec DEC",COUNTRY_INFO!Q45)) -> 0 | F45: =IF(INTRO!$E$39<>"Non endémique",COUNTRY_INFO!R45,"Non requis") -> 0 | G45: =IF(COUNTRY_INFO!H45=1, IF($E45=1,IF(ALB_MBD!$J45<>" ",COUNTRY_INFO!F45+COUNTRY_INFO!G45-ALB_MBD!$J45,COUNTRY_INFO!F45+COUNTRY_INFO!G45), 0),0) -> 0 | H45: =IF(INTRO!$E$39<>"Endémique",0, IF(AND(COUNTRY_INFO!$I45=1,$F45<>0),IF(COUNTRY_INFO!N45>=(COUNTRY_INFO!F45+COUNTRY_INFO!G45),COUNTRY_INFO!F45+COUNTRY_INFO!G45,COUNTRY_INFO!$N45), 0)) -> 0 | J45: 0 | K45: 0 | L45: 0 | M45: 0 | N45: 0 | P45: 0 | Q45: 0
A46: =IF(INTRO!$E$39="Non endémique"," ",IF(COUNTRY_INFO!A46=0," ",COUNTRY_INFO!A46)) -> Congo | B46: =IF(INTRO!$E$39="Non endémique"," ",IF(COUNTRY_INFO!B46=0," ",COUNTRY_INFO!B46)) -> Pointe-Noire | C46: =IF(INTRO!$E$39="Non endémique"," ",IF(COUNTRY_INFO!C46=0," ",COUNTRY_INFO!C46)) -> Lumumba | D46: =IF(INTRO!$E$39="Non endémique",0,IF(INTRO!$E$39="Endémique mais pas de CP",IF(COUNTRY_INFO!$H46=1,COUNTRY_INFO!F46+COUNTRY_INFO!G46,0),IF(COUNTRY_INFO!$H46=1,COUNTRY_INFO!F46+COUNTRY_INFO!G46,IF(COUNTRY_INFO!$I46=1,IF(COUNTRY_INFO!N46>=(COUNTRY_INFO!F46+COUNTRY_INFO!G46),COUNTRY_INFO!F46+COUNTRY_INFO!G46,COUNTRY_INFO!$N46),0)))) -> 0 | E46: =IF(AND(INTRO!$E$39="Non endémique",INTRO!$E$37="Non endémique"),"Non requis",IF(INTRO!$E$39="Non endémique","Traiter avec DEC",COUNTRY_INFO!Q46)) -> 0 | F46: =IF(INTRO!$E$39<>"Non endémique",COUNTRY_INFO!R46,"Non requis") -> 0 | G46: =IF(COUNTRY_INFO!H46=1, IF($E46=1,IF(ALB_MBD!$J46<>" ",COUNTRY_INFO!F46+COUNTRY_INFO!G46-ALB_MBD!$J46,COUNTRY_INFO!F46+COUNTRY_INFO!G46), 0),0) -> 0 | H46: =IF(INTRO!$E$39<>"Endémique",0, IF(AND(COUNTRY_INFO!$I46=1,$F46<>0),IF(COUNTRY_INFO!N46>=(COUNTRY_INFO!F46+COUNTRY_INFO!G46),COUNTRY_INFO!F46+COUNTRY_INFO!G46,COUNTRY_INFO!$N46), 0)) -> 0 | J46: 0 | K46: 0 | L46: 0 | M46: 0 | N46: 0 | P46: 0 | Q46: 0
A47: =IF(INTRO!$E$39="Non endémique"," ",IF(COUNTRY_INFO!A47=0," ",COUNTRY_INFO!A47)) -> Congo | B47: =IF(INTRO!$E$39="Non endémique"," ",IF(COUNTRY_INFO!B47=0," ",COUNTRY_INFO!B47)) -> Pointe-Noire | C47: =IF(INTRO!$E$39="Non endémique"," ",IF(COUNTRY_INFO!C47=0," ",COUNTRY_INFO!C47)) -> Mongo-Poukou | D47: =IF(INTRO!$E$39="Non endémique",0,IF(INTRO!$E$39="Endémique mais pas de CP",IF(COUNTRY_INFO!$H47=1,COUNTRY_INFO!F47+COUNTRY_INFO!G47,0),IF(COUNTRY_INFO!$H47=1,COUNTRY_INFO!F47+COUNTRY_INFO!G47,IF(COUNTRY_INFO!$I47=1,IF(COUNTRY_INFO!N47>=(COUNTRY_INFO!F47+COUNTRY_INFO!G47),COUNTRY_INFO!F47+COUNTRY_INFO!G47,COUNTRY_INFO!$N47),0)))) -> 0 | E47: =IF(AND(INTRO!$E$39="Non endémique",INTRO!$E$37="Non endémique"),"Non requis",IF(INTRO!$E$39="Non endémique","Traiter avec DEC",COUNTRY_INFO!Q47)) -> 0 | F47: =IF(INTRO!$E$39<>"Non endémique",COUNTRY_INFO!R47,"Non requis") -> 0 | G47: =IF(COUNTRY_INFO!H47=1, IF($E47=1,IF(ALB_MBD!$J47<>" ",COUNTRY_INFO!F47+COUNTRY_INFO!G47-ALB_MBD!$J47,COUNTRY_INFO!F47+COUNTRY_INFO!G47), 0),0) -> 0 | H47: =IF(INTRO!$E$39<>"Endémique",0, IF(AND(COUNTRY_INFO!$I47=1,$F47<>0),IF(COUNTRY_INFO!N47>=(COUNTRY_INFO!F47+COUNTRY_INFO!G47),COUNTRY_INFO!F47+COUNTRY_INFO!G47,COUNTRY_INFO!$N47), 0)) -> 0 | J47: 0 | K47: 0 | L47: 0 | M47: 0 | N47: 0 | P47: 0 | Q47: 0
A48: =IF(INTRO!$E$39="Non endémique"," ",IF(COUNTRY_INFO!A48=0," ",COUNTRY_INFO!A48)) -> Congo | B48: =IF(INTRO!$E$39="Non endémique"," ",IF(COUNTRY_INFO!B48=0," ",COUNTRY_INFO!B48)) -> Pointe-Noire | C48: =IF(INTRO!$E$39="Non endémique"," ",IF(COUNTRY_INFO!C48=0," ",COUNTRY_INFO!C48)) -> Mvoumvou | D48: =IF(INTRO!$E$39="Non endémique",0,IF(INTRO!$E$39="Endémique mais pas de CP",IF(COUNTRY_INFO!$H48=1,COUNTRY_INFO!F48+COUNTRY_INFO!G48,0),IF(COUNTRY_INFO!$H48=1,COUNTRY_INFO!F48+COUNTRY_INFO!G48,IF(COUNTRY_INFO!$I48=1,IF(COUNTRY_INFO!N48>=(COUNTRY_INFO!F48+COUNTRY_INFO!G48),COUNTRY_INFO!F48+COUNTRY_INFO!G48,COUNTRY_INFO!$N48),0)))) -> 0 | E48: =IF(AND(INTRO!$E$39="Non endémique",INTRO!$E$37="Non endémique"),"Non requis",IF(INTRO!$E$39="Non endémique","Traiter avec DEC",COUNTRY_INFO!Q48)) -> 0 | F48: =IF(INTRO!$E$39<>"Non endémique",COUNTRY_INFO!R48,"Non requis") -> 0 | G48: =IF(COUNTRY_INFO!H48=1, IF($E48=1,IF(ALB_MBD!$J48<>" ",COUNTRY_INFO!F48+COUNTRY_INFO!G48-ALB_MBD!$J48,COUNTRY_INFO!F48+COUNTRY_INFO!G48), 0),0) -> 0 | H48: =IF(INTRO!$E$39<>"Endémique",0, IF(AND(COUNTRY_INFO!$I48=1,$F48<>0),IF(COUNTRY_INFO!N48>=(COUNTRY_INFO!F48+COUNTRY_INFO!G48),COUNTRY_INFO!F48+COUNTRY_INFO!G48,COUNTRY_INFO!$N48), 0)) -> 0 | J48: 0 | K48: 0 | L48: 0 | M48: 0 | N48: 0 | P48: 0 | Q48: 0
A49: =IF(INTRO!$E$39="Non endémique"," ",IF(COUNTRY_INFO!A49=0," ",COUNTRY_INFO!A49)) -> Congo | B49: =IF(INTRO!$E$39="Non endémique"," ",IF(COUNTRY_INFO!B49=0," ",COUNTRY_INFO!B49)) -> Pointe-Noire | C49: =IF(INTRO!$E$39="Non endémique"," ",IF(COUNTRY_INFO!C49=0," ",COUNTRY_INFO!C49)) -> Ngoyo | D49: =IF(INTRO!$E$39="Non endémique",0,IF(INTRO!$E$39="Endémique mais pas de CP",IF(COUNTRY_INFO!$H49=1,COUNTRY_INFO!F49+COUNTRY_INFO!G49,0),IF(COUNTRY_INFO!$H49=1,COUNTRY_INFO!F49+COUNTRY_INFO!G49,IF(COUNTRY_INFO!$I49=1,IF(COUNTRY_INFO!N49>=(COUNTRY_INFO!F49+COUNTRY_INFO!G49),COUNTRY_INFO!F49+COUNTRY_INFO!G49,COUNTRY_INFO!$N49),0)))) -> 0 | E49: =IF(AND(INTRO!$E$39="Non endémique",INTRO!$E$37="Non endémique"),"Non requis",IF(INTRO!$E$39="Non endémique","Traiter avec DEC",COUNTRY_INFO!Q49)) -> 0 | F49: =IF(INTRO!$E$39<>"Non endémique",COUNTRY_INFO!R49,"Non requis") -> 0 | G49: =IF(COUNTRY_INFO!H49=1, IF($E49=1,IF(ALB_MBD!$J49<>" ",COUNTRY_INFO!F49+COUNTRY_INFO!G49-ALB_MBD!$J49,COUNTRY_INFO!F49+COUNTRY_INFO!G49), 0),0) -> 0 | H49: =IF(INTRO!$E$39<>"Endémique",0, IF(AND(COUNTRY_INFO!$I49=1,$F49<>0),IF(COUNTRY_INFO!N49>=(COUNTRY_INFO!F49+COUNTRY_INFO!G49),COUNTRY_INFO!F49+COUNTRY_INFO!G49,COUNTRY_INFO!$N49), 0)) -> 0 | J49: 0 | K49: 0 | L49: 0 | M49: 0 | N49: 0 | P49: 0 | Q49: 0
A50: =IF(INTRO!$E$39="Non endémique"," ",IF(COUNTRY_INFO!A50=0," ",COUNTRY_INFO!A50)) -> Congo | B50: =IF(INTRO!$E$39="Non endémique"," ",IF(COUNTRY_INFO!B50=0," ",COUNTRY_INFO!B50)) -> Pointe-Noire | C50: =IF(INTRO!$E$39="Non endémique"," ",IF(COUNTRY_INFO!C50=0," ",COUNTRY_INFO!C50)) -> Tchiamba Nzassi | D50: =IF(INTRO!$E$39="Non endémique",0,IF(INTRO!$E$39="Endémique mais pas de CP",IF(COUNTRY_INFO!$H50=1,COUNTRY_INFO!F50+COUNTRY_INFO!G50,0),IF(COUNTRY_INFO!$H50=1,COUNTRY_INFO!F50+COUNTRY_INFO!G50,IF(COUNTRY_INFO!$I50=1,IF(COUNTRY_INFO!N50>=(COUNTRY_INFO!F50+COUNTRY_INFO!G50),COUNTRY_INFO!F50+COUNTRY_INFO!G50,COUNTRY_INFO!$N50),0)))) -> 0 | E50: =IF(AND(INTRO!$E$39="Non endémique",INTRO!$E$37="Non endémique"),"Non requis",IF(INTRO!$E$39="Non endémique","Traiter avec DEC",COUNTRY_INFO!Q50)) -> 0 | F50: =IF(INTRO!$E$39<>"Non endémique",COUNTRY_INFO!R50,"Non requis") -> 0 | G50: =IF(COUNTRY_INFO!H50=1, IF($E50=1,IF(ALB_MBD!$J50<>" ",COUNTRY_INFO!F50+COUNTRY_INFO!G50-ALB_MBD!$J50,COUNTRY_INFO!F50+COUNTRY_INFO!G50), 0),0) -> 0 | H50: =IF(INTRO!$E$39<>"Endémique",0, IF(AND(COUNTRY_INFO!$I50=1,$F50<>0),IF(COUNTRY_INFO!N50>=(COUNTRY_INFO!F50+COUNTRY_INFO!G50),COUNTRY_INFO!F50+COUNTRY_INFO!G50,COUNTRY_INFO!$N50), 0)) -> 0 | J50: 0 | K50: 0 | L50: 0 | M50: 0 | N50: 0 | P50: 0 | Q50: 0
A51: =IF(INTRO!$E$39="Non endémique"," ",IF(COUNTRY_INFO!A51=0," ",COUNTRY_INFO!A51)) -> Congo | B51: =IF(INTRO!$E$39="Non endémique"," ",IF(COUNTRY_INFO!B51=0," ",COUNTRY_INFO!B51)) -> Pointe-Noire | C51: =IF(INTRO!$E$39="Non endémique"," ",IF(COUNTRY_INFO!C51=0," ",COUNTRY_INFO!C51)) -> Tie-Tie | D51: =IF(INTRO!$E$39="Non endémique",0,IF(INTRO!$E$39="Endémique mais pas de CP",IF(COUNTRY_INFO!$H51=1,COUNTRY_INFO!F51+COUNTRY_INFO!G51,0),IF(COUNTRY_INFO!$H51=1,COUNTRY_INFO!F51+COUNTRY_INFO!G51,IF(COUNTRY_INFO!$I51=1,IF(COUNTRY_INFO!N51>=(COUNTRY_INFO!F51+COUNTRY_INFO!G51),COUNTRY_INFO!F51+COUNTRY_INFO!G51,COUNTRY_INFO!$N51),0)))) -> 0 | E51: =IF(AND(INTRO!$E$39="Non endémique",INTRO!$E$37="Non endémique"),"Non requis",IF(INTRO!$E$39="Non endémique","Traiter avec DEC",COUNTRY_INFO!Q51)) -> 0 | F51: =IF(INTRO!$E$39<>"Non endémique",COUNTRY_INFO!R51,"Non requis") -> 0 | G51: =IF(COUNTRY_INFO!H51=1, IF($E51=1,IF(ALB_MBD!$J51<>" ",COUNTRY_INFO!F51+COUNTRY_INFO!G51-ALB_MBD!$J51,COUNTRY_INFO!F51+COUNTRY_INFO!G51), 0),0) -> 0 | H51: =IF(INTRO!$E$39<>"Endémique",0, IF(AND(COUNTRY_INFO!$I51=1,$F51<>0),IF(COUNTRY_INFO!N51>=(COUNTRY_INFO!F51+COUNTRY_INFO!G51),COUNTRY_INFO!F51+COUNTRY_INFO!G51,COUNTRY_INFO!$N51), 0)) -> 0 | J51: 0 | K51: 0 | L51: 0 | M51: 0 | N51: 0 | P51: 0 | Q51: 0
A52: =IF(INTRO!$E$39="Non endémique"," ",IF(COUNTRY_INFO!A52=0," ",COUNTRY_INFO!A52)) -> Congo | B52: =IF(INTRO!$E$39="Non endémique"," ",IF(COUNTRY_INFO!B52=0," ",COUNTRY_INFO!B52)) -> Pool | C52: =IF(INTRO!$E$39="Non endémique"," ",IF(COUNTRY_INFO!C52=0," ",COUNTRY_INFO!C52)) -> Boko | D52: =IF(INTRO!$E$39="Non endémique",0,IF(INTRO!$E$39="Endémique mais pas de CP",IF(COUNTRY_INFO!$H52=1,COUNTRY_INFO!F52+COUNTRY_INFO!G52,0),IF(COUNTRY_INFO!$H52=1,COUNTRY_INFO!F52+COUNTRY_INFO!G52,IF(COUNTRY_INFO!$I52=1,IF(COUNTRY_INFO!N52>=(COUNTRY_INFO!F52+COUNTRY_INFO!G52),COUNTRY_INFO!F52+COUNTRY_INFO!G52,COUNTRY_INFO!$N52),0)))) -> 25621 | E52: =IF(AND(INTRO!$E$39="Non endémique",INTRO!$E$37="Non endémique"),"Non requis",IF(INTRO!$E$39="Non endémique","Traiter avec DEC",COUNTRY_INFO!Q52)) -> 0 | F52: =IF(INTRO!$E$39<>"Non endémique",COUNTRY_INFO!R52,"Non requis") -> 1 | G52: =IF(COUNTRY_INFO!H52=1, IF($E52=1,IF(ALB_MBD!$J52<>" ",COUNTRY_INFO!F52+COUNTRY_INFO!G52-ALB_MBD!$J52,COUNTRY_INFO!F52+COUNTRY_INFO!G52), 0),0) -> 0 | H52: =IF(INTRO!$E$39<>"Endémique",0, IF(AND(COUNTRY_INFO!$I52=1,$F52<>0),IF(COUNTRY_INFO!N52>=(COUNTRY_INFO!F52+COUNTRY_INFO!G52),COUNTRY_INFO!F52+COUNTRY_INFO!G52,COUNTRY_INFO!$N52), 0)) -> 25621 | J52: 25621 | K52: 0 | L52: 71738.8 | M52: 0 | N52: 71738.8 | P52: 71738.8 | Q52: 144
A53: =IF(INTRO!$E$39="Non endémique"," ",IF(COUNTRY_INFO!A53=0," ",COUNTRY_INFO!A53)) -> Congo | B53: =IF(INTRO!$E$39="Non endémique"," ",IF(COUNTRY_INFO!B53=0," ",COUNTRY_INFO!B53)) -> Pool | C53: =IF(INTRO!$E$39="Non endémique"," ",IF(COUNTRY_INFO!C53=0," ",COUNTRY_INFO!C53)) -> Goma tsétsé | D53: =IF(INTRO!$E$39="Non endémique",0,IF(INTRO!$E$39="Endémique mais pas de CP",IF(COUNTRY_INFO!$H53=1,COUNTRY_INFO!F53+COUNTRY_INFO!G53,0),IF(COUNTRY_INFO!$H53=1,COUNTRY_INFO!F53+COUNTRY_INFO!G53,IF(COUNTRY_INFO!$I53=1,IF(COUNTRY_INFO!N53>=(COUNTRY_INFO!F53+COUNTRY_INFO!G53),COUNTRY_INFO!F53+COUNTRY_INFO!G53,COUNTRY_INFO!$N53),0)))) -> 33961 | E53: =IF(AND(INTRO!$E$39="Non endémique",INTRO!$E$37="Non endémique"),"Non requis",IF(INTRO!$E$39="Non endémique","Traiter avec DEC",COUNTRY_INFO!Q53)) -> 0 | F53: =IF(INTRO!$E$39<>"Non endémique",COUNTRY_INFO!R53,"Non requis") -> 1 | G53: =IF(COUNTRY_INFO!H53=1, IF($E53=1,IF(ALB_MBD!$J53<>" ",COUNTRY_INFO!F53+COUNTRY_INFO!G53-ALB_MBD!$J53,COUNTRY_INFO!F53+COUNTRY_INFO!G53), 0),0) -> 0 | H53: =IF(INTRO!$E$39<>"Endémique",0, IF(AND(COUNTRY_INFO!$I53=1,$F53<>0),IF(COUNTRY_INFO!N53>=(COUNTRY_INFO!F53+COUNTRY_INFO!G53),COUNTRY_INFO!F53+COUNTRY_INFO!G53,COUNTRY_INFO!$N53), 0)) -> 33961 | J53: 33961 | K53: 0 | L53: 95090.8 | M53: 0 | N53: 95090.8 | P53: 95090.8 | Q53: 191
A54: =IF(INTRO!$E$39="Non endémique"," ",IF(COUNTRY_INFO!A54=0," ",COUNTRY_INFO!A54)) -> Congo | B54: =IF(INTRO!$E$39="Non endémique"," ",IF(COUNTRY_INFO!B54=0," ",COUNTRY_INFO!B54)) -> Pool | C54: =IF(INTRO!$E$39="Non endémique"," ",IF(COUNTRY_INFO!C54=0," ",COUNTRY_INFO!C54)) -> Ignié | D54: =IF(INTRO!$E$39="Non endémique",0,IF(INTRO!$E$39="Endémique mais pas de CP",IF(COUNTRY_INFO!$H54=1,COUNTRY_INFO!F54+COUNTRY_INFO!G54,0),IF(COUNTRY_INFO!$H54=1,COUNTRY_INFO!F54+COUNTRY_INFO!G54,IF(COUNTRY_INFO!$I54=1,IF(COUNTRY_INFO!N54>=(COUNTRY_INFO!F54+COUNTRY_INFO!G54),COUNTRY_INFO!F54+COUNTRY_INFO!G54,COUNTRY_INFO!$N54),0)))) -> 73179 | E54: =IF(AND(INTRO!$E$39="Non endémique",INTRO!$E$37="Non endémique"),"Non requis",IF(INTRO!$E$39="Non endémique","Traiter avec DEC",COUNTRY_INFO!Q54)) -> 1 | F54: =IF(INTRO!$E$39<>"Non endémique",COUNTRY_INFO!R54,"Non requis") -> 1 | G54: =IF(COUNTRY_INFO!H54=1, IF($E54=1,IF(ALB_MBD!$J54<>" ",COUNTRY_INFO!F54+COUNTRY_INFO!G54-ALB_MBD!$J54,COUNTRY_INFO!F54+COUNTRY_INFO!G54), 0),0) -> 15478 | H54: =IF(INTRO!$E$39<>"Endémique",0, IF(AND(COUNTRY_INFO!$I54=1,$F54<>0),IF(COUNTRY_INFO!N54>=(COUNTRY_INFO!F54+COUNTRY_INFO!G54),COUNTRY_INFO!F54+COUNTRY_INFO!G54,COUNTRY_INFO!$N54), 0)) -> 3505 | J54: 3505 | K54: 33524.4 | L54: 0 | M54: 9814 | N54: 43338.4 | P54: 43338.4 | Q54: 87
A55: =IF(INTRO!$E$39="Non endémique"," ",IF(COUNTRY_INFO!A55=0," ",COUNTRY_INFO!A55)) -> Congo | B55: =IF(INTRO!$E$39="Non endémique"," ",IF(COUNTRY_INFO!B55=0," ",COUNTRY_INFO!B55)) -> Pool | C55: =IF(INTRO!$E$39="Non endémique"," ",IF(COUNTRY_INFO!C55=0," ",COUNTRY_INFO!C55)) -> Kindamba | D55: =IF(INTRO!$E$39="Non endémique",0,IF(INTRO!$E$39="Endémique mais pas de CP",IF(COUNTRY_INFO!$H55=1,COUNTRY_INFO!F55+COUNTRY_INFO!G55,0),IF(COUNTRY_INFO!$H55=1,COUNTRY_INFO!F55+COUNTRY_INFO!G55,IF(COUNTRY_INFO!$I55=1,IF(COUNTRY_INFO!N55>=(COUNTRY_INFO!F55+COUNTRY_INFO!G55),COUNTRY_INFO!F55+COUNTRY_INFO!G55,COUNTRY_INFO!$N55),0)))) -> 11927 | E55: =IF(AND(INTRO!$E$39="Non endémique",INTRO!$E$37="Non endémique"),"Non requis",IF(INTRO!$E$39="Non endémique","Traiter avec DEC",COUNTRY_INFO!Q55)) -> 0 | F55: =IF(INTRO!$E$39<>"Non endémique",COUNTRY_INFO!R55,"Non requis") -> 1 | G55: =IF(COUNTRY_INFO!H55=1, IF($E55=1,IF(ALB_MBD!$J55<>" ",COUNTRY_INFO!F55+COUNTRY_INFO!G55-ALB_MBD!$J55,COUNTRY_INFO!F55+COUNTRY_INFO!G55), 0),0) -> 0 | H55: =IF(INTRO!$E$39<>"Endémique",0, IF(AND(COUNTRY_INFO!$I55=1,$F55<>0),IF(COUNTRY_INFO!N55>=(COUNTRY_INFO!F55+COUNTRY_INFO!G55),COUNTRY_INFO!F55+COUNTRY_INFO!G55,COUNTRY_INFO!$N55), 0)) -> 11927 | J55: 11927 | K55: 0 | L55: 33395.6 | M55: 0 | N55: 33395.6 | P55: 33395.6 | Q55: 67
A56: =IF(INTRO!$E$39="Non endémique"," ",IF(COUNTRY_INFO!A56=0," ",COUNTRY_INFO!A56)) -> Congo | B56: =IF(INTRO!$E$39="Non endémique"," ",IF(COUNTRY_INFO!B56=0," ",COUNTRY_INFO!B56)) -> Pool | C56: =IF(INTRO!$E$39="Non endémique"," ",IF(COUNTRY_INFO!C56=0," ",COUNTRY_INFO!C56)) -> Kinkala | D56: =IF(INTRO!$E$39="Non endémique",0,IF(INTRO!$E$39="Endémique mais pas de CP",IF(COUNTRY_INFO!$H56=1,COUNTRY_INFO!F56+COUNTRY_INFO!G56,0),IF(COUNTRY_INFO!$H56=1,COUNTRY_INFO!F56+COUNTRY_INFO!G56,IF(COUNTRY_INFO!$I56=1,IF(COUNTRY_INFO!N56>=(COUNTRY_INFO!F56+COUNTRY_INFO!G56),COUNTRY_INFO!F56+COUNTRY_INFO!G56,COUNTRY_INFO!$N56),0)))) -> 19693 | E56: =IF(AND(INTRO!$E$39="Non endémique",INTRO!$E$37="Non endémique"),"Non requis",IF(INTRO!$E$39="Non endémique","Traiter avec DEC",COUNTRY_INFO!Q56)) -> 0 | F56: =IF(INTRO!$E$39<>"Non endémique",COUNTRY_INFO!R56,"Non requis") -> 1 | G56: =IF(COUNTRY_INFO!H56=1, IF($E56=1,IF(ALB_MBD!$J56<>" ",COUNTRY_INFO!F56+COUNTRY_INFO!G56-ALB_MBD!$J56,COUNTRY_INFO!F56+COUNTRY_INFO!G56), 0),0) -> 0 | H56: =IF(INTRO!$E$39<>"Endémique",0, IF(AND(COUNTRY_INFO!$I56=1,$F56<>0),IF(COUNTRY_INFO!N56>=(COUNTRY_INFO!F56+COUNTRY_INFO!G56),COUNTRY_INFO!F56+COUNTRY_INFO!G56,COUNTRY_INFO!$N56), 0)) -> 19693 | J56: 19693 | K56: 0 | L56: 55140.4 | M56: 0 | N56: 55140.4 | P56: 55140.4 | Q56: 111
A57: =IF(INTRO!$E$39="Non endémique"," ",IF(COUNTRY_INFO!A57=0," ",COUNTRY_INFO!A57)) -> Congo | B57: =IF(INTRO!$E$39="Non endémique"," ",IF(COUNTRY_INFO!B57=0," ",COUNTRY_INFO!B57)) -> Pool | C57: =IF(INTRO!$E$39="Non endémique"," ",IF(COUNTRY_INFO!C57=0," ",COUNTRY_INFO!C57)) -> Kintélé | D57: =IF(INTRO!$E$39="Non endémique",0,IF(INTRO!$E$39="Endémique mais pas de CP",IF(COUNTRY_INFO!$H57=1,COUNTRY_INFO!F57+COUNTRY_INFO!G57,0),IF(COUNTRY_INFO!$H57=1,COUNTRY_INFO!F57+COUNTRY_INFO!G57,IF(COUNTRY_INFO!$I57=1,IF(COUNTRY_INFO!N57>=(COUNTRY_INFO!F57+COUNTRY_INFO!G57),COUNTRY_INFO!F57+COUNTRY_INFO!G57,COUNTRY_INFO!$N57),0)))) -> 0 | E57: =IF(AND(INTRO!$E$39="Non endémique",INTRO!$E$37="Non endémique"),"Non requis",IF(INTRO!$E$39="Non endémique","Traiter avec DEC",COUNTRY_INFO!Q57)) -> 0 | F57: =IF(INTRO!$E$39<>"Non endémique",COUNTRY_INFO!R57,"Non requis") -> 0 | G57: =IF(COUNTRY_INFO!H57=1, IF($E57=1,IF(ALB_MBD!$J57<>" ",COUNTRY_INFO!F57+COUNTRY_INFO!G57-ALB_MBD!$J57,COUNTRY_INFO!F57+COUNTRY_INFO!G57), 0),0) -> 0 | H57: =IF(INTRO!$E$39<>"Endémique",0, IF(AND(COUNTRY_INFO!$I57=1,$F57<>0),IF(COUNTRY_INFO!N57>=(COUNTRY_INFO!F57+COUNTRY_INFO!G57),COUNTRY_INFO!F57+COUNTRY_INFO!G57,COUNTRY_INFO!$N57), 0)) -> 0 | J57: 0 | K57: 0 | L57: 0 | M57: 0 | N57: 0 | P57: 0 | Q57: 0
A58: =IF(INTRO!$E$39="Non endémique"," ",IF(COUNTRY_INFO!A58=0," ",COUNTRY_INFO!A58)) -> Congo | B58: =IF(INTRO!$E$39="Non endémique"," ",IF(COUNTRY_INFO!B58=0," ",COUNTRY_INFO!B58)) -> Pool | C58: =IF(INTRO!$E$39="Non endémique"," ",IF(COUNTRY_INFO!C58=0," ",COUNTRY_INFO!C58)) -> Mindouli | D58: =IF(INTRO!$E$39="Non endémique",0,IF(INTRO!$E$39="Endémique mais pas de CP",IF(COUNTRY_INFO!$H58=1,COUNTRY_INFO!F58+COUNTRY_INFO!G58,0),IF(COUNTRY_INFO!$H58=1,COUNTRY_INFO!F58+COUNTRY_INFO!G58,IF(COUNTRY_INFO!$I58=1,IF(COUNTRY_INFO!N58>=(COUNTRY_INFO!F58+COUNTRY_INFO!G58),COUNTRY_INFO!F58+COUNTRY_INFO!G58,COUNTRY_INFO!$N58),0)))) -> 45307 | E58: =IF(AND(INTRO!$E$39="Non endémique",INTRO!$E$37="Non endémique"),"Non requis",IF(INTRO!$E$39="Non endémique","Traiter avec DEC",COUNTRY_INFO!Q58)) -> 0 | F58: =IF(INTRO!$E$39<>"Non endémique",COUNTRY_INFO!R58,"Non requis") -> 1 | G58: =IF(COUNTRY_INFO!H58=1, IF($E58=1,IF(ALB_MBD!$J58<>" ",COUNTRY_INFO!F58+COUNTRY_INFO!G58-ALB_MBD!$J58,COUNTRY_INFO!F58+COUNTRY_INFO!G58), 0),0) -> 0 | H58: =IF(INTRO!$E$39<>"Endémique",0, IF(AND(COUNTRY_INFO!$I58=1,$F58<>0),IF(COUNTRY_INFO!N58>=(COUNTRY_INFO!F58+COUNTRY_INFO!G58),COUNTRY_INFO!F58+COUNTRY_INFO!G58,COUNTRY_INFO!$N58), 0)) -> 45307 | J58: 45307 | K58: 0 | L58: 126859.6 | M58: 0 | N58: 126859.6 | P58: 126859.6 | Q58: 254
A59: =IF(INTRO!$E$39="Non endémique"," ",IF(COUNTRY_INFO!A59=0," ",COUNTRY_INFO!A59)) -> Congo | B59: =IF(INTRO!$E$39="Non endémique"," ",IF(COUNTRY_INFO!B59=0," ",COUNTRY_INFO!B59)) -> Sangha | C59: =IF(INTRO!$E$39="Non endémique"," ",IF(COUNTRY_INFO!C59=0," ",COUNTRY_INFO!C59)) -> Ouesso | D59: =IF(INTRO!$E$39="Non endémique",0,IF(INTRO!$E$39="Endémique mais pas de CP",IF(COUNTRY_INFO!$H59=1,COUNTRY_INFO!F59+COUNTRY_INFO!G59,0),IF(COUNTRY_INFO!$H59=1,COUNTRY_INFO!F59+COUNTRY_INFO!G59,IF(COUNTRY_INFO!$I59=1,IF(COUNTRY_INFO!N59>=(COUNTRY_INFO!F59+COUNTRY_INFO!G59),COUNTRY_INFO!F59+COUNTRY_INFO!G59,COUNTRY_INFO!$N59),0)))) -> 73016 | E59: =IF(AND(INTRO!$E$39="Non endémique",INTRO!$E$37="Non endémique"),"Non requis",IF(INTRO!$E$39="Non endémique","Traiter avec DEC",COUNTRY_INFO!Q59)) -> 1 | F59: =IF(INTRO!$E$39<>"Non endémique",COUNTRY_INFO!R59,"Non requis") -> 0 | G59: =IF(COUNTRY_INFO!H59=1, IF($E59=1,IF(ALB_MBD!$J59<>" ",COUNTRY_INFO!F59+COUNTRY_INFO!G59-ALB_MBD!$J59,COUNTRY_INFO!F59+COUNTRY_INFO!G59), 0),0) -> 3448 | H59: =IF(INTRO!$E$39<>"Endémique",0, IF(AND(COUNTRY_INFO!$I59=1,$F59<>0),IF(COUNTRY_INFO!N59>=(COUNTRY_INFO!F59+COUNTRY_INFO!G59),COUNTRY_INFO!F59+COUNTRY_INFO!G59,COUNTRY_INFO!$N59), 0)) -> 0 | J59: 0 | K59: 9654.4 | L59: 0 | M59: 0 | N59: 9654.4 | P59: 9654.4 | Q59: 20
A60: =IF(INTRO!$E$39="Non endémique"," ",IF(COUNTRY_INFO!A60=0," ",COUNTRY_INFO!A60)) -> Congo | B60: =IF(INTRO!$E$39="Non endémique"," ",IF(COUNTRY_INFO!B60=0," ",COUNTRY_INFO!B60)) -> Sangha | C60: =IF(INTRO!$E$39="Non endémique"," ",IF(COUNTRY_INFO!C60=0," ",COUNTRY_INFO!C60)) -> Sembé-Souanké | D60: =IF(INTRO!$E$39="Non endémique",0,IF(INTRO!$E$39="Endémique mais pas de CP",IF(COUNTRY_INFO!$H60=1,COUNTRY_INFO!F60+COUNTRY_INFO!G60,0),IF(COUNTRY_INFO!$H60=1,COUNTRY_INFO!F60+COUNTRY_INFO!G60,IF(COUNTRY_INFO!$I60=1,IF(COUNTRY_INFO!N60>=(COUNTRY_INFO!F60+COUNTRY_INFO!G60),COUNTRY_INFO!F60+COUNTRY_INFO!G60,COUNTRY_INFO!$N60),0)))) -> 33184 | E60: =IF(AND(INTRO!$E$39="Non endémique",INTRO!$E$37="Non endémique"),"Non requis",IF(INTRO!$E$39="Non endémique","Traiter avec DEC",COUNTRY_INFO!Q60)) -> 1 | F60: =IF(INTRO!$E$39<>"Non endémique",COUNTRY_INFO!R60,"Non requis") -> 0 | G60: =IF(COUNTRY_INFO!H60=1, IF($E60=1,IF(ALB_MBD!$J60<>" ",COUNTRY_INFO!F60+COUNTRY_INFO!G60-ALB_MBD!$J60,COUNTRY_INFO!F60+COUNTRY_INFO!G60), 0),0) -> 1567 | H60: =IF(INTRO!$E$39<>"Endémique",0, IF(AND(COUNTRY_INFO!$I60=1,$F60<>0),IF(COUNTRY_INFO!N60>=(COUNTRY_INFO!F60+COUNTRY_INFO!G60),COUNTRY_INFO!F60+COUNTRY_INFO!G60,COUNTRY_INFO!$N60), 0)) -> 0 | J60: 0 | K60: 4387.6 | L60: 0 | M60: 0 | N60: 4387.6 | P60: 4387.6 | Q60: 9

Sheet SUMMARY
C1: Cette version sera utilisée par les pays endémiques à la Loase
B2: Formulaire de demande commune de médicaments pour CP v.3.1 (L)
B4: Ce formulaire constitue une demande officielle du Gouvernement à l'OMS pour l'approvisionnement des médicaments mentionnés ci-dessus. Ce formulaire peut-être soumis à n'importe quel moment, avant le 15 août de l'année en cours, pour une livraison de médicaments au courant de l'année suivante, mais au moins 6-8 mois avant l’intervention planifiée afin de laisser le temps nécessaire pour réviser et approuver la demande, placer la commande, élaborer les médicaments et les expédier vers les pays.
B6: Pays | C6: =IF(INTRO!$E$33<>0,INTRO!$E$33," ") -> Congo | G6: Année | H6: =IF(INTRO!$E$35<>0,INTRO!$E$35," ") -> 2023
B8: Informations concernant les médicaments CP demandés à l’OMS
B10: Le médicament | C10: Nombre de comprimés | G10: Nombre total de flacons
C11: Requis | D11: En stock | E11: En cours de demande | F11: Demandés | G11: Requis | H11: Demandés
B12: Albendazole pour FL | C12: 1699144 | D12: 21000 | F12: =IF(C12>(D12+E12),C12-D12-E12, 0) -> 1678144 | G12: =IF($C12=0,0,IF($B12="Albendazole pour FL",IF($C12=(ALB_MBD!$U$4+ALB_MBD!$V$4),ALB_MBD!$W$4,ROUNDUP($C12/200,0)),IF($B12="Albendazole pour STH (EAS)",IF($C12=ALB_MBD!$N$4,ALB_MBD!$Z$4,ROUNDUP($C12/200,0)),IF($B12="Mebendazole (EAS)",IF($C12=ALB_MBD!$R$4,ALB_MBD!$AC$4,ROUNDUP($C12/150,0)),IF($B12="Praziquantel (EAS)",IF($C12=PZQ!$O$4,PZQ!$R$4,ROUNDUP($C12/1000,0)),IF($B12="Ivermectine",IF($C12=IVM!$N$4,IVM!$Q$4,$C12/500+0.49),0)))))) -> 8398 | H12: =IF($F12=0,0,IF(OR($B12="Albendazole pour FL",$B12="Albendazole pour STH (EAS)"),$G12-ROUNDUP(($E12+$D12)/200,0),IF($B12="Ivermectine",$G12-ROUNDUP(($E12+$D12)/500,0),IF($B12="Mebendazole (EAS)",$G12-ROUNDUP(($E12+$D12)/150,0),$G12-ROUNDUP(($E12+$D12)/1000,0))))) -> 8293
B13: Albendazole pour STH (EAS) | C13: 791201.4721 | D13: 0 | F13: 791201.4721 | G13: =IF($C13=0,0,IF($B13="Albendazole pour FL",IF($C13=(ALB_MBD!$U$4+ALB_MBD!$V$4),ALB_MBD!$W$4,ROUNDUP($C13/200,0)),IF($B13="Albendazole pour STH (EAS)",IF($C13=ALB_MBD!$N$4,ALB_MBD!$Z$4,ROUNDUP($C13/200,0)),IF($B13="Mebendazole (EAS)",IF($C13=ALB_MBD!$R$4,ALB_MBD!$AC$4,ROUNDUP($C13/150,0)),IF($B13="Praziquantel (EAS)",IF($C13=PZQ!$O$4,PZQ!$R$4,ROUNDUP($C13/1000,0)),IF($B13="Ivermectine",IF($C13=IVM!$N$4,IVM!$Q$4,$C13/500+0.49),0)))))) -> 3970 | H13: 3970
B14: Praziquantel (EAS) | C14: 295121.25 | D14: 12000 | F14: 283121.25 | G14: =IF($C14=0,0,IF($B14="Albendazole pour FL",IF($C14=(ALB_MBD!$U$4+ALB_MBD!$V$4),ALB_MBD!$W$4,ROUNDUP($C14/200,0)),IF($B14="Albendazole pour STH (EAS)",IF($C14=ALB_MBD!$N$4,ALB_MBD!$Z$4,ROUNDUP($C14/200,0)),IF($B14="Mebendazole (EAS)",IF($C14=ALB_MBD!$R$4,ALB_MBD!$AC$4,ROUNDUP($C14/150,0)),IF($B14="Praziquantel (EAS)",IF($C14=PZQ!$O$4,PZQ!$R$4,ROUNDUP($C14/1000,0)),IF($B14="Ivermectine",IF($C14=IVM!$N$4,IVM!$Q$4,$C14/500+0.49),0)))))) -> 299 | H14: 287
B15: Ivermectine | C15: 2489482.8 | D15: 101500 | F15: 2387982.8 | G15: =IF($C15=0,0,IF($B15="Albendazole pour FL",IF($C15=(ALB_MBD!$U$4+ALB_MBD!$V$4),ALB_MBD!$W$4,ROUNDUP($C15/200,0)),IF($B15="Albendazole pour STH (EAS)",IF($C15=ALB_MBD!$N$4,ALB_MBD!$Z$4,ROUNDUP($C15/200,0)),IF($B15="Mebendazole (EAS)",IF($C15=ALB_MBD!$R$4,ALB_MBD!$AC$4,ROUNDUP($C15/150,0)),IF($B15="Praziquantel (EAS)",IF($C15=PZQ!$O$4,PZQ!$R$4,ROUNDUP($C15/1000,0)),IF($B15="Ivermectine",IF($C15=IVM!$N$4,IVM!$Q$4,$C15/500+0.49),0)))))) -> 4991 | H15: 4788
C16: 0 | D16: 0 | F16: 0 | G16: =IF($C16=0,0,IF($B16="Albendazole pour FL",IF($C16=(ALB_MBD!$U$4+ALB_MBD!$V$4),ALB_MBD!$W$4,ROUNDUP($C16/200,0)),IF($B16="Albendazole pour STH (EAS)",IF($C16=ALB_MBD!$N$4,ALB_MBD!$Z$4,ROUNDUP($C16/200,0)),IF($B16="Mebendazole (EAS)",IF($C16=ALB_MBD!$R$4,ALB_MBD!$AC$4,ROUNDUP($C16/150,0)),IF($B16="Praziquantel (EAS)",IF($C16=PZQ!$O$4,PZQ!$R$4,ROUNDUP($C16/1000,0)),IF($B16="Ivermectine",IF($C16=IVM!$N$4,IVM!$Q$4,$C16/500+0.49),0)))))) -> 0 | H16: 0
C17: 0 | D17: 0 | F17: 0 | G17: =IF($C17=0,0,IF($B17="Albendazole pour FL",IF($C17=(ALB_MBD!$U$4+ALB_MBD!$V$4),ALB_MBD!$W$4,ROUNDUP($C17/200,0)),IF($B17="Albendazole pour STH (EAS)",IF($C17=ALB_MBD!$N$4,ALB_MBD!$Z$4,ROUNDUP($C17/200,0)),IF($B17="Mebendazole (EAS)",IF($C17=ALB_MBD!$R$4,ALB_MBD!$AC$4,ROUNDUP($C17/150,0)),IF($B17="Praziquantel (EAS)",IF($C17=PZQ!$O$4,PZQ!$R$4,ROUNDUP($C17/1000,0)),IF($B17="Ivermectine",IF($C17=IVM!$N$4,IVM!$Q$4,$C17/500+0.49),0)))))) -> 0 | H17: 0
B19: Nombre de personnes devant être traitées avec le médicament donné
B21: Veuillez sélectionner la maladie | G21: 1er tour | H21: 2ème tour
B22: Filariose lymphatique | C22: Ces chiffres sont estimés uniquement pour les goupes d'âge ciblés pour le traitement avec les médicaments donnés, dans les régions où le traitement de maladies spécifiques est requis | G22: 973398
B23: Géohelminthiases | G23: 658433 | H23: 112489
B24: Schistosomiase | G24: 118048.5
B25: Onchocercose | G25: 776432 | H25: 0
B29: Informations sur les interventions CP planifiées
B31: Le médicament | C31: Veuillez sélectionner une date (mois et année) pour la 1ère tournée de CP | E31: Veuillez sélectionner une date (mois et année) pour la 2ème tournée de CP | G31: Date à laquelle les médicaments devraient atteindre l’entrepôt national
B32: Albendazole pour FL | C32: Mars | D32: 2023 | E32: Septembre | F32: 2023 | G32: Janvier | H32: 2023
B33: Albendazole pour STH (EAS) | C33: Novembre | D33: 2023 | G33: Août | H33: 2023
B34: Praziquantel (EAS) | C34: Novembre | D34: 2023 | G34: Août | H34: 2023
B35: Ivermectine | C35: Septembre | D35: 2023 | G35: Juillet | H35: 2023
B39: Informations sur les médicaments de chimiothérapie préventive pour le traitement de populations non ciblées par la donation en cours via l’OMS
B41: Le médicament | C41: Groupe d'âge | D41: # de personnes | E41: # de comprimés | F41: Source | H41: Statut
B53: Récapitulatif - Checklist
B54: Submission
B55: Que faut-il soumettre ?
B56: L'approvisionnement des médicaments demandés doit être basé sur des données épidémiologiques à jour, des plans d'utilisation des médicaments spécifiques et sur la capacité de mise en oeuvre. La liste suivante permet d'assurer que tous les formulaires et toutes les informations sont fournis à l'OMS (en format électronique).
B57: Formulaire de demande commune de médicaments pour chimioprévention
B58: Formulaire de rapport commun
B59: Déclaration des données épidémiologiques pour la CP
B61: Disponibilité de financement pour la mise en oeuvre de tournées pendant l’année pour laquelle les medicaments ont été demandés
B63: Maladies ciblées pour la mise en oeuvre | C63: # de traitements | D63: Financement assuré pour | E63: Origine | H63: Montant
B64: =B22 -> Filariose lymphatique | C64: =SUM(G22:H22) -> 973398 | D64: tous | E64: ESPEN, OCEAC
B65: =B23 -> Géohelminthiases | C65: =SUM(G23:H23) -> 770922 | D65: En attente | E65: ESPEN
B66: =B24 -> Schistosomiase | C66: =SUM(G24:H24) -> 118048.5 | D66: En attente | E66: ESPEN
B67: =B25 -> Onchocercose | C67: =SUM(G25:H25) -> 776432 | D67: Intégré avec la FL | E67: ESPEN, OCEAC
B69: Qui doit remplir le formulaire ?
B70: Le Coordonnateur national MTN doit compiler toutes les informations nécessaires pour compléter le formulaire de demande. En l'absence d'un coordonnateur, les gestionnaires de programmes spécifiques devraient coordonner leurs sections respectives. Une fois finalisée, chaque demande individuelle doit être approuvée par le Ministère de la Santé.
B72: Informations concernant la (les) personne(s) ayant rempli le formulaire
B74: Titre/fonction | C74: Nom | E74: Téléphone | G74: Email | H74: Date
B75: Coordonnateur MTN/CP | C75: MISSAMOU François | E75: 242 06 668 05 63 | G75: francmissamou2009@gmail.com
B76: autre | C76: HEMILEMBOLO MBEMBA Marlhand | E76: 242 06 978 14 11 | G76: emimarlhand@gmail.com
B80: L’OMS recommende que tous les effets secondaires graves suspectés d’être associés à l’ingestion de médicaments de CP soient rapportés en suivant les lignes directrices nationales de pharmacovigilance. En l’absence d’un système de pharmacovigilance national, contactez le département de Contrôle des Maladies Tropicales Négligées pour être conseillé.
B81: L’OMS s’est engagée à rendre possible la donation de médicaments en fournissant gratuitement: a) albendazole, mebendazole et praziquantel à l’entrepôt national du Ministère de la Santé et b) diethylcarbamazine au port d’entrée du pays receveur.
B82: L’institution soumettant la présente requête est responsable de: a) l’organisation du déchargement des médicaments du camion, du stockage dans l’entrepôt national et de l’expédition vers les centres où aura lieu la distribution finale; b) de l’enregistrement, si nécessaire, des médicaments donnés, auprès des autorités nationales en charge; et de c) de l’information de n’importe quels changements ayant trait à leurs campagnes de traitement (par exemple le report d’une date planifiée de distribution en masse de médicaments, le remplacement d’un coordonateur MTN, etc.).
B83: J’ai pris connaissance et accepté la politique de la communication de données de l’OMS
B84: Nom et signature du Coordonnateur MTN ou du Représentant du Ministère de la Santé | D84: Dr François MISSAMOU
B85: Date | D85: 2022-05-16
B87: Si vous avez plus d'un destinataire final pour les médicaments de chimioprévention demandés, veuillez compléter les informations de la rubrique "Informations concernant l'envoi et le destinataire" dans la feuille de travail SHIPMENT.
B88: Veuillez envoyer le rapport national (signé et sous format électronique) au représentant de I'OMS du pays en mettant en copie:
B89: Siège de l'OMS | C89: PC_JointForms@who.int
B90: Bureau régional de l'OMS | C90: Conseiller régional MTN
B91: Mectizan donation programme | C91: Dr Yao Sodahlon, email: ysodahlon@taskforce.org
B93: Veuillez noter que votre demande sera examinée par un panel d'experts indépendants (Comité ad hoc d’évaluation conjointe). Les informations contenues dans ce formulaire, le rapport commun d'activités (ou rapport national d'activités) et le plan d'action annuel sont essentiels à l'OMS pour assurer un usage optimal des médicaments. Dans le cadre de ses activités courantes de suivi et d'évaluation, et afin d'honorer ses obligations contractuelles envers les bailleurs de fonds et autres partenaires, l'OMS et ses agents affiliés se réservent le droit d'inspecter, périodiquement, les stocks de médicaments au niveau national.

Sheet SHIPMENT
C1: Cette version sera utilisée par les pays endémiques à la Loase
B2: Formulaire de demande commune de médicaments pour CP v.3.1 (L)
B4: Pays | C4: =IF(INTRO!$E$33<>0,INTRO!$E$33," ") -> Congo | G4: Année | H4: =IF(INTRO!$E$35<>0,INTRO!$E$35," ") -> 2023
B6: Informations sur l'envoi et le destinataire
C8: Destinataire | F8: Destinataire final si différent du destinaire précédent
B9: Nom | C9: Dr MANGA Lucien Alexis
B10: Département/Unité
B11: Organisation | C11: Représentation OMS-Congo
B12: Téléphone
B13: Fax
B14: E-mail | C14: mangal@who.int
B15: Adresse postale | C15: Brazzaville
C17: Destinataire | F17: Destinataire final si différent du destinaire précédent
B18: Nom | C18: Dr MISSAMOU François
B19: Département/Unité | C19: Programme National de Lutte contre l'Onchocercose
B20: Organisation | C20: Ministère de la Santé et de la Population
B21: Téléphone | C21: 242066680563
B22: Fax
B23: E-mail | C23: francmissamou2009@gmail.com
B24: Adresse postale
C26: Destinataire | F26: Destinataire final si différent du destinaire précédent
B27: Nom
B28: Département/Unité
B29: Organisation
B30: Téléphone
B31: Fax
B32: E-mail
B33: Adresse postale
B35: Information concernant les obligations légales d’importation
B37: Est le permis d'importation nécessaire? | H37: Oui
B38: Combien de temps cela prend-il pour obtenir le permis d’importation? | H38: Mois
B39: Avez vous besoin que certains documents soient remis en même temps que la demande de permis d’importation? | H39: Oui
B40: LTA (lettre de transport aérien), facture, liste de collisage, certificat d'origine
B41: Est-ce que le destinataire doit procéder au dédouanement avant que l’expédition puisse avoir lieu? | H41: No
B42: Y a-t-il des informations supplémentaires qui pourraient être utiles afin d’assurer un dédouanement et une livraison rapide des médicaments dans votre pays? | H42: Oui
B43: Les documents cités ci-dessous doivent nous parvenir beaucoup plutôt pour faire la demande d'exonération douanière auprès des autorités nationales
B46: Remarques supplémentaires éventuelles liées à cette requête
B48: Les documents (LTA facture, liste de collisage, certificat d'origine, …) doivent nous parvenir beaucoup plutôt pour faire la demande d'exonération douanière auprès des autorités nationales. La demande d'exonération peut prendre jusqu'à un mois avant qu'il ne soit délivrée.

Sheet DATA_POLICY
B2: Formulaire de demande commune de médicaments pour CP v.3.1
B4: Pays | D4: =IF(INTRO!$E$33<>0,INTRO!$E$33," ") -> Congo | G4: Année | H4: =IF(INTRO!$E$35<>0,INTRO!$E$35," ") -> 2023
B7: Déclaration de principe sur la communication de données par l’OMS
B9: Les données sont le fondement de toutes les mesures rationnelles de santé publique et les avantages de la communication de données, y compris pour la science et la santé publique, sont largement reconnus. L’OMS souhaite promouvoir autant que possible la communication de données sanitaires, y compris, mais pas uniquement, de données épidémiologiques et de surveillance.
B14: ="À cet égard, et sans préjudice des instruments juridiquement contraignants régissant la communication et la publication d’informations, le Ministère de la santé de " & D4 & ", en fournissant des données à l’OMS :" -> À cet égard, et sans préjudice des instruments juridiquement contraignants régissant la communication et la publication d’informations, le Ministère de la santé de Congo, en fournissant des données à l’OMS :
B18: confirme que toutes les données à fournir à l’OMS, ont été collectées conformément à la législation nationale applicable, y compris aux lois de protection des données visant à préserver l’anonymat des personnes identifiables ;
B23: ="convient que l’OMS aura le droit, toujours sous réserve des mesures visant à garantir l’utilisation éthique et sécurisée des données et toujours sous réserve d’une reconnaissance appropriée de la part de "&D4&":" -> convient que l’OMS aura le droit, toujours sous réserve des mesures visant à garantir l’utilisation éthique et sécurisée des données et toujours sous réserve d’une reconnaissance appropriée de la part de Congo:
C27: de publier les données, dépourvues de tout élément d’identification personnelle (ci-après dénommées « les données ») et de les mettre à la disposition de toute partie intéressée, sur demande (dans la mesure où elles n’ont pas, ou pas encore, été publiées par l’OMS), selon des modalités autorisant leur utilisation non commerciale et sans but lucratif à des fins de santé publique (pour autant que l’OMS garde la maîtrise de la publication des données) ; d’utiliser, de compiler, d’agréger, d’évaluer et d’analyser les données et de publier et de diffuser les résultats obtenus grâce à ces données en rapport avec des travaux de l’OMS et conformément aux politiques et pratiques de l’Organisation.
B39: =CONCATENATE("Sauf lorsque des instruments juridiquement contraignants (RSI, Règlement de Nomenclature de l’OMS, de 1967, etc.) disposent que les données doivent être communiquées et publiées, le Ministère de la santé de ", D4," peut, pour certaines données, décider de ne pas appliquer (tout ou partie des) (les) dispositions qui précèdent," & " en informant l’OMS par écrit à l’adresse suivante, à condition que cette notification précise clairement les données, " & "dont il s’agit et indique clairement lesquelles des dispositions qui précèdent ne seront pas appliquées, et pour quels motifs.") -> Sauf lorsque des instruments juridiquement contraignants (RSI, Règlement de Nomenclature de l’OMS, de 1967, etc.) disposent que les données doivent être communiquées et publiées, le Ministère de la santé de Congo peut, pour certaines données, décider de ne pas appliquer (tout ou partie des) (les) dispositions qui précèdent, en informant l’OMS par écrit à l’adresse suivante, à condition que cette notification précise clairement les données, dont il s’agit et indique clairement lesquelles des dispositions qui précèdent ne seront pas appliquées, et pour quels motifs.
